Workbook

Sheet Calculations (hidden)
A1: Field Identifier | G1: User fills out the data in | J1: light yellow
A2: Crop
A4: Estimates of Potential ET can be found at the MSU AgWeather site: http://www.agweather.geo.msu.edu/mawn/irrigation/
A5: The Table of Crop Coefficients contains estimated values of Root Depth and Canopy Cover Coeff, as a function of the percentage of the growing season.
A6: To use the Table, first determine the length of the growing season and rooting depth for the variety of your crop, then extrapolate data from emergence date.
A7: For example, 120 day Corn36 (a corn variety with an effective rooting depth of 36 inches) and has an emergence date of May 15th, 10% of the growing season is May 27th.
A8: 10% of 120 = 12 15 + 12 = 27
IQ9: Adrian | IT9: Alfalfa
A10: Available water (AW) holding capacity of soil - (inches water/inch soil). See Table 1 or Soil Survey. | K10: Soil Type (Bronson or Oshtema) | P10: Oshtemo | IQ10: Alcona-Richter | IT10: Alfalfa1
A11: Depth Range (in) | B11: 0 - 6 | C11: 6 - 12 | D11: 12 - 18 | E11: 18 - 24 | F11: 24 - 30 | G11: 30 - 36 | H11: 36 - 42 | I11: 42 - 48 | K11: Crop (Corn24 or Corn36): | P11: Corn36 | IQ11: Algansee | IT11: Apple
A12: AW (in/in) | K12: Length of Growing Season (days): | P12: 135 | IQ12: Arkona | IT12: Blueberries12
A13: Capacity filled (%) | B13: 60 | C13: 80 | D13: 95 | E13: 95 | F13: 95 | G13: 95 | H13: 95 | I13: 95 | K13: Emergence Date (mm/dd/yyyy): | P13: 2014-05-07 | R13: Irrigated | IQ13: Au Gres | IT13: Blueberries18
R14: Acres in Field | IQ14: Aubbeenaubbee | IT14: Blueberries24
A15: Irrigation increment/amount per application (inches) | F15: 1 | G15: Irrigate at this % of Available Soil Water in Root Zone | L15: 50 | N15: 50 | P15: Soybeans - 40 of avail until R-3 | R15: 127 | IQ15: Belleville | IT15: Broccoli
IQ16: Benona | IT16: Carrot12
G17: Calculated in XLS | IQ17: Blount Loam | IT17: Carrot18
A18: Date | B18: Root Depth (inches) | C18: Rainfall (inches) | D18: Irrigation added (inches) | E18: 0.155 | F18: % Canopy Cover (Kc) | G18: ET modified for crop (inches) | H18: Capacity of root zone (inches) | I18: Available Water in root zone (inches) | J18: % capacity filled | K18: Drainage (inches) | L18: Additional capacity of root zone (inches) | N18: Grower Added Growth Stage | O18: Proj ET | P18: Cumulative GDD's | Q18: Estimated Corn Growth Stage | EB18: Available Water in Root Zone Calculations | IQ18: Blue Lake | IT18: Carrot24
A19: =P13 -> 2014-05-07 | G19: 0 | H19: =IF($B19<=6,$B19*$B$12,IF($B19<=12,6*$B$12+($B19-6)*$C$12,IF($B19<=18,6*$B$12+6*$C$12+($B19-12)*$D$12,IF($B19<=24,6*$B$12+6*$C$12+6*$D$12+($B19-18)*$E$12,IF($B19<=30,6*$B$12+6*$C$12+6*$D$12+6*$E$12+($B19-24)*$F$12,IF($B19<=36,6*$B$12+6*$C$12+6*$D$12+6*$E$12+6*$F$12+($B19-30)*$G$12,IF($B19<=42,6*$B$12+6*$C$12+6*$D$12+6*$E$12+6*$F$12+6*$G$12+($B19-36)*$H$12,IF($B19<=48,6*$B$12+6*$C$12+6*$D$12+6*$E$12+6*$F$12+6*$G$12+6*$H$12+(F19-42)*$I$12,"rootdepth>48in")))))))) -> 0 | I19: =$H19*$J$19/100 -> 0 | J19: 95 | K19: 0 | Q19: =+VLOOKUP(P19,$T$19:$U$40,2) -> VE | T19: 0 | U19: VE | W19: VE | IQ19: Brady | IT19: Carrot36
A20: =1+A19 -> 2014-05-08 | G20: =$F20*$E20 -> 0 | H20: =IF($B20<=6,$B20*$B$12,IF($B20<=12,6*$B$12+($B20-6)*$C$12,IF($B20<=18,6*$B$12+6*$C$12+($B20-12)*$D$12,IF($B20<=24,6*$B$12+6*$C$12+6*$D$12+($B20-18)*$E$12,IF($B20<=30,6*$B$12+6*$C$12+6*$D$12+6*$E$12+($B20-24)*$F$12,IF($B20<=36,6*$B$12+6*$C$12+6*$D$12+6*$E$12+6*$F$12+($B20-30)*$G$12,IF($B20<=42,6*$B$12+6*$C$12+6*$D$12+6*$E$12+6*$F$12+6*$G$12+($B20-36)*$H$12,IF($B20<=48,6*$B$12+6*$C$12+6*$D$12+6*$E$12+6*$F$12+6*$G$12+6*$H$12+(F20-42)*$I$12,"rootdepth>48in")))))))) -> 0 | I20: =MAX(IF(($I19+$C20+$D20-$G20)+(($H20-$H19)*$B$13/100)>($H20*1.03),($H20*1.03),($I19+$C20+$D20-$G20)+(($H20-$H19)*$B$13/100)),0) -> 0 | J20: =IF(AND(Caluations!$F9>7,Caluations!$F9<>FALSE),"",IF($E21="",(Caluations!$H9/$H20)*100,$I20/$H20*100)) ->  | K20: =IF(OR($J20<103,$E20=""),0,$C20+$D20+$I19-$G20-($H20*1.03)) ->  | L20: =IF(Caluations!$J9<0,0,Caluations!$J9) -> 0 | O20: =IF(AND($E20="",Caluations!$F9<8),$N20*$F20,0) -> 0 | Q20: =+VLOOKUP(P20,$T$19:$U$40,2) -> VE | T20: 82 | U20: V1 | W20: VC | EB20: IF($B20 < 6, $B$12, IF($B20 > 6)) | IQ20: Brevert | IT20: Cauliflower12
A21: 2014-05-09 | G21: =$F21*$E21 -> 0 | H21: =IF($B21<=6,$B21*$B$12,IF($B21<=12,6*$B$12+($B21-6)*$C$12,IF($B21<=18,6*$B$12+6*$C$12+($B21-12)*$D$12,IF($B21<=24,6*$B$12+6*$C$12+6*$D$12+($B21-18)*$E$12,IF($B21<=30,6*$B$12+6*$C$12+6*$D$12+6*$E$12+($B21-24)*$F$12,IF($B21<=36,6*$B$12+6*$C$12+6*$D$12+6*$E$12+6*$F$12+($B21-30)*$G$12,IF($B21<=42,6*$B$12+6*$C$12+6*$D$12+6*$E$12+6*$F$12+6*$G$12+($B21-36)*$H$12,IF($B21<=48,6*$B$12+6*$C$12+6*$D$12+6*$E$12+6*$F$12+6*$G$12+6*$H$12+(F21-42)*$I$12,"rootdepth>48in")))))))) -> 0 | I21: =MAX(IF(($I20+$C21+$D21-$G21)+(($H21-$H20)*$B$13/100)>($H21*1.03),($H21*1.03),($I20+$C21+$D21-$G21)+(($H21-$H20)*$B$13/100)),0) -> 0 | J21: =IF(AND(Caluations!$F10>7,Caluations!$F10<>FALSE),"",IF($E22="",(Caluations!$H10/$H21)*100,$I21/$H21*100)) ->  | L21: =IF(Caluations!$J10<0,0,Caluations!$J10) -> 0.05063666667 | O21: =IF(AND($E21="",Caluations!$F10<8),$N21*$F21,0) -> 0 | Q21: VE | T21: 164 | U21: V2 | W21: V1 | IQ21: Bronson | IT21: Cauliflower18
A22: 2014-05-10 | G22: 0 | H22: 0 | I22: 0 | J22: =IF(AND(Caluations!$F11>7,Caluations!$F11<>FALSE),"",IF($E23="",(Caluations!$H11/$H22)*100,$I22/$H22*100)) ->  | L22: =IF(Caluations!$J11<0,0,Caluations!$J11) -> 0.1113366667 | O22: =IF(AND($E22="",Caluations!$F11<8),$N22*$F22,0) -> 0 | Q22: VE | T22: =+T21+82 -> 246 | U22: V3 | W22: V2 | IQ22: Capac | IT22: Celery
A23: 2014-05-11 | G23: 0 | H23: 0 | I23: 0 | J23: =IF(AND(Caluations!$F12>7,Caluations!$F12<>FALSE),"",IF($E24="",(Caluations!$H12/$H23)*100,$I23/$H23*100)) ->  | L23: =IF(Caluations!$J12<0,0,Caluations!$J12) -> 0.1658116667 | O23: =IF(AND($E23="",Caluations!$F12<8),$N23*$F23,0) -> 0 | Q23: VE | T23: 328 | U23: V4 | W23: V3 | IQ23: Carlisle | IT23: Cherries
A24: 2014-05-12 | G24: 0 | H24: 0 | I24: 0 | J24: =IF(AND(Caluations!$F13>7,Caluations!$F13<>FALSE),"",IF($E25="",(Caluations!$H13/$H24)*100,$I24/$H24*100)) ->  | L24: =IF(Caluations!$J13<0,0,Caluations!$J13) -> 0.2523804167 | O24: =IF(AND($E24="",Caluations!$F13<8),$N24*$F24,0) -> 0 | Q24: VE | T24: 410 | U24: V5 | W24: V4 | IQ24: Chippeny-Nahma | IT24: Corn18
A25: 2014-05-13 | G25: 0 | H25: 0 | I25: 0 | J25: =IF(AND(Caluations!$F14>7,Caluations!$F14<>FALSE),"",IF($E26="",(Caluations!$H14/$H25)*100,$I25/$H25*100)) ->  | L25: =IF(Caluations!$J14<0,0,Caluations!$J14) -> 0.3626491667 | O25: =IF(AND($E25="",Caluations!$F14<8),$N25*$F25,0) -> 0 | Q25: VE | T25: 492 | U25: V6 | W25: V5 | IQ25: Coloma | IT25: Corn24
A26: 2014-05-14 | G26: 0 | H26: 0 | I26: 0 | J26: =IF(AND(Caluations!$F15>7,Caluations!$F15<>FALSE),"",IF($E27="",(Caluations!$H15/$H26)*100,$I26/$H26*100)) ->  | L26: =IF(Caluations!$J15<0,0,Caluations!$J15) -> 0.4178866667 | O26: =IF(AND($E26="",Caluations!$F15<8),$N26*$F26,0) -> 0 | Q26: VE | T26: 574 | U26: V7 | W26: V6 | IQ26: Coral | IT26: Corn27
A27: 2014-05-15 | G27: 0 | H27: 0 | I27: 0 | J27: =IF(AND(Caluations!$F16>7,Caluations!$F16<>FALSE),"",IF($E28="",(Caluations!$H16/$H27)*100,$I27/$H27*100)) ->  | L27: =IF(Caluations!$J16<0,0,Caluations!$J16) -> 0.4844804167 | N27: VC | O27: =IF(AND($E27="",Caluations!$F16<8),$N27*$F27,0) -> 0 | Q27: VE | T27: 656 | U27: V8 | W27: R1 | IQ27: Corunna | IT27: Corn36
A28: 2014-05-16 | G28: 0 | H28: 0 | I28: 0 | J28: =IF(AND(Caluations!$F17>7,Caluations!$F17<>FALSE),"",IF($E29="",(Caluations!$H17/$H28)*100,$I28/$H28*100)) ->  | L28: =IF(Caluations!$J17<0,0,Caluations!$J17) -> 0.5622741667 | N28: VC | O28: =IF(AND($E28="",Caluations!$F17<8),$N28*$F28,0) -> 0 | Q28: VE | T28: 738 | U28: V9 | W28: R2 | IQ28: Covert | IT28: CucumberF12
A29: 2014-05-17 | G29: 0 | H29: 0 | I29: 0 | J29: =IF(AND(Caluations!$F18>7,Caluations!$F18<>FALSE),"",IF($E30="",(Caluations!$H18/$H29)*100,$I29/$H29*100)) ->  | L29: =IF(Caluations!$J18<0,0,Caluations!$J18) -> 0.6451491667 | N29: VC | O29: =IF(AND($E29="",Caluations!$F18<8),$N29*$F29,0) -> 0 | Q29: VE | T29: 820 | U29: V10 | W29: R3 | IQ29: Croswell | IT29: CucumberF18
A30: 2014-05-18 | G30: 0 | H30: 0 | I30: 0 | J30: =IF(AND(Caluations!$F19>7,Caluations!$F19<>FALSE),"",IF($E31="",(Caluations!$H19/$H30)*100,$I30/$H30*100)) ->  | L30: =IF(Caluations!$J19<0,0,Caluations!$J19) -> 0.7363788568 | N30: VC | O30: =IF(AND($E30="",Caluations!$F19<8),$N30*$F30,0) -> 0 | Q30: VE | T30: 870 | U30: V11 | W30: R4 | IQ30: Edmore | IT30: CucumberF24
A31: 2014-05-19 | G31: 0 | H31: 0 | I31: 0 | J31: =IF(AND(Caluations!$F20>7,Caluations!$F20<>FALSE),"",IF($E32="",(Caluations!$H20/$H31)*100,$I31/$H31*100)) ->  | L31: =IF(Caluations!$J20<0,0,Caluations!$J20) -> 0.5927875266 | N31: VC | O31: =IF(AND($E31="",Caluations!$F20<8),$N31*$F31,0) -> 0 | Q31: VE | T31: 920 | U31: V12 | W31: R5 | IQ31: Edwards | IT31: CucumberF36
A32: 2014-05-20 | G32: 0 | H32: 0 | I32: 0 | J32: =IF(AND(Caluations!$F21>7,Caluations!$F21<>FALSE),"",IF($E33="",(Caluations!$H21/$H32)*100,$I32/$H32*100)) ->  | L32: =IF(Caluations!$J21<0,0,Caluations!$J21) -> 0.1230225266 | N32: VC | O32: =IF(AND($E32="",Caluations!$F21<8),$N32*$F32,0) -> 0 | Q32: VE | T32: 970 | U32: V13 | W32: R6 | IQ32: Elston | IT32: CucumberP12
A33: 2014-05-21 | G33: 0 | H33: 0 | I33: 0 | J33: =IF(AND(Caluations!$F22>7,Caluations!$F22<>FALSE),"",IF($E34="",(Caluations!$H22/$H33)*100,$I33/$H33*100)) ->  | L33: =IF(Caluations!$J22<0,0,Caluations!$J22) -> 0.1854500266 | N33: VC | O33: =IF(AND($E33="",Caluations!$F22<8),$N33*$F33,0) -> 0 | Q33: VE | T33: 1020 | U33: V12 | W33: R7 | IQ33: Emmett | IT33: CucumberP18
A34: 2014-05-22 | G34: 0 | H34: 0 | I34: 0 | J34: =IF(AND(Caluations!$F23>7,Caluations!$F23<>FALSE),"",IF($E35="",(Caluations!$H23/$H34)*100,$I34/$H34*100)) ->  | L34: =IF(Caluations!$J23<0,0,Caluations!$J23) -> 0.15975086 | N34: VC | O34: =IF(AND($E34="",Caluations!$F23<8),$N34*$F34,0) -> 0 | Q34: VE | T34: 1070 | U34: V13 | W34: R8 | IQ34: Epoufette | IT34: CucumberP24
A35: 2014-05-23 | G35: 0 | H35: 0 | I35: 0 | J35: =IF(AND(Caluations!$F24>7,Caluations!$F24<>FALSE),"",IF($E36="",(Caluations!$H24/$H35)*100,$I35/$H35*100)) ->  | L35: =IF(Caluations!$J24<0,0,Caluations!$J24) -> 0.2230050266 | N35: VC | O35: =IF(AND($E35="",Caluations!$F24<8),$N35*$F35,0) -> 0 | Q35: VE | T35: 1120 | U35: V14 | IQ35: Fern | IT35: CucumberP36
A36: 2014-05-24 | G36: 0 | H36: 0 | I36: 0 | J36: =IF(AND(Caluations!$F25>7,Caluations!$F25<>FALSE),"",IF($E37="",(Caluations!$H25/$H36)*100,$I36/$H36*100)) ->  | L36: =IF(Caluations!$J25<0,0,Caluations!$J25) -> 0.3263800266 | N36: VC | O36: =IF(AND($E36="",Caluations!$F25<8),$N36*$F36,0) -> 0 | Q36: VE | T36: 1170 | U36: V15 | IQ36: Fox | IT36: DryBeans18
A37: 2014-05-25 | G37: 0 | H37: 0 | I37: 0 | J37: =IF(AND(Caluations!$F26>7,Caluations!$F26<>FALSE),"",IF($E38="",(Caluations!$H26/$H37)*100,$I37/$H37*100)) ->  | L37: =IF(Caluations!$J26<0,0,Caluations!$J26) -> 0.43291586 | N37: VC | O37: =IF(AND($E37="",Caluations!$F26<8),$N37*$F37,0) -> 0 | Q37: VE | T37: 1220 | U37: V16 | IQ37: Gilford | IT37: DryBeans21
A38: 2014-05-26 | G38: 0 | H38: =IF($B38<=6,$B38*$B$12,IF($B38<=12,6*$B$12+($B38-6)*$C$12,IF($B38<=18,6*$B$12+6*$C$12+($B38-12)*$D$12,IF($B38<=24,6*$B$12+6*$C$12+6*$D$12+($B38-18)*$E$12,IF($B38<=30,6*$B$12+6*$C$12+6*$D$12+6*$E$12+($B38-24)*$F$12,IF($B38<=36,6*$B$12+6*$C$12+6*$D$12+6*$E$12+6*$F$12+($B38-30)*$G$12,IF($B38<=42,6*$B$12+6*$C$12+6*$D$12+6*$E$12+6*$F$12+6*$G$12+($B38-36)*$H$12,IF($B38<=48,6*$B$12+6*$C$12+6*$D$12+6*$E$12+6*$F$12+6*$G$12+6*$H$12+(F38-42)*$I$12,"rootdepth>48in")))))))) -> 0 | I38: =MAX(IF(($I37+$C38+$D38-$G38)+(($H38-$H37)*$B$13/100)>($H38*1.03),($H38*1.03),($I37+$C38+$D38-$G38)+(($H38-$H37)*$B$13/100)),0) -> 0 | J38: =IF(AND(Caluations!$F27>7,Caluations!$F27<>FALSE),"",IF($E39="",(Caluations!$H27/$H38)*100,$I38/$H38*100)) ->  | L38: =IF(Caluations!$J27<0,0,Caluations!$J27) -> 0.5426916933 | N38: VC | O38: =IF(AND($E38="",Caluations!$F27<8),$N38*$F38,0) -> 0 | Q38: VE | T38: 1270 | U38: V17 | IQ38: Gladwin | IT38: DryBeans24
A39: 2014-05-27 | G39: 0 | H39: 0 | I39: 0 | J39: =IF(AND(Caluations!$F28>7,Caluations!$F28<>FALSE),"",IF($E40="",(Caluations!$H28/$H39)*100,$I39/$H39*100)) ->  | L39: =IF(Caluations!$J28<0,0,Caluations!$J28) -> 0.6608075266 | N39: VC | O39: =IF(AND($E39="",Caluations!$F28<8),$N39*$F39,0) -> 0 | Q39: VE | T39: 1320 | U39: V18 | IQ39: Glendora | IT39: DryOnion12
A40: 2014-05-28 | G40: 0 | H40: 0 | I40: 0 | J40: =IF(AND(Caluations!$F29>7,Caluations!$F29<>FALSE),"",IF($E41="",(Caluations!$H29/$H40)*100,$I40/$H40*100)) ->  | L40: =IF(Caluations!$J29<0,0,Caluations!$J29) -> 0.7967825266 | N40: VC | O40: =IF(AND($E40="",Caluations!$F29<8),$N40*$F40,0) -> 0 | Q40: VE | T40: 1370 | U40: VT | IQ40: Granby | IT40: DryOnion15
A41: 2014-05-29 | G41: 0 | H41: 0 | I41: 0 | J41: =IF(AND(Caluations!$F30>7,Caluations!$F30<>FALSE),"",IF($E42="",(Caluations!$H30/$H41)*100,$I41/$H41*100)) ->  | L41: =IF(Caluations!$J30<0,0,Caluations!$J30) -> 0.9498300266 | N41: VC | O41: =IF(AND($E41="",Caluations!$F30<8),$N41*$F41,0) -> 0 | Q41: VE | IQ41: Grayling | IT41: DryOnion18
A42: 2014-05-30 | G42: 0 | H42: 0 | I42: 0 | J42: =IF(AND(Caluations!$F31>7,Caluations!$F31<>FALSE),"",IF($E43="",(Caluations!$H31/$H42)*100,$I42/$H42*100)) ->  | L42: =IF(Caluations!$J31<0,0,Caluations!$J31) -> 1.088506277 | N42: VC | O42: =IF(AND($E42="",Caluations!$F31<8),$N42*$F42,0) -> 0 | Q42: VE | IQ42: Greenwood | IT42: Grapes
A43: 2014-05-31 | G43: 0 | H43: 0 | I43: 0 | J43: =IF(AND(Caluations!$F32>7,Caluations!$F32<>FALSE),"",IF($E44="",(Caluations!$H32/$H43)*100,$I43/$H43*100)) ->  | L43: =IF(Caluations!$J32<0,0,Caluations!$J32) -> 0.2425744016 | N43: VC | O43: =IF(AND($E43="",Caluations!$F32<8),$N43*$F43,0) -> 0 | Q43: VE | IQ43: Hillsdale | IT43: Grass12
A44: 2014-06-01 | G44: 0 | H44: 0 | I44: 0 | J44: =IF(AND(Caluations!$F33>7,Caluations!$F33<>FALSE),"",IF($E45="",(Caluations!$H33/$H44)*100,$I44/$H44*100)) ->  | L44: =IF(Caluations!$J33<0,0,Caluations!$J33) -> 0.1030325266 | N44: VC | O44: =IF(AND($E44="",Caluations!$F33<8),$N44*$F44,0) -> 0 | Q44: VE | IQ44: Houghton | IT44: Grass18
A45: 2014-06-02 | G45: 0 | H45: 0 | I45: 0 | J45: =IF(AND(Caluations!$F34>7,Caluations!$F34<>FALSE),"",IF($E46="",(Caluations!$H34/$H45)*100,$I45/$H45*100)) ->  | L45: =IF(Caluations!$J34<0,0,Caluations!$J34) -> 0 | N45: VC | O45: =IF(AND($E45="",Caluations!$F34<8),$N45*$F45,0) -> 0 | Q45: VE | IQ45: Iosca | IT45: Grass24
A46: 2014-06-03 | G46: 0 | H46: 0 | I46: 0 | J46: =IF(AND(Caluations!$F35>7,Caluations!$F35<>FALSE),"",IF($E47="",(Caluations!$H35/$H46)*100,$I46/$H46*100)) ->  | L46: =IF(Caluations!$J35<0,0,Caluations!$J35) -> 0.01703136667 | N46: VC | O46: =IF(AND($E46="",Caluations!$F35<8),$N46*$F46,0) -> 0 | Q46: VE | IQ46: Isabella | IT46: GreenBeans
A47: 2014-06-04 | G47: 0 | H47: 0 | I47: 0 | J47: =IF(AND(Caluations!$F36>7,Caluations!$F36<>FALSE),"",IF($E48="",(Caluations!$H36/$H47)*100,$I47/$H47*100)) ->  | L47: =IF(Caluations!$J36<0,0,Caluations!$J36) -> 0 | N47: VC | O47: =IF(AND($E47="",Caluations!$F36<8),$N47*$F47,0) -> 0 | Q47: VE | IQ47: Island lake | IT47: GreenOnion12
A48: 2014-06-05 | G48: 0 | H48: 0 | I48: 0 | J48: =IF(AND(Caluations!$F37>7,Caluations!$F37<>FALSE),"",IF($E49="",(Caluations!$H37/$H48)*100,$I48/$H48*100)) ->  | L48: =IF(Caluations!$J37<0,0,Caluations!$J37) -> 0 | N48: VC | O48: =IF(AND($E48="",Caluations!$F37<8),$N48*$F48,0) -> 0 | Q48: VE | IQ48: Ithaca | IT48: GreenOnion18
A49: 2014-06-06 | G49: 0 | H49: 0 | I49: 0 | J49: =IF(AND(Caluations!$F38>7,Caluations!$F38<>FALSE),"",IF($E50="",(Caluations!$H38/$H49)*100,$I49/$H49*100)) ->  | L49: =IF(Caluations!$J38<0,0,Caluations!$J38) -> 0 | N49: VC | O49: =IF(AND($E49="",Caluations!$F38<8),$N49*$F49,0) -> 0 | Q49: VE | IQ49: Kalamazoo | IT49: GreenOnion24
A50: 2014-06-07 | G50: 0 | H50: 0 | I50: 0 | J50: =IF(AND(Caluations!$F39>7,Caluations!$F39<>FALSE),"",IF($E51="",(Caluations!$H39/$H50)*100,$I50/$H50*100)) ->  | L50: =IF(Caluations!$J39<0,0,Caluations!$J39) -> 0.10057675 | N50: VC | O50: =IF(AND($E50="",Caluations!$F39<8),$N50*$F50,0) -> 0 | Q50: VE | IQ50: Kawkawlin | IT50: MuskMelon12
A51: 2014-06-08 | G51: 0 | H51: 0 | I51: 0 | J51: =IF(AND(Caluations!$F40>7,Caluations!$F40<>FALSE),"",IF($E52="",(Caluations!$H40/$H51)*100,$I51/$H51*100)) ->  | L51: =IF(Caluations!$J40<0,0,Caluations!$J40) -> 0.316493 | N51: VC | O51: =IF(AND($E51="",Caluations!$F40<8),$N51*$F51,0) -> 0 | Q51: VE | IQ51: Kerston | IT51: MuskMelon15
A52: =1+A51 -> 2014-06-09 | G52: 0 | H52: 0 | I52: 0 | J52: =IF(AND(Caluations!$F41>7,Caluations!$F41<>FALSE),"",IF($E53="",(Caluations!$H41/$H52)*100,$I52/$H52*100)) ->  | L52: =IF(Caluations!$J41<0,0,Caluations!$J41) -> 0.52901175 | N52: VC | O52: =IF(AND($E52="",Caluations!$F41<8),$N52*$F52,0) -> 0 | Q52: VE | IQ52: Kilmanagh | IT52: MuskMelon18
A53: 2014-06-10 | G53: 0 | H53: 0 | I53: 0 | J53: =IF(AND(Caluations!$F42>7,Caluations!$F42<>FALSE),"",IF($E54="",(Caluations!$H42/$H53)*100,$I53/$H53*100)) ->  | L53: =IF(Caluations!$J42<0,0,Caluations!$J42) -> 0.7609055 | N53: VC | O53: =IF(AND($E53="",Caluations!$F42<8),$N53*$F53,0) -> 0 | Q53: VE | IQ53: Lapeer | IT53: MuskMelon36
A54: 2014-06-11 | G54: 0 | H54: 0 | I54: 0 | J54: =IF(AND(Caluations!$F43>7,Caluations!$F43<>FALSE),"",IF($E55="",(Caluations!$H43/$H54)*100,$I54/$H54*100)) ->  | L54: =IF(Caluations!$J43<0,0,Caluations!$J43) -> 0.987718 | N54: VC | O54: =IF(AND($E54="",Caluations!$F43<8),$N54*$F54,0) -> 0 | Q54: VE | IQ54: Leoni | IT54: Peaches
A55: 2014-06-12 | G55: 0 | H55: 0 | I55: 0 | J55: =IF(AND(Caluations!$F44>7,Caluations!$F44<>FALSE),"",IF($E56="",(Caluations!$H44/$H55)*100,$I55/$H55*100)) ->  | L55: =IF(Caluations!$J44<0,0,Caluations!$J44) -> 1.225893 | N55: VC | O55: =IF(AND($E55="",Caluations!$F44<8),$N55*$F55,0) -> 0 | Q55: VE | IQ55: Locke | IT55: Pears
A56: 2014-06-13 | G56: 0 | H56: 0 | I56: 0 | J56: =IF(AND(Caluations!$F45>7,Caluations!$F45<>FALSE),"",IF($E57="",(Caluations!$H45/$H56)*100,$I56/$H56*100)) ->  | L56: =IF(Caluations!$J45<0,0,Caluations!$J45) -> 1.454543 | N56: VC | O56: =IF(AND($E56="",Caluations!$F45<8),$N56*$F56,0) -> 0 | Q56: VE | IQ56: Londo | IT56: Peas
A57: 2014-06-14 | G57: 0 | H57: 0 | I57: 0 | J57: =IF(AND(Caluations!$F46>7,Caluations!$F46<>FALSE),"",IF($E58="",(Caluations!$H46/$H57)*100,$I57/$H57*100)) ->  | L57: =IF(Caluations!$J46<0,0,Caluations!$J46) -> 1.697018 | N57: VC | O57: =IF(AND($E57="",Caluations!$F46<8),$N57*$F57,0) -> 0 | Q57: VE | IQ57: Loxley | IT57: Plums
A58: 2014-06-15 | G58: 0 | H58: 0 | I58: 0 | J58: =IF(AND(Caluations!$F47>7,Caluations!$F47<>FALSE),"",IF($E59="",(Caluations!$H47/$H58)*100,$I58/$H58*100)) ->  | L58: =IF(Caluations!$J47<0,0,Caluations!$J47) -> 1.358318 | N58: VC | O58: =IF(AND($E58="",Caluations!$F47<8),$N58*$F58,0) -> 0 | Q58: VE | IQ58: Mancelona | IT58: Potatoes12
A59: 2014-06-16 | G59: 0 | H59: 0 | I59: 0 | J59: =IF(AND(Caluations!$F48>7,Caluations!$F48<>FALSE),"",IF($E60="",(Caluations!$H48/$H59)*100,$I59/$H59*100)) ->  | L59: =IF(Caluations!$J48<0,0,Caluations!$J48) -> 1.618343 | N59: VC | O59: =IF(AND($E59="",Caluations!$F48<8),$N59*$F59,0) -> 0 | Q59: VE | IQ59: Marlette | IT59: Potatoes18
A60: 2014-06-17 | G60: 0 | H60: 0 | I60: 0 | J60: =IF(AND(Caluations!$F49>7,Caluations!$F49<>FALSE),"",IF($E61="",(Caluations!$H49/$H60)*100,$I60/$H60*100)) ->  | L60: =IF(Caluations!$J49<0,0,Caluations!$J49) -> 1.844993 | N60: VC | O60: =IF(AND($E60="",Caluations!$F49<8),$N60*$F60,0) -> 0 | Q60: VE | IQ60: Matea | IT60: Potatoes24
A61: 2014-06-18 | G61: 0 | H61: 0 | I61: 0 | J61: =IF(AND(Caluations!$F50>7,Caluations!$F50<>FALSE),"",IF($E62="",(Caluations!$H50/$H61)*100,$I61/$H61*100)) ->  | L61: =IF(Caluations!$J50<0,0,Caluations!$J50) -> 2.069393 | N61: VC | O61: =IF(AND($E61="",Caluations!$F50<8),$N61*$F61,0) -> 0 | Q61: VE | IQ61: McBride | IT61: Soybeans12
A62: 2014-06-19 | G62: 0 | H62: 0 | I62: 0 | J62: =IF(AND(Caluations!$F51>7,Caluations!$F51<>FALSE),"",IF($E63="",(Caluations!$H51/$H62)*100,$I62/$H62*100)) ->  | L62: =IF(Caluations!$J51<0,0,Caluations!$J51) -> 1.305963751 | N62: VC | O62: =IF(AND($E62="",Caluations!$F51<8),$N62*$F62,0) -> 0 | Q62: VE | IQ62: McBride | IT62: Soybeans18
A63: 2014-06-20 | G63: 0 | H63: 0 | I63: 0 | J63: =IF(AND(Caluations!$F52>7,Caluations!$F52<>FALSE),"",IF($E64="",(Caluations!$H52/$H63)*100,$I63/$H63*100)) ->  | L63: =IF(Caluations!$J52<0,0,Caluations!$J52) -> 1.387563751 | N63: VC | O63: =IF(AND($E63="",Caluations!$F52<8),$N63*$F63,0) -> 0 | Q63: VE | IQ63: Mecosta | IT63: Soybeans24
A64: 2014-06-21 | G64: 0 | H64: 0 | I64: 0 | J64: =IF(AND(Caluations!$F53>7,Caluations!$F53<>FALSE),"",IF($E65="",(Caluations!$H53/$H64)*100,$I64/$H64*100)) ->  | L64: =IF(Caluations!$J53<0,0,Caluations!$J53) -> 1.604763751 | N64: VC | O64: =IF(AND($E64="",Caluations!$F53<8),$N64*$F64,0) -> 0 | Q64: VE | IQ64: Melita | IT64: Squash
A65: 2014-06-22 | G65: 0 | H65: 0 | I65: 0 | J65: =IF(AND(Caluations!$F54>7,Caluations!$F54<>FALSE),"",IF($E66="",(Caluations!$H54/$H65)*100,$I65/$H65*100)) ->  | L65: =IF(Caluations!$J54<0,0,Caluations!$J54) -> 1.811163751 | N65: VC | O65: =IF(AND($E65="",Caluations!$F54<8),$N65*$F65,0) -> 0 | Q65: VE | IQ65: Montcalm | IT65: Strawberries
A66: 2014-06-23 | G66: 0 | H66: 0 | I66: 0 | J66: =IF(AND(Caluations!$F55>7,Caluations!$F55<>FALSE),"",IF($E67="",(Caluations!$H55/$H66)*100,$I66/$H66*100)) ->  | L66: =IF(Caluations!$J55<0,0,Caluations!$J55) -> 2.007963751 | N66: VC | O66: =IF(AND($E66="",Caluations!$F55<8),$N66*$F66,0) -> 0 | Q66: VE | IQ66: Nadeau | IT66: TomatoesS12
A67: 2014-06-24 | G67: 0 | H67: 0 | I67: 0 | J67: =IF(AND(Caluations!$F56>7,Caluations!$F56<>FALSE),"",IF($E68="",(Caluations!$H56/$H67)*100,$I67/$H67*100)) ->  | L67: =IF(Caluations!$J56<0,0,Caluations!$J56) -> 2.196585211 | N67: VC | O67: =IF(AND($E67="",Caluations!$F56<8),$N67*$F67,0) -> 0 | Q67: VE | IQ67: Nester | IT67: TomatoesS18
A68: 2014-06-25 | G68: 0 | H68: 0 | I68: 0 | J68: =IF(AND(Caluations!$F57>7,Caluations!$F57<>FALSE),"",IF($E69="",(Caluations!$H57/$H68)*100,$I68/$H68*100)) ->  | L68: =IF(Caluations!$J57<0,0,Caluations!$J57) -> 0.5643060515 | N68: VC | O68: =IF(AND($E68="",Caluations!$F57<8),$N68*$F68,0) -> 0 | Q68: VE | IQ68: Newago | IT68: TomatoesS24
A69: 2014-06-26 | G69: 0 | H69: 0 | I69: 0 | J69: =IF(AND(Caluations!$F58>7,Caluations!$F58<>FALSE),"",IF($E70="",(Caluations!$H58/$H69)*100,$I69/$H69*100)) ->  | L69: =IF(Caluations!$J58<0,0,Caluations!$J58) -> 0.6507060515 | N69: VC | O69: =IF(AND($E69="",Caluations!$F58<8),$N69*$F69,0) -> 0 | Q69: VE | IQ69: Nottawa | IT69: TomatoesT12
A70: 2014-06-27 | G70: 0 | H70: 0 | I70: 0 | J70: =IF(AND(Caluations!$F59>7,Caluations!$F59<>FALSE),"",IF($E71="",(Caluations!$H59/$H70)*100,$I70/$H70*100)) ->  | L70: =IF(Caluations!$J59<0,0,Caluations!$J59) -> 0.8679060515 | N70: VC | O70: =IF(AND($E70="",Caluations!$F59<8),$N70*$F70,0) -> 0 | Q70: VE | IQ70: Oshtemo | IT70: TomatoesT18
A71: 2014-06-28 | G71: 0 | H71: 0 | I71: 0 | J71: =IF(AND(Caluations!$F60>7,Caluations!$F60<>FALSE),"",IF($E72="",(Caluations!$H60/$H71)*100,$I71/$H71*100)) ->  | L71: =IF(Caluations!$J60<0,0,Caluations!$J60) -> 0.9527060515 | N71: VC | O71: =IF(AND($E71="",Caluations!$F60<8),$N71*$F71,0) -> 0 | Q71: VE | IQ71: Palms | IT71: TomatoesT24
A72: 2014-06-29 | G72: 0 | H72: 0 | I72: 0 | J72: =IF(AND(Caluations!$F61>7,Caluations!$F61<>FALSE),"",IF($E73="",(Caluations!$H61/$H72)*100,$I72/$H72*100)) ->  | L72: =IF(Caluations!$J61<0,0,Caluations!$J61) -> 1.033106051 | N72: VC | O72: =IF(AND($E72="",Caluations!$F61<8),$N72*$F72,0) -> 0 | Q72: VE | IQ72: Palo | IT72: Wheat
A73: 2014-06-30 | G73: 0 | H73: 0 | I73: 0 | J73: =IF(AND(Caluations!$F62>7,Caluations!$F62<>FALSE),"",IF($E74="",(Caluations!$H62/$H73)*100,$I73/$H73*100)) ->  | L73: =IF(Caluations!$J62<0,0,Caluations!$J62) -> 1.233506051 | N73: VC | O73: =IF(AND($E73="",Caluations!$F62<8),$N73*$F73,0) -> 0 | Q73: VE | IQ73: Parkhill
A74: 2014-07-01 | G74: 0 | H74: 0 | I74: 0 | J74: =IF(AND(Caluations!$F63>7,Caluations!$F63<>FALSE),"",IF($E75="",(Caluations!$H63/$H74)*100,$I74/$H74*100)) ->  | L74: =IF(Caluations!$J63<0,0,Caluations!$J63) -> 1.372706051 | N74: VC | O74: =IF(AND($E74="",Caluations!$F63<8),$N74*$F74,0) -> 0 | Q74: VE | IQ74: Perrington
A75: 2014-07-02 | G75: 0 | H75: 0 | I75: 0 | J75: =IF(AND(Caluations!$F64>7,Caluations!$F64<>FALSE),"",IF($E76="",(Caluations!$H64/$H75)*100,$I75/$H75*100)) ->  | L75: =IF(Caluations!$J64<0,0,Caluations!$J64) -> 1.507106051 | N75: VC | O75: =IF(AND($E75="",Caluations!$F64<8),$N75*$F75,0) -> 0 | Q75: VE | IQ75: Pipestone
A76: 2014-07-03 | G76: 0 | H76: 0 | I76: 0 | J76: =IF(AND(Caluations!$F65>7,Caluations!$F65<>FALSE),"",IF($E77="",(Caluations!$H65/$H76)*100,$I76/$H76*100)) ->  | L76: =IF(Caluations!$J65<0,0,Caluations!$J65) -> 1.724306051 | N76: VC | O76: =IF(AND($E76="",Caluations!$F65<8),$N76*$F76,0) -> 0 | Q76: VE | IQ76: Pipestone-Kingsville
A77: 2014-07-04 | G77: 0 | H77: 0 | I77: 0 | J77: =IF(AND(Caluations!$F66>7,Caluations!$F66<>FALSE),"",IF($E78="",(Caluations!$H66/$H77)*100,$I77/$H77*100)) ->  | L77: =IF(Caluations!$J66<0,0,Caluations!$J66) -> 1.941506051 | N77: VC | O77: =IF(AND($E77="",Caluations!$F66<8),$N77*$F77,0) -> 0 | Q77: VE | IQ77: Plainfield
A78: 2014-07-05 | G78: 0 | H78: 0 | I78: 0 | J78: =IF(AND(Caluations!$F67>7,Caluations!$F67<>FALSE),"",IF($E79="",(Caluations!$H67/$H78)*100,$I78/$H78*100)) ->  | L78: =IF(Caluations!$J67<0,0,Caluations!$J67) -> 2.143106051 | N78: VC | O78: =IF(AND($E78="",Caluations!$F67<8),$N78*$F78,0) -> 0 | Q78: VE | IQ78: Poseyville
A79: 2014-07-06 | G79: 0 | H79: 0 | I79: 0 | J79: =IF(AND(Caluations!$F68>7,Caluations!$F68<>FALSE),"",IF($E80="",(Caluations!$H68/$H79)*100,$I79/$H79*100)) ->  | L79: =IF(Caluations!$J68<0,0,Caluations!$J68) -> 2.327985353 | N79: VC | O79: =IF(AND($E79="",Caluations!$F68<8),$N79*$F79,0) -> 0 | Q79: VE | IQ79: Remus
A80: 2014-07-07 | G80: 0 | H80: 0 | I80: 0 | J80: =IF(AND(Caluations!$F69>7,Caluations!$F69<>FALSE),"",IF($E81="",(Caluations!$H69/$H80)*100,$I80/$H80*100)) ->  | L80: =IF(Caluations!$J69<0,0,Caluations!$J69) -> 2.419887748 | N80: VC | O80: =IF(AND($E80="",Caluations!$F69<8),$N80*$F80,0) -> 0 | Q80: VE | IQ80: Rifle
A81: 2014-07-08 | G81: 0 | H81: 0 | I81: 0 | J81: =IF(AND(Caluations!$F70>7,Caluations!$F70<>FALSE),"",IF($E82="",(Caluations!$H70/$H81)*100,$I81/$H81*100)) ->  | L81: =IF(Caluations!$J70<0,0,Caluations!$J70) -> 2.646687748 | N81: VC | O81: =IF(AND($E81="",Caluations!$F70<8),$N81*$F81,0) ->  | Q81: VE | IQ81: Riverdale
A82: 2014-07-09 | G82: 0 | H82: 0 | I82: 0 | J82: =IF(AND(Caluations!$F71>7,Caluations!$F71<>FALSE),"",IF($E83="",(Caluations!$H71/$H82)*100,$I82/$H82*100)) ->  | L82: =IF(Caluations!$J71<0,0,Caluations!$J71) -> 2.849487748 | N82: VC | O82: =IF(AND($E82="",Caluations!$F71<8),$N82*$F82,0) ->  | Q82: VE | IQ82: Ronald
A83: 2014-07-10 | G83: 0 | H83: 0 | I83: 0 | J83: =IF(AND(Caluations!$F72>7,Caluations!$F72<>FALSE),"",IF($E84="",(Caluations!$H72/$H83)*100,$I83/$H83*100)) ->  | L83: =IF(Caluations!$J72<0,0,Caluations!$J72) -> 3.035487748 | N83: VC | O83: =IF(AND($E83="",Caluations!$F72<8),$N83*$F83,0) ->  | Q83: VE | IQ83: Roscommon
A84: =1+A83 -> 2014-07-11 | G84: 0 | H84: 0 | I84: 0 | J84: =IF(AND(Caluations!$F73>7,Caluations!$F73<>FALSE),"",IF($E85="",(Caluations!$H73/$H84)*100,$I84/$H84*100)) ->  | K84: =IF(OR($J84<103,$E84=""),0,$C84+$D84+$I83-$G84-($H84*1.03)) ->  | L84: =IF(Caluations!$J73<0,0,Caluations!$J73) -> 3.199887748 | N84: VC | O84: =IF(AND($E84="",Caluations!$F73<8),$N84*$F84,0) ->  | Q84: =+VLOOKUP(P84,$T$19:$U$40,2) -> VE | IQ84: Rousseau
A85: 2014-07-12 | G85: =$F85*$E85 -> 0 | H85: =IF($B85<=6,$B85*$B$12,IF($B85<=12,6*$B$12+($B85-6)*$C$12,IF($B85<=18,6*$B$12+6*$C$12+($B85-12)*$D$12,IF($B85<=24,6*$B$12+6*$C$12+6*$D$12+($B85-18)*$E$12,IF($B85<=30,6*$B$12+6*$C$12+6*$D$12+6*$E$12+($B85-24)*$F$12,IF($B85<=36,6*$B$12+6*$C$12+6*$D$12+6*$E$12+6*$F$12+($B85-30)*$G$12,IF($B85<=42,6*$B$12+6*$C$12+6*$D$12+6*$E$12+6*$F$12+6*$G$12+($B85-36)*$H$12,IF($B85<=48,6*$B$12+6*$C$12+6*$D$12+6*$E$12+6*$F$12+6*$G$12+6*$H$12+(F85-42)*$I$12,"rootdepth>48in")))))))) -> 0 | I85: =MAX(IF(($I84+$C85+$D85-$G85)+(($H85-$H84)*$B$13/100)>($H85*1.03),($H85*1.03),($I84+$C85+$D85-$G85)+(($H85-$H84)*$B$13/100)),0) -> 0 | J85: =IF(AND(Caluations!$F74>7,Caluations!$F74<>FALSE),"",IF($E86="",(Caluations!$H74/$H85)*100,$I85/$H85*100)) ->  | L85: =IF(Caluations!$J74<0,0,Caluations!$J74) -> 3.199887748 | N85: VC | O85: =IF(AND($E85="",Caluations!$F74<8),$N85*$F85,0) ->  | Q85: VE | IQ85: Sandy Loam
A86: 2014-07-13 | G86: 0 | H86: 0 | I86: 0 | J86: =IF(AND(Caluations!$F75>7,Caluations!$F75<>FALSE),"",IF($E87="",(Caluations!$H75/$H86)*100,$I86/$H86*100)) ->  | L86: =IF(Caluations!$J75<0,0,Caluations!$J75) ->  | N86: VC | O86: =IF(AND($E86="",Caluations!$F75<8),$N86*$F86,0) ->  | Q86: VE | IQ86: Sandy Loam / Coarse Loam
A87: 2014-07-14 | G87: 0 | H87: 0 | I87: 0 | J87: =IF(AND(Caluations!$F76>7,Caluations!$F76<>FALSE),"",IF($E88="",(Caluations!$H76/$H87)*100,$I87/$H87*100)) ->  | L87: =IF(Caluations!$J76<0,0,Caluations!$J76) ->  | N87: VC | O87: =IF(AND($E87="",Caluations!$F76<8),$N87*$F87,0) ->  | Q87: VE | IQ87: Saugatauk
A88: 2014-07-15 | G88: 0 | H88: 0 | I88: 0 | J88: =IF(AND(Caluations!$F77>7,Caluations!$F77<>FALSE),"",IF($E89="",(Caluations!$H77/$H88)*100,$I88/$H88*100)) ->  | K88: 0 | L88: =IF(Caluations!$J77<0,0,Caluations!$J77) ->  | N88: VC | O88: =IF(AND($E88="",Caluations!$F77<8),$N88*$F88,0) -> 0 | Q88: VE | IQ88: Schoolcraft
A89: 2014-07-16 | G89: 0 | H89: 0 | I89: 0 | J89: =IF(AND(Caluations!$F78>7,Caluations!$F78<>FALSE),"",IF($E90="",(Caluations!$H78/$H89)*100,$I89/$H89*100)) ->  | K89: 0 | L89: =IF(Caluations!$J78<0,0,Caluations!$J78) ->  | N89: VC | O89: =IF(AND($E89="",Caluations!$F78<8),$N89*$F89,0) -> 0 | Q89: VE | IQ89: Shebeon
A90: 2014-07-17 | G90: 0 | H90: 0 | I90: 0 | J90: =IF(AND(Caluations!$F79>7,Caluations!$F79<>FALSE),"",IF($E91="",(Caluations!$H79/$H90)*100,$I90/$H90*100)) ->  | K90: 0 | L90: =IF(Caluations!$J79<0,0,Caluations!$J79) ->  | N90: VC | O90: =IF(AND($E90="",Caluations!$F79<8),$N90*$F90,0) -> 0 | Q90: VE | IQ90: Sims
A91: 2014-07-18 | G91: 0 | H91: 0 | I91: 0 | J91: =IF(AND(Caluations!$F80>7,Caluations!$F80<>FALSE),"",IF($E92="",(Caluations!$H80/$H91)*100,$I91/$H91*100)) ->  | K91: 0 | L91: =IF(Caluations!$J80<0,0,Caluations!$J80) ->  | N91: VC | O91: =IF(AND($E91="",Caluations!$F80<8),$N91*$F91,0) -> 0 | Q91: VE | IQ91: Sparta
A92: 2014-07-19 | G92: 0 | H92: 0 | I92: 0 | J92: =IF(AND(Caluations!$F81>7,Caluations!$F81<>FALSE),"",IF($E93="",(Caluations!$H81/$H92)*100,$I92/$H92*100)) ->  | K92: 0 | L92: =IF(Caluations!$J81<0,0,Caluations!$J81) ->  | N92: VC | O92: =IF(AND($E92="",Caluations!$F81<8),$N92*$F92,0) -> 0 | Q92: VE | IQ92: Spinks
A93: 2014-07-20 | G93: 0 | H93: 0 | I93: 0 | J93: =IF(AND(Caluations!$F82>7,Caluations!$F82<>FALSE),"",IF($E94="",(Caluations!$H82/$H93)*100,$I93/$H93*100)) ->  | K93: 0 | L93: =IF(Caluations!$J82<0,0,Caluations!$J82) ->  | N93: VC | O93: =IF(AND($E93="",Caluations!$F82<8),$N93*$F93,0) -> 0 | Q93: VE | IQ93: Tappan
A94: 2014-07-21 | G94: 0 | H94: 0 | I94: 0 | J94: =IF(AND(Caluations!$F83>7,Caluations!$F83<>FALSE),"",IF($E95="",(Caluations!$H83/$H94)*100,$I94/$H94*100)) ->  | K94: 0 | L94: =IF(Caluations!$J83<0,0,Caluations!$J83) ->  | N94: VC | O94: =IF(AND($E94="",Caluations!$F83<8),$N94*$F94,0) -> 0 | Q94: VE | IQ94: Tewas
A95: 2014-07-22 | G95: 0 | H95: 0 | I95: 0 | J95: =IF(AND(Caluations!$F84>7,Caluations!$F84<>FALSE),"",IF($E96="",(Caluations!$H84/$H95)*100,$I95/$H95*100)) ->  | K95: 0 | L95: =IF(Caluations!$J84<0,0,Caluations!$J84) ->  | N95: VC | O95: =IF(AND($E95="",Caluations!$F84<8),$N95*$F95,0) -> 0 | Q95: VE | IQ95: Thetford
A96: 2014-07-23 | G96: 0 | H96: 0 | I96: 0 | J96: =IF(AND(Caluations!$F85>7,Caluations!$F85<>FALSE),"",IF($E97="",(Caluations!$H85/$H96)*100,$I96/$H96*100)) ->  | K96: 0 | L96: =IF(Caluations!$J85<0,0,Caluations!$J85) ->  | N96: VC | O96: =IF(AND($E96="",Caluations!$F85<8),$N96*$F96,0) -> 0 | Q96: VE | IQ96: Tustin
A97: 2014-07-24 | G97: 0 | H97: 0 | I97: 0 | J97: =IF(AND(Caluations!$F86>7,Caluations!$F86<>FALSE),"",IF($E98="",(Caluations!$H86/$H97)*100,$I97/$H97*100)) ->  | K97: 0 | L97: =IF(Caluations!$J86<0,0,Caluations!$J86) ->  | N97: VC | O97: =IF(AND($E97="",Caluations!$F86<8),$N97*$F97,0) -> 0 | Q97: VE | IQ97: Vestaburg
A98: 2014-07-25 | G98: 0 | H98: 0 | I98: 0 | J98: =IF(AND(Caluations!$F87>7,Caluations!$F87<>FALSE),"",IF($E99="",(Caluations!$H87/$H98)*100,$I98/$H98*100)) ->  | K98: 0 | L98: =IF(Caluations!$J87<0,0,Caluations!$J87) ->  | N98: VC | O98: =IF(AND($E98="",Caluations!$F87<8),$N98*$F98,0) -> 0 | Q98: VE | IQ98: Washtenaw
A99: 2014-07-26 | G99: 0 | H99: 0 | I99: 0 | J99: =IF(AND(Caluations!$F88>7,Caluations!$F88<>FALSE),"",IF($E100="",(Caluations!$H88/$H99)*100,$I99/$H99*100)) ->  | K99: 0 | L99: =IF(Caluations!$J88<0,0,Caluations!$J88) ->  | N99: VC | O99: =IF(AND($E99="",Caluations!$F88<8),$N99*$F99,0) -> 0 | Q99: VE | IQ99: Wauseon
A100: 2014-07-27 | G100: 0 | H100: 0 | I100: 0 | J100: =IF(AND(Caluations!$F89>7,Caluations!$F89<>FALSE),"",IF($E101="",(Caluations!$H89/$H100)*100,$I100/$H100*100)) ->  | K100: 0 | L100: =IF(Caluations!$J89<0,0,Caluations!$J89) ->  | N100: VC | O100: =IF(AND($E100="",Caluations!$F89<8),$N100*$F100,0) -> 0 | Q100: VE | IQ100: Wixom
A101: 2014-07-28 | G101: 0 | H101: 0 | I101: 0 | J101: =IF(AND(Caluations!$F90>7,Caluations!$F90<>FALSE),"",IF($E102="",(Caluations!$H90/$H101)*100,$I101/$H101*100)) ->  | K101: 0 | L101: =IF(Caluations!$J90<0,0,Caluations!$J90) ->  | N101: VC | O101: =IF(AND($E101="",Caluations!$F90<8),$N101*$F101,0) -> 0 | Q101: VE | IQ101: Ziegenfuss
A102: 2014-07-29 | G102: 0 | H102: 0 | I102: =MAX(IF(($I101+$C102+$D102-$G102)+(($H102-$H101)*$B$13/100)>($H102*1.03),($H102*1.03),($I101+$C102+$D102-$G102)+(($H102-$H101)*$B$13/100)),0) -> 0 | J102: =IF(AND(Caluations!$F91>7,Caluations!$F91<>FALSE),"",IF($E103="",(Caluations!$H91/$H102)*100,$I102/$H102*100)) ->  | K102: 0 | L102: =IF(Caluations!$J91<0,0,Caluations!$J91) ->  | N102: VC | O102: =IF(AND($E102="",Caluations!$F91<8),$N102*$F102,0) -> 0 | Q102: VE
A103: 2014-07-30 | G103: 0 | H103: 0 | I103: 0 | J103: =IF(AND(Caluations!$F92>7,Caluations!$F92<>FALSE),"",IF($E104="",(Caluations!$H92/$H103)*100,$I103/$H103*100)) ->  | K103: 0 | L103: =IF(Caluations!$J92<0,0,Caluations!$J92) ->  | N103: VC | O103: =IF(AND($E103="",Caluations!$F92<8),$N103*$F103,0) -> 0 | Q103: VE
A104: 2014-07-31 | G104: 0 | H104: 0 | I104: 0 | J104: =IF(AND(Caluations!$F93>7,Caluations!$F93<>FALSE),"",IF($E105="",(Caluations!$H93/$H104)*100,$I104/$H104*100)) ->  | K104: 0 | L104: =IF(Caluations!$J93<0,0,Caluations!$J93) ->  | N104: VC | O104: =IF(AND($E104="",Caluations!$F93<8),$N104*$F104,0) -> 0 | Q104: VE
A105: 2014-08-01 | G105: 0 | H105: 0 | I105: 0 | J105: =IF(AND(Caluations!$F94>7,Caluations!$F94<>FALSE),"",IF($E106="",(Caluations!$H94/$H105)*100,$I105/$H105*100)) ->  | K105: 0 | L105: =IF(Caluations!$J94<0,0,Caluations!$J94) ->  | N105: VC | O105: =IF(AND($E105="",Caluations!$F94<8),$N105*$F105,0) -> 0 | Q105: VE
A106: 2014-08-02 | G106: 0 | H106: 0 | I106: 0 | J106: =IF(AND(Caluations!$F95>7,Caluations!$F95<>FALSE),"",IF($E107="",(Caluations!$H95/$H106)*100,$I106/$H106*100)) ->  | K106: 0 | L106: =IF(Caluations!$J95<0,0,Caluations!$J95) ->  | N106: VC | O106: =IF(AND($E106="",Caluations!$F95<8),$N106*$F106,0) -> 0 | Q106: VE
A107: 2014-08-03 | G107: 0 | H107: 0 | I107: 0 | J107: =IF(AND(Caluations!$F96>7,Caluations!$F96<>FALSE),"",IF($E108="",(Caluations!$H96/$H107)*100,$I107/$H107*100)) ->  | K107: 0 | L107: =IF(Caluations!$J96<0,0,Caluations!$J96) ->  | N107: VC | O107: =IF(AND($E107="",Caluations!$F96<8),$N107*$F107,0) -> 0 | Q107: VE
A108: 2014-08-04 | G108: 0 | H108: 0 | I108: 0 | J108: =IF(AND(Caluations!$F97>7,Caluations!$F97<>FALSE),"",IF($E109="",(Caluations!$H97/$H108)*100,$I108/$H108*100)) ->  | K108: 0 | L108: =IF(Caluations!$J97<0,0,Caluations!$J97) ->  | N108: VC | O108: =IF(AND($E108="",Caluations!$F97<8),$N108*$F108,0) -> 0 | Q108: VE
A109: 2014-08-05 | G109: 0 | H109: 0 | I109: 0 | J109: =IF(AND(Caluations!$F98>7,Caluations!$F98<>FALSE),"",IF($E110="",(Caluations!$H98/$H109)*100,$I109/$H109*100)) ->  | K109: 0 | L109: =IF(Caluations!$J98<0,0,Caluations!$J98) ->  | N109: VC | O109: =IF(AND($E109="",Caluations!$F98<8),$N109*$F109,0) -> 0 | Q109: VE
A110: 2014-08-06 | G110: 0 | H110: 0 | I110: 0 | J110: =IF(AND(Caluations!$F99>7,Caluations!$F99<>FALSE),"",IF($E111="",(Caluations!$H99/$H110)*100,$I110/$H110*100)) ->  | K110: 0 | L110: =IF(Caluations!$J99<0,0,Caluations!$J99) ->  | N110: VC | O110: =IF(AND($E110="",Caluations!$F99<8),$N110*$F110,0) -> 0 | Q110: VE
A111: 2014-08-07 | G111: 0 | H111: 0 | I111: 0 | J111: =IF(AND(Caluations!$F100>7,Caluations!$F100<>FALSE),"",IF($E112="",(Caluations!$H100/$H111)*100,$I111/$H111*100)) ->  | K111: 0 | L111: =IF(Caluations!$J100<0,0,Caluations!$J100) ->  | N111: VC | O111: =IF(AND($E111="",Caluations!$F100<8),$N111*$F111,0) -> 0 | Q111: VE
A112: 2014-08-08 | G112: 0 | H112: 0 | I112: 0 | J112: =IF(AND(Caluations!$F101>7,Caluations!$F101<>FALSE),"",IF($E113="",(Caluations!$H101/$H112)*100,$I112/$H112*100)) ->  | K112: 0 | L112: =IF(Caluations!$J101<0,0,Caluations!$J101) ->  | N112: VC | O112: =IF(AND($E112="",Caluations!$F101<8),$N112*$F112,0) -> 0 | Q112: VE
A113: 2014-08-09 | G113: 0 | H113: 0 | I113: 0 | J113: =IF(AND(Caluations!$F102>7,Caluations!$F102<>FALSE),"",IF($E114="",(Caluations!$H102/$H113)*100,$I113/$H113*100)) ->  | K113: 0 | L113: =IF(Caluations!$J102<0,0,Caluations!$J102) ->  | N113: VC | O113: =IF(AND($E113="",Caluations!$F102<8),$N113*$F113,0) -> 0 | Q113: VE
A114: 2014-08-10 | G114: 0 | H114: 0 | I114: 0 | J114: =IF(AND(Caluations!$F103>7,Caluations!$F103<>FALSE),"",IF($E115="",(Caluations!$H103/$H114)*100,$I114/$H114*100)) ->  | K114: 0 | L114: =IF(Caluations!$J103<0,0,Caluations!$J103) ->  | N114: VC | O114: =IF(AND($E114="",Caluations!$F103<8),$N114*$F114,0) -> 0 | Q114: VE
A115: 2014-08-11 | G115: 0 | H115: 0 | I115: 0 | J115: =IF(AND(Caluations!$F104>7,Caluations!$F104<>FALSE),"",IF($E116="",(Caluations!$H104/$H115)*100,$I115/$H115*100)) ->  | K115: 0 | L115: =IF(Caluations!$J104<0,0,Caluations!$J104) ->  | N115: VC | O115: =IF(AND($E115="",Caluations!$F104<8),$N115*$F115,0) -> 0 | Q115: VE
A116: =1+A115 -> 2014-08-12 | G116: 0 | H116: 0 | I116: 0 | J116: =IF(AND(Caluations!$F105>7,Caluations!$F105<>FALSE),"",IF($E117="",(Caluations!$H105/$H116)*100,$I116/$H116*100)) ->  | K116: 0 | L116: =IF(Caluations!$J105<0,0,Caluations!$J105) ->  | N116: VC | O116: =IF(AND($E116="",Caluations!$F105<8),$N116*$F116,0) -> 0 | Q116: VE
A117: 2014-08-13 | G117: 0 | H117: 0 | I117: 0 | J117: =IF(AND(Caluations!$F106>7,Caluations!$F106<>FALSE),"",IF($E118="",(Caluations!$H106/$H117)*100,$I117/$H117*100)) ->  | K117: 0 | L117: =IF(Caluations!$J106<0,0,Caluations!$J106) ->  | N117: VC | O117: =IF(AND($E117="",Caluations!$F106<8),$N117*$F117,0) -> 0 | Q117: VE
A118: 2014-08-14 | G118: 0 | H118: 0 | I118: 0 | J118: =IF(AND(Caluations!$F107>7,Caluations!$F107<>FALSE),"",IF($E119="",(Caluations!$H107/$H118)*100,$I118/$H118*100)) ->  | K118: 0 | L118: =IF(Caluations!$J107<0,0,Caluations!$J107) ->  | N118: VC | O118: =IF(AND($E118="",Caluations!$F107<8),$N118*$F118,0) -> 0 | Q118: VE
A119: 2014-08-15 | G119: 0 | H119: 0 | I119: 0 | J119: =IF(AND(Caluations!$F108>7,Caluations!$F108<>FALSE),"",IF($E120="",(Caluations!$H108/$H119)*100,$I119/$H119*100)) ->  | K119: 0 | L119: =IF(Caluations!$J108<0,0,Caluations!$J108) ->  | N119: VC | O119: =IF(AND($E119="",Caluations!$F108<8),$N119*$F119,0) -> 0 | Q119: VE
A120: 2014-08-16 | G120: 0 | H120: 0 | I120: 0 | J120: =IF(AND(Caluations!$F109>7,Caluations!$F109<>FALSE),"",IF($E121="",(Caluations!$H109/$H120)*100,$I120/$H120*100)) ->  | K120: 0 | L120: =IF(Caluations!$J109<0,0,Caluations!$J109) ->  | N120: VC | O120: =IF(AND($E120="",Caluations!$F109<8),$N120*$F120,0) -> 0 | Q120: VE
A121: 2014-08-17 | G121: 0 | H121: 0 | I121: 0 | J121: =IF(AND(Caluations!$F110>7,Caluations!$F110<>FALSE),"",IF($E122="",(Caluations!$H110/$H121)*100,$I121/$H121*100)) ->  | K121: 0 | L121: =IF(Caluations!$J110<0,0,Caluations!$J110) ->  | N121: VC | O121: =IF(AND($E121="",Caluations!$F110<8),$N121*$F121,0) -> 0 | Q121: VE
A122: 2014-08-18 | G122: 0 | H122: 0 | I122: 0 | J122: =IF(AND(Caluations!$F111>7,Caluations!$F111<>FALSE),"",IF($E123="",(Caluations!$H111/$H122)*100,$I122/$H122*100)) ->  | K122: 0 | L122: =IF(Caluations!$J111<0,0,Caluations!$J111) ->  | N122: VC | O122: =IF(AND($E122="",Caluations!$F111<8),$N122*$F122,0) -> 0 | Q122: VE
A123: 2014-08-19 | G123: 0 | H123: 0 | I123: 0 | J123: =IF(AND(Caluations!$F112>7,Caluations!$F112<>FALSE),"",IF($E124="",(Caluations!$H112/$H123)*100,$I123/$H123*100)) ->  | K123: 0 | L123: =IF(Caluations!$J112<0,0,Caluations!$J112) ->  | N123: VC | O123: =IF(AND($E123="",Caluations!$F112<8),$N123*$F123,0) -> 0 | Q123: VE
A124: 2014-08-20 | G124: 0 | H124: 0 | I124: 0 | J124: =IF(AND(Caluations!$F113>7,Caluations!$F113<>FALSE),"",IF($E125="",(Caluations!$H113/$H124)*100,$I124/$H124*100)) ->  | K124: 0 | L124: =IF(Caluations!$J113<0,0,Caluations!$J113) ->  | N124: VC | O124: =IF(AND($E124="",Caluations!$F113<8),$N124*$F124,0) -> 0 | Q124: VE
A125: 2014-08-21 | G125: 0 | H125: 0 | I125: 0 | J125: =IF(AND(Caluations!$F114>7,Caluations!$F114<>FALSE),"",IF($E126="",(Caluations!$H114/$H125)*100,$I125/$H125*100)) ->  | K125: 0 | L125: =IF(Caluations!$J114<0,0,Caluations!$J114) ->  | N125: VC | O125: =IF(AND($E125="",Caluations!$F114<8),$N125*$F125,0) -> 0 | Q125: VE
A126: 2014-08-22 | G126: 0 | H126: 0 | I126: 0 | J126: =IF(AND(Caluations!$F115>7,Caluations!$F115<>FALSE),"",IF($E127="",(Caluations!$H115/$H126)*100,$I126/$H126*100)) ->  | K126: 0 | L126: =IF(Caluations!$J115<0,0,Caluations!$J115) ->  | N126: VC | O126: =IF(AND($E126="",Caluations!$F115<8),$N126*$F126,0) -> 0 | Q126: VE
A127: 2014-08-23 | G127: 0 | H127: 0 | I127: 0 | J127: =IF(AND(Caluations!$F116>7,Caluations!$F116<>FALSE),"",IF($E128="",(Caluations!$H116/$H127)*100,$I127/$H127*100)) ->  | K127: 0 | L127: =IF(Caluations!$J116<0,0,Caluations!$J116) ->  | N127: VC | O127: =IF(AND($E127="",Caluations!$F116<8),$N127*$F127,0) -> 0 | Q127: VE
A128: 2014-08-24 | G128: 0 | H128: 0 | I128: 0 | J128: =IF(AND(Caluations!$F117>7,Caluations!$F117<>FALSE),"",IF($E129="",(Caluations!$H117/$H128)*100,$I128/$H128*100)) ->  | K128: 0 | L128: =IF(Caluations!$J117<0,0,Caluations!$J117) ->  | N128: VC | O128: =IF(AND($E128="",Caluations!$F117<8),$N128*$F128,0) -> 0 | Q128: VE
A129: 2014-08-25 | G129: 0 | H129: 0 | I129: 0 | J129: =IF(AND(Caluations!$F118>7,Caluations!$F118<>FALSE),"",IF($E130="",(Caluations!$H118/$H129)*100,$I129/$H129*100)) ->  | K129: 0 | L129: =IF(Caluations!$J118<0,0,Caluations!$J118) ->  | N129: VC | O129: =IF(AND($E129="",Caluations!$F118<8),$N129*$F129,0) -> 0 | Q129: VE
A130: 2014-08-26 | G130: 0 | H130: 0 | I130: 0 | J130: =IF(AND(Caluations!$F119>7,Caluations!$F119<>FALSE),"",IF($E131="",(Caluations!$H119/$H130)*100,$I130/$H130*100)) ->  | K130: 0 | L130: =IF(Caluations!$J119<0,0,Caluations!$J119) ->  | N130: VC | O130: 0.2 | Q130: VE
A131: 2014-08-27 | G131: 0 | H131: 0 | I131: 0 | J131: =IF(AND(Caluations!$F120>7,Caluations!$F120<>FALSE),"",IF($E132="",(Caluations!$H120/$H131)*100,$I131/$H131*100)) ->  | K131: 0 | L131: =IF(Caluations!$J120<0,0,Caluations!$J120) ->  | N131: VC | O131: 0.3 | Q131: VE
A132: 2014-08-28 | G132: 0 | H132: 0 | I132: 0 | J132: =IF(AND(Caluations!$F121>7,Caluations!$F121<>FALSE),"",IF($E133="",(Caluations!$H121/$H132)*100,$I132/$H132*100)) ->  | K132: 0 | L132: =IF(Caluations!$J121<0,0,Caluations!$J121) ->  | N132: VC | O132: 0.15 | Q132: VE
A133: 2014-08-29 | G133: 0 | H133: 0 | I133: 0 | J133: =IF(AND(Caluations!$F122>7,Caluations!$F122<>FALSE),"",IF($E134="",(Caluations!$H122/$H133)*100,$I133/$H133*100)) ->  | K133: 0 | L133: =IF(Caluations!$J122<0,0,Caluations!$J122) ->  | N133: VC | O133: 0.05 | Q133: VE
A134: 2014-08-30 | G134: 0 | H134: 0 | I134: 0 | J134: =IF(AND(Caluations!$F123>7,Caluations!$F123<>FALSE),"",IF($E135="",(Caluations!$H123/$H134)*100,$I134/$H134*100)) ->  | K134: 0 | L134: =IF(Caluations!$J123<0,0,Caluations!$J123) ->  | N134: VC | O134: =IF(AND($E134="",Caluations!$F123<8),$N134*$F134,0) -> 0 | Q134: VE
A135: 2014-08-31 | G135: 0 | H135: 0 | I135: 0 | J135: =IF(AND(Caluations!$F124>7,Caluations!$F124<>FALSE),"",IF($E136="",(Caluations!$H124/$H135)*100,$I135/$H135*100)) ->  | K135: 0 | L135: =IF(Caluations!$J124<0,0,Caluations!$J124) ->  | N135: VC | O135: =IF(AND($E135="",Caluations!$F124<8),$N135*$F135,0) -> 0 | Q135: VE
A136: 2014-09-01 | G136: 0 | H136: 0 | I136: 0 | J136: =IF(AND(Caluations!$F125>7,Caluations!$F125<>FALSE),"",IF($E137="",(Caluations!$H125/$H136)*100,$I136/$H136*100)) ->  | K136: 0 | L136: =IF(Caluations!$J125<0,0,Caluations!$J125) ->  | N136: VC | O136: =IF(AND($E136="",Caluations!$F125<8),$N136*$F136,0) -> 0 | Q136: VE
A137: 2014-09-02 | G137: 0 | H137: 0 | I137: 0 | J137: =IF(AND(Caluations!$F126>7,Caluations!$F126<>FALSE),"",IF($E138="",(Caluations!$H126/$H137)*100,$I137/$H137*100)) ->  | K137: 0 | L137: =IF(Caluations!$J126<0,0,Caluations!$J126) ->  | N137: VC | O137: =IF(AND($E137="",Caluations!$F126<8),$N137*$F137,0) -> 0 | Q137: VE
A138: 2014-09-03 | G138: 0 | H138: 0 | I138: 0 | J138: =IF(AND(Caluations!$F127>7,Caluations!$F127<>FALSE),"",IF($E139="",(Caluations!$H127/$H138)*100,$I138/$H138*100)) ->  | K138: 0 | L138: =IF(Caluations!$J127<0,0,Caluations!$J127) ->  | N138: VC | O138: =IF(AND($E138="",Caluations!$F127<8),$N138*$F138,0) -> 0 | Q138: VE
A139: 2014-09-04 | G139: 0 | H139: 0 | I139: 0 | J139: =IF(AND(Caluations!$F128>7,Caluations!$F128<>FALSE),"",IF($E140="",(Caluations!$H128/$H139)*100,$I139/$H139*100)) ->  | K139: 0 | L139: =IF(Caluations!$J128<0,0,Caluations!$J128) ->  | N139: VC | O139: =IF(AND($E139="",Caluations!$F128<8),$N139*$F139,0) -> 0 | Q139: VE
A140: 2014-09-05 | G140: 0 | H140: 0 | I140: 0 | J140: =IF(AND(Caluations!$F129>7,Caluations!$F129<>FALSE),"",IF($E141="",(Caluations!$H129/$H140)*100,$I140/$H140*100)) ->  | K140: 0 | L140: =IF(Caluations!$J129<0,0,Caluations!$J129) ->  | N140: VC | O140: =IF(AND($E140="",Caluations!$F129<8),$N140*$F140,0) -> 0 | Q140: VE
A141: 2014-09-06 | G141: 0 | H141: 0 | I141: 0 | J141: =IF(AND(Caluations!$F130>7,Caluations!$F130<>FALSE),"",IF($E142="",(Caluations!$H130/$H141)*100,$I141/$H141*100)) ->  | K141: 0 | L141: =IF(Caluations!$J130<0,0,Caluations!$J130) ->  | N141: VC | O141: =IF(AND($E141="",Caluations!$F130<8),$N141*$F141,0) -> 0 | Q141: VE
A142: 2014-09-07 | G142: 0 | H142: 0 | I142: 0 | J142: =IF(AND(Caluations!$F131>7,Caluations!$F131<>FALSE),"",IF($E143="",(Caluations!$H131/$H142)*100,$I142/$H142*100)) ->  | K142: 0 | L142: =IF(Caluations!$J131<0,0,Caluations!$J131) ->  | N142: VC | O142: =IF(AND($E142="",Caluations!$F131<8),$N142*$F142,0) -> 0 | Q142: VE
A143: 2014-09-08 | G143: 0 | H143: 0 | I143: 0 | J143: =IF(AND(Caluations!$F132>7,Caluations!$F132<>FALSE),"",IF($E144="",(Caluations!$H132/$H143)*100,$I143/$H143*100)) ->  | K143: 0 | L143: =IF(Caluations!$J132<0,0,Caluations!$J132) ->  | N143: VC | O143: =IF(AND($E143="",Caluations!$F132<8),$N143*$F143,0) -> 0 | Q143: VE
A144: 2014-09-09 | G144: 0 | H144: 0 | I144: 0 | J144: =IF(AND(Caluations!$F133>7,Caluations!$F133<>FALSE),"",IF($E145="",(Caluations!$H133/$H144)*100,$I144/$H144*100)) ->  | K144: 0 | L144: =IF(Caluations!$J133<0,0,Caluations!$J133) ->  | N144: VC | O144: =IF(AND($E144="",Caluations!$F133<8),$N144*$F144,0) -> 0 | Q144: VE
A145: 2014-09-10 | G145: 0 | H145: 0 | I145: 0 | J145: =IF(AND(Caluations!$F134>7,Caluations!$F134<>FALSE),"",IF($E146="",(Caluations!$H134/$H145)*100,$I145/$H145*100)) ->  | K145: 0 | L145: =IF(Caluations!$J134<0,0,Caluations!$J134) ->  | N145: VC | O145: =IF(AND($E145="",Caluations!$F134<8),$N145*$F145,0) -> 0 | Q145: VE
A146: 2014-09-11 | G146: 0 | H146: 0 | I146: 0 | J146: =IF(AND(Caluations!$F135>7,Caluations!$F135<>FALSE),"",IF($E147="",(Caluations!$H135/$H146)*100,$I146/$H146*100)) ->  | K146: 0 | L146: =IF(Caluations!$J135<0,0,Caluations!$J135) ->  | N146: VC | O146: =IF(AND($E146="",Caluations!$F135<8),$N146*$F146,0) -> 0
A147: 2014-09-12 | G147: 0 | H147: 0 | I147: 0 | J147: =IF(AND(Caluations!$F136>7,Caluations!$F136<>FALSE),"",IF($E148="",(Caluations!$H136/$H147)*100,$I147/$H147*100)) ->  | K147: 0 | L147: =IF(Caluations!$J136<0,0,Caluations!$J136) ->  | N147: VC | O147: =IF(AND($E147="",Caluations!$F136<8),$N147*$F147,0) -> 0
A148: =1+A147 -> 2014-09-13 | G148: 0 | H148: 0 | I148: 0 | J148: =IF(AND(Caluations!$F137>7,Caluations!$F137<>FALSE),"",IF($E149="",(Caluations!$H137/$H148)*100,$I148/$H148*100)) ->  | K148: =IF(OR($J148<103,$E148=""),0,$C148+$D148+$I147-$G148-($H148*1.03)) -> 0 | L148: =IF(Caluations!$J137<0,0,Caluations!$J137) ->  | N148: VC | O148: =IF(AND($E148="",Caluations!$F137<8),$N148*$F148,0) -> 0
A149: 2014-09-14 | G149: =$F149*$E149 -> 0 | H149: =IF($B149<=6,$B149*$B$12,IF($B149<=12,6*$B$12+($B149-6)*$C$12,IF($B149<=18,6*$B$12+6*$C$12+($B149-12)*$D$12,IF($B149<=24,6*$B$12+6*$C$12+6*$D$12+($B149-18)*$E$12,IF($B149<=30,6*$B$12+6*$C$12+6*$D$12+6*$E$12+($B149-24)*$F$12,IF($B149<=36,6*$B$12+6*$C$12+6*$D$12+6*$E$12+6*$F$12+($B149-30)*$G$12,IF($B149<=42,6*$B$12+6*$C$12+6*$D$12+6*$E$12+6*$F$12+6*$G$12+($B149-36)*$H$12,IF($B149<=48,6*$B$12+6*$C$12+6*$D$12+6*$E$12+6*$F$12+6*$G$12+6*$H$12+(F149-42)*$I$12,"rootdepth>48in")))))))) -> 0 | I149: =MAX(IF(($I148+$C149+$D149-$G149)+(($H149-$H148)*$B$13/100)>($H149*1.03),($H149*1.03),($I148+$C149+$D149-$G149)+(($H149-$H148)*$B$13/100)),0) -> 0 | J149: =IF(AND(Caluations!$F138>7,Caluations!$F138<>FALSE),"",IF($E150="",(Caluations!$H138/$H149)*100,$I149/$H149*100)) ->  | K149: 0 | L149: =IF(Caluations!$J138<0,0,Caluations!$J138) ->  | N149: VC | O149: =IF(AND($E149="",Caluations!$F138<8),$N149*$F149,0) -> 0
A150: 2014-09-15 | K150: 0 | L150: =IF(Caluations!$J139<0,0,Caluations!$J139) ->  | N150: VC | O150: =IF(AND($E150="",Caluations!$F139<8),$N150*$F150,0) -> 0
A151: 2014-09-16 | K151: 0 | L151: =IF(Caluations!$J140<0,0,Caluations!$J140) ->  | N151: VC | O151: =IF(AND($E151="",Caluations!$F140<8),$N151*$F151,0) -> 0
A152: 2014-09-17 | K152: 0 | L152: =IF(Caluations!$J141<0,0,Caluations!$J141) ->  | N152: VC | O152: =IF(AND($E152="",Caluations!$F141<8),$N152*$F152,0) -> 0
A153: 2014-09-18 | K153: 0 | L153: =IF(Caluations!$J142<0,0,Caluations!$J142) ->  | N153: VC | O153: =IF(AND($E153="",Caluations!$F142<8),$N153*$F153,0) -> 0
A154: 2014-09-19 | K154: 0 | L154: =IF(Caluations!$J143<0,0,Caluations!$J143) ->  | N154: VC | O154: =IF(AND($E154="",Caluations!$F143<8),$N154*$F154,0) -> 0
K155: 0 | L155: =IF(Caluations!$J144<0,0,Caluations!$J144) ->  | N155: VC | O155: =IF(AND($E155="",Caluations!$F144<8),$N155*$F155,0) -> 0
K156: 0 | L156: =IF(Caluations!$J145<0,0,Caluations!$J145) ->  | N156: VC | O156: =IF(AND($E156="",Caluations!$F145<8),$N156*$F156,0) -> 0
K157: 0 | L157: =IF(Caluations!$J146<0,0,Caluations!$J146) ->  | N157: VC | O157: =IF(AND($E157="",Caluations!$F146<8),$N157*$F157,0) -> 0
K158: 0 | L158: =IF(Caluations!$J147<0,0,Caluations!$J147) ->  | N158: VC
A159: Summary: | B159: Rainfall (inches) | D159: Irrigation added (inches) | G159: Estimated Actual ET (inches) | H159: Capacity of root zone (inches) | I159: Soil Water in root zone (inches) | J159: % capacity filled | K159: Drainage (inches) | L159: Additional capacity of root zone (inches)
B160: =SUM(C19:C157) -> 0 | D160: =SUM(D19:D157) -> 0 | G160: =SUM(G19:G157) -> 0 | J160: =AVERAGE(J19:J157) ->  | K160: =SUM(K19:K157) -> 

Sheet Busy_Screen (hidden)

Sheet Menu
C34: Filename: | D34: =LEFT(CELL("filename",A1),LEN(CELL("filename",A1))-(FIND("",CELL("filename",A1),1))-3) -> C:\Users\DONG\Desktop\[MSU Irrigation Scheduler.xlsm]
C35: Field ID: | D35: =+ScheduleSetup!$C$2 -> Home S

Sheet ScheduleSetup
A2: Field Identifier | C2: Home S | L2: User fills out the data in | O2: light yellow | CQ2: Adrian | CT2: Alfalfa | CV2: Bainbridge / Watervliet
CQ3: Alcona-Richter | CT3: Alfalfa1 | CV3: Benton Harbor (SWMREC)
CQ4: Algansee | CT4: Apple | CV4: Berrien Springs | IQ4: Adrian | IT4: Alfalfa
A5: Available water (AW) holding capacity of soil - (inches water/inch soil). See Table 1 or Soil Survey. | K5: Select Soil Type (ie. Bronson or Oshtemo) | CQ5: Arkona | CT5: Blueberries12 | CV5: Cassopolis | IQ5: Alcona-Richter | IT5: Alfalfa1
A6: Depth Range (in) | B6: 0 - 6 | C6: 6 - 12 | D6: 12 - 18 | E6: 18 - 24 | F6: 24 - 30 | G6: 30 - 36 | H6: 36 - 42 | I6: 42 - 48 | K6: Crop Being Grown (and anticipated rooting depth) | P6: Corn36 | CQ6: Au Gres | CT6: Blueberries18 | CV6: Dowagiac | IQ6: Algansee | IT6: Apple
A7: AW (in/in) | C7: 0.135 | D7: 0.135 | E7: 0.145 | F7: 0.145 | G7: 0.09 | H7: 0.09 | I7: 0.09 | K7: Length of Growing Season (days): | P7: 150 | CQ7: Aubbeenaubbee | CT7: Blueberries24 | CV7: Fennville | IQ7: Arkona | IT7: Blueberries12
A8: Initial Capacity filled (%) | B8: 85 | C8: 85 | D8: 85 | E8: 85 | F8: 85 | G8: 85 | H8: 85 | I8: 85 | K8: Emergence Date (mm/dd/yyyy): Earliest 4-15 | P8: 2020-05-28 | CQ8: Belleville | CT8: Broccoli | CV8: Grand Junction | IQ8: Au Gres | IT8: Blueberries18
B9: =+B7*6 -> 0 | C9: 0.81 | D9: 0.81 | E9: 0.87 | F9: 0.87 | G9: 0.54 | I9: =SUM(B9:G9) -> 3.9 | K9: Closest MSU Enviroweather Station to Field: | P9: Coldwater | CQ9: Benona | CT9: Carrot12 | CV9: Hartford
A10: Do you plan to download weather data from the Internet? | F10: Yes | K10: Irrigated Acres in the Field (for Water Use Reporting) | P10: 138 | AZ10: Yes | CQ10: Blount Loam | CT10: Carrot18 | CV10: Keeler
K11: Enter the RM of the Corn Hybrid Planted | P11: 101 | AZ11: No | CQ11: Blue Lake | CT11: Carrot24 | CV11: Lawrence / Teapot Dome
K12: Enter the GDD's to Blacklayer if Available | CQ12: Brady | CT12: Carrot36 | CV12: Lawton
CQ13: Brevert | CT13: Cauliflower12 | CV13: Scottdale | IQ13: Aubbeenaubbee | IT13: Blueberries24
A14: Irrigation increment/amount per application (inches) | F14: 1 | G14: Irrigate at this % of Available Soil Water in Root Zone | L14: 50 | N14: 50 | P14: Soybeans - 40 of avail until R-3 | CQ14: Bronson | CT14: Cauliflower18 | CV14: South Haven | IQ14: Belleville | IT14: Broccoli
CQ15: Capac | CT15: Celery | CV15: Albion | IQ15: Benona | IT15: Carrot12
CQ16: Carlisle | CT16: Cherries | CV16: Ceresco
CQ17: Chippeny-Nahma | CT17: Corn27 | CV17: Charlotte
CQ18: Coloma | CT18: Corn36 | CV18: Coldwater
CQ19: Coral | CT19: CucumberF12 | CV19: Constantine
CQ20: Corunna | CT20: CucumberF18 | CV20: Hastings
B21: Filename: | D21: =LEFT(CELL("filename",A1),LEN(CELL("filename",A1))-(FIND("",CELL("filename",A1),1))-12) -> C:\Users\DONG\Desktop\[MSU Irrigation Scheduler.xlsm] | CQ21: Covert | CT21: CucumberF24 | CV21: Kalamazoo
CQ22: Croswell | CT22: CucumberF36 | CV22: Leslie
CQ23: Edmore | CT23: CucumberP12 | CV23: Mendon
CQ24: Edwards | CT24: CucumberP18 | CV24: Oshtemo
CQ25: Elston | CT25: CucumberP24 | CV25: Commerce Township
CQ26: Emmett | CT26: CucumberP36 | CV26: Hudson
CQ27: Epoufette | CT27: DryBeans18 | CV27: Petersburg
CQ28: Fern | CT28: DryBeans21 | CV28: Romeo
CQ29: Fox | CT29: DryBeans24 | CV29: Belding
CQ30: Gilford | CT30: DryOnion12 | CV30: Clarksville
CQ31: Gladwin | CT31: DryOnion15 | CV31: Entrican
CQ32: Glendora | CT32: DryOnion18 | CV32: Fremont
CQ33: Granby | CT33: Grapes | CV33: Hart
CQ34: Grayling | CT34: Grass12 | CV34: Hudsonville
CQ35: Greenwood | CT35: Grass18 | CV35: Kent City
CQ36: Hillsdale | CT36: Grass24 | CV36: Ludington
CQ37: Houghton | CT37: GreenBeans | CV37: Mecosta
CQ38: Iosca | CT38: GreenOnion12 | CV38: Sparta
CQ39: Isabella | CT39: GreenOnion18 | CV39: Standale / Walker
CQ40: Island lake | CT40: GreenOnion24 | CV40: West Olive
CQ41: Ithaca | CT41: MuskMelon12 | CV41: East Lansing (HTRC)
CQ42: Kalamazoo | CT42: MuskMelon15 | CV42: East Lansing (MSU Hort)
CQ43: Kawkawlin | CT43: MuskMelon18 | CV43: Emmett
CQ44: Kerston | CT44: MuskMelon36 | CV44: Fairgrove
CQ45: Kilmanagh | CT45: Peaches | CV45: Flint
CQ46: Lapeer | CT46: Pears | CV46: Freeland
CQ47: Leoni | CT47: Peas | CV47: Ithaca
CQ48: Locke | CT48: Plums | CV48: Kinde
CQ49: Londo | CT49: Potatoes12 | CV49: Lapeer
CQ50: Loxley | CT50: Potatoes18 | CV50: Linwood
CQ51: Mancelona | CT51: Potatoes24 | CV51: Munger
CQ52: Marlette | CT52: Soybeans24 | CV52: Pigeon
CQ53: Matea | CT53: Squash | CV53: Richville / Frankenmuth
CQ54: McBride | CT54: Strawberries | CV54: Sandusky
CQ55: McBride | CT55: TomatoesS12 | CV55: Verona
CQ56: Mecosta | CT56: TomatoesS18 | CV56: Arlene
CQ57: Melita | CT57: TomatoesS24 | CV57: Gaylord
CQ58: Montcalm | CT58: TomatoesT12 | CV58: Kalkaska
CQ59: Nadeau | CT59: TomatoesT18 | CV59: McBain
CQ60: Nester | CT60: TomatoesT24 | CV60: Bear Lake
CQ61: Newago | CT61: Wheat | CV61: Benzonia
CQ62: Nottawa | CV62: East Leland
CQ63: Oshtemo | CV63: Eastport
CQ64: Palms | CV64: Elk Rapids
CQ65: Palo | CV65: Kewadin
CQ66: Parkhill | CV66: Northport
CQ67: Perrington | CV67: Old Mission
CQ68: Pipestone | CV68: Traverse City (NWMHRS)
CQ69: Pipestone-Kingsville | CV69: Hawks
CQ70: Plainfield | CV70: Chatham
CQ71: Poseyville | CV71: Escanaba
CQ72: Remus | CV72: McMillan / Newberry
CQ73: Rifle | CV73: Stephenson
CQ74: Riverdale | CV74: Casco / Luxemburg
CQ75: Ronald | CV75: Egg Harbor
CQ76: Roscommon | CV76: Nasewaupee / S. Door County
CQ77: Rousseau | CV77: Sister Bay / Liberty Grove
CQ78: Sandy Loam | CV78: Sturgeon Bay
CQ79: Sandy Loam / Coarse Loam | CV79: West Jacksonport
CQ80: Saugatauk
CQ81: Schoolcraft
CQ82: Shebeon
CQ83: Sims
CQ84: Sparta
CQ85: Spinks
CQ86: Tappan
CQ87: Tewas
CQ88: Thetford
CQ89: Tustin
CQ90: Vestaburg
CQ91: Washtenaw
CQ92: Wauseon
CQ93: Wixom
CQ94: Ziegenfuss

Sheet Calculations2
A2: Crop | G2: 0.67
A4: Estimates of Potential ET can be found at the MSU AgWeather site: http://www.agweather.geo.msu.edu/mawn/irrigation/
A5: The Table of Crop Coefficients contains estimated values of Root Depth and Canopy Cover Coeff, as a function of the percentage of the growing season.
A6: To use the Table, first determine the length of the growing season and rooting depth for the variety of your crop, then extrapolate data from emergence date.
A7: For example, 120 day Corn36 (a corn variety with an effective rooting depth of 36 inches) and has an emergence date of May 15th, 10% of the growing season is May 27th.
A8: 10% of 120 = 12 15 + 12 = 27
IQ9: Adrian | IT9: Alfalfa
A10: Available water (AW) holding capacity of soil - (inches water/inch soil). See Table 1 or Soil Survey. | K10: Soil Type (Bronson or Oshtema) | P10: Kalamazoo | IQ10: Alcona-Richter | IT10: Alfalfa1
A11: Depth Range (in) | B11: 0 - 6 | C11: 6 - 12 | D11: 12 - 18 | E11: 18 - 24 | F11: 24 - 30 | G11: 30 - 36 | H11: 36 - 42 | I11: 42 - 48 | K11: Crop (Corn24 or Corn36): | IQ11: Algansee | IT11: Apple
A12: AW (in/in) | B12: =+ScheduleSetup!B7 -> 0 | C12: =+ScheduleSetup!C7 -> 0.135 | D12: =+ScheduleSetup!D7 -> 0.135 | E12: =+ScheduleSetup!E7 -> 0.145 | F12: =+ScheduleSetup!F7 -> 0.145 | G12: =+ScheduleSetup!G7 -> 0.09 | H12: =+ScheduleSetup!H7 -> 0.09 | I12: =+ScheduleSetup!I7 -> 0.09 | K12: Length of Growing Season (days): | P12: =+ScheduleSetup!P7 -> 150 | IQ12: Arkona | IT12: Blueberries12
A13: Capacity filled (%) | B13: 75 | C13: 70 | D13: 70 | E13: =+ScheduleSetup!E8 -> 85 | F13: =+ScheduleSetup!F8 -> 85 | G13: =+ScheduleSetup!G8 -> 85 | H13: =+ScheduleSetup!H8 -> 85 | I13: =+ScheduleSetup!I8 -> 85 | K13: Emergence Date (mm/dd/yyyy): | R13: Irrigated | T13: Yield Goal | IQ13: Au Gres | IT13: Blueberries18
R14: Acres in Field | T14: If Corn Sch. | IQ14: Aubbeenaubbee | IT14: Blueberries24
A15: Irrigation increment/amount per application (inches) | F15: 1 | G15: Irrigate at this % of Available Soil Water in Root Zone | L15: =+ScheduleSetup!L14 -> 50 | N15: =+ScheduleSetup!N14 -> 50 | P15: Soybeans - 40 of avail until R-3 | R15: 127 | T15: 220 | IQ15: Belleville | IT15: Broccoli
IQ16: Benona | IT16: Carrot12
B17: =+ScheduleSetup!$C$2 -> Home S | G17: =LEFT(CELL("filename",A1),LEN(CELL("filename",A1))-(FIND("",CELL("filename",A1),1))-12) -> C:\Users\DONG\Desktop\[MSU Irrigation Scheduler.xlsm] | IQ17: Blount Loam | IT17: Carrot18
A18: Date | B18: Root Depth (inches) | C18: Rainfall (inches) | D18: Irrigation added (inches) | E18: Et | F18: % Canopy Cover (Kc) | G18: ET modified for crop & deficit (inches) | H18: Capacity of root zone (inches) | I18: Available Water in root zone (inches) | J18: % capacity filled | K18: Drainage (inches) | L18: Additional capacity of root zone (inches) | N18: Grower Entered Growth Stage | O18: Proj ET | P18: Actual and Estimated Cumulative GDD's | Q18: Estimated Growth Stage | R18: Outlook ET's | S18: User Supplied Percent Capacity Filled | T18: Non-Internet Daily GDD Values From Text | AN18: Et for Crop | AO18: Et factor for deficit | AP18: Et modified for crop and soil moisture deficit | AQ18: Yield Reduction | AR18: Estimated Corn Yield Potential: | AS18: Soybean Growth Stage | AT18: Corn Growth Stages | AV18: Available water in root zone | AX18: Use user supplied % Capacity if entered | AZ18: Updatable GDD's Per Growth Stage Varies by Corn RM | BA18: Corn Growth Stages | BB18: Manually Entered GDD Values | BC18: Weather Station GDD Values | BD18: Cumulative GDD Values | BE18: Display for Schedule for Corn | BF18: Display Corn Growth Stage | BG18: Display Soybean Growth Stage | BH18: Base GDD's (From GDD_Base ) | BM18: Stress Base | BN18: Stress Index (below critical level) | BP18: Some Crop Other than Soy if not 50 | BQ18: Stress Crop Stage | BR18: Stress Base | EB18: Available Water in Root Zone Calculations | IQ18: Blue Lake | IT18: Carrot24
A19: =+ScheduleSetup!$P$8 -> 2020-05-28 | B19: 6 | C19: 0.38 | E19: 0.07 | F19: 0.15 | G19: =$AP19 -> 0 | H19: =IF($B19<=6,$B19*$B$12,IF($B19<=12,6*$B$12+($B19-6)*$C$12,IF($B19<=18,6*$B$12+6*$C$12+($B19-12)*$D$12,IF($B19<=24,6*$B$12+6*$C$12+6*$D$12+($B19-18)*$E$12,IF($B19<=30,6*$B$12+6*$C$12+6*$D$12+6*$E$12+($B19-24)*$F$12,IF($B19<=36,6*$B$12+6*$C$12+6*$D$12+6*$E$12+6*$F$12+($B19-30)*$G$12,IF($B19<=42,6*$B$12+6*$C$12+6*$D$12+6*$E$12+6*$F$12+6*$G$12+($B19-36)*$H$12,IF($B19<=48,6*$B$12+6*$C$12+6*$D$12+6*$E$12+6*$F$12+6*$G$12+6*$H$12+(F19-42)*$I$12,"rootdepth>48in")))))))) -> 0 | I19: =$H19*$J$19/100 -> 0 | J19: =ScheduleSetup!B8 -> 85 | K19: 0 | L19: 0.16 | N19: VE | P19: =+(IF(BD19=0,BJ19,BD19)) -> 20.33 | Q19: =IF(LEFT(ScheduleSetup!$P$6,4)="Corn",BF19,BG19) -> VE | V19: 0 | AR19: =$T$15 -> 220 | AS19: VE | AT19: VE | AU19: =AV19 -> 0 | AV19: =$H19*$J$19/100 -> 0 | AZ19: 0 | BA19: VE | BB19: =+T19 -> 0 | BC19: 20.33 | BD19: =+BC19 -> 20.33 | BE19: =IF( LEN((BC19))=0, BK19,BF19) -> VE | BF19: =VLOOKUP(BD19,$AZ$19:$BA$43,2,TRUE) -> VE | BG19: VE | BH19: 8 | BI19: 15 | BJ19: =+BI19 -> 15 | BK19: =VLOOKUP(BJ19,$AZ$19:$BA$43,2,TRUE) -> VE | BL19: 1 | BN19: =+IF((BR19-J19)>0,BR19-J19,0) -> 0 | BP19: =+ScheduleSetup!N14 -> 50 | BQ19: =IF(LEFT(ScheduleSetup!$P$6,4)="Soyb",BG19,BF19) -> VE | BR19: =IF($BP$19=50,50,IF($BQ$20="VC"=AND(OR(BQ19="R3",BQ19="R4",BQ19="R5",BQ19="R6")),60,40)) -> 50 | IN19: =+VLOOKUP(IM19,$T$19:$U$40,2) ->  | IQ19: Brady | IT19: Carrot36
A20: =1+A19 -> 2020-05-29 | B20: 6.933333333 | C20: 0.06 | E20: 0.125 | F20: 0.1666666667 | G20: 0.01166666667 | H20: =IF($B20<=6,$B20*$B$12,IF($B20<=12,6*$B$12+($B20-6)*$C$12,IF($B20<=18,6*$B$12+6*$C$12+($B20-12)*$D$12,IF($B20<=24,6*$B$12+6*$C$12+6*$D$12+($B20-18)*$E$12,IF($B20<=30,6*$B$12+6*$C$12+6*$D$12+6*$E$12+($B20-24)*$F$12,IF($B20<=36,6*$B$12+6*$C$12+6*$D$12+6*$E$12+6*$F$12+($B20-30)*$G$12,IF($B20<=42,6*$B$12+6*$C$12+6*$D$12+6*$E$12+6*$F$12+6*$G$12+($B20-36)*$H$12,IF($B20<=48,6*$B$12+6*$C$12+6*$D$12+6*$E$12+6*$F$12+6*$G$12+6*$H$12+(F20-42)*$I$12,"rootdepth>48in")))))))) -> 0.126 | I20: =IF($S20="",$AV20,($S20/100)*$H20) -> 0.12978 | J20: =+IF(S20="",(AX20),S20) -> 103 | K20: =IF(IF(OR($J20<103,$E19=""),0,$C20+$D20+$I19-$G20-($H20*1.03))>0, IF(OR($J20<103,$E19=""),0,$C20+$D20+$I19-$G20-($H20*1.03)),0) -> 0 | L20: =IF(Caluations!$J9<0,0,Caluations!$J9) -> 0 | N20: VE | O20: =IF(AND($E20="",Caluations!$F9<8),$R20*$F20,0) -> 0 | P20: 35.035 | Q20: =IF(LEFT(ScheduleSetup!$P$6,4)="Corn",BF20,BG20) -> VE | AN20: =+$F20*$E19 -> 0.01166666667 | AO20: =IF($J19<50,($H19-($H19-$I19))/($H19*0.5),1) -> 1 | AP20: =+AN20*AO20 -> 0.01166666667 | AR20: =AR19-AQ20 -> 220 | AS20: VC | AT20: V1 | AU20: =IF((OR($E19<>"" )), Calculations2!$AV20,"") -> 0.12978 | AV20: =MAX(IF(($I19+$C20+$D20-$G20)+(($H20-$H19)*$B$13/100)>($H20*1.03),($H20*1.03),($I19+$C20+$D20-$G20-O20)+(($H20-$H19)*$B$13/100)),0) -> 0.12978 | AX20: =IF(AND(Caluations!$F9>5,Caluations!$F9<>FALSE),"",IF($E20="",($I20/$H20)*100,$I20/$H20*100)) -> 103 | AZ20: 64.09574468 | BA20: V1 | BB20: =+T20 -> 0 | BC20: 14.705 | BD20: =+IF(BC20="",BD19+BI20,BD19+BC20) -> 35.035 | BE20: =IF( LEN((BC20))=0, BK20,BF20) -> VE | BF20: =VLOOKUP(BD20,$AZ$19:$BA$43,2,TRUE) -> VE | BG20: VC | BH20: 9 | BI20: 15 | BJ20: =+BJ19+BI20 -> 30 | BK20: VE | BL20: 2 | BN20: =+IF((BR20-J20)>0,BR20-J20,0) -> 0 | BQ20: =IF(LEFT(ScheduleSetup!$P$6,4)="Soyb",BG20,BF20) -> VE | BR20: =IF($BP$19=50,50,IF($BQ$20="VC"=AND(OR(BQ20="R3",BQ20="R4",BQ20="R5",BQ20="R6")),60,40)) -> 50 | EB20: IF($B20 < 6, $B$12, IF($B20 > 6)) | IN20: =+VLOOKUP(IM20,$T$19:$U$40,2) ->  | IQ20: Brevert | IT20: Cauliflower12
A21: 2020-05-30 | B21: 7.866666667 | C21: 0 | E21: 0.146 | F21: 0.1833333333 | G21: 0.02291666667 | H21: =IF($B21<=6,$B21*$B$12,IF($B21<=12,6*$B$12+($B21-6)*$C$12,IF($B21<=18,6*$B$12+6*$C$12+($B21-12)*$D$12,IF($B21<=24,6*$B$12+6*$C$12+6*$D$12+($B21-18)*$E$12,IF($B21<=30,6*$B$12+6*$C$12+6*$D$12+6*$E$12+($B21-24)*$F$12,IF($B21<=36,6*$B$12+6*$C$12+6*$D$12+6*$E$12+6*$F$12+($B21-30)*$G$12,IF($B21<=42,6*$B$12+6*$C$12+6*$D$12+6*$E$12+6*$F$12+6*$G$12+($B21-36)*$H$12,IF($B21<=48,6*$B$12+6*$C$12+6*$D$12+6*$E$12+6*$F$12+6*$G$12+6*$H$12+(F21-42)*$I$12,"rootdepth>48in")))))))) -> 0.252 | I21: =IF($S21="",$AV21,($S21/100)*$H21) -> 0.2013633333 | J21: =+IF(S21="",(AX21),S21) -> 79.90608466 | K21: 0 | L21: =IF(Caluations!$J10<0,0,Caluations!$J10) -> 0.05063666667 | N21: VE | O21: =IF(AND($E21="",Caluations!$F10<8),$R21*$F21,0) -> 0 | P21: 44.52 | Q21: =IF(LEFT(ScheduleSetup!$P$6,4)="Corn",BF21,BG21) -> VE | AN21: 0.02291666667 | AO21: =IF($J20<50,($H20-($H20-$I20))/($H20*0.5),1) -> 1 | AP21: =+AN21*AO21 -> 0.02291666667 | AQ21: =IF(AO21<1,(AQ19-((1.25*(AP21/AN21)))-1)*(-$T$15))*0.008 -> 0 | AR21: =AR20-AQ21 -> 220 | AS21: V1 | AT21: V2 | AU21: =IF((OR($E20<>"" )), Calculations2!$AV21,"") -> 0.2013633333 | AV21: 0.2013633333 | AX21: =IF(AND(Caluations!$F10>5,Caluations!$F10<>FALSE),"",IF($E21="",($I21/$H21)*100,$I21/$H21*100)) -> 79.90608466 | AZ21: 125.5 | BA21: V2 | BB21: =+T21 -> 0 | BC21: 9.485 | BD21: 44.52 | BE21: VE | BF21: VE | BG21: VC | BH21: 9 | BI21: 16 | BJ21: =+BJ20+BI21 -> 46 | BK21: VE | BL21: 3 | BN21: 0 | BQ21: =IF(LEFT(ScheduleSetup!$P$6,4)="Soyb",BG21,BF21) -> VE | BR21: 50 | IQ21: Bronson | IT21: Cauliflower18
A22: 2020-05-31 | B22: 8.8 | C22: 0 | E22: 0.161 | F22: 0.2 | G22: 0.0292 | H22: 0.378 | I22: 0.2666633333 | J22: 70.54585538 | K22: 0 | L22: =IF(Caluations!$J11<0,0,Caluations!$J11) -> 0.1113366667 | N22: VE | O22: =IF(AND($E22="",Caluations!$F11<8),$R22*$F22,0) -> 0 | P22: 53.125 | Q22: =IF(LEFT(ScheduleSetup!$P$6,4)="Corn",BF22,BG22) -> VE | AN22: 0.0292 | AO22: 1 | AP22: 0.0292 | AQ22: =IF(AO22<1,(AQ20-((1.25*(AP22/AN22)))-1)*(-$T$15))*0.008 -> 0 | AR22: 220 | AS22: V2 | AT22: V3 | AU22: =IF((OR($E21<>"" )), Calculations2!$AV22,"") -> 0.2666633333 | AV22: 0.2666633333 | AX22: =IF(AND(Caluations!$F11>5,Caluations!$F11<>FALSE),"",IF($E22="",($I22/$H22)*100,$I22/$H22*100)) -> 70.54585538 | AZ22: 186.9042553 | BA22: V3 | BB22: 0 | BC22: 8.605 | BD22: 53.125 | BE22: VE | BF22: VE | BG22: VC | BH22: 10 | BI22: 16 | BJ22: 62 | BK22: VE | BL22: 4 | BN22: 0 | BQ22: =IF(LEFT(ScheduleSetup!$P$6,4)="Soyb",BG22,BF22) -> VE | BR22: 50 | IQ22: Capac | IT22: Celery
A23: 2020-06-01 | B23: 9.46 | C23: 0 | E23: 0.168 | F23: 0.2 | G23: 0.0322 | H23: 0.4671 | I23: 0.3012883333 | J23: 64.5018911 | K23: 0 | L23: =IF(Caluations!$J12<0,0,Caluations!$J12) -> 0.1658116667 | N23: V1 | O23: =IF(AND($E23="",Caluations!$F12<8),$R23*$F23,0) -> 0 | P23: 64.555 | Q23: =IF(LEFT(ScheduleSetup!$P$6,4)="Corn",BF23,BG23) -> V1 | AN23: 0.0322 | AO23: 1 | AP23: 0.0322 | AQ23: 0 | AR23: 220 | AS23: V3 | AT23: V4 | AU23: =IF((OR($E22<>"" )), Calculations2!$AV23,"") -> 0.3012883333 | AV23: 0.3012883333 | AX23: =IF(AND(Caluations!$F12>5,Caluations!$F12<>FALSE),"",IF($E23="",($I23/$H23)*100,$I23/$H23*100)) -> 64.5018911 | AZ23: 248.3085106 | BA23: V4 | BB23: 0 | BC23: 11.43 | BD23: 64.555 | BE23: V1 | BF23: V1 | BG23: VC | BH23: 10 | BI23: 16 | BJ23: 78 | BK23: V1 | BL23: 5 | BN23: 0 | BQ23: =IF(LEFT(ScheduleSetup!$P$6,4)="Soyb",BG23,BF23) -> V1 | BR23: 50 | IQ23: Carlisle | IT23: Cherries
A24: 2020-06-02 | B24: 10.905 | C24: 0 | E24: 0.246 | F24: 0.225 | G24: 0.0378 | H24: 0.662175 | I24: 0.4097945833 | J24: 61.8861454 | K24: 0 | L24: =IF(Caluations!$J13<0,0,Caluations!$J13) -> 0.2523804167 | N24: V1 | O24: =IF(AND($E24="",Caluations!$F13<8),$R24*$F24,0) -> 0 | P24: 87.755 | Q24: =IF(LEFT(ScheduleSetup!$P$6,4)="Corn",BF24,BG24) -> V1 | AN24: 0.0378 | AO24: 1 | AP24: 0.0378 | AQ24: 0 | AR24: 220 | AS24: V4 | AT24: V5 | AU24: =IF((OR($E23<>"" )), Calculations2!$AV24,"") -> 0.4097945833 | AV24: 0.4097945833 | AX24: =IF(AND(Caluations!$F13>5,Caluations!$F13<>FALSE),"",IF($E24="",($I24/$H24)*100,$I24/$H24*100)) -> 61.8861454 | AZ24: 309.712766 | BA24: V5 | BB24: 0 | BC24: 23.2 | BD24: 87.755 | BE24: V1 | BF24: V1 | BG24: VC | BH24: 10 | BI24: 16 | BJ24: 94 | BK24: V1 | BL24: 6 | BN24: 0 | BQ24: =IF(LEFT(ScheduleSetup!$P$6,4)="Soyb",BG24,BF24) -> V1 | BR24: 50 | IQ24: Chippeny-Nahma | IT24: Corn18
A25: 2020-06-03 | B25: 12.35 | C25: 0 | E25: 0.144 | F25: 0.25 | G25: 0.0615 | H25: 0.85725 | I25: 0.4946008333 | J25: 57.69621853 | K25: 0 | L25: =IF(Caluations!$J14<0,0,Caluations!$J14) -> 0.3626491667 | N25: V1 | O25: =IF(AND($E25="",Caluations!$F14<8),$R25*$F25,0) -> 0 | P25: 108.5 | Q25: =IF(LEFT(ScheduleSetup!$P$6,4)="Corn",BF25,BG25) -> V1 | AN25: 0.0615 | AO25: 1 | AP25: 0.0615 | AQ25: 0 | AR25: 220 | AS25: V5 | AT25: V6 | AU25: =IF((OR($E24<>"" )), Calculations2!$AV25,"") -> 0.4946008333 | AV25: 0.4946008333 | AX25: =IF(AND(Caluations!$F14>5,Caluations!$F14<>FALSE),"",IF($E25="",($I25/$H25)*100,$I25/$H25*100)) -> 57.69621853 | AZ25: 371.1170213 | BA25: V6 | BB25: 0 | BC25: 20.745 | BD25: 108.5 | BE25: V1 | BF25: V1 | BG25: V1 | BH25: 11 | BI25: 17 | BJ25: 111 | BK25: V1 | BL25: 7 | BN25: 0 | BQ25: =IF(LEFT(ScheduleSetup!$P$6,4)="Soyb",BG25,BF25) -> V1 | BR25: 50 | IQ25: Coloma | IT25: Corn24
A26: 2020-06-04 | B26: 12.92 | C26: 0 | E26: 0.136 | F26: 0.25 | G26: =$AP26 -> 0.036 | H26: 0.9342 | I26: 0.5163133333 | J26: 55.26796546 | K26: 0 | L26: =IF(Caluations!$J15<0,0,Caluations!$J15) -> 0.4178866667 | N26: V2 | O26: =IF(AND($E26="",Caluations!$F15<8),$R26*$F26,0) -> 0 | P26: 129.02 | Q26: =IF(LEFT(ScheduleSetup!$P$6,4)="Corn",BF26,BG26) -> V2 | AN26: 0.036 | AO26: 1 | AP26: 0.036 | AQ26: 0 | AR26: 220 | AS26: V6 | AT26: V7 | AU26: =IF((OR($E25<>"" )), Calculations2!$AV26,"") -> 0.5163133333 | AV26: 0.5163133333 | AX26: =IF(AND(Caluations!$F15>5,Caluations!$F15<>FALSE),"",IF($E26="",($I26/$H26)*100,$I26/$H26*100)) -> 55.26796546 | AZ26: 432.5212766 | BA26: V7 | BB26: 0 | BC26: 20.52 | BD26: 129.02 | BE26: V2 | BF26: V2 | BG26: V1 | BH26: 11 | BI26: 17 | BJ26: 128 | BK26: V2 | BL26: 1 | BN26: 0 | BQ26: =IF(LEFT(ScheduleSetup!$P$6,4)="Soyb",BG26,BF26) -> V2 | BR26: 50 | IQ26: Coral | IT26: Corn27
A27: 2020-06-05 | B27: 13.785 | C27: 0 | E27: 0.162 | F27: 0.275 | G27: =$AP27 -> 0.0374 | H27: 1.050975 | I27: 0.5664945833 | J27: 53.9018134 | K27: 0 | L27: =IF(Caluations!$J16<0,0,Caluations!$J16) -> 0.4844804167 | N27: V2 | O27: =IF(AND($E27="",Caluations!$F16<8),$R27*$F27,0) -> 0 | P27: 151.44 | Q27: =IF(LEFT(ScheduleSetup!$P$6,4)="Corn",BF27,BG27) -> V2 | AN27: 0.0374 | AO27: 1 | AP27: 0.0374 | AQ27: 0 | AR27: 220 | AS27: R1 | AT27: V8 | AU27: =IF((OR($E26<>"" )), Calculations2!$AV27,"") -> 0.5664945833 | AV27: 0.5664945833 | AX27: =IF(AND(Caluations!$F16>5,Caluations!$F16<>FALSE),"",IF($E27="",($I27/$H27)*100,$I27/$H27*100)) -> 53.9018134 | AZ27: 493.9255319 | BA27: V8 | BB27: 0 | BC27: 22.42 | BD27: 151.44 | BE27: V2 | BF27: V2 | BG27: V1 | BH27: 12 | BI27: 17 | BJ27: 145 | BK27: V2 | BL27: 2 | BN27: 0 | BQ27: =IF(LEFT(ScheduleSetup!$P$6,4)="Soyb",BG27,BF27) -> V2 | BR27: 50 | IQ27: Corunna | IT27: Corn36
A28: 2020-06-06 | B28: 14.65 | C28: 0 | E28: 0.211 | F28: 0.3 | G28: 0.0486 | H28: 1.16775 | I28: 0.6054758333 | J28: 51.84978234 | K28: 0 | L28: =IF(Caluations!$J17<0,0,Caluations!$J17) -> 0.5622741667 | N28: V2 | O28: =IF(AND($E28="",Caluations!$F17<8),$R28*$F28,0) -> 0 | P28: 173.45 | Q28: =IF(LEFT(ScheduleSetup!$P$6,4)="Corn",BF28,BG28) -> V2 | AN28: 0.0486 | AO28: 1 | AP28: 0.0486 | AQ28: 0 | AR28: 220 | AS28: R2 | AT28: V9 | AU28: =IF((OR($E27<>"" )), Calculations2!$AV28,"") -> 0.6054758333 | AV28: 0.6054758333 | AX28: =IF(AND(Caluations!$F17>5,Caluations!$F17<>FALSE),"",IF($E28="",($I28/$H28)*100,$I28/$H28*100)) -> 51.84978234 | AZ28: 555.3297872 | BA28: V9 | BB28: 0 | BC28: 22.01 | BD28: 173.45 | BE28: V2 | BF28: V2 | BG28: V1 | BH28: 12 | BI28: 18 | BJ28: 163 | BK28: V2 | BL28: 3 | BN28: 0 | BQ28: =IF(LEFT(ScheduleSetup!$P$6,4)="Soyb",BG28,BF28) -> V2 | BR28: 50 | IQ28: Covert | IT28: CucumberF12
A29: 2020-06-07 | B29: 15.23 | C29: 0 | E29: 0.192 | F29: 0.3 | G29: 0.0633 | H29: 1.24605 | I29: 0.6009008333 | J29: 48.22445595 | K29: 0 | L29: =IF(Caluations!$J18<0,0,Caluations!$J18) -> 0.6451491667 | N29: V3 | O29: =IF(AND($E29="",Caluations!$F18<8),$R29*$F29,0) -> 0 | P29: 190.58 | Q29: =IF(LEFT(ScheduleSetup!$P$6,4)="Corn",BF29,BG29) -> V3 | AN29: 0.0633 | AO29: 1 | AP29: 0.0633 | AQ29: 0 | AR29: 220 | AS29: R3 | AT29: V10 | AU29: =IF((OR($E28<>"" )), Calculations2!$AV29,"") -> 0.6009008333 | AV29: 0.6009008333 | AX29: =IF(AND(Caluations!$F18>5,Caluations!$F18<>FALSE),"",IF($E29="",($I29/$H29)*100,$I29/$H29*100)) -> 48.22445595 | AZ29: 616.7340426 | BA29: V10 | BB29: 0 | BC29: 17.13 | BD29: 190.58 | BE29: V3 | BF29: V3 | BG29: V1 | BH29: 12 | BI29: 18 | BJ29: 181 | BK29: V2 | BL29: 4 | BN29: 1.775544053 | BQ29: =IF(LEFT(ScheduleSetup!$P$6,4)="Soyb",BG29,BF29) -> V3 | BR29: 50 | IQ29: Croswell | IT29: CucumberF18
A30: 2020-06-08 | B30: 16.095 | C30: 0 | E30: 0.227 | F30: 0.335 | G30: 0.06203594013 | H30: 1.362825 | I30: 0.6264461432 | J30: 45.96673404 | K30: 0 | L30: =IF(Caluations!$J19<0,0,Caluations!$J19) -> 0.7363788568 | N30: V3 | O30: =IF(AND($E30="",Caluations!$F19<8),$R30*$F30,0) -> 0 | P30: 212.7 | Q30: =IF(LEFT(ScheduleSetup!$P$6,4)="Corn",BF30,BG30) -> V3 | AN30: 0.06432 | AO30: 0.9644891189 | AP30: 0.06203594013 | AQ30: 3.881876062 | AR30: 216.1181239 | AS30: R4 | AT30: V11 | AU30: =IF((OR($E29<>"" )), Calculations2!$AV30,"") -> 0.6264461432 | AV30: 0.6264461432 | AX30: =IF(AND(Caluations!$F19>5,Caluations!$F19<>FALSE),"",IF($E30="",($I30/$H30)*100,$I30/$H30*100)) -> 45.96673404 | AZ30: 678.1382979 | BA30: V11 | BB30: 0 | BC30: 22.12 | BD30: 212.7 | BE30: V3 | BF30: V3 | BG30: V1 | BH30: 13 | BI30: 18 | BJ30: 199 | BK30: V3 | BL30: 5 | BN30: 4.033265958 | BQ30: =IF(LEFT(ScheduleSetup!$P$6,4)="Soyb",BG30,BF30) -> V3 | BR30: 50 | IQ30: Edmore | IT30: CucumberF24
A31: 2020-06-09 | B31: 16.96 | C31: 0.25 | E31: 0.218 | F31: 0.37 | G31: 0.07721491984 | H31: =IF($B31<=6,$B31*$B$12,IF($B31<=12,6*$B$12+($B31-6)*$C$12,IF($B31<=18,6*$B$12+6*$C$12+($B31-12)*$D$12,IF($B31<=24,6*$B$12+6*$C$12+6*$D$12+($B31-18)*$E$12,IF($B31<=30,6*$B$12+6*$C$12+6*$D$12+6*$E$12+($B31-24)*$F$12,IF($B31<=36,6*$B$12+6*$C$12+6*$D$12+6*$E$12+6*$F$12+($B31-30)*$G$12,IF($B31<=42,6*$B$12+6*$C$12+6*$D$12+6*$E$12+6*$F$12+6*$G$12+($B31-36)*$H$12,IF($B31<=48,6*$B$12+6*$C$12+6*$D$12+6*$E$12+6*$F$12+6*$G$12+6*$H$12+(F31-42)*$I$12,"rootdepth>48in")))))))) -> 1.4796 | I31: 0.8868124734 | J31: 59.93596062 | K31: 0 | L31: =IF(Caluations!$J20<0,0,Caluations!$J20) -> 0.5927875266 | N31: V3 | O31: =IF(AND($E31="",Caluations!$F20<8),$R31*$F31,0) -> 0 | P31: 235.975 | Q31: =IF(LEFT(ScheduleSetup!$P$6,4)="Corn",BF31,BG31) -> V3 | AN31: 0.08399 | AO31: 0.9193346808 | AP31: 0.07721491984 | AQ31: 3.782536298 | AR31: 212.3355876 | AS31: R5 | AT31: V12 | AU31: =IF((OR($E30<>"" )), Calculations2!$AV31,"") -> 0.8868124734 | AV31: 0.8868124734 | AX31: =IF(AND(Caluations!$F20>5,Caluations!$F20<>FALSE),"",IF($E31="",($I31/$H31)*100,$I31/$H31*100)) -> 59.93596062 | AZ31: 726.2382979 | BA31: V12 | BB31: 0 | BC31: 23.275 | BD31: 235.975 | BE31: V3 | BF31: V3 | BG31: V2 | BH31: 13 | BI31: 19 | BJ31: 218 | BK31: V3 | BL31: 1 | BN31: 0 | BQ31: =IF(LEFT(ScheduleSetup!$P$6,4)="Soyb",BG31,BF31) -> V3 | BR31: 50 | IQ31: Edwards | IT31: CucumberF36
A32: 2020-06-10 | B32: 17.54 | C32: 0.57 | E32: 0.158 | F32: 0.37 | G32: 0.08066 | H32: 1.5579 | I32: 1.434877473 | J32: 92.10331044 | K32: 0 | L32: =IF(Caluations!$J21<0,0,Caluations!$J21) -> 0.1230225266 | N32: V4 | O32: =IF(AND($E32="",Caluations!$F21<8),$R32*$F32,0) -> 0 | P32: 259.69 | Q32: =IF(LEFT(ScheduleSetup!$P$6,4)="Corn",BF32,BG32) -> V4 | AN32: 0.08066 | AO32: 1 | AP32: 0.08066 | AQ32: 0 | AR32: 212.3355876 | AS32: R6 | AT32: V13 | AU32: =IF((OR($E31<>"" )), Calculations2!$AV32,"") -> 1.434877473 | AV32: 1.434877473 | AX32: =IF(AND(Caluations!$F21>5,Caluations!$F21<>FALSE),"",IF($E32="",($I32/$H32)*100,$I32/$H32*100)) -> 92.10331044 | AZ32: 774.3382979 | BA32: V13 | BB32: 0 | BC32: 23.715 | BD32: 259.69 | BE32: V4 | BF32: V4 | BG32: V2 | BH32: 13 | BI32: 19 | BJ32: 237 | BK32: V3 | BL32: 2 | BN32: 0 | BQ32: =IF(LEFT(ScheduleSetup!$P$6,4)="Soyb",BG32,BF32) -> V4 | BR32: 50 | IQ32: Elston | IT32: CucumberP12
A33: 2020-06-11 | B33: 18.11666667 | C33: 0.02 | E33: 0.197 | F33: 0.3966666667 | G33: 0.06267333333 | H33: 1.636916667 | I33: 1.45146664 | J33: 88.67077168 | K33: 0 | L33: =IF(Caluations!$J22<0,0,Caluations!$J22) -> 0.1854500266 | N33: V4 | O33: =IF(AND($E33="",Caluations!$F22<8),$R33*$F33,0) -> 0 | P33: 277.065 | Q33: =IF(LEFT(ScheduleSetup!$P$6,4)="Corn",BF33,BG33) -> V4 | AN33: 0.06267333333 | AO33: 1 | AP33: 0.06267333333 | AQ33: 0 | AR33: 212.3355876 | AS33: R7 | AT33: V14 | AU33: =IF((OR($E32<>"" )), Calculations2!$AV33,"") -> 1.45146664 | AV33: 1.45146664 | AX33: =IF(AND(Caluations!$F22>5,Caluations!$F22<>FALSE),"",IF($E33="",($I33/$H33)*100,$I33/$H33*100)) -> 88.67077168 | AZ33: 822.4382979 | BA33: V14 | BB33: 0 | BC33: 17.375 | BD33: 277.065 | BE33: V4 | BF33: V4 | BG33: V2 | BH33: 14 | BI33: 19 | BJ33: 256 | BK33: V4 | BL33: 3 | BN33: 0 | BQ33: =IF(LEFT(ScheduleSetup!$P$6,4)="Soyb",BG33,BF33) -> V4 | BR33: 50 | IQ33: Emmett | IT33: CucumberP18
A34: 2020-06-12 | B34: 18.69333333 | C34: 0.13 | E34: 0.183 | F34: 0.4233333333 | G34: 0.08339666667 | H34: 1.720533333 | I34: 1.560782473 | J34: 90.71503836 | K34: 0 | L34: =IF(Caluations!$J23<0,0,Caluations!$J23) -> 0.15975086 | N34: V4 | O34: =IF(AND($E34="",Caluations!$F23<8),$R34*$F34,0) -> 0 | P34: 293.685 | Q34: =IF(LEFT(ScheduleSetup!$P$6,4)="Corn",BF34,BG34) -> V4 | AN34: 0.08339666667 | AO34: 1 | AP34: 0.08339666667 | AQ34: 0 | AR34: 212.3355876 | AS34: R8 | AT34: V15 | AU34: =IF((OR($E33<>"" )), Calculations2!$AV34,"") -> 1.560782473 | AV34: 1.560782473 | AX34: =IF(AND(Caluations!$F23>5,Caluations!$F23<>FALSE),"",IF($E34="",($I34/$H34)*100,$I34/$H34*100)) -> 90.71503836 | AZ34: 870.5382979 | BA34: V15 | BB34: 0 | BC34: 16.62 | BD34: 293.685 | BE34: V4 | BF34: V4 | BG34: V2 | BH34: 14 | BI34: 19 | BJ34: 275 | BK34: V4 | BL34: 4 | BN34: 0 | BQ34: =IF(LEFT(ScheduleSetup!$P$6,4)="Soyb",BG34,BF34) -> V4 | BR34: 50 | IQ34: Epoufette | IT34: CucumberP24
A35: 2020-06-13 | B35: 19.27 | C35: 0.04 | E35: 0.183 | F35: 0.45 | G35: 0.08235 | H35: 1.80415 | I35: 1.581144973 | J35: 87.63933006 | K35: 0 | L35: =IF(Caluations!$J24<0,0,Caluations!$J24) -> 0.2230050266 | N35: V4 | O35: =IF(AND($E35="",Caluations!$F24<8),$R35*$F35,0) -> 0 | P35: 304.47 | Q35: =IF(LEFT(ScheduleSetup!$P$6,4)="Corn",BF35,BG35) -> V4 | AN35: 0.08235 | AO35: 1 | AP35: 0.08235 | AQ35: 0 | AR35: 212.3355876 | AT35: V16 | AU35: =IF((OR($E34<>"" )), Calculations2!$AV35,"") -> 1.581144973 | AV35: =MAX(IF(($I34+$C35+$D35-$G35)+(($H35-$H34)*$B$13/100)>($H35*1.03),($H35*1.03),($I34+$C35+$D35-$G35-O35)+(($H35-$H34)*$B$13/100)),0) -> 1.581144973 | AX35: =IF(AND(Caluations!$F24>5,Caluations!$F24<>FALSE),"",IF($E35="",($I35/$H35)*100,$I35/$H35*100)) -> 87.63933006 | AZ35: 918.6382979 | BA35: V16 | BB35: 0 | BC35: 10.785 | BD35: 304.47 | BE35: V4 | BF35: V4 | BG35: V2 | BH35: 14 | BI35: 20 | BJ35: 295 | BK35: V4 | BL35: 5 | BN35: 0 | BQ35: =IF(LEFT(ScheduleSetup!$P$6,4)="Soyb",BG35,BF35) -> V4 | BR35: 50 | IQ35: Fern | IT35: CucumberP36
A36: 2020-06-14 | B36: 19.85 | C36: 0 | E36: 0.193 | F36: 0.45 | G36: 0.08235 | H36: 1.88825 | I36: 1.561869973 | J36: 82.71521109 | K36: 0 | L36: =IF(Caluations!$J25<0,0,Caluations!$J25) -> 0.3263800266 | N36: V5 | O36: =IF(AND($E36="",Caluations!$F25<8),$R36*$F36,0) -> 0 | P36: 315.34 | Q36: =IF(LEFT(ScheduleSetup!$P$6,4)="Corn",BF36,BG36) -> V5 | AN36: 0.08235 | AO36: 1 | AP36: 0.08235 | AQ36: 0 | AR36: 212.3355876 | AT36: V17 | AU36: =IF((OR($E35<>"" )), Calculations2!$AV36,"") -> 1.561869973 | AV36: 1.561869973 | AX36: =IF(AND(Caluations!$F25>5,Caluations!$F25<>FALSE),"",IF($E36="",($I36/$H36)*100,$I36/$H36*100)) -> 82.71521109 | AZ36: 966.7382979 | BA36: V17 | BB36: 0 | BC36: 10.87 | BD36: 315.34 | BE36: V5 | BF36: V5 | BG36: V2 | BH36: 15 | BI36: 20 | BJ36: 315 | BK36: V5 | BL36: 1 | BN36: 0 | BQ36: =IF(LEFT(ScheduleSetup!$P$6,4)="Soyb",BG36,BF36) -> V5 | BR36: 50 | IQ36: Fox | IT36: DryBeans18
A37: 2020-06-15 | B37: 20.23333333 | C37: 0 | E37: 0.188 | F37: 0.48 | G37: 0.09264 | H37: 1.943833333 | I37: 1.510917473 | J37: 77.72875624 | K37: 0 | L37: =IF(Caluations!$J26<0,0,Caluations!$J26) -> 0.43291586 | N37: V5 | O37: =IF(AND($E37="",Caluations!$F26<8),$R37*$F37,0) -> 0 | P37: 329.585 | Q37: =IF(LEFT(ScheduleSetup!$P$6,4)="Corn",BF37,BG37) -> V5 | AN37: 0.09264 | AO37: 1 | AP37: 0.09264 | AQ37: 0 | AR37: 212.3355876 | AT37: V18 | AU37: =IF((OR($E36<>"" )), Calculations2!$AV37,"") -> 1.510917473 | AV37: 1.510917473 | AX37: =IF(AND(Caluations!$F26>5,Caluations!$F26<>FALSE),"",IF($E37="",($I37/$H37)*100,$I37/$H37*100)) -> 77.72875624 | AZ37: 1014.838298 | BA37: V18 | BB37: 0 | BC37: 14.245 | BD37: =+IF(BC37="",BD36+BI37,BD36+BC37) -> 329.585 | BE37: V5 | BF37: V5 | BG37: V3 | BH37: 15 | BI37: 20 | BJ37: 335 | BK37: V5 | BL37: 2 | BN37: 0 | BQ37: =IF(LEFT(ScheduleSetup!$P$6,4)="Soyb",BG37,BF37) -> V5 | BR37: 50 | IQ37: Gilford | IT37: DryBeans21
A38: 2020-06-16 | B38: 20.61666667 | C38: 0 | E38: 0.193 | F38: 0.51 | G38: 0.09588 | H38: =IF($B38<=6,$B38*$B$12,IF($B38<=12,6*$B$12+($B38-6)*$C$12,IF($B38<=18,6*$B$12+6*$C$12+($B38-12)*$D$12,IF($B38<=24,6*$B$12+6*$C$12+6*$D$12+($B38-18)*$E$12,IF($B38<=30,6*$B$12+6*$C$12+6*$D$12+6*$E$12+($B38-24)*$F$12,IF($B38<=36,6*$B$12+6*$C$12+6*$D$12+6*$E$12+6*$F$12+($B38-30)*$G$12,IF($B38<=42,6*$B$12+6*$C$12+6*$D$12+6*$E$12+6*$F$12+6*$G$12+($B38-36)*$H$12,IF($B38<=48,6*$B$12+6*$C$12+6*$D$12+6*$E$12+6*$F$12+6*$G$12+6*$H$12+(F38-42)*$I$12,"rootdepth>48in")))))))) -> 1.999416667 | I38: 1.456724973 | J38: 72.85749877 | K38: 0 | L38: =IF(Caluations!$J27<0,0,Caluations!$J27) -> 0.5426916933 | N38: V5 | O38: =IF(AND($E38="",Caluations!$F27<8),$R38*$F38,0) -> 0 | P38: 348.73 | Q38: =IF(LEFT(ScheduleSetup!$P$6,4)="Corn",BF38,BG38) -> V5 | AN38: 0.09588 | AO38: 1 | AP38: 0.09588 | AQ38: 0 | AR38: 212.3355876 | AT38: R1 | AU38: =IF((OR($E37<>"" )), Calculations2!$AV38,"") -> 1.456724973 | AV38: 1.456724973 | AX38: =IF(AND(Caluations!$F27>5,Caluations!$F27<>FALSE),"",IF($E38="",($I38/$H38)*100,$I38/$H38*100)) -> 72.85749877 | AZ38: 1061.914894 | BA38: R1 | BB38: 0 | BC38: 19.145 | BD38: =+IF(BC38="",BD37+BI38,BD37+BC38) -> 348.73 | BE38: V5 | BF38: V5 | BG38: V3 | BH38: 15 | BI38: 20 | BJ38: 355 | BK38: V5 | BL38: 3 | BN38: 0 | BQ38: =IF(LEFT(ScheduleSetup!$P$6,4)="Soyb",BG38,BF38) -> V5 | BR38: 50 | IQ38: Gladwin | IT38: DryBeans24
A39: 2020-06-17 | B39: 21 | C39: 0 | E39: 0.209 | F39: 0.54 | G39: 0.10422 | H39: 2.055 | I39: 1.394192473 | J39: 67.84391598 | K39: 0 | L39: =IF(Caluations!$J28<0,0,Caluations!$J28) -> 0.6608075266 | N39: V5 | O39: =IF(AND($E39="",Caluations!$F28<8),$R39*$F39,0) -> 0 | P39: 369.165 | Q39: =IF(LEFT(ScheduleSetup!$P$6,4)="Corn",BF39,BG39) -> V5 | AN39: 0.10422 | AO39: 1 | AP39: 0.10422 | AQ39: 0 | AR39: 212.3355876 | AT39: R2 | AU39: =IF((OR($E38<>"" )), Calculations2!$AV39,"") -> 1.394192473 | AV39: 1.394192473 | AX39: =IF(AND(Caluations!$F28>5,Caluations!$F28<>FALSE),"",IF($E39="",($I39/$H39)*100,$I39/$H39*100)) -> 67.84391598 | AZ39: 1343.351064 | BA39: R2 | BB39: 0 | BC39: 20.435 | BD39: 369.165 | BE39: V5 | BF39: V5 | BG39: V3 | BH39: 15 | BI39: 20 | BJ39: 375 | BK39: V6 | BL39: 4 | BN39: 0 | BQ39: =IF(LEFT(ScheduleSetup!$P$6,4)="Soyb",BG39,BF39) -> V5 | BR39: 50 | IQ39: Glendora | IT39: DryOnion12
A40: 2020-06-18 | B40: 21.58 | C40: 0 | E40: 0.174 | F40: 0.55 | G40: 0.11495 | H40: 2.1391 | I40: 1.342317473 | J40: 62.7515064 | K40: 0 | L40: =IF(Caluations!$J29<0,0,Caluations!$J29) -> 0.7967825266 | N40: V6 | O40: =IF(AND($E40="",Caluations!$F29<8),$R40*$F40,0) -> 0 | P40: 389.47 | Q40: =IF(LEFT(ScheduleSetup!$P$6,4)="Corn",BF40,BG40) -> V6 | AN40: 0.11495 | AO40: 1 | AP40: 0.11495 | AQ40: 0 | AR40: 212.3355876 | AT40: R3 | AU40: =IF((OR($E39<>"" )), Calculations2!$AV40,"") -> 1.342317473 | AV40: 1.342317473 | AX40: =IF(AND(Caluations!$F29>5,Caluations!$F29<>FALSE),"",IF($E40="",($I40/$H40)*100,$I40/$H40*100)) -> 62.7515064 | AZ40: 1573.617021 | BA40: R3 | BB40: 0 | BC40: 20.305 | BD40: 389.47 | BE40: V6 | BF40: V6 | BG40: V3 | BH40: 16 | BI40: 20.5 | BJ40: 395.5 | BK40: V6 | BL40: 1 | BN40: 0 | BQ40: =IF(LEFT(ScheduleSetup!$P$6,4)="Soyb",BG40,BF40) -> V6 | BR40: 50 | IQ40: Granby | IT40: DryOnion15
A41: 2020-06-19 | B41: 22.73 | C41: 0 | E41: 0.184 | F41: 0.64 | G41: 0.11136 | H41: 2.30585 | I41: 1.356019973 | J41: 58.80781375 | K41: 0 | L41: =IF(Caluations!$J30<0,0,Caluations!$J30) -> 0.9498300266 | N41: V6 | O41: =IF(AND($E41="",Caluations!$F30<8),$R41*$F41,0) -> 0 | P41: 411.635 | Q41: =IF(LEFT(ScheduleSetup!$P$6,4)="Corn",BF41,BG41) -> V6 | AN41: 0.11136 | AO41: 1 | AP41: 0.11136 | AQ41: 0 | AR41: 212.3355876 | AT41: R4 | AU41: =IF((OR($E40<>"" )), Calculations2!$AV41,"") -> 1.356019973 | AV41: 1.356019973 | AX41: =IF(AND(Caluations!$F30>5,Caluations!$F30<>FALSE),"",IF($E41="",($I41/$H41)*100,$I41/$H41*100)) -> 58.80781375 | AZ41: 1803.882979 | BA41: R4 | BB41: 0 | BC41: 22.165 | BD41: 411.635 | BE41: V6 | BF41: V6 | BG41: V3 | BH41: 16 | BI41: 20.5 | BJ41: 416 | BK41: V6 | BL41: 2 | BN41: 0 | BQ41: =IF(LEFT(ScheduleSetup!$P$6,4)="Soyb",BG41,BF41) -> V6 | BR41: 50 | IQ41: Grayling | IT41: DryOnion18
A42: 2020-06-20 | B42: 23.307 | C42: 0 | E42: 0.193 | F42: 0.64 | G42: 0.11776 | H42: 2.389515 | I42: 1.301008723 | J42: 54.44656022 | K42: 0 | L42: =IF(Caluations!$J31<0,0,Caluations!$J31) -> 1.088506277 | N42: V7 | O42: =IF(AND($E42="",Caluations!$F31<8),$R42*$F42,0) -> 0 | P42: 436.025 | Q42: =IF(LEFT(ScheduleSetup!$P$6,4)="Corn",BF42,BG42) -> V7 | AN42: 0.11776 | AO42: 1 | AP42: 0.11776 | AQ42: 0 | AR42: 212.3355876 | AT42: R5 | AU42: =IF((OR($E41<>"" )), Calculations2!$AV42,"") -> 1.301008723 | AV42: 1.301008723 | AX42: =IF(AND(Caluations!$F31>5,Caluations!$F31<>FALSE),"",IF($E42="",($I42/$H42)*100,$I42/$H42*100)) -> 54.44656022 | AZ42: 2034.148936 | BA42: R5 | BB42: 0 | BC42: 24.39 | BD42: 436.025 | BE42: V7 | BF42: V7 | BG42: V3 | BH42: 16 | BI42: 20.5 | BJ42: 436.5 | BK42: V7 | BL42: 3 | BN42: 0 | BQ42: =IF(LEFT(ScheduleSetup!$P$6,4)="Soyb",BG42,BF42) -> V7 | BR42: 50 | IQ42: Greenwood | IT42: Grapes
A43: 2020-06-21 | B43: 23.8835 | C43: 1 | E43: 0.094 | F43: 0.69 | G43: 0.13317 | H43: 2.4731075 | I43: 2.230533098 | J43: 90.19151405 | K43: 0 | L43: =IF(Caluations!$J32<0,0,Caluations!$J32) -> 0.2425744016 | N43: V7 | O43: =IF(AND($E43="",Caluations!$F32<8),$R43*$F43,0) -> 0 | P43: 459.83 | Q43: =IF(LEFT(ScheduleSetup!$P$6,4)="Corn",BF43,BG43) -> V7 | AN43: 0.13317 | AO43: 1 | AP43: 0.13317 | AQ43: 0 | AR43: 212.3355876 | AT43: R6 | AU43: =IF((OR($E42<>"" )), Calculations2!$AV43,"") -> 2.230533098 | AV43: 2.230533098 | AX43: =IF(AND(Caluations!$F32>5,Caluations!$F32<>FALSE),"",IF($E43="",($I43/$H43)*100,$I43/$H43*100)) -> 90.19151405 | AZ43: 2290 | BA43: R6 | BB43: 0 | BC43: 23.805 | BD43: 459.83 | BE43: V7 | BF43: V7 | BG43: V4 | BH43: 16 | BI43: 21 | BJ43: 457.5 | BK43: V7 | BL43: 4 | BN43: 0 | BQ43: =IF(LEFT(ScheduleSetup!$P$6,4)="Soyb",BG43,BF43) -> V7 | BR43: 50 | IQ43: Hillsdale | IT43: Grass12
A44: 2020-06-22 | B44: 24.46 | C44: 0.23 | E44: 0.157 | F44: 0.74 | G44: 0.06956 | H44: 2.5567 | I44: 2.453667473 | J44: 95.97009713 | K44: 0 | L44: =IF(Caluations!$J33<0,0,Caluations!$J33) -> 0.1030325266 | N44: V7 | O44: =IF(AND($E44="",Caluations!$F33<8),$R44*$F44,0) -> 0 | P44: 484.075 | Q44: =IF(LEFT(ScheduleSetup!$P$6,4)="Corn",BF44,BG44) -> V7 | AN44: 0.06956 | AO44: 1 | AP44: 0.06956 | AQ44: 0 | AR44: 212.3355876 | AU44: =IF((OR($E43<>"" )), Calculations2!$AV44,"") -> 2.453667473 | AV44: 2.453667473 | AX44: =IF(AND(Caluations!$F33>5,Caluations!$F33<>FALSE),"",IF($E44="",($I44/$H44)*100,$I44/$H44*100)) -> 95.97009713 | BB44: 0 | BC44: 24.245 | BD44: 484.075 | BE44: V7 | BF44: V7 | BG44: V4 | BH44: 17 | BI44: 21 | BJ44: 478.5 | BK44: V7 | BL44: 1 | BN44: 0 | BQ44: =IF(LEFT(ScheduleSetup!$P$6,4)="Soyb",BG44,BF44) -> V7 | BR44: 50 | IQ44: Houghton | IT44: Grass18
A45: 2020-06-23 | B45: 25.038 | C45: 0.43 | E45: 0.106 | F45: 0.74 | G45: 0.11618 | H45: 2.64051 | I45: 2.7197253 | J45: 103 | K45: 0.04776217336 | L45: =IF(Caluations!$J34<0,0,Caluations!$J34) -> 0 | N45: V8 | O45: =IF(AND($E45="",Caluations!$F34<8),$R45*$F45,0) -> 0 | P45: 499.725 | Q45: =IF(LEFT(ScheduleSetup!$P$6,4)="Corn",BF45,BG45) -> V8 | AN45: 0.11618 | AO45: 1 | AP45: 0.11618 | AQ45: 0 | AR45: 212.3355876 | AU45: =IF((OR($E44<>"" )), Calculations2!$AV45,"") -> 2.7197253 | AV45: 2.7197253 | AX45: =IF(AND(Caluations!$F34>5,Caluations!$F34<>FALSE),"",IF($E45="",($I45/$H45)*100,$I45/$H45*100)) -> 103 | BB45: 0 | BC45: 15.65 | BD45: 499.725 | BE45: V8 | BF45: V8 | BG45: V4 | BH45: 17 | BI45: 21 | BJ45: 499.5 | BK45: V8 | BL45: 2 | BN45: 0 | BQ45: =IF(LEFT(ScheduleSetup!$P$6,4)="Soyb",BG45,BF45) -> V8 | BR45: 50 | IQ45: Iosca | IT45: Grass24
A46: 2020-06-24 | B46: 25.422 | C46: 0 | E46: 0.162 | F46: 0.7766666667 | G46: 0.08232666667 | H46: 2.69619 | I46: 2.679158633 | J46: 99.36831727 | K46: 0 | L46: =IF(Caluations!$J35<0,0,Caluations!$J35) -> 0.01703136667 | N46: V8 | O46: =IF(AND($E46="",Caluations!$F35<8),$R46*$F46,0) -> 0 | P46: 515.285 | Q46: =IF(LEFT(ScheduleSetup!$P$6,4)="Corn",BF46,BG46) -> V8 | AN46: 0.08232666667 | AO46: 1 | AP46: 0.08232666667 | AQ46: 0 | AR46: 212.3355876 | AU46: =IF((OR($E45<>"" )), Calculations2!$AV46,"") -> 2.679158633 | AV46: 2.679158633 | AX46: =IF(AND(Caluations!$F35>5,Caluations!$F35<>FALSE),"",IF($E46="",($I46/$H46)*100,$I46/$H46*100)) -> 99.36831727 | BB46: 0 | BC46: 15.56 | BD46: 515.285 | BE46: V8 | BF46: V8 | BG46: V4 | BH46: 17 | BI46: 21 | BJ46: 520.5 | BK46: V8 | BL46: 3 | BN46: 0 | BQ46: =IF(LEFT(ScheduleSetup!$P$6,4)="Soyb",BG46,BF46) -> V8 | BR46: 50 | IQ46: Isabella | IT46: GreenBeans
A47: 2020-06-25 | B47: 25.806 | C47: 0 | D47: 0.4 | E47: 0.175 | F47: 0.8133333333 | G47: 0.13176 | H47: 2.75187 | I47: 2.8344261 | J47: 103 | K47: 0.1129725333 | L47: =IF(Caluations!$J36<0,0,Caluations!$J36) -> 0 | N47: V8 | O47: =IF(AND($E47="",Caluations!$F36<8),$R47*$F47,0) -> 0 | P47: 531.64 | Q47: =IF(LEFT(ScheduleSetup!$P$6,4)="Corn",BF47,BG47) -> V8 | AN47: 0.13176 | AO47: 1 | AP47: 0.13176 | AQ47: 0 | AR47: 212.3355876 | AU47: =IF((OR($E46<>"" )), Calculations2!$AV47,"") -> 2.8344261 | AV47: 2.8344261 | AX47: =IF(AND(Caluations!$F36>5,Caluations!$F36<>FALSE),"",IF($E47="",($I47/$H47)*100,$I47/$H47*100)) -> 103 | BB47: 0 | BC47: 16.355 | BD47: 531.64 | BE47: V8 | BF47: V8 | BG47: V4 | BH47: 18 | BI47: 21 | BJ47: 541.5 | BK47: V8 | BL47: 1 | BN47: 0 | BQ47: =IF(LEFT(ScheduleSetup!$P$6,4)="Soyb",BG47,BF47) -> V8 | BR47: 50 | IQ47: Island lake | IT47: GreenOnion12
A48: 2020-06-26 | B48: 26.19 | C48: 0.8 | E48: 0.094 | F48: 0.85 | G48: 0.14875 | H48: 2.80755 | I48: 2.8917765 | J48: 103 | K48: 0.5938996 | L48: =IF(Caluations!$J37<0,0,Caluations!$J37) -> 0 | N48: V8 | O48: =IF(AND($E48="",Caluations!$F37<8),$R48*$F48,0) -> 0 | P48: 550.145 | Q48: =IF(LEFT(ScheduleSetup!$P$6,4)="Corn",BF48,BG48) -> V8 | AN48: 0.14875 | AO48: 1 | AP48: 0.14875 | AQ48: 0 | AR48: 212.3355876 | AU48: =IF((OR($E47<>"" )), Calculations2!$AV48,"") -> 2.8917765 | AV48: 2.8917765 | AX48: =IF(AND(Caluations!$F37>5,Caluations!$F37<>FALSE),"",IF($E48="",($I48/$H48)*100,$I48/$H48*100)) -> 103 | BB48: 0 | BC48: 18.505 | BD48: 550.145 | BE48: V8 | BF48: V8 | BG48: V4 | BH48: 18 | BI48: 21 | BJ48: 562.5 | BK48: V9 | BL48: 2 | BN48: 0 | BQ48: =IF(LEFT(ScheduleSetup!$P$6,4)="Soyb",BG48,BF48) -> V8 | BR48: 50 | IQ48: Ithaca | IT48: GreenOnion18
A49: 2020-06-27 | B49: 26.77 | C49: 0.11 | E49: 0.147 | F49: 0.85 | G49: 0.0799 | H49: 2.89165 | I49: 2.9783995 | J49: 103 | K49: 0 | L49: =IF(Caluations!$J38<0,0,Caluations!$J38) -> 0 | N49: V9 | O49: =IF(AND($E49="",Caluations!$F38<8),$R49*$F49,0) -> 0 | P49: 575.965 | Q49: =IF(LEFT(ScheduleSetup!$P$6,4)="Corn",BF49,BG49) -> V9 | AN49: 0.0799 | AO49: 1 | AP49: 0.0799 | AQ49: 0 | AR49: 212.3355876 | AU49: =IF((OR($E48<>"" )), Calculations2!$AV49,"") -> 2.9783995 | AV49: 2.9783995 | AX49: =IF(AND(Caluations!$F38>5,Caluations!$F38<>FALSE),"",IF($E49="",($I49/$H49)*100,$I49/$H49*100)) -> 103 | BB49: 0 | BC49: 25.82 | BD49: 575.965 | BE49: V9 | BF49: V9 | BG49: V5 | BH49: 18 | BI49: 21 | BJ49: 583.5 | BK49: V9 | BL49: 3 | BN49: 0 | BQ49: =IF(LEFT(ScheduleSetup!$P$6,4)="Soyb",BG49,BF49) -> V9 | BR49: 50 | BV49: 19.16 | IQ49: Kalamazoo | IT49: GreenOnion24
A50: 2020-06-28 | B50: 27.923 | C50: 0 | E50: 0.195 | F50: 0.99 | G50: 0.14553 | H50: 3.058835 | I50: 2.95825825 | J50: 96.71192627 | K50: 0 | L50: =IF(Caluations!$J39<0,0,Caluations!$J39) -> 0.10057675 | N50: V9 | O50: =IF(AND($E50="",Caluations!$F39<8),$R50*$F50,0) -> 0 | P50: 601.255 | Q50: =IF(LEFT(ScheduleSetup!$P$6,4)="Corn",BF50,BG50) -> V9 | AN50: 0.14553 | AO50: 1 | AP50: 0.14553 | AQ50: 0 | AR50: 212.3355876 | AU50: =IF((OR($E49<>"" )), Calculations2!$AV50,"") -> 2.95825825 | AV50: 2.95825825 | AX50: =IF(AND(Caluations!$F39>5,Caluations!$F39<>FALSE),"",IF($E50="",($I50/$H50)*100,$I50/$H50*100)) -> 96.71192627 | BB50: 0 | BC50: 25.29 | BD50: 601.255 | BE50: V9 | BF50: V9 | BG50: V5 | BH50: 19 | BI50: 22 | BJ50: 605.5 | BK50: V9 | BL50: 4 | BN50: 0 | BQ50: =IF(LEFT(ScheduleSetup!$P$6,4)="Soyb",BG50,BF50) -> V9 | BR50: 50 | BW50: 17.48 | IQ50: Kawkawlin | IT50: MuskMelon12
A51: 2020-06-29 | B51: 28.5 | C51: 0 | E51: 0.187 | F51: 1 | G51: 0.195 | H51: 3.1425 | I51: 2.826007 | J51: 89.92862371 | K51: 0 | L51: =IF(Caluations!$J40<0,0,Caluations!$J40) -> 0.316493 | N51: V10 | O51: =IF(AND($E51="",Caluations!$F40<8),$R51*$F51,0) -> 0 | P51: 626.67 | Q51: =IF(LEFT(ScheduleSetup!$P$6,4)="Corn",BF51,BG51) -> V10 | AN51: 0.195 | AO51: 1 | AP51: 0.195 | AQ51: 0 | AR51: 212.3355876 | AU51: =IF((OR($E50<>"" )), Calculations2!$AV51,"") -> 2.826007 | AV51: 2.826007 | AX51: =IF(AND(Caluations!$F40>5,Caluations!$F40<>FALSE),"",IF($E51="",($I51/$H51)*100,$I51/$H51*100)) -> 89.92862371 | BB51: 0 | BC51: 25.415 | BD51: 626.67 | BE51: V10 | BF51: V10 | BG51: V5 | BH51: 19 | BI51: 22 | BJ51: 627.5 | BK51: V10 | BL51: 1 | BN51: 0 | BQ51: =IF(LEFT(ScheduleSetup!$P$6,4)="Soyb",BG51,BF51) -> V10 | BR51: 50 | BX51: 7.775 | IQ51: Kerston | IT51: MuskMelon15
A52: =1+A51 -> 2020-06-30 | B52: 29.075 | C52: 0 | E52: 0.201 | F52: 1.025 | G52: 0.191675 | H52: 3.225875 | I52: 2.69686325 | J52: 83.60098423 | K52: =IF(IF(OR($J52<103,$E51=""),0,$C52+$D52+$I51-$G52-($H52*1.03))>0, IF(OR($J52<103,$E51=""),0,$C52+$D52+$I51-$G52-($H52*1.03)),0) -> 0 | L52: =IF(Caluations!$J41<0,0,Caluations!$J41) -> 0.52901175 | N52: V10 | O52: =IF(AND($E52="",Caluations!$F41<8),$R52*$F52,0) -> 0 | P52: 652.895 | Q52: =IF(LEFT(ScheduleSetup!$P$6,4)="Corn",BF52,BG52) -> V10 | AN52: =+$F52*$E51 -> 0.191675 | AO52: 1 | AP52: 0.191675 | AQ52: 0 | AR52: 212.3355876 | AU52: =IF((OR($E51<>"" )), Calculations2!$AV52,"") -> 2.69686325 | AV52: 2.69686325 | AX52: =IF(AND(Caluations!$F41>5,Caluations!$F41<>FALSE),"",IF($E52="",($I52/$H52)*100,$I52/$H52*100)) -> 83.60098423 | BB52: 0 | BC52: 26.225 | BD52: 652.895 | BE52: V10 | BF52: V10 | BG52: V5 | BH52: 19 | BI52: 22 | BJ52: 649.5 | BK52: V10 | BL52: 2 | BN52: 0 | BQ52: =IF(LEFT(ScheduleSetup!$P$6,4)="Soyb",BG52,BF52) -> V10 | BR52: 50 | BY52: 13.295 | IQ52: Kilmanagh | IT52: MuskMelon18
A53: 2020-07-01 | B53: 29.65 | C53: 0 | E53: 0.199 | F53: 1.05 | G53: 0.21105 | H53: 3.30925 | I53: 2.5483445 | J53: 77.00670847 | K53: 0 | L53: =IF(Caluations!$J42<0,0,Caluations!$J42) -> 0.7609055 | N53: V10 | O53: =IF(AND($E53="",Caluations!$F42<8),$R53*$F53,0) -> 0 | P53: 675.955 | Q53: =IF(LEFT(ScheduleSetup!$P$6,4)="Corn",BF53,BG53) -> V10 | AN53: 0.21105 | AO53: 1 | AP53: 0.21105 | AQ53: 0 | AR53: 212.3355876 | AU53: =IF((OR($E52<>"" )), Calculations2!$AV53,"") -> 2.5483445 | AV53: 2.5483445 | AX53: =IF(AND(Caluations!$F42>5,Caluations!$F42<>FALSE),"",IF($E53="",($I53/$H53)*100,$I53/$H53*100)) -> 77.00670847 | BB53: 0 | BC53: 23.06 | BD53: 675.955 | BE53: V10 | BF53: V10 | BG53: V5 | BH53: 19 | BI53: 22 | BJ53: 671.5 | BK53: V10 | BL53: 3 | BN53: 0 | BQ53: =IF(LEFT(ScheduleSetup!$P$6,4)="Soyb",BG53,BF53) -> V10 | BR53: 50 | BZ53: 17.835 | IQ53: Lapeer | IT53: MuskMelon36
A54: 2020-07-02 | B54: 30.23 | C54: 0 | E54: 0.193 | F54: 1.05 | G54: 0.20895 | H54: 3.3807 | I54: 2.392982 | J54: 70.78362469 | K54: 0 | L54: =IF(Caluations!$J43<0,0,Caluations!$J43) -> 0.987718 | N54: V11 | O54: =IF(AND($E54="",Caluations!$F43<8),$R54*$F54,0) -> 0 | P54: 699.85 | Q54: =IF(LEFT(ScheduleSetup!$P$6,4)="Corn",BF54,BG54) -> V11 | AN54: 0.20895 | AO54: 1 | AP54: 0.20895 | AQ54: 0 | AR54: 212.3355876 | AU54: =IF((OR($E53<>"" )), Calculations2!$AV54,"") -> 2.392982 | AV54: 2.392982 | AX54: =IF(AND(Caluations!$F43>5,Caluations!$F43<>FALSE),"",IF($E54="",($I54/$H54)*100,$I54/$H54*100)) -> 70.78362469 | BB54: 0 | BC54: 23.895 | BD54: 699.85 | BE54: V11 | BF54: V11 | BG54: V5 | BH54: 20 | BI54: 22 | BJ54: 693.5 | BK54: V11 | BL54: 1 | BN54: 0 | BQ54: =IF(LEFT(ScheduleSetup!$P$6,4)="Soyb",BG54,BF54) -> V11 | BR54: 50 | CA54: 26.78 | IQ54: Leoni | IT54: Peaches
A55: 2020-07-03 | B55: 31.38 | C55: 0 | E55: 0.196 | F55: 1.1 | G55: 0.2123 | H55: 3.4842 | I55: 2.258307 | J55: 64.81565352 | K55: 0 | L55: =IF(Caluations!$J44<0,0,Caluations!$J44) -> 1.225893 | N55: V11 | O55: =IF(AND($E55="",Caluations!$F44<8),$R55*$F55,0) -> 0 | P55: 724.455 | Q55: =IF(LEFT(ScheduleSetup!$P$6,4)="Corn",BF55,BG55) -> V11 | AN55: 0.2123 | AO55: 1 | AP55: 0.2123 | AQ55: 0 | AR55: 212.3355876 | AU55: =IF((OR($E54<>"" )), Calculations2!$AV55,"") -> 2.258307 | AV55: 2.258307 | AX55: =IF(AND(Caluations!$F44>5,Caluations!$F44<>FALSE),"",IF($E55="",($I55/$H55)*100,$I55/$H55*100)) -> 64.81565352 | BB55: 0 | BC55: 24.605 | BD55: 724.455 | BE55: V11 | BF55: V11 | BG55: V6 | BH55: 20 | BI55: 22 | BJ55: 715.5 | BK55: V11 | BL55: 2 | BN55: 0 | BQ55: =IF(LEFT(ScheduleSetup!$P$6,4)="Soyb",BG55,BF55) -> V11 | BR55: 50 | CB55: 26.775 | IQ55: Locke | IT55: Pears
A56: 2020-07-04 | B56: 31.96 | C56: 0 | E56: 0.177 | F56: 1.1 | G56: 0.2156 | H56: 3.5364 | I56: 2.081857 | J56: 58.86938695 | K56: 0 | L56: =IF(Caluations!$J45<0,0,Caluations!$J45) -> 1.454543 | N56: V12 | O56: =IF(AND($E56="",Caluations!$F45<8),$R56*$F56,0) -> 0 | P56: 750.25 | Q56: =IF(LEFT(ScheduleSetup!$P$6,4)="Corn",BF56,BG56) -> V12 | AN56: 0.2156 | AO56: 1 | AP56: 0.2156 | AQ56: 0 | AR56: 212.3355876 | AU56: =IF((OR($E55<>"" )), Calculations2!$AV56,"") -> 2.081857 | AV56: 2.081857 | AX56: =IF(AND(Caluations!$F45>5,Caluations!$F45<>FALSE),"",IF($E56="",($I56/$H56)*100,$I56/$H56*100)) -> 58.86938695 | BB56: 0 | BC56: 25.795 | BD56: 750.25 | BE56: V12 | BF56: V12 | BG56: V6 | BH56: 20 | BI56: 22 | BJ56: 737.5 | BK56: V12 | BL56: 3 | BN56: 0 | BQ56: =IF(LEFT(ScheduleSetup!$P$6,4)="Soyb",BG56,BF56) -> V12 | BR56: 50 | CC56: 22.045 | IQ56: Londo | IT56: Peas
A57: 2020-07-05 | B57: 33.69 | C57: 0 | E57: 0.196 | F57: 1.15 | G57: 0.20355 | H57: 3.6921 | I57: 1.995082 | J57: 54.03651039 | K57: 0 | L57: =IF(Caluations!$J46<0,0,Caluations!$J46) -> 1.697018 | N57: V13 | O57: =IF(AND($E57="",Caluations!$F46<8),$R57*$F57,0) -> 0 | P57: 775.11 | Q57: =IF(LEFT(ScheduleSetup!$P$6,4)="Corn",BF57,BG57) -> V13 | AN57: 0.20355 | AO57: 1 | AP57: 0.20355 | AQ57: 0 | AR57: 212.3355876 | AU57: =IF((OR($E56<>"" )), Calculations2!$AV57,"") -> 1.995082 | AV57: 1.995082 | AX57: =IF(AND(Caluations!$F46>5,Caluations!$F46<>FALSE),"",IF($E57="",($I57/$H57)*100,$I57/$H57*100)) -> 54.03651039 | BB57: 0 | BC57: 24.86 | BD57: 775.11 | BE57: V13 | BF57: V13 | BG57: V6 | BH57: 20 | BI57: 22 | BJ57: 759.5 | BK57: V12 | BL57: 1 | BN57: 0 | BQ57: =IF(LEFT(ScheduleSetup!$P$6,4)="Soyb",BG57,BF57) -> V13 | BR57: 50 | CD57: 20.36 | IQ57: Loxley | IT57: Plums
A58: 2020-07-06 | B58: 34.85 | C58: 0 | D58: 0.6 | E58: 0.206 | F58: 1.2 | G58: 0.2352 | H58: 3.7965 | I58: 2.438182 | J58: 64.2218359 | K58: 0 | L58: =IF(Caluations!$J47<0,0,Caluations!$J47) -> 1.358318 | N58: V13 | O58: =IF(AND($E58="",Caluations!$F47<8),$R58*$F58,0) -> 0 | P58: 800.695 | Q58: =IF(LEFT(ScheduleSetup!$P$6,4)="Corn",BF58,BG58) -> V13 | AN58: 0.2352 | AO58: 1 | AP58: 0.2352 | AQ58: 0 | AR58: 212.3355876 | AU58: =IF((OR($E57<>"" )), Calculations2!$AV58,"") -> 2.438182 | AV58: 2.438182 | AX58: =IF(AND(Caluations!$F47>5,Caluations!$F47<>FALSE),"",IF($E58="",($I58/$H58)*100,$I58/$H58*100)) -> 64.2218359 | BB58: 0 | BC58: 25.585 | BD58: 800.695 | BE58: V13 | BF58: V13 | BG58: V6 | BH58: 20 | BI58: 22 | BJ58: 781.5 | BK58: V13 | BL58: 2 | BN58: 0 | BQ58: =IF(LEFT(ScheduleSetup!$P$6,4)="Soyb",BG58,BF58) -> V13 | BR58: 50 | CE58: 17.84 | IQ58: Mancelona | IT58: Potatoes12
A59: 2020-07-07 | B59: 35.42 | C59: 0 | E59: 0.178 | F59: 1.2 | G59: 0.2472 | H59: 3.8478 | I59: 2.229457 | J59: 57.94108322 | K59: 0 | L59: =IF(Caluations!$J48<0,0,Caluations!$J48) -> 1.618343 | N59: V14 | O59: =IF(AND($E59="",Caluations!$F48<8),$R59*$F59,0) -> 0 | P59: 825.94 | Q59: =IF(LEFT(ScheduleSetup!$P$6,4)="Corn",BF59,BG59) -> V14 | AN59: 0.2472 | AO59: 1 | AP59: 0.2472 | AQ59: 0 | AR59: 212.3355876 | AU59: =IF((OR($E58<>"" )), Calculations2!$AV59,"") -> 2.229457 | AV59: =MAX(IF(($I58+$C59+$D59-$G59)+(($H59-$H58)*$B$13/100)>($H59*1.03),($H59*1.03),($I58+$C59+$D59-$G59-O59)+(($H59-$H58)*$B$13/100)),0) -> 2.229457 | AX59: =IF(AND(Caluations!$F48>5,Caluations!$F48<>FALSE),"",IF($E59="",($I59/$H59)*100,$I59/$H59*100)) -> 57.94108322 | BB59: 0 | BC59: 25.245 | BD59: 825.94 | BE59: V14 | BF59: V14 | BG59: V6 | BH59: 20.5 | BI59: 22 | BJ59: 803.5 | BK59: V13 | BL59: 3 | BN59: 0 | BQ59: =IF(LEFT(ScheduleSetup!$P$6,4)="Soyb",BG59,BF59) -> V14 | BR59: 50 | CF59: 19.27 | IQ59: Marlette | IT59: Potatoes18
A60: 2020-07-08 | B60: 36 | C60: 0 | E60: 0.187 | F60: 1.2 | G60: 0.2136 | H60: 3.9 | I60: 2.055007 | J60: 52.69248718 | K60: 0 | L60: =IF(Caluations!$J49<0,0,Caluations!$J49) -> 1.844993 | N60: V14 | O60: =IF(AND($E60="",Caluations!$F49<8),$R60*$F60,0) -> 0 | P60: 852.85 | Q60: =IF(LEFT(ScheduleSetup!$P$6,4)="Corn",BF60,BG60) -> V14 | AN60: 0.2136 | AO60: 1 | AP60: 0.2136 | AQ60: 0 | AR60: 212.3355876 | AU60: =IF((OR($E59<>"" )), Calculations2!$AV60,"") -> 2.055007 | AV60: =MAX(IF(($I59+$C60+$D60-$G60)+(($H60-$H59)*$B$13/100)>($H60*1.03),($H60*1.03),($I59+$C60+$D60-$G60-O60)+(($H60-$H59)*$B$13/100)),0) -> 2.055007 | AX60: =IF(AND(Caluations!$F49>5,Caluations!$F49<>FALSE),"",IF($E60="",($I60/$H60)*100,$I60/$H60*100)) -> 52.69248718 | BB60: 0 | BC60: 26.91 | BD60: 852.85 | BE60: V14 | BF60: V14 | BG60: V6 | BH60: 20.5 | BI60: 22.5 | BJ60: 826 | BK60: V14 | BL60: 4 | BN60: 0 | BQ60: =IF(LEFT(ScheduleSetup!$P$6,4)="Soyb",BG60,BF60) -> V14 | BR60: 50 | CG60: 22.22 | IQ60: Matea | IT60: Potatoes24
A61: 2020-07-09 | B61: 36 | C61: 0 | E61: 0.21 | F61: 1.2 | G61: 0.2244 | H61: 3.9 | I61: 1.830607 | J61: 46.93864103 | K61: 0 | L61: =IF(Caluations!$J50<0,0,Caluations!$J50) -> 2.069393 | N61: V15 | O61: =IF(AND($E61="",Caluations!$F50<8),$R61*$F61,0) -> 0 | P61: 879.92 | Q61: =IF(LEFT(ScheduleSetup!$P$6,4)="Corn",BF61,BG61) -> V15 | AN61: 0.2244 | AO61: 1 | AP61: 0.2244 | AQ61: 0 | AR61: 212.3355876 | AU61: =IF((OR($E60<>"" )), Calculations2!$AV61,"") -> 1.830607 | AV61: 1.830607 | AX61: =IF(AND(Caluations!$F50>5,Caluations!$F50<>FALSE),"",IF($E61="",($I61/$H61)*100,$I61/$H61*100)) -> 46.93864103 | BB61: 0 | BC61: 27.07 | BD61: 879.92 | BE61: V15 | BF61: V15 | BG61: R1 | BH61: 20.5 | BI61: 22.5 | BJ61: 848.5 | BK61: V14 | BL61: 1 | BN61: 3.061358974 | BQ61: =IF(LEFT(ScheduleSetup!$P$6,4)="Soyb",BG61,BF61) -> V15 | BR61: 50 | CH61: 22.345 | IQ61: McBride | IT61: Soybeans12
A62: 2020-07-10 | B62: 36 | C62: 1 | E62: 0.068 | F62: 1.2 | G62: 0.2365707508 | H62: 3.9 | I62: 2.594036249 | J62: 66.51374998 | K62: 0 | L62: =IF(Caluations!$J51<0,0,Caluations!$J51) -> 1.305963751 | N62: V15 | O62: =IF(AND($E62="",Caluations!$F51<8),$R62*$F62,0) -> 0 | P62: 904.3 | Q62: =IF(LEFT(ScheduleSetup!$P$6,4)="Corn",BF62,BG62) -> V15 | AN62: 0.252 | AO62: 0.9387728205 | AP62: 0.2365707508 | AQ62: 3.825300205 | AR62: 208.5102874 | AU62: =IF((OR($E61<>"" )), Calculations2!$AV62,"") -> 2.594036249 | AV62: 2.594036249 | AX62: =IF(AND(Caluations!$F51>5,Caluations!$F51<>FALSE),"",IF($E62="",($I62/$H62)*100,$I62/$H62*100)) -> 66.51374998 | BB62: 0 | BC62: 24.38 | BD62: 904.3 | BE62: V15 | BF62: V15 | BG62: R1 | BH62: 21 | BI62: 22.5 | BJ62: 871 | BK62: V15 | BL62: 2 | BN62: 0 | BQ62: =IF(LEFT(ScheduleSetup!$P$6,4)="Soyb",BG62,BF62) -> V15 | BR62: 50 | CI62: 22.17 | IQ62: McBride | IT62: Soybeans18
A63: 2020-07-11 | B63: 36 | C63: 0 | E63: 0.181 | F63: 1.2 | G63: 0.0816 | H63: 3.9 | I63: 2.512436249 | J63: 64.42144229 | K63: 0 | L63: =IF(Caluations!$J52<0,0,Caluations!$J52) -> 1.387563751 | N63: V16 | O63: =IF(AND($E63="",Caluations!$F52<8),$R63*$F63,0) -> 0 | P63: 928.015 | Q63: =IF(LEFT(ScheduleSetup!$P$6,4)="Corn",BF63,BG63) -> V16 | AN63: 0.0816 | AO63: 1 | AP63: 0.0816 | AQ63: 0 | AR63: 208.5102874 | AU63: =IF((OR($E62<>"" )), Calculations2!$AV63,"") -> 2.512436249 | AV63: 2.512436249 | AX63: =IF(AND(Caluations!$F52>5,Caluations!$F52<>FALSE),"",IF($E63="",($I63/$H63)*100,$I63/$H63*100)) -> 64.42144229 | BB63: 0 | BC63: 23.715 | BD63: 928.015 | BE63: V16 | BF63: V16 | BG63: R1 | BH63: 21 | BI63: 22.5 | BJ63: 893.5 | BK63: V15 | BL63: 3 | BN63: 0 | BQ63: =IF(LEFT(ScheduleSetup!$P$6,4)="Soyb",BG63,BF63) -> V16 | BR63: 50 | CJ63: 21.365 | IQ63: Mecosta | IT63: Soybeans24
A64: 2020-07-12 | B64: 36 | C64: 0 | E64: 0.172 | F64: 1.2 | G64: 0.2172 | H64: 3.9 | I64: 2.295236249 | J64: 58.85221152 | K64: 0 | L64: =IF(Caluations!$J53<0,0,Caluations!$J53) -> 1.604763751 | N64: V16 | O64: =IF(AND($E64="",Caluations!$F53<8),$R64*$F64,0) -> 0 | P64: 950.375 | Q64: =IF(LEFT(ScheduleSetup!$P$6,4)="Corn",BF64,BG64) -> V16 | AN64: 0.2172 | AO64: 1 | AP64: 0.2172 | AQ64: 0 | AR64: 208.5102874 | AU64: =IF((OR($E63<>"" )), Calculations2!$AV64,"") -> 2.295236249 | AV64: 2.295236249 | AX64: =IF(AND(Caluations!$F53>5,Caluations!$F53<>FALSE),"",IF($E64="",($I64/$H64)*100,$I64/$H64*100)) -> 58.85221152 | BB64: 0 | BC64: 22.36 | BD64: 950.375 | BE64: V16 | BF64: V16 | BG64: R1 | BH64: 21 | BI64: 22.5 | BJ64: 916 | BK64: V15 | BL64: 1 | BN64: 0 | BQ64: =IF(LEFT(ScheduleSetup!$P$6,4)="Soyb",BG64,BF64) -> V16 | BR64: 50 | CK64: 22.58 | IQ64: Melita | IT64: Squash
A65: 2020-07-13 | B65: 36 | C65: 0 | E65: 0.164 | F65: 1.2 | G65: 0.2064 | H65: 3.9 | I65: 2.088836249 | J65: 53.55990383 | K65: 0 | L65: =IF(Caluations!$J54<0,0,Caluations!$J54) -> 1.811163751 | N65: V17 | O65: =IF(AND($E65="",Caluations!$F54<8),$R65*$F65,0) -> 0 | P65: 970.875 | Q65: =IF(LEFT(ScheduleSetup!$P$6,4)="Corn",BF65,BG65) -> V17 | AN65: 0.2064 | AO65: 1 | AP65: 0.2064 | AQ65: 0 | AR65: 208.5102874 | AU65: =IF((OR($E64<>"" )), Calculations2!$AV65,"") -> 2.088836249 | AV65: 2.088836249 | AX65: =IF(AND(Caluations!$F54>5,Caluations!$F54<>FALSE),"",IF($E65="",($I65/$H65)*100,$I65/$H65*100)) -> 53.55990383 | BB65: 0 | BC65: 20.5 | BD65: 970.875 | BE65: V17 | BF65: V17 | BG65: R1 | BH65: 21 | BI65: 22.5 | BJ65: 938.5 | BK65: V16 | BL65: 2 | BN65: 0 | BQ65: =IF(LEFT(ScheduleSetup!$P$6,4)="Soyb",BG65,BF65) -> V17 | BR65: 50 | CL65: 22.095 | IQ65: Montcalm | IT65: Strawberries
A66: 2020-07-14 | B66: 36 | C66: 0 | E66: 0.162 | F66: 1.2 | G66: 0.1968 | H66: 3.9 | I66: 1.892036249 | J66: 48.51374998 | K66: 0 | L66: =IF(Caluations!$J55<0,0,Caluations!$J55) -> 2.007963751 | N66: V17 | O66: =IF(AND($E66="",Caluations!$F55<8),$R66*$F66,0) -> 0 | P66: 991.36 | Q66: =IF(LEFT(ScheduleSetup!$P$6,4)="Corn",BF66,BG66) -> V17 | AN66: 0.1968 | AO66: 1 | AP66: 0.1968 | AQ66: 0 | AR66: 208.5102874 | AU66: =IF((OR($E65<>"" )), Calculations2!$AV66,"") -> 1.892036249 | AV66: 1.892036249 | AX66: =IF(AND(Caluations!$F55>5,Caluations!$F55<>FALSE),"",IF($E66="",($I66/$H66)*100,$I66/$H66*100)) -> 48.51374998 | BB66: 0 | BC66: 20.485 | BD66: 991.36 | BE66: V17 | BF66: V17 | BG66: R1 | BH66: 21 | BI66: 22.5 | BJ66: 961 | BK66: V16 | BL66: 1 | BN66: 1.48625002 | BQ66: =IF(LEFT(ScheduleSetup!$P$6,4)="Soyb",BG66,BF66) -> V17 | BR66: 50 | CM66: 24.685 | IQ66: Nadeau | IT66: TomatoesS12
A67: 2020-07-15 | B67: 36 | C67: 0 | E67: 0.16 | F67: 1.2 | G67: 0.1886214599 | H67: 3.9 | I67: 1.703414789 | J67: 43.67730229 | K67: 0 | L67: =IF(Caluations!$J56<0,0,Caluations!$J56) -> 2.196585211 | N67: V18 | O67: =IF(AND($E67="",Caluations!$F56<8),$R67*$F67,0) -> 0 | P67: 1014.93 | Q67: =IF(LEFT(ScheduleSetup!$P$6,4)="Corn",BF67,BG67) -> V18 | AN67: 0.1944 | AO67: 0.9702749996 | AP67: 0.1886214599 | AQ67: 3.894604999 | AR67: 204.6156824 | AU67: =IF((OR($E66<>"" )), Calculations2!$AV67,"") -> 1.703414789 | AV67: 1.703414789 | AX67: =IF(AND(Caluations!$F56>5,Caluations!$F56<>FALSE),"",IF($E67="",($I67/$H67)*100,$I67/$H67*100)) -> 43.67730229 | BB67: 0 | BC67: 23.57 | BD67: 1014.93 | BE67: V18 | BF67: V18 | BG67: R1 | BH67: 21 | BI67: 22.5 | BJ67: 983.5 | BK67: V17 | BL67: 2 | BN67: 6.32269771 | BQ67: =IF(LEFT(ScheduleSetup!$P$6,4)="Soyb",BG67,BF67) -> V18 | BR67: 50 | CN67: 27.98 | IQ67: Nester | IT67: TomatoesS18
A68: 2020-07-16 | B68: 36 | C68: 1.8 | E68: 0.072 | F68: 1.2 | G68: 0.1677208408 | H68: 3.9 | I68: 3.335693949 | J68: 85.53061406 | K68: 0 | L68: =IF(Caluations!$J57<0,0,Caluations!$J57) -> 0.5643060515 | N68: V18 | O68: =IF(AND($E68="",Caluations!$F57<8),$R68*$F68,0) -> 0 | P68: 1039.025 | Q68: =IF(LEFT(ScheduleSetup!$P$6,4)="Corn",BF68,BG68) -> V18 | AN68: 0.192 | AO68: 0.8735460458 | AP68: 0.1677208408 | AQ68: 3.681801301 | AR68: 200.9338811 | AU68: =IF((OR($E67<>"" )), Calculations2!$AV68,"") -> 3.335693949 | AV68: 3.335693949 | AX68: =IF(AND(Caluations!$F57>5,Caluations!$F57<>FALSE),"",IF($E68="",($I68/$H68)*100,$I68/$H68*100)) -> 85.53061406 | BB68: 0 | BC68: 24.095 | BD68: 1039.025 | BE68: V18 | BF68: V18 | BG68: R1 | BH68: 21 | BI68: 22.5 | BJ68: 1006 | BK68: V17 | BL68: 1 | BN68: 0 | BQ68: =IF(LEFT(ScheduleSetup!$P$6,4)="Soyb",BG68,BF68) -> V18 | BR68: 50 | CO68: 25.635 | IQ68: Newago | IT68: TomatoesS24
A69: 2020-07-17 | B69: 36 | C69: 0 | E69: 0.181 | F69: 1.2 | G69: 0.0864 | H69: 3.9 | I69: 3.249293949 | J69: 83.31522945 | K69: 0 | L69: =IF(Caluations!$J58<0,0,Caluations!$J58) -> 0.6507060515 | N69: V18 | O69: =IF(AND($E69="",Caluations!$F58<8),$R69*$F69,0) -> 0 | P69: 1061.005 | Q69: =IF(LEFT(ScheduleSetup!$P$6,4)="Corn",BF69,BG69) -> V18 | AN69: 0.0864 | AO69: 1 | AP69: 0.0864 | AQ69: 0 | AR69: 200.9338811 | AU69: =IF((OR($E68<>"" )), Calculations2!$AV69,"") -> 3.249293949 | AV69: 3.249293949 | AX69: =IF(AND(Caluations!$F58>5,Caluations!$F58<>FALSE),"",IF($E69="",($I69/$H69)*100,$I69/$H69*100)) -> 83.31522945 | BB69: 0 | BC69: 21.98 | BD69: 1061.005 | BE69: V18 | BF69: V18 | BG69: R1 | BH69: 22 | BI69: 22.5 | BJ69: 1028.5 | BK69: V18 | BL69: 2 | BN69: 0 | BQ69: =IF(LEFT(ScheduleSetup!$P$6,4)="Soyb",BG69,BF69) -> V18 | BR69: 50 | CP69: 21.745 | IQ69: Nottawa | IT69: TomatoesT12
A70: 2020-07-18 | B70: 36 | C70: 0 | E70: 0.154 | F70: 1.2 | G70: 0.2172 | H70: 3.9 | I70: 3.032093949 | J70: 77.74599868 | K70: 0 | L70: =IF(Caluations!$J59<0,0,Caluations!$J59) -> 0.8679060515 | N70: R1 | O70: =IF(AND($E70="",Caluations!$F59<8),$R70*$F70,0) -> 0 | P70: 1085.325 | Q70: =IF(LEFT(ScheduleSetup!$P$6,4)="Corn",BF70,BG70) -> R1 | AN70: 0.2172 | AO70: 1 | AP70: 0.2172 | AQ70: 0 | AR70: 200.9338811 | AU70: =IF((OR($E69<>"" )), Calculations2!$AV70,"") -> 3.032093949 | AV70: 3.032093949 | AX70: =IF(AND(Caluations!$F59>5,Caluations!$F59<>FALSE),"",IF($E70="",($I70/$H70)*100,$I70/$H70*100)) -> 77.74599868 | BB70: 0 | BC70: 24.32 | BD70: 1085.325 | BE70: R1 | BF70: R1 | BG70: R1 | BH70: 22 | BI70: 22.5 | BJ70: 1051 | BK70: V18 | BL70: 3 | BN70: 0 | BQ70: =IF(LEFT(ScheduleSetup!$P$6,4)="Soyb",BG70,BF70) -> R1 | BR70: 50 | CQ70: 13.63 | IQ70: Oshtemo | IT70: TomatoesT18
A71: 2020-07-19 | B71: 36 | C71: 0.1 | E71: 0.067 | F71: 1.2 | G71: 0.1848 | H71: 3.9 | I71: 2.947293949 | J71: 75.57163971 | K71: 0 | L71: =IF(Caluations!$J60<0,0,Caluations!$J60) -> 0.9527060515 | N71: R1 | O71: =IF(AND($E71="",Caluations!$F60<8),$R71*$F71,0) -> 0 | P71: 1110.31 | Q71: =IF(LEFT(ScheduleSetup!$P$6,4)="Corn",BF71,BG71) -> R1 | AN71: 0.1848 | AO71: 1 | AP71: 0.1848 | AQ71: 0 | AR71: 200.9338811 | AU71: =IF((OR($E70<>"" )), Calculations2!$AV71,"") -> 2.947293949 | AV71: 2.947293949 | AX71: =IF(AND(Caluations!$F60>5,Caluations!$F60<>FALSE),"",IF($E71="",($I71/$H71)*100,$I71/$H71*100)) -> 75.57163971 | BB71: 0 | BC71: 24.985 | BD71: 1110.31 | BE71: R1 | BF71: R1 | BG71: R1 | BH71: 22 | BI71: 22.5 | BJ71: 1073.5 | BK71: R1 | BL71: 1 | BN71: 0 | BQ71: =IF(LEFT(ScheduleSetup!$P$6,4)="Soyb",BG71,BF71) -> R1 | BR71: 50 | CR71: 10.395 | IQ71: Palms | IT71: TomatoesT24
A72: 2020-07-20 | B72: 36 | C72: 0 | E72: 0.167 | F72: 1.2 | G72: 0.0804 | H72: 3.9 | I72: 2.866893949 | J72: 73.51010124 | K72: 0 | L72: =IF(Caluations!$J61<0,0,Caluations!$J61) -> 1.033106051 | N72: R1 | O72: =IF(AND($E72="",Caluations!$F61<8),$R72*$F72,0) -> 0 | P72: 1134.06 | Q72: =IF(LEFT(ScheduleSetup!$P$6,4)="Corn",BF72,BG72) -> R1 | AN72: 0.0804 | AO72: 1 | AP72: 0.0804 | AQ72: 0 | AR72: 200.9338811 | AU72: =IF((OR($E71<>"" )), Calculations2!$AV72,"") -> 2.866893949 | AV72: 2.866893949 | AW72: 0.207 | AX72: =IF(AND(Caluations!$F61>5,Caluations!$F61<>FALSE),"",IF($E72="",($I72/$H72)*100,$I72/$H72*100)) -> 73.51010124 | BB72: 0 | BC72: 23.75 | BD72: 1134.06 | BE72: R1 | BF72: R1 | BG72: R2 | BH72: 22 | BI72: 22.5 | BJ72: 1096 | BK72: R1 | BL72: 2 | BN72: 0 | BQ72: =IF(LEFT(ScheduleSetup!$P$6,4)="Soyb",BG72,BF72) -> R1 | BR72: 50 | CS72: 13.78 | IQ72: Palo | IT72: Wheat
A73: 2020-07-21 | B73: 36 | C73: 0 | E73: 0.116 | F73: 1.2 | G73: 0.2004 | H73: 3.9 | I73: 2.666493949 | J73: 68.37163971 | K73: 0 | L73: =IF(Caluations!$J62<0,0,Caluations!$J62) -> 1.233506051 | N73: R1 | O73: =IF(AND($E73="",Caluations!$F62<8),$R73*$F73,0) -> 0 | P73: 1156.805 | Q73: =IF(LEFT(ScheduleSetup!$P$6,4)="Corn",BF73,BG73) -> R1 | AN73: 0.2004 | AO73: 1 | AP73: 0.2004 | AQ73: 0 | AR73: 200.9338811 | AU73: =IF((OR($E72<>"" )), Calculations2!$AV73,"") -> 2.666493949 | AV73: 2.666493949 | AX73: =IF(AND(Caluations!$F62>5,Caluations!$F62<>FALSE),"",IF($E73="",($I73/$H73)*100,$I73/$H73*100)) -> 68.37163971 | BB73: 0 | BC73: 22.745 | BD73: 1156.805 | BE73: R1 | BF73: R1 | BG73: R2 | BH73: 22 | BI73: 22.5 | BJ73: 1118.5 | BK73: R1 | BL73: 1 | BN73: 0 | BQ73: =IF(LEFT(ScheduleSetup!$P$6,4)="Soyb",BG73,BF73) -> R1 | BR73: 50 | CT73: 13.815 | IQ73: Parkhill
A74: 2020-07-22 | B74: 36 | C74: 0 | E74: 0.112 | F74: 1.2 | G74: 0.1392 | H74: 3.9 | I74: 2.527293949 | J74: 64.80240894 | K74: 0 | L74: =IF(Caluations!$J63<0,0,Caluations!$J63) -> 1.372706051 | N74: R1 | O74: =IF(AND($E74="",Caluations!$F63<8),$R74*$F74,0) -> 0 | P74: 1182.285 | Q74: =IF(LEFT(ScheduleSetup!$P$6,4)="Corn",BF74,BG74) -> R1 | AN74: 0.1392 | AO74: 1 | AP74: 0.1392 | AQ74: 0 | AR74: 200.9338811 | AU74: =IF((OR($E73<>"" )), Calculations2!$AV74,"") -> 2.527293949 | AV74: 2.527293949 | AW74: 0 | AX74: =IF(AND(Caluations!$F63>5,Caluations!$F63<>FALSE),"",IF($E74="",($I74/$H74)*100,$I74/$H74*100)) -> 64.80240894 | BB74: 0 | BC74: 25.48 | BD74: 1182.285 | BE74: R1 | BF74: R1 | BG74: R2 | BH74: 22 | BI74: 22.5 | BJ74: 1141 | BK74: R1 | BL74: 2 | BN74: 0 | BQ74: =IF(LEFT(ScheduleSetup!$P$6,4)="Soyb",BG74,BF74) -> R1 | BR74: 50 | CU74: 19.455 | IQ74: Perrington
A75: 2020-07-23 | B75: 36 | C75: 0 | E75: 0.181 | F75: 1.2 | G75: 0.1344 | H75: 3.9 | I75: 2.392893949 | J75: 61.35625509 | K75: 0 | L75: =IF(Caluations!$J64<0,0,Caluations!$J64) -> 1.507106051 | N75: R1 | O75: =IF(AND($E75="",Caluations!$F64<8),$R75*$F75,0) -> 0 | P75: 1208.765 | Q75: =IF(LEFT(ScheduleSetup!$P$6,4)="Corn",BF75,BG75) -> R1 | AN75: 0.1344 | AO75: 1 | AP75: 0.1344 | AQ75: 0 | AR75: 200.9338811 | AU75: =IF((OR($E74<>"" )), Calculations2!$AV75,"") -> 2.392893949 | AV75: 2.392893949 | AX75: =IF(AND(Caluations!$F64>5,Caluations!$F64<>FALSE),"",IF($E75="",($I75/$H75)*100,$I75/$H75*100)) -> 61.35625509 | BB75: 0 | BC75: 26.48 | BD75: 1208.765 | BE75: R1 | BF75: R1 | BG75: R2 | BH75: 22 | BI75: 22.5 | BJ75: 1163.5 | BK75: R1 | BL75: 1 | BN75: 0 | BQ75: =IF(LEFT(ScheduleSetup!$P$6,4)="Soyb",BG75,BF75) -> R1 | BR75: 50 | CV75: 22.88 | IQ75: Pipestone
A76: 2020-07-24 | B76: 36 | C76: 0 | E76: 0.181 | F76: 1.2 | G76: 0.2172 | H76: 3.9 | I76: 2.175693949 | J76: 55.78702432 | K76: 0 | L76: =IF(Caluations!$J65<0,0,Caluations!$J65) -> 1.724306051 | N76: R1 | O76: =IF(AND($E76="",Caluations!$F65<8),$R76*$F76,0) -> 0 | P76: 1233.37 | Q76: =IF(LEFT(ScheduleSetup!$P$6,4)="Corn",BF76,BG76) -> R1 | AN76: 0.2172 | AO76: 1 | AP76: 0.2172 | AQ76: 0 | AR76: 200.9338811 | AU76: =IF((OR($E75<>"" )), Calculations2!$AV76,"") -> 2.175693949 | AV76: 2.175693949 | AX76: =IF(AND(Caluations!$F65>5,Caluations!$F65<>FALSE),"",IF($E76="",($I76/$H76)*100,$I76/$H76*100)) -> 55.78702432 | BB76: 0 | BC76: 24.605 | BD76: 1233.37 | BE76: R1 | BF76: R1 | BG76: R2 | BH76: 22 | BI76: 22.5 | BJ76: 1186 | BK76: R1 | BL76: 2 | BN76: 0 | BQ76: =IF(LEFT(ScheduleSetup!$P$6,4)="Soyb",BG76,BF76) -> R1 | BR76: 50 | CW76: 20.365 | IQ76: Pipestone-Kingsville
A77: 2020-07-25 | B77: 36 | C77: 0 | E77: 0.168 | F77: 1.2 | G77: 0.2172 | H77: 3.9 | I77: 1.958493949 | J77: 50.21779355 | K77: 0 | L77: =IF(Caluations!$J66<0,0,Caluations!$J66) -> 1.941506051 | N77: R1 | O77: =IF(AND($E77="",Caluations!$F66<8),$R77*$F77,0) -> 0 | P77: 1256.21 | Q77: =IF(LEFT(ScheduleSetup!$P$6,4)="Corn",BF77,BG77) -> R1 | AN77: 0.2172 | AO77: 1 | AP77: 0.2172 | AQ77: 0 | AR77: 200.9338811 | AU77: =IF((OR($E76<>"" )), Calculations2!$AV77,"") -> 1.958493949 | AV77: 1.958493949 | AX77: =IF(AND(Caluations!$F66>5,Caluations!$F66<>FALSE),"",IF($E77="",($I77/$H77)*100,$I77/$H77*100)) -> 50.21779355 | BB77: 0 | BC77: 22.84 | BD77: 1256.21 | BE77: R1 | BF77: R1 | BG77: R2 | BH77: 22 | BI77: 22.5 | BJ77: 1208.5 | BK77: R1 | BL77: 1 | BN77: 0 | BQ77: =IF(LEFT(ScheduleSetup!$P$6,4)="Soyb",BG77,BF77) -> R1 | BR77: 50 | CX77: 15.315 | IQ77: Plainfield
A78: 2020-07-26 | B78: 36 | C78: 0 | E78: 0.171 | F78: 1.2 | G78: 0.2016 | H78: 3.9 | I78: 1.756893949 | J78: 45.04856278 | K78: 0 | L78: =IF(Caluations!$J67<0,0,Caluations!$J67) -> 2.143106051 | N78: R1 | O78: =IF(AND($E78="",Caluations!$F67<8),$R78*$F78,0) -> 0 | P78: 1279.925 | Q78: =IF(LEFT(ScheduleSetup!$P$6,4)="Corn",BF78,BG78) -> R1 | AN78: 0.2016 | AO78: 1 | AP78: 0.2016 | AQ78: 0 | AR78: 200.9338811 | AU78: =IF((OR($E77<>"" )), Calculations2!$AV78,"") -> 1.756893949 | AV78: 1.756893949 | AX78: =IF(AND(Caluations!$F67>5,Caluations!$F67<>FALSE),"",IF($E78="",($I78/$H78)*100,$I78/$H78*100)) -> 45.04856278 | BB78: 0 | BC78: 23.715 | BD78: 1279.925 | BE78: R1 | BF78: R1 | BG78: R2 | BH78: 22 | BI78: 22 | BJ78: 1230.5 | BK78: R1 | BL78: 2 | BN78: 4.951437218 | BQ78: =IF(LEFT(ScheduleSetup!$P$6,4)="Soyb",BG78,BF78) -> R1 | BR78: 50 | CY78: 14.705 | IQ78: Poseyville
A79: 2020-07-27 | B79: 36 | E79: 0.095 | F79: 1.2 | G79: 0.1848793017 | H79: 3.9 | I79: 1.572014647 | J79: 40.30806787 | K79: 0 | L79: =IF(Caluations!$J68<0,0,Caluations!$J68) -> 2.327985353 | N79: R1 | O79: =IF(AND($E79="",Caluations!$F68<8),$R79*$F79,0) -> 0 | P79: 1301.925 | Q79: =IF(LEFT(ScheduleSetup!$P$6,4)="Corn",BF79,BG79) -> R1 | AN79: 0.2052 | AO79: =IF($J78<50,($H78-($H78-$I78))/($H78*0.5),1) -> 0.9009712556 | AP79: 0.1848793017 | AQ79: 3.742136762 | AR79: 197.1917444 | AU79: =IF((OR($E78<>"" )), Calculations2!$AV79,"") -> 1.572014647 | AV79: 1.572014647 | AX79: =IF(AND(Caluations!$F68>5,Caluations!$F68<>FALSE),"",IF($E79="",($I79/$H79)*100,$I79/$H79*100)) -> 40.30806787 | BB79: 0 | BD79: 1301.925 | BE79: R1 | BF79: R1 | BG79: R2 | BH79: 22.5 | BI79: 22 | BJ79: 1252.5 | BK79: R1 | BL79: 3 | BN79: 9.691932132 | BQ79: =IF(LEFT(ScheduleSetup!$P$6,4)="Soyb",BG79,BF79) -> R1 | BR79: 50 | CZ79: 15.86 | IQ79: Remus
A80: 2020-07-28 | B80: 36 | F80: 1.2 | G80: 0.09190239474 | H80: 3.9 | I80: 1.480112252 | J80: 37.95159621 | K80: 0 | L80: =IF(Caluations!$J69<0,0,Caluations!$J69) -> 2.419887748 | N80: R1 | O80: =IF(AND($E80="",Caluations!$F69<8),$R80*$F80,0) -> 0 | P80: 1323.925 | Q80: =IF(LEFT(ScheduleSetup!$P$6,4)="Corn",BF80,BG80) -> R1 | R80: 0.218 | AN80: 0.114 | AO80: 0.8061613574 | AP80: 0.09190239474 | AQ80: 3.533554986 | AR80: 193.6581894 | AU80: =IF((OR($E79<>"" )), Calculations2!$AV80,"") -> 1.480112252 | AV80: 1.480112252 | AX80: =IF(AND(Caluations!$F69>5,Caluations!$F69<>FALSE),"",IF($E80="",($I80/$H80)*100,$I80/$H80*100)) -> 37.95159621 | BB80: 0 | BD80: 1323.925 | BE80: R1 | BF80: R1 | BG80: R2 | BH80: 22.5 | BI80: 22 | BJ80: 1274.5 | BK80: R1 | BL80: 1 | BN80: 12.04840379 | BQ80: =IF(LEFT(ScheduleSetup!$P$6,4)="Soyb",BG80,BF80) -> R1 | BR80: 50 | DA80: 20.365 | IQ80: Rifle
A81: 2020-07-29 | B81: 36 | F81: 1.2 | G81: 0 | H81: 3.9 | I81: 1.253312252 | J81: 32.13621159 | K81: 0 | L81: =IF(Caluations!$J70<0,0,Caluations!$J70) -> 2.646687748 | N81: R2 | O81: =IF(AND($E81="",Caluations!$F70<8),$R81*$F81,0) -> 0.2268 | P81: 1345.925 | Q81: =IF(LEFT(ScheduleSetup!$P$6,4)="Corn",BF81,BG81) -> R2 | R81: 0.189 | AN81: 0 | AO81: 0.7590319242 | AP81: 0 | AU81: =IF((OR($E80<>"" )), Calculations2!$AV81,"") ->  | AV81: 1.253312252 | AX81: =IF(AND(Caluations!$F70>5,Caluations!$F70<>FALSE),"",IF($E81="",($I81/$H81)*100,$I81/$H81*100)) -> 32.13621159 | BB81: 0 | BD81: 1345.925 | BE81: R1 | BF81: R2 | BG81: R2 | BH81: 22.5 | BI81: 22 | BJ81: 1296.5 | BK81: R1 | BL81: 2 | BN81: 17.86378841 | BQ81: =IF(LEFT(ScheduleSetup!$P$6,4)="Soyb",BG81,BF81) -> R2 | BR81: 50 | DB81: 22.155 | IQ81: Riverdale
A82: 2020-07-30 | B82: 36 | F82: 1.2 | G82: 0 | H82: 3.9 | I82: 1.050512252 | J82: 26.93621159 | K82: 0 | L82: =IF(Caluations!$J71<0,0,Caluations!$J71) -> 2.849487748 | N82: R2 | O82: =IF(AND($E82="",Caluations!$F71<8),$R82*$F82,0) -> 0.2028 | P82: 1367.925 | Q82: =IF(LEFT(ScheduleSetup!$P$6,4)="Corn",BF82,BG82) -> R2 | R82: 0.169 | AN82: 0 | AO82: 0.6427242319 | AP82: 0 | AU82: =IF((OR($E81<>"" )), Calculations2!$AV82,"") ->  | AV82: 1.050512252 | AX82: =IF(AND(Caluations!$F71>5,Caluations!$F71<>FALSE),"",IF($E82="",($I82/$H82)*100,$I82/$H82*100)) -> 26.93621159 | BB82: 0 | BD82: 1367.925 | BE82: R1 | BF82: R2 | BG82: R2 | BH82: 22.5 | BI82: 22 | BJ82: 1318.5 | BK82: R1 | BL82: 1 | BN82: 23.06378841 | BQ82: =IF(LEFT(ScheduleSetup!$P$6,4)="Soyb",BG82,BF82) -> R2 | BR82: 50 | DC82: 16.65 | IQ82: Ronald
A83: 2020-07-31 | B83: 36 | F83: 1.2 | G83: 0 | H83: 3.9 | I83: 0.8645122521 | J83: 22.16698082 | K83: 0 | L83: =IF(Caluations!$J72<0,0,Caluations!$J72) -> 3.035487748 | N83: R2 | O83: =IF(AND($E83="",Caluations!$F72<8),$R83*$F83,0) -> 0.186 | P83: 1389.925 | Q83: =IF(LEFT(ScheduleSetup!$P$6,4)="Corn",BF83,BG83) -> R2 | R83: 0.155 | AN83: 0 | AO83: 0.5387242319 | AP83: 0 | AU83: =IF((OR($E82<>"" )), Calculations2!$AV83,"") ->  | AV83: 0.8645122521 | AX83: =IF(AND(Caluations!$F72>5,Caluations!$F72<>FALSE),"",IF($E83="",($I83/$H83)*100,$I83/$H83*100)) -> 22.16698082 | BB83: 0 | BD83: 1389.925 | BE83: R1 | BF83: R2 | BG83: R2 | BH83: 22.5 | BI83: 22 | BJ83: 1340.5 | BK83: =VLOOKUP(BJ83,$AZ$19:$BA$43,2,TRUE) -> R1 | BL83: 2 | BN83: 27.83301918 | BQ83: =IF(LEFT(ScheduleSetup!$P$6,4)="Soyb",BG83,BF83) -> R2 | BR83: 50 | DD83: 9.92 | IQ83: Roscommon
A84: =1+A83 -> 2020-08-01 | B84: 36 | F84: 1.2 | G84: 0 | H84: 3.9 | I84: 0.7001122521 | J84: 17.95159621 | K84: =IF(IF(OR($J84<103,$E83=""),0,$C84+$D84+$I83-$G84-($H84*1.03))>0, IF(OR($J84<103,$E83=""),0,$C84+$D84+$I83-$G84-($H84*1.03)),0) -> 0 | L84: =IF(Caluations!$J73<0,0,Caluations!$J73) -> 3.199887748 | N84: R2 | O84: =IF(AND($E84="",Caluations!$F73<8),$R84*$F84,0) -> 0.1644 | P84: =+(IF(BD84=0,BJ84,BD84)) -> 1411.925 | Q84: =IF(LEFT(ScheduleSetup!$P$6,4)="Corn",BF84,BG84) -> R2 | R84: 0.137 | AN84: =+$F84*$E83 -> 0 | AO84: 0.4433396165 | AP84: 0 | AU84: =IF((OR($E83<>"" )), Calculations2!$AV84,"") ->  | AV84: 0.7001122521 | AX84: =IF(AND(Caluations!$F73>5,Caluations!$F73<>FALSE),"",IF($E84="",($I84/$H84)*100,$I84/$H84*100)) -> 17.95159621 | BB84: 0 | BD84: 1411.925 | BE84: =IF( LEN((BC84))=0, BK84,BF84) -> R2 | BF84: =VLOOKUP(BD84,$AZ$19:$BA$43,2,TRUE) -> R2 | BG84: R2 | BH84: 22.5 | BI84: 22 | BJ84: 1362.5 | BK84: R2 | BL84: 3 | BN84: =+IF((BR84-J84)>0,BR84-J84,0) -> 32.04840379 | BQ84: =IF(LEFT(ScheduleSetup!$P$6,4)="Soyb",BG84,BF84) -> R2 | BR84: =IF($BP$19=50,50,IF($BQ$20="VC"=AND(OR(BQ84="R3",BQ84="R4",BQ84="R5",BQ84="R6")),60,40)) -> 50 | DE84: 10 | IN84: =+VLOOKUP(IM84,$T$19:$U$40,2) ->  | IQ84: Rousseau
A85: 2020-08-02 | B85: 36 | F85: 1.2 | G85: 0 | H85: =IF($B85<=6,$B85*$B$12,IF($B85<=12,6*$B$12+($B85-6)*$C$12,IF($B85<=18,6*$B$12+6*$C$12+($B85-12)*$D$12,IF($B85<=24,6*$B$12+6*$C$12+6*$D$12+($B85-18)*$E$12,IF($B85<=30,6*$B$12+6*$C$12+6*$D$12+6*$E$12+($B85-24)*$F$12,IF($B85<=36,6*$B$12+6*$C$12+6*$D$12+6*$E$12+6*$F$12+($B85-30)*$G$12,IF($B85<=42,6*$B$12+6*$C$12+6*$D$12+6*$E$12+6*$F$12+6*$G$12+($B85-36)*$H$12,IF($B85<=48,6*$B$12+6*$C$12+6*$D$12+6*$E$12+6*$F$12+6*$G$12+6*$H$12+(F85-42)*$I$12,"rootdepth>48in")))))))) -> 3.9 | I85: =IF($S85="",$AV85,($S85/100)*$H85) -> 0.7001122521 | J85: =+IF(S85="",(AX85),S85) -> 17.95159621 | K85: 0 | L85: =IF(Caluations!$J74<0,0,Caluations!$J74) -> 3.199887748 | N85: R2 | O85: =IF(AND($E85="",Caluations!$F74<8),$R85*$F85,0) -> 0 | P85: 1433.925 | Q85: =IF(LEFT(ScheduleSetup!$P$6,4)="Corn",BF85,BG85) -> R2 | AN85: 0 | AO85: 0.3590319242 | AP85: =+AN85*AO85 -> 0 | AR85: =AR84-AQ85 ->  | AU85: =IF((OR($E84<>"" )), Calculations2!$AV85,"") ->  | AV85: 0.7001122521 | AX85: =IF(AND(Caluations!$F74>5,Caluations!$F74<>FALSE),"",IF($E85="",($I85/$H85)*100,$I85/$H85*100)) -> 17.95159621 | BB85: =+T85 -> 0 | BD85: 1433.925 | BE85: R2 | BF85: R2 | BG85: R2 | BH85: 22.5 | BI85: 22 | BJ85: =+BJ84+BI85 -> 1384.5 | BK85: R2 | BL85: 4 | BN85: 32.04840379 | BQ85: =IF(LEFT(ScheduleSetup!$P$6,4)="Soyb",BG85,BF85) -> R2 | BR85: 50 | DF85: 12.455 | IQ85: Sandy Loam
A86: 2020-08-03 | B86: 36 | F86: 1.2 | G86: 0 | H86: 3.9 | I86: 0.7001122521 | K86: 0 | L86: =IF(Caluations!$J75<0,0,Caluations!$J75) ->  | N86: R2 | O86: =IF(AND($E86="",Caluations!$F75<8),$R86*$F86,0) -> 0 | P86: 1455.925 | Q86: =IF(LEFT(ScheduleSetup!$P$6,4)="Corn",BF86,BG86) -> R2 | AN86: 0 | AO86: 0.3590319242 | AP86: 0 | AQ86: =IF(AO86<1,(AQ84-((1.25*(AP86/AN86)))-1)*(-$T$15))*0.008 ->  | AU86: =IF((OR($E85<>"" )), Calculations2!$AV86,"") ->  | AV86: 0.7001122521 | AX86: =IF(AND(Caluations!$F75>5,Caluations!$F75<>FALSE),"",IF($E86="",($I86/$H86)*100,$I86/$H86*100)) ->  | BB86: 0 | BD86: 1455.925 | BE86: R2 | BF86: R2 | BG86: R2 | BH86: 22.5 | BI86: 22 | BJ86: 1406.5 | BK86: R2 | BL86: 5 | BQ86: =IF(LEFT(ScheduleSetup!$P$6,4)="Soyb",BG86,BF86) -> R2 | BR86: 50 | DG86: 13.885 | IQ86: Sandy Loam / Coarse Loam
A87: 2020-08-04 | B87: 36 | F87: 1.2 | G87: 0 | H87: 3.9 | I87: 0.7001122521 | K87: 0 | L87: =IF(Caluations!$J76<0,0,Caluations!$J76) ->  | N87: R2 | O87: =IF(AND($E87="",Caluations!$F76<8),$R87*$F87,0) -> 0 | P87: 1476.925 | Q87: =IF(LEFT(ScheduleSetup!$P$6,4)="Corn",BF87,BG87) -> R2 | AN87: 0 | AO87: 1 | AP87: 0 | AQ87: 0 | AU87: =IF((OR($E86<>"" )), Calculations2!$AV87,"") ->  | AV87: 0.7001122521 | AX87: =IF(AND(Caluations!$F76>5,Caluations!$F76<>FALSE),"",IF($E87="",($I87/$H87)*100,$I87/$H87*100)) ->  | BB87: 0 | BD87: 1476.925 | BE87: R2 | BF87: R2 | BG87: R3 | BH87: 22.5 | BI87: 21 | BJ87: 1427.5 | BK87: R2 | BL87: 6 | BQ87: =IF(LEFT(ScheduleSetup!$P$6,4)="Soyb",BG87,BF87) -> R2 | BR87: 50 | DH87: 16.33 | IQ87: Saugatauk
A88: 2020-08-05 | B88: 36 | F88: 1.2 | G88: 0 | H88: 3.9 | I88: 0.7001122521 | K88: 0 | L88: =IF(Caluations!$J77<0,0,Caluations!$J77) ->  | N88: R2 | O88: =IF(AND($E88="",Caluations!$F77<8),$R88*$F88,0) -> 0 | P88: 1497.925 | Q88: =IF(LEFT(ScheduleSetup!$P$6,4)="Corn",BF88,BG88) -> R2 | AN88: 0 | AO88: 1 | AP88: 0 | AQ88: 0 | AU88: =IF((OR($E87<>"" )), Calculations2!$AV88,"") ->  | AV88: 0.7001122521 | AX88: =IF(AND(Caluations!$F77>5,Caluations!$F77<>FALSE),"",IF($E88="",($I88/$H88)*100,$I88/$H88*100)) ->  | BB88: 0 | BD88: 1497.925 | BE88: R2 | BF88: R2 | BG88: R3 | BH88: 22.5 | BI88: 21 | BJ88: 1448.5 | BK88: R2 | BL88: 7 | BQ88: =IF(LEFT(ScheduleSetup!$P$6,4)="Soyb",BG88,BF88) -> R2 | BR88: 50 | DI88: 19.7 | IQ88: Schoolcraft
A89: 2020-08-06 | B89: 36 | F89: 1.2 | G89: 0 | H89: 3.9 | I89: 0.7001122521 | K89: 0 | L89: =IF(Caluations!$J78<0,0,Caluations!$J78) ->  | N89: R2 | O89: =IF(AND($E89="",Caluations!$F78<8),$R89*$F89,0) -> 0 | P89: 1518.925 | Q89: =IF(LEFT(ScheduleSetup!$P$6,4)="Corn",BF89,BG89) -> R2 | AN89: 0 | AO89: 1 | AP89: 0 | AQ89: 0 | AU89: =IF((OR($E88<>"" )), Calculations2!$AV89,"") ->  | AV89: 0.7001122521 | AX89: =IF(AND(Caluations!$F78>5,Caluations!$F78<>FALSE),"",IF($E89="",($I89/$H89)*100,$I89/$H89*100)) ->  | BB89: 0 | BD89: 1518.925 | BE89: R2 | BF89: R2 | BG89: R3 | BH89: 22.5 | BI89: 21 | BJ89: 1469.5 | BK89: R2 | BL89: 8 | BQ89: =IF(LEFT(ScheduleSetup!$P$6,4)="Soyb",BG89,BF89) -> R2 | BR89: 50 | DJ89: 23.175 | IQ89: Shebeon
A90: 2020-08-07 | B90: 36 | F90: 1.2 | G90: 0 | H90: 3.9 | I90: 0.7001122521 | K90: 0 | L90: =IF(Caluations!$J79<0,0,Caluations!$J79) ->  | N90: R2 | O90: =IF(AND($E90="",Caluations!$F79<8),$R90*$F90,0) -> 0 | P90: 1539.925 | Q90: =IF(LEFT(ScheduleSetup!$P$6,4)="Corn",BF90,BG90) -> R2 | AN90: 0 | AO90: 1 | AP90: 0 | AQ90: 0 | AU90: =IF((OR($E89<>"" )), Calculations2!$AV90,"") ->  | AV90: 0.7001122521 | AX90: =IF(AND(Caluations!$F79>5,Caluations!$F79<>FALSE),"",IF($E90="",($I90/$H90)*100,$I90/$H90*100)) ->  | BB90: 0 | BD90: 1539.925 | BE90: R2 | BF90: R2 | BG90: R3 | BH90: 22.5 | BI90: 21 | BJ90: 1490.5 | BK90: R2 | BL90: 9 | BO90: 0.206 | BQ90: =IF(LEFT(ScheduleSetup!$P$6,4)="Soyb",BG90,BF90) -> R2 | BR90: 50 | DK90: 25.49 | IQ90: Sims
A91: 2020-08-08 | B91: 36 | F91: 1.2 | G91: =$AP91 -> 0 | H91: 3.9 | I91: 0.7001122521 | K91: 0 | L91: =IF(Caluations!$J80<0,0,Caluations!$J80) ->  | N91: R2 | O91: =IF(AND($E91="",Caluations!$F80<8),$R91*$F91,0) -> 0 | P91: 1560.925 | Q91: =IF(LEFT(ScheduleSetup!$P$6,4)="Corn",BF91,BG91) -> R2 | AN91: 0 | AO91: 1 | AP91: 0 | AQ91: 0 | AU91: =IF((OR($E90<>"" )), Calculations2!$AV91,"") ->  | AV91: 0.7001122521 | AX91: =IF(AND(Caluations!$F80>5,Caluations!$F80<>FALSE),"",IF($E91="",($I91/$H91)*100,$I91/$H91*100)) ->  | BB91: 0 | BD91: 1560.925 | BE91: R2 | BF91: R2 | BG91: R3 | BH91: 22.5 | BI91: 21 | BJ91: 1511.5 | BK91: R2 | BL91: 10 | BP91: 0.127 | BQ91: =IF(LEFT(ScheduleSetup!$P$6,4)="Soyb",BG91,BF91) -> R2 | BR91: 50 | DL91: 17.54 | IQ91: Sparta
A92: 2020-08-09 | B92: 36 | F92: 1.2 | G92: 0 | H92: 3.9 | I92: 0.7001122521 | K92: 0 | L92: =IF(Caluations!$J81<0,0,Caluations!$J81) ->  | N92: R3 | O92: =IF(AND($E92="",Caluations!$F81<8),$R92*$F92,0) -> 0 | P92: 1581.925 | Q92: =IF(LEFT(ScheduleSetup!$P$6,4)="Corn",BF92,BG92) -> R3 | AN92: 0 | AO92: 1 | AP92: 0 | AQ92: 0 | AU92: =IF((OR($E91<>"" )), Calculations2!$AV92,"") ->  | AV92: 0.7001122521 | AX92: =IF(AND(Caluations!$F81>5,Caluations!$F81<>FALSE),"",IF($E92="",($I92/$H92)*100,$I92/$H92*100)) ->  | BB92: 0 | BD92: 1581.925 | BE92: R2 | BF92: R3 | BG92: R3 | BH92: 22.5 | BI92: 21 | BJ92: 1532.5 | BK92: R2 | BL92: 11 | BO92: 0 | BQ92: =IF(LEFT(ScheduleSetup!$P$6,4)="Soyb",BG92,BF92) -> R3 | BR92: 50 | DM92: 14.355 | IQ92: Spinks
A93: 2020-08-10 | B93: 36 | F93: 1.2 | G93: 0 | H93: 3.9 | I93: 0.7001122521 | K93: 0 | L93: =IF(Caluations!$J82<0,0,Caluations!$J82) ->  | N93: R3 | O93: =IF(AND($E93="",Caluations!$F82<8),$R93*$F93,0) -> 0 | P93: 1601.925 | Q93: =IF(LEFT(ScheduleSetup!$P$6,4)="Corn",BF93,BG93) -> R3 | AN93: 0 | AO93: 1 | AP93: 0 | AQ93: 0 | AU93: =IF((OR($E92<>"" )), Calculations2!$AV93,"") ->  | AV93: 0.7001122521 | AX93: =IF(AND(Caluations!$F82>5,Caluations!$F82<>FALSE),"",IF($E93="",($I93/$H93)*100,$I93/$H93*100)) ->  | BB93: 0 | BD93: 1601.925 | BE93: R2 | BF93: R3 | BG93: R3 | BH93: 22.5 | BI93: 20 | BJ93: 1552.5 | BK93: R2 | BL93: 12 | BP93: 0 | BQ93: =IF(LEFT(ScheduleSetup!$P$6,4)="Soyb",BG93,BF93) -> R3 | BR93: 50 | DN93: 12.915 | IQ93: Tappan
A94: 2020-08-11 | B94: 36 | F94: 1.2 | G94: 0 | H94: 3.9 | I94: 0.7001122521 | K94: 0 | L94: =IF(Caluations!$J83<0,0,Caluations!$J83) ->  | N94: R3 | O94: =IF(AND($E94="",Caluations!$F83<8),$R94*$F94,0) -> 0 | P94: 1621.925 | Q94: =IF(LEFT(ScheduleSetup!$P$6,4)="Corn",BF94,BG94) -> R3 | AN94: 0 | AO94: 1 | AP94: 0 | AQ94: 0 | AU94: =IF((OR($E93<>"" )), Calculations2!$AV94,"") ->  | AV94: 0.7001122521 | AX94: =IF(AND(Caluations!$F83>5,Caluations!$F83<>FALSE),"",IF($E94="",($I94/$H94)*100,$I94/$H94*100)) ->  | BB94: 0 | BD94: 1621.925 | BE94: R2 | BF94: R3 | BG94: R3 | BH94: 22.5 | BI94: 20 | BJ94: 1572.5 | BK94: R2 | BL94: 13 | BQ94: =IF(LEFT(ScheduleSetup!$P$6,4)="Soyb",BG94,BF94) -> R3 | BR94: 50 | BS94: 0.101 | DO94: 18.49 | IQ94: Tewas
A95: 2020-08-12 | B95: 36 | F95: 1.2 | G95: 0 | H95: 3.9 | I95: 0.7001122521 | K95: 0 | L95: =IF(Caluations!$J84<0,0,Caluations!$J84) ->  | N95: R3 | O95: =IF(AND($E95="",Caluations!$F84<8),$R95*$F95,0) -> 0 | P95: 1641.925 | Q95: =IF(LEFT(ScheduleSetup!$P$6,4)="Corn",BF95,BG95) -> R3 | AN95: 0 | AO95: 1 | AP95: 0 | AQ95: 0 | AU95: =IF((OR($E94<>"" )), Calculations2!$AV95,"") ->  | AV95: 0.7001122521 | AX95: =IF(AND(Caluations!$F84>5,Caluations!$F84<>FALSE),"",IF($E95="",($I95/$H95)*100,$I95/$H95*100)) ->  | BB95: 0 | BD95: 1641.925 | BE95: R3 | BF95: R3 | BG95: R3 | BH95: 22.5 | BI95: 20 | BJ95: 1592.5 | BK95: R3 | BL95: 1 | BQ95: =IF(LEFT(ScheduleSetup!$P$6,4)="Soyb",BG95,BF95) -> R3 | BR95: 50 | BT95: 0.152 | DP95: 21.62 | IQ95: Thetford
A96: 2020-08-13 | B96: 36 | F96: 1.2 | G96: 0 | H96: 3.9 | I96: 0.7001122521 | K96: 0 | L96: =IF(Caluations!$J85<0,0,Caluations!$J85) ->  | N96: R3 | O96: =IF(AND($E96="",Caluations!$F85<8),$R96*$F96,0) -> 0 | P96: 1661.925 | Q96: =IF(LEFT(ScheduleSetup!$P$6,4)="Corn",BF96,BG96) -> R3 | AN96: 0 | AO96: 1 | AP96: 0 | AQ96: 0 | AU96: =IF((OR($E95<>"" )), Calculations2!$AV96,"") ->  | AV96: 0.7001122521 | AX96: =IF(AND(Caluations!$F85>5,Caluations!$F85<>FALSE),"",IF($E96="",($I96/$H96)*100,$I96/$H96*100)) ->  | BB96: 0 | BD96: 1661.925 | BE96: R3 | BF96: R3 | BG96: R3 | BH96: 22.5 | BI96: 20 | BJ96: 1612.5 | BK96: R3 | BL96: 2 | BQ96: =IF(LEFT(ScheduleSetup!$P$6,4)="Soyb",BG96,BF96) -> R3 | BR96: 50 | BS96: 0 | BU96: 0.105 | DQ96: 8.44 | IQ96: Tustin
A97: 2020-08-14 | B97: 36 | F97: 1.2 | G97: 0 | H97: 3.9 | I97: 0.7001122521 | K97: 0 | L97: =IF(Caluations!$J86<0,0,Caluations!$J86) ->  | N97: R3 | O97: =IF(AND($E97="",Caluations!$F86<8),$R97*$F97,0) -> 0 | P97: 1681.925 | Q97: =IF(LEFT(ScheduleSetup!$P$6,4)="Corn",BF97,BG97) -> R3 | AN97: 0 | AO97: 1 | AP97: 0 | AQ97: 0 | AU97: =IF((OR($E96<>"" )), Calculations2!$AV97,"") ->  | AV97: 0.7001122521 | AX97: =IF(AND(Caluations!$F86>5,Caluations!$F86<>FALSE),"",IF($E97="",($I97/$H97)*100,$I97/$H97*100)) ->  | BB97: 0 | BD97: 1681.925 | BE97: R3 | BF97: R3 | BG97: R3 | BH97: 22 | BI97: 20 | BJ97: 1632.5 | BK97: R3 | BL97: 3 | BQ97: =IF(LEFT(ScheduleSetup!$P$6,4)="Soyb",BG97,BF97) -> R3 | BR97: 50 | BT97: 0 | BV97: 0.133 | DR97: 11.44 | IQ97: Vestaburg
A98: 2020-08-15 | B98: 36 | F98: 1.2 | G98: 0 | H98: 3.9 | I98: 0.7001122521 | K98: 0 | L98: =IF(Caluations!$J87<0,0,Caluations!$J87) ->  | N98: R3 | O98: =IF(AND($E98="",Caluations!$F87<8),$R98*$F98,0) -> 0 | P98: 1701.925 | Q98: =IF(LEFT(ScheduleSetup!$P$6,4)="Corn",BF98,BG98) -> R3 | AN98: 0 | AO98: 1 | AP98: 0 | AQ98: 0 | AU98: =IF((OR($E97<>"" )), Calculations2!$AV98,"") ->  | AV98: 0.7001122521 | AX98: =IF(AND(Caluations!$F87>5,Caluations!$F87<>FALSE),"",IF($E98="",($I98/$H98)*100,$I98/$H98*100)) ->  | BB98: 0 | BD98: 1701.925 | BE98: R3 | BF98: R3 | BG98: R3 | BH98: 22 | BI98: 20 | BJ98: 1652.5 | BK98: R3 | BL98: 4 | BQ98: =IF(LEFT(ScheduleSetup!$P$6,4)="Soyb",BG98,BF98) -> R3 | BR98: 50 | BU98: 0 | BW98: 0.151 | DS98: 13.15 | IQ98: Washtenaw
A99: 2020-08-16 | B99: 36 | F99: 1.2 | G99: 0 | H99: 3.9 | I99: 0.7001122521 | K99: 0 | L99: =IF(Caluations!$J88<0,0,Caluations!$J88) ->  | N99: R3 | O99: =IF(AND($E99="",Caluations!$F88<8),$R99*$F99,0) -> 0 | P99: 1720.925 | Q99: =IF(LEFT(ScheduleSetup!$P$6,4)="Corn",BF99,BG99) -> R3 | AN99: 0 | AO99: 1 | AP99: 0 | AQ99: 0 | AU99: =IF((OR($E98<>"" )), Calculations2!$AV99,"") ->  | AV99: 0.7001122521 | AX99: =IF(AND(Caluations!$F88>5,Caluations!$F88<>FALSE),"",IF($E99="",($I99/$H99)*100,$I99/$H99*100)) ->  | BB99: 0 | BD99: 1720.925 | BE99: R3 | BF99: R3 | BG99: R3 | BH99: 22 | BI99: 19 | BJ99: 1671.5 | BK99: R3 | BL99: 5 | BQ99: =IF(LEFT(ScheduleSetup!$P$6,4)="Soyb",BG99,BF99) -> R3 | BR99: 50 | BV99: 0 | BX99: 0.172 | DT99: 14.65 | IQ99: Wauseon
A100: 2020-08-17 | B100: 36 | F100: 1.2 | G100: 0 | H100: 3.9 | I100: 0.7001122521 | K100: 0 | L100: =IF(Caluations!$J89<0,0,Caluations!$J89) ->  | N100: R3 | O100: =IF(AND($E100="",Caluations!$F89<8),$R100*$F100,0) -> 0 | P100: 1739.925 | Q100: =IF(LEFT(ScheduleSetup!$P$6,4)="Corn",BF100,BG100) -> R3 | AN100: 0 | AO100: 1 | AP100: 0 | AQ100: 0 | AU100: =IF((OR($E99<>"" )), Calculations2!$AV100,"") ->  | AV100: 0.7001122521 | AX100: =IF(AND(Caluations!$F89>5,Caluations!$F89<>FALSE),"",IF($E100="",($I100/$H100)*100,$I100/$H100*100)) ->  | BB100: 0 | BD100: 1739.925 | BE100: R3 | BF100: R3 | BG100: R3 | BH100: 22 | BI100: 19 | BJ100: 1690.5 | BK100: R3 | BL100: 6 | BQ100: =IF(LEFT(ScheduleSetup!$P$6,4)="Soyb",BG100,BF100) -> R3 | BR100: 50 | BW100: 0 | BY100: 0.153 | DU100: 21.33 | IQ100: Wixom
A101: 2020-08-18 | B101: 36 | F101: 1.2 | G101: 0 | H101: 3.9 | I101: 0.7001122521 | K101: 0 | L101: =IF(Caluations!$J90<0,0,Caluations!$J90) ->  | N101: R3 | O101: =IF(AND($E101="",Caluations!$F90<8),$R101*$F101,0) -> 0 | P101: 1758.925 | Q101: =IF(LEFT(ScheduleSetup!$P$6,4)="Corn",BF101,BG101) -> R3 | AN101: 0 | AO101: 1 | AP101: 0 | AQ101: 0 | AU101: =IF((OR($E100<>"" )), Calculations2!$AV101,"") ->  | AV101: 0.7001122521 | AX101: =IF(AND(Caluations!$F90>5,Caluations!$F90<>FALSE),"",IF($E101="",($I101/$H101)*100,$I101/$H101*100)) ->  | BB101: 0 | BD101: 1758.925 | BE101: R3 | BF101: R3 | BG101: R3 | BH101: 22 | BI101: 19 | BJ101: 1709.5 | BK101: R3 | BL101: 7 | BQ101: =IF(LEFT(ScheduleSetup!$P$6,4)="Soyb",BG101,BF101) -> R3 | BR101: 50 | BX101: 0 | BZ101: 0.182 | DV101: 20.23 | IQ101: Ziegenfuss
A102: 2020-08-19 | B102: 36 | F102: 1.2 | G102: 0 | H102: 3.9 | I102: 0.7001122521 | K102: 0 | L102: =IF(Caluations!$J91<0,0,Caluations!$J91) ->  | N102: R3 | O102: =IF(AND($E102="",Caluations!$F91<8),$R102*$F102,0) -> 0 | P102: 1777.925 | Q102: =IF(LEFT(ScheduleSetup!$P$6,4)="Corn",BF102,BG102) -> R3 | AN102: 0 | AO102: 1 | AP102: 0 | AQ102: 0 | AU102: =IF((OR($E101<>"" )), Calculations2!$AV102,"") ->  | AV102: 0.7001122521 | AX102: =IF(AND(Caluations!$F91>5,Caluations!$F91<>FALSE),"",IF($E102="",($I102/$H102)*100,$I102/$H102*100)) ->  | BB102: 0 | BD102: =+IF(BC102="",BD101+BI102,BD101+BC102) -> 1777.925 | BE102: R3 | BF102: R3 | BG102: R3 | BH102: 22 | BI102: 19 | BJ102: 1728.5 | BK102: R3 | BL102: 8 | BQ102: =IF(LEFT(ScheduleSetup!$P$6,4)="Soyb",BG102,BF102) -> R3 | BR102: 50 | BY102: 0 | CA102: 0.187 | DW102: 17.62
A103: 2020-08-20 | B103: 36 | F103: 1.2 | G103: 0 | H103: 3.9 | I103: 0.7001122521 | K103: 0 | L103: =IF(Caluations!$J92<0,0,Caluations!$J92) ->  | N103: R3 | O103: =IF(AND($E103="",Caluations!$F92<8),$R103*$F103,0) -> 0 | P103: 1796.925 | Q103: =IF(LEFT(ScheduleSetup!$P$6,4)="Corn",BF103,BG103) -> R3 | AN103: 0 | AO103: 1 | AP103: 0 | AQ103: 0 | AU103: =IF((OR($E102<>"" )), Calculations2!$AV103,"") ->  | AV103: 0.7001122521 | AX103: =IF(AND(Caluations!$F92>5,Caluations!$F92<>FALSE),"",IF($E103="",($I103/$H103)*100,$I103/$H103*100)) ->  | BB103: 0 | BD103: 1796.925 | BE103: R3 | BF103: R3 | BG103: R4 | BH103: 22 | BI103: 19 | BJ103: 1747.5 | BK103: R3 | BL103: 9 | BQ103: =IF(LEFT(ScheduleSetup!$P$6,4)="Soyb",BG103,BF103) -> R3 | BR103: 50 | BZ103: 0.11 | CB103: 0.162 | DX103: 21.67
A104: 2020-08-21 | B104: 36 | F104: 1.2 | G104: 0 | H104: 3.9 | I104: 0.7001122521 | K104: 0 | L104: =IF(Caluations!$J93<0,0,Caluations!$J93) ->  | N104: R4 | O104: =IF(AND($E104="",Caluations!$F93<8),$R104*$F104,0) -> 0 | P104: 1815.925 | Q104: =IF(LEFT(ScheduleSetup!$P$6,4)="Corn",BF104,BG104) -> R4 | AN104: 0 | AO104: 1 | AP104: 0 | AQ104: 0 | AU104: =IF((OR($E103<>"" )), Calculations2!$AV104,"") ->  | AV104: 0.7001122521 | AX104: =IF(AND(Caluations!$F93>5,Caluations!$F93<>FALSE),"",IF($E104="",($I104/$H104)*100,$I104/$H104*100)) ->  | BB104: 0 | BD104: 1815.925 | BE104: R3 | BF104: R4 | BG104: R4 | BH104: 22 | BI104: 19 | BJ104: 1766.5 | BK104: R3 | BL104: 10 | BQ104: =IF(LEFT(ScheduleSetup!$P$6,4)="Soyb",BG104,BF104) -> R4 | BR104: 50 | CA104: 0.26 | CC104: 0.104 | DY104: 20.6
A105: 2020-08-22 | B105: 36 | F105: 1.2 | G105: 0 | H105: 3.9 | I105: 0.7001122521 | K105: 0 | L105: =IF(Caluations!$J94<0,0,Caluations!$J94) ->  | N105: R4 | O105: =IF(AND($E105="",Caluations!$F94<8),$R105*$F105,0) -> 0 | P105: 1834.925 | Q105: =IF(LEFT(ScheduleSetup!$P$6,4)="Corn",BF105,BG105) -> R4 | AN105: 0 | AO105: 1 | AP105: 0 | AQ105: 0 | AU105: =IF((OR($E104<>"" )), Calculations2!$AV105,"") ->  | AV105: 0.7001122521 | AX105: =IF(AND(Caluations!$F94>5,Caluations!$F94<>FALSE),"",IF($E105="",($I105/$H105)*100,$I105/$H105*100)) ->  | BB105: 0 | BD105: 1834.925 | BE105: R3 | BF105: R4 | BG105: R4 | BH105: 22 | BI105: 19 | BJ105: 1785.5 | BK105: R3 | BL105: 1 | BQ105: =IF(LEFT(ScheduleSetup!$P$6,4)="Soyb",BG105,BF105) -> R4 | BR105: 50 | CB105: 0 | CD105: 0.175 | DZ105: 18.98
A106: 2020-08-23 | B106: 36 | F106: 1.2 | G106: 0 | H106: 3.9 | I106: 0.7001122521 | K106: 0 | L106: =IF(Caluations!$J95<0,0,Caluations!$J95) ->  | N106: R4 | O106: =IF(AND($E106="",Caluations!$F95<8),$R106*$F106,0) -> 0 | P106: 1852.925 | Q106: =IF(LEFT(ScheduleSetup!$P$6,4)="Corn",BF106,BG106) -> R4 | AN106: 0 | AO106: 1 | AP106: 0 | AQ106: 0 | AU106: =IF((OR($E105<>"" )), Calculations2!$AV106,"") ->  | AV106: 0.7001122521 | AX106: =IF(AND(Caluations!$F95>5,Caluations!$F95<>FALSE),"",IF($E106="",($I106/$H106)*100,$I106/$H106*100)) ->  | BB106: 0 | BD106: 1852.925 | BE106: R3 | BF106: R4 | BG106: R4 | BH106: 21 | BI106: 18 | BJ106: 1803.5 | BK106: R3 | BL106: 2 | BQ106: =IF(LEFT(ScheduleSetup!$P$6,4)="Soyb",BG106,BF106) -> R4 | BR106: 50 | CC106: 0 | CE106: 0.187 | EA106: 17.595
A107: 2020-08-24 | B107: 36 | F107: 1.2 | G107: 0 | H107: 3.9 | I107: 0.7001122521 | K107: 0 | L107: =IF(Caluations!$J96<0,0,Caluations!$J96) ->  | N107: R4 | O107: =IF(AND($E107="",Caluations!$F96<8),$R107*$F107,0) -> 0 | P107: 1870.925 | Q107: =IF(LEFT(ScheduleSetup!$P$6,4)="Corn",BF107,BG107) -> R4 | AN107: 0 | AO107: 1 | AP107: 0 | AQ107: 0 | AU107: =IF((OR($E106<>"" )), Calculations2!$AV107,"") ->  | AV107: 0.7001122521 | AX107: =IF(AND(Caluations!$F96>5,Caluations!$F96<>FALSE),"",IF($E107="",($I107/$H107)*100,$I107/$H107*100)) ->  | BB107: 0 | BD107: 1870.925 | BE107: R4 | BF107: R4 | BG107: R4 | BH107: 21 | BI107: 18 | BJ107: 1821.5 | BK107: R4 | BL107: 3 | BQ107: =IF(LEFT(ScheduleSetup!$P$6,4)="Soyb",BG107,BF107) -> R4 | BR107: 50 | CD107: 0 | CF107: 0.19 | EB107: 19.09
A108: 2020-08-25 | B108: 36 | F108: 1.2 | G108: 0 | H108: 3.9 | I108: 0.7001122521 | K108: 0 | L108: =IF(Caluations!$J97<0,0,Caluations!$J97) ->  | N108: R4 | O108: =IF(AND($E108="",Caluations!$F97<8),$R108*$F108,0) -> 0 | P108: 1888.925 | Q108: =IF(LEFT(ScheduleSetup!$P$6,4)="Corn",BF108,BG108) -> R4 | AN108: 0 | AO108: 1 | AP108: 0 | AQ108: 0 | AU108: =IF((OR($E107<>"" )), Calculations2!$AV108,"") ->  | AV108: 0.7001122521 | AX108: =IF(AND(Caluations!$F97>5,Caluations!$F97<>FALSE),"",IF($E108="",($I108/$H108)*100,$I108/$H108*100)) ->  | BB108: 0 | BD108: 1888.925 | BE108: R4 | BF108: R4 | BG108: R4 | BH108: 21 | BI108: 18 | BJ108: 1839.5 | BK108: R4 | BL108: 4 | BQ108: =IF(LEFT(ScheduleSetup!$P$6,4)="Soyb",BG108,BF108) -> R4 | BR108: 50 | CE108: 0 | CG108: 0.187 | EC108: 19.455
A109: 2020-08-26 | B109: 36 | F109: 1.2 | G109: 0 | H109: 3.9 | I109: 0.7001122521 | K109: 0 | L109: =IF(Caluations!$J98<0,0,Caluations!$J98) ->  | N109: R4 | O109: =IF(AND($E109="",Caluations!$F98<8),$R109*$F109,0) -> 0 | P109: 1906.925 | Q109: =IF(LEFT(ScheduleSetup!$P$6,4)="Corn",BF109,BG109) -> R4 | AN109: 0 | AO109: 1 | AP109: 0 | AQ109: 0 | AU109: =IF((OR($E108<>"" )), Calculations2!$AV109,"") ->  | AV109: 0.7001122521 | AX109: =IF(AND(Caluations!$F98>5,Caluations!$F98<>FALSE),"",IF($E109="",($I109/$H109)*100,$I109/$H109*100)) ->  | BB109: 0 | BD109: 1906.925 | BE109: R4 | BF109: R4 | BG109: R4 | BH109: 21 | BI109: 18 | BJ109: 1857.5 | BK109: R4 | BL109: 5 | BQ109: =IF(LEFT(ScheduleSetup!$P$6,4)="Soyb",BG109,BF109) -> R4 | BR109: 50 | CF109: 0 | CH109: 0.183 | ED109: 22.815
A110: 2020-08-27 | B110: 36 | F110: 1.2 | G110: 0 | H110: 3.9 | I110: 0.7001122521 | K110: 0 | L110: =IF(Caluations!$J99<0,0,Caluations!$J99) ->  | N110: R4 | O110: =IF(AND($E110="",Caluations!$F99<8),$R110*$F110,0) -> 0 | P110: 1924.925 | Q110: =IF(LEFT(ScheduleSetup!$P$6,4)="Corn",BF110,BG110) -> R4 | AN110: 0 | AO110: 1 | AP110: 0 | AQ110: 0 | AU110: =IF((OR($E109<>"" )), Calculations2!$AV110,"") ->  | AV110: 0.7001122521 | AX110: =IF(AND(Caluations!$F99>5,Caluations!$F99<>FALSE),"",IF($E110="",($I110/$H110)*100,$I110/$H110*100)) ->  | BB110: 0 | BD110: 1924.925 | BE110: R4 | BF110: R4 | BG110: R4 | BH110: 21 | BI110: 18 | BJ110: 1875.5 | BK110: R4 | BL110: 6 | BQ110: =IF(LEFT(ScheduleSetup!$P$6,4)="Soyb",BG110,BF110) -> R4 | BR110: 50 | CG110: 0.07 | CI110: 0.084 | EE110: 23.36
A111: 2020-08-28 | B111: 36 | F111: 1.2 | G111: 0 | H111: 3.9 | I111: 0.7001122521 | K111: 0 | L111: =IF(Caluations!$J100<0,0,Caluations!$J100) ->  | N111: R4 | O111: =IF(AND($E111="",Caluations!$F100<8),$R111*$F111,0) -> 0 | P111: 1941.925 | Q111: =IF(LEFT(ScheduleSetup!$P$6,4)="Corn",BF111,BG111) -> R4 | AN111: 0 | AO111: 1 | AP111: 0 | AQ111: 0 | AU111: =IF((OR($E110<>"" )), Calculations2!$AV111,"") ->  | AV111: 0.7001122521 | AX111: =IF(AND(Caluations!$F100>5,Caluations!$F100<>FALSE),"",IF($E111="",($I111/$H111)*100,$I111/$H111*100)) ->  | BB111: 0 | BD111: 1941.925 | BE111: R4 | BF111: R4 | BG111: R4 | BH111: 21 | BI111: 17 | BJ111: 1892.5 | BK111: R4 | BL111: 7 | BQ111: =IF(LEFT(ScheduleSetup!$P$6,4)="Soyb",BG111,BF111) -> R4 | BR111: 50 | CH111: 0.01 | CJ111: 0.043 | EF111: 10.875
A112: 2020-08-29 | B112: 36 | F112: 1.2 | G112: 0 | H112: 3.9 | I112: 0.7001122521 | K112: 0 | L112: =IF(Caluations!$J101<0,0,Caluations!$J101) ->  | N112: R4 | O112: =IF(AND($E112="",Caluations!$F101<8),$R112*$F112,0) -> 0 | P112: 1958.925 | Q112: =IF(LEFT(ScheduleSetup!$P$6,4)="Corn",BF112,BG112) -> R4 | AN112: 0 | AO112: 1 | AP112: 0 | AQ112: 0 | AU112: =IF((OR($E111<>"" )), Calculations2!$AV112,"") ->  | AV112: 0.7001122521 | AX112: =IF(AND(Caluations!$F101>5,Caluations!$F101<>FALSE),"",IF($E112="",($I112/$H112)*100,$I112/$H112*100)) ->  | BB112: 0 | BD112: 1958.925 | BE112: R4 | BF112: R4 | BG112: R5 | BH112: 20 | BI112: 17 | BJ112: 1909.5 | BK112: R4 | BL112: 8 | BQ112: =IF(LEFT(ScheduleSetup!$P$6,4)="Soyb",BG112,BF112) -> R4 | BR112: 50 | CI112: 0 | CK112: 0.169 | EG112: 13.175
A113: 2020-08-30 | B113: 36 | F113: 1.2 | G113: 0 | H113: 3.9 | I113: 0.7001122521 | K113: 0 | L113: =IF(Caluations!$J102<0,0,Caluations!$J102) ->  | N113: R4 | O113: =IF(AND($E113="",Caluations!$F102<8),$R113*$F113,0) -> 0 | P113: 1975.925 | Q113: =IF(LEFT(ScheduleSetup!$P$6,4)="Corn",BF113,BG113) -> R4 | AN113: 0 | AO113: 1 | AP113: 0 | AQ113: 0 | AU113: =IF((OR($E112<>"" )), Calculations2!$AV113,"") ->  | AV113: 0.7001122521 | AX113: =IF(AND(Caluations!$F102>5,Caluations!$F102<>FALSE),"",IF($E113="",($I113/$H113)*100,$I113/$H113*100)) ->  | BB113: 0 | BD113: 1975.925 | BE113: R4 | BF113: R4 | BG113: R5 | BH113: 20 | BI113: 17 | BJ113: 1926.5 | BK113: R4 | BL113: 9 | BQ113: =IF(LEFT(ScheduleSetup!$P$6,4)="Soyb",BG113,BF113) -> R4 | BR113: 50 | CJ113: 0 | CL113: 0.172 | EH113: 10.18
A114: 2020-08-31 | B114: 36 | F114: 1.2 | G114: 0 | H114: 3.9 | I114: 0.7001122521 | K114: 0 | L114: =IF(Caluations!$J103<0,0,Caluations!$J103) ->  | N114: R4 | O114: =IF(AND($E114="",Caluations!$F103<8),$R114*$F114,0) -> 0 | P114: 1992.925 | Q114: =IF(LEFT(ScheduleSetup!$P$6,4)="Corn",BF114,BG114) -> R4 | AN114: 0 | AO114: 1 | AP114: 0 | AQ114: 0 | AU114: =IF((OR($E113<>"" )), Calculations2!$AV114,"") ->  | AV114: 0.7001122521 | AX114: =IF(AND(Caluations!$F103>5,Caluations!$F103<>FALSE),"",IF($E114="",($I114/$H114)*100,$I114/$H114*100)) ->  | BB114: 0 | BD114: 1992.925 | BE114: R4 | BF114: R4 | BG114: R5 | BH114: 20 | BI114: 17 | BJ114: 1943.5 | BK114: R4 | BL114: 10 | BQ114: =IF(LEFT(ScheduleSetup!$P$6,4)="Soyb",BG114,BF114) -> R4 | BR114: 50 | CK114: 0 | CM114: 0.169 | EI114: 11.915
A115: 2020-09-01 | B115: 36 | F115: 1.2 | G115: 0 | H115: 3.9 | I115: 0.7001122521 | K115: 0 | L115: =IF(Caluations!$J104<0,0,Caluations!$J104) ->  | N115: R4 | O115: =IF(AND($E115="",Caluations!$F104<8),$R115*$F115,0) -> 0 | P115: 2008.925 | Q115: =IF(LEFT(ScheduleSetup!$P$6,4)="Corn",BF115,BG115) -> R4 | AN115: 0 | AO115: 1 | AP115: 0 | AQ115: 0 | AU115: =IF((OR($E114<>"" )), Calculations2!$AV115,"") ->  | AV115: 0.7001122521 | AX115: =IF(AND(Caluations!$F104>5,Caluations!$F104<>FALSE),"",IF($E115="",($I115/$H115)*100,$I115/$H115*100)) ->  | BB115: 0 | BD115: 2008.925 | BE115: R4 | BF115: R4 | BG115: R5 | BH115: 20 | BI115: 16 | BJ115: 1959.5 | BK115: R4 | BL115: 11 | BQ115: =IF(LEFT(ScheduleSetup!$P$6,4)="Soyb",BG115,BF115) -> R4 | BR115: 50 | CL115: 0 | CN115: 0.144 | EJ115: 17.9
A116: =1+A115 -> 2020-09-02 | B116: 36 | F116: 1.2 | G116: 0 | H116: 3.9 | I116: 0.7001122521 | K116: =IF(IF(OR($J116<103,$E115=""),0,$C116+$D116+$I115-$G116-($H116*1.03))>0, IF(OR($J116<103,$E115=""),0,$C116+$D116+$I115-$G116-($H116*1.03)),0) -> 0 | L116: =IF(Caluations!$J105<0,0,Caluations!$J105) ->  | N116: R4 | O116: =IF(AND($E116="",Caluations!$F105<8),$R116*$F116,0) -> 0 | P116: 2024.925 | Q116: =IF(LEFT(ScheduleSetup!$P$6,4)="Corn",BF116,BG116) -> R4 | AN116: =+$F116*$E115 -> 0 | AO116: 1 | AP116: 0 | AQ116: 0 | AU116: =IF((OR($E115<>"" )), Calculations2!$AV116,"") ->  | AV116: 0.7001122521 | AX116: =IF(AND(Caluations!$F105>5,Caluations!$F105<>FALSE),"",IF($E116="",($I116/$H116)*100,$I116/$H116*100)) ->  | BB116: 0 | BD116: 2024.925 | BE116: R4 | BF116: R4 | BG116: R5 | BH116: 20 | BI116: 16 | BJ116: 1975.5 | BK116: R4 | BL116: 12 | BQ116: =IF(LEFT(ScheduleSetup!$P$6,4)="Soyb",BG116,BF116) -> R4 | BR116: 50 | CM116: 0 | CO116: 0.092 | EK116: 22.52
A117: 2020-09-03 | B117: 36 | F117: 1.1 | G117: 0 | H117: 3.9 | I117: 0.7001122521 | K117: 0 | L117: =IF(Caluations!$J106<0,0,Caluations!$J106) ->  | N117: R5 | O117: =IF(AND($E117="",Caluations!$F106<8),$R117*$F117,0) -> 0 | P117: 2040.925 | Q117: =IF(LEFT(ScheduleSetup!$P$6,4)="Corn",BF117,BG117) -> R5 | AN117: 0 | AO117: 1 | AP117: 0 | AQ117: 0 | AU117: =IF((OR($E116<>"" )), Calculations2!$AV117,"") ->  | AV117: 0.7001122521 | AX117: =IF(AND(Caluations!$F106>5,Caluations!$F106<>FALSE),"",IF($E117="",($I117/$H117)*100,$I117/$H117*100)) ->  | BB117: 0 | BD117: 2040.925 | BE117: R4 | BF117: R5 | BG117: R5 | BH117: 20 | BI117: 16 | BJ117: 1991.5 | BK117: R4 | BL117: 1 | BQ117: =IF(LEFT(ScheduleSetup!$P$6,4)="Soyb",BG117,BF117) -> R5 | BR117: 50 | CN117: 0 | CP117: 0.118 | EL117: 21.555
A118: 2020-09-04 | B118: 36 | F118: 1.078 | G118: 0 | H118: 3.9 | I118: 0.7001122521 | K118: 0 | L118: =IF(Caluations!$J107<0,0,Caluations!$J107) ->  | N118: R5 | O118: =IF(AND($E118="",Caluations!$F107<8),$R118*$F118,0) -> 0 | P118: 2056.925 | Q118: =IF(LEFT(ScheduleSetup!$P$6,4)="Corn",BF118,BG118) -> R5 | AN118: 0 | AO118: 1 | AP118: 0 | AQ118: 0 | AU118: =IF((OR($E117<>"" )), Calculations2!$AV118,"") ->  | AV118: 0.7001122521 | AX118: =IF(AND(Caluations!$F107>5,Caluations!$F107<>FALSE),"",IF($E118="",($I118/$H118)*100,$I118/$H118*100)) ->  | BB118: 0 | BD118: 2056.925 | BE118: R4 | BF118: R5 | BG118: R5 | BH118: 19 | BI118: 16 | BJ118: 2007.5 | BK118: R4 | BL118: 2 | BQ118: =IF(LEFT(ScheduleSetup!$P$6,4)="Soyb",BG118,BF118) -> R5 | BR118: 50 | CO118: 0.16 | CQ118: 0.105 | EM118: 23.29
A119: 2020-09-05 | B119: 36 | F119: 1.056 | G119: 0 | H119: 3.9 | I119: 0.7001122521 | K119: 0 | L119: =IF(Caluations!$J108<0,0,Caluations!$J108) ->  | N119: R5 | O119: =IF(AND($E119="",Caluations!$F108<8),$R119*$F119,0) -> 0 | P119: 2071.925 | Q119: =IF(LEFT(ScheduleSetup!$P$6,4)="Corn",BF119,BG119) -> R5 | AN119: 0 | AO119: 1 | AP119: 0 | AQ119: 0 | AU119: =IF((OR($E118<>"" )), Calculations2!$AV119,"") ->  | AV119: 0.7001122521 | AX119: =IF(AND(Caluations!$F108>5,Caluations!$F108<>FALSE),"",IF($E119="",($I119/$H119)*100,$I119/$H119*100)) ->  | BB119: 0 | BD119: 2071.925 | BE119: R4 | BF119: R5 | BG119: R5 | BH119: 19 | BI119: 15 | BJ119: 2022.5 | BK119: R4 | BL119: 3 | BQ119: =IF(LEFT(ScheduleSetup!$P$6,4)="Soyb",BG119,BF119) -> R5 | BR119: 50 | CP119: 0 | CR119: 0.156 | EN119: 22.39
A120: 2020-09-06 | B120: 36 | F120: 1.034 | G120: 0 | H120: 3.9 | I120: 0.7001122521 | K120: 0 | L120: =IF(Caluations!$J109<0,0,Caluations!$J109) ->  | N120: R5 | O120: =IF(AND($E120="",Caluations!$F109<8),$R120*$F120,0) -> 0 | P120: 2086.925 | Q120: =IF(LEFT(ScheduleSetup!$P$6,4)="Corn",BF120,BG120) -> R5 | AN120: 0 | AO120: 1 | AP120: 0 | AQ120: 0 | AU120: =IF((OR($E119<>"" )), Calculations2!$AV120,"") ->  | AV120: 0.7001122521 | AX120: =IF(AND(Caluations!$F109>5,Caluations!$F109<>FALSE),"",IF($E120="",($I120/$H120)*100,$I120/$H120*100)) ->  | BB120: 0 | BD120: 2086.925 | BE120: R5 | BF120: R5 | BG120: R5 | BH120: 19 | BI120: 15 | BJ120: 2037.5 | BK120: R5 | BL120: 4 | BQ120: =IF(LEFT(ScheduleSetup!$P$6,4)="Soyb",BG120,BF120) -> R5 | BR120: 50 | CQ120: 0.27 | CS120: 0.09 | EO120: 23.84
A121: 2020-09-07 | B121: 36 | F121: 1.012 | G121: 0 | H121: 3.9 | I121: 0.7001122521 | K121: 0 | L121: =IF(Caluations!$J110<0,0,Caluations!$J110) ->  | N121: R5 | O121: =IF(AND($E121="",Caluations!$F110<8),$R121*$F121,0) -> 0 | P121: 2101.925 | Q121: =IF(LEFT(ScheduleSetup!$P$6,4)="Corn",BF121,BG121) -> R5 | AN121: 0 | AO121: 1 | AP121: 0 | AQ121: 0 | AU121: =IF((OR($E120<>"" )), Calculations2!$AV121,"") ->  | AV121: 0.7001122521 | AX121: =IF(AND(Caluations!$F110>5,Caluations!$F110<>FALSE),"",IF($E121="",($I121/$H121)*100,$I121/$H121*100)) ->  | BB121: 0 | BD121: 2101.925 | BE121: R5 | BF121: R5 | BG121: R5 | BH121: 19 | BI121: 15 | BJ121: 2052.5 | BK121: R5 | BL121: 5 | BQ121: =IF(LEFT(ScheduleSetup!$P$6,4)="Soyb",BG121,BF121) -> R5 | BR121: 50 | CR121: 0 | CT121: 0.083 | EP121: 25.82
A122: 2020-09-08 | B122: 36 | F122: 0.99 | G122: 0 | H122: 3.9 | I122: 0.7001122521 | K122: 0 | L122: =IF(Caluations!$J111<0,0,Caluations!$J111) ->  | N122: R5 | O122: =IF(AND($E122="",Caluations!$F111<8),$R122*$F122,0) -> 0 | P122: 2116.925 | Q122: =IF(LEFT(ScheduleSetup!$P$6,4)="Corn",BF122,BG122) -> R5 | AN122: 0 | AO122: 1 | AP122: 0 | AQ122: 0 | AU122: =IF((OR($E121<>"" )), Calculations2!$AV122,"") ->  | AV122: 0.7001122521 | AX122: =IF(AND(Caluations!$F111>5,Caluations!$F111<>FALSE),"",IF($E122="",($I122/$H122)*100,$I122/$H122*100)) ->  | BB122: 0 | BD122: 2116.925 | BE122: R5 | BF122: R5 | BG122: R5 | BH122: 19 | BI122: 15 | BJ122: 2067.5 | BK122: R5 | BL122: 6 | BQ122: =IF(LEFT(ScheduleSetup!$P$6,4)="Soyb",BG122,BF122) -> R5 | BR122: 50 | CS122: 0 | CU122: 0.109 | EQ122: 26.055
A123: 2020-09-09 | B123: 36 | F123: 0.968 | G123: 0 | H123: 3.9 | I123: 0.7001122521 | K123: 0 | L123: =IF(Caluations!$J112<0,0,Caluations!$J112) ->  | N123: R5 | O123: =IF(AND($E123="",Caluations!$F112<8),$R123*$F123,0) -> 0 | P123: 2130.925 | Q123: =IF(LEFT(ScheduleSetup!$P$6,4)="Corn",BF123,BG123) -> R5 | AN123: 0 | AO123: 1 | AP123: 0 | AQ123: 0 | AU123: =IF((OR($E122<>"" )), Calculations2!$AV123,"") ->  | AV123: 0.7001122521 | AX123: =IF(AND(Caluations!$F112>5,Caluations!$F112<>FALSE),"",IF($E123="",($I123/$H123)*100,$I123/$H123*100)) ->  | BB123: 0 | BD123: 2130.925 | BE123: R5 | BF123: R5 | BG123: R5 | BH123: 19 | BI123: 14 | BJ123: 2081.5 | BK123: R5 | BL123: 7 | BQ123: =IF(LEFT(ScheduleSetup!$P$6,4)="Soyb",BG123,BF123) -> R5 | BR123: 50 | CT123: 0 | CV123: 0.119 | ER123: 23.78
A124: 2020-09-10 | B124: 36 | F124: 0.946 | G124: 0 | H124: 3.9 | I124: 0.7001122521 | K124: 0 | L124: =IF(Caluations!$J113<0,0,Caluations!$J113) ->  | N124: R5 | O124: =IF(AND($E124="",Caluations!$F113<8),$R124*$F124,0) -> 0 | P124: 2144.925 | Q124: =IF(LEFT(ScheduleSetup!$P$6,4)="Corn",BF124,BG124) -> R5 | AN124: 0 | AO124: 1 | AP124: 0 | AQ124: 0 | AU124: =IF((OR($E123<>"" )), Calculations2!$AV124,"") ->  | AV124: =MAX(IF(($I123+$C124+$D124-$G124)+(($H124-$H123)*$B$13/100)>($H124*1.03),($H124*1.03),($I123+$C124+$D124-$G124-O124)+(($H124-$H123)*$B$13/100)),0) -> 0.7001122521 | AX124: =IF(AND(Caluations!$F113>5,Caluations!$F113<>FALSE),"",IF($E124="",($I124/$H124)*100,$I124/$H124*100)) ->  | BB124: 0 | BD124: 2144.925 | BE124: R5 | BF124: R5 | BG124: R5 | BH124: 19 | BI124: 14 | BJ124: 2095.5 | BK124: R5 | BL124: 8 | BQ124: =IF(LEFT(ScheduleSetup!$P$6,4)="Soyb",BG124,BF124) -> R5 | BR124: 50 | CU124: 0.02 | CW124: 0.122 | ES124: 27.045
A125: 2020-09-11 | B125: 36 | F125: 0.924 | G125: 0 | H125: 3.9 | I125: 0.7001122521 | K125: 0 | L125: =IF(Caluations!$J114<0,0,Caluations!$J114) ->  | N125: R5 | O125: =IF(AND($E125="",Caluations!$F114<8),$R125*$F125,0) -> 0 | P125: 2157.925 | Q125: =IF(LEFT(ScheduleSetup!$P$6,4)="Corn",BF125,BG125) -> R5 | AN125: 0 | AO125: 1 | AP125: 0 | AQ125: 0 | AU125: =IF((OR($E124<>"" )), Calculations2!$AV125,"") ->  | AV125: 0.7001122521 | AX125: =IF(AND(Caluations!$F114>5,Caluations!$F114<>FALSE),"",IF($E125="",($I125/$H125)*100,$I125/$H125*100)) ->  | BB125: 0 | BD125: 2157.925 | BE125: R5 | BF125: R5 | BG125: R6 | BH125: 18 | BI125: 13 | BJ125: 2108.5 | BK125: R5 | BL125: 9 | BQ125: =IF(LEFT(ScheduleSetup!$P$6,4)="Soyb",BG125,BF125) -> R5 | BR125: 50 | CV125: 1.32 | CX125: 0.06 | ET125: 22.4
A126: 2020-09-12 | B126: 36 | F126: 0.902 | G126: 0 | H126: 3.9 | I126: 0.7001122521 | K126: 0 | L126: =IF(Caluations!$J115<0,0,Caluations!$J115) ->  | N126: R5 | O126: =IF(AND($E126="",Caluations!$F115<8),$R126*$F126,0) -> 0 | P126: 2170.925 | Q126: =IF(LEFT(ScheduleSetup!$P$6,4)="Corn",BF126,BG126) -> R5 | AN126: 0 | AO126: 1 | AP126: 0 | AQ126: 0 | AU126: =IF((OR($E125<>"" )), Calculations2!$AV126,"") ->  | AV126: 0.7001122521 | AX126: =IF(AND(Caluations!$F115>5,Caluations!$F115<>FALSE),"",IF($E126="",($I126/$H126)*100,$I126/$H126*100)) ->  | BB126: 0 | BD126: 2170.925 | BE126: R5 | BF126: R5 | BG126: R6 | BH126: 18 | BI126: 13 | BJ126: 2121.5 | BK126: R5 | BL126: 10 | BQ126: =IF(LEFT(ScheduleSetup!$P$6,4)="Soyb",BG126,BF126) -> R5 | BR126: 50 | CW126: 0 | CY126: 0.143 | EU126: 18.74
A127: 2020-09-13 | B127: 36 | F127: 0.88 | G127: 0 | H127: 3.9 | I127: 0.7001122521 | K127: 0 | L127: =IF(Caluations!$J116<0,0,Caluations!$J116) ->  | N127: R5 | O127: =IF(AND($E127="",Caluations!$F116<8),$R127*$F127,0) -> 0 | P127: 2182.925 | Q127: =IF(LEFT(ScheduleSetup!$P$6,4)="Corn",BF127,BG127) -> R5 | AN127: 0 | AO127: 1 | AP127: 0 | AQ127: 0 | AU127: =IF((OR($E126<>"" )), Calculations2!$AV127,"") ->  | AV127: 0.7001122521 | AX127: =IF(AND(Caluations!$F116>5,Caluations!$F116<>FALSE),"",IF($E127="",($I127/$H127)*100,$I127/$H127*100)) ->  | BB127: 0 | BD127: 2182.925 | BE127: R5 | BF127: R5 | BG127: R6 | BH127: 18 | BI127: 12 | BJ127: 2133.5 | BK127: R5 | BL127: 11 | BQ127: =IF(LEFT(ScheduleSetup!$P$6,4)="Soyb",BG127,BF127) -> R5 | BR127: 50 | CX127: 0 | CZ127: 0.138 | EV127: 14.24
A128: 2020-09-14 | B128: 36 | F128: 0.858 | G128: 0 | H128: 3.9 | I128: 0.7001122521 | K128: 0 | L128: =IF(Caluations!$J117<0,0,Caluations!$J117) ->  | N128: R5 | O128: =IF(AND($E128="",Caluations!$F117<8),$R128*$F128,0) -> 0 | P128: 2194.925 | Q128: =IF(LEFT(ScheduleSetup!$P$6,4)="Corn",BF128,BG128) -> R5 | AN128: 0 | AO128: 1 | AP128: 0 | AQ128: 0 | AU128: =IF((OR($E127<>"" )), Calculations2!$AV128,"") ->  | AV128: 0.7001122521 | AX128: =IF(AND(Caluations!$F117>5,Caluations!$F117<>FALSE),"",IF($E128="",($I128/$H128)*100,$I128/$H128*100)) ->  | BB128: 0 | BD128: 2194.925 | BE128: R5 | BF128: R5 | BG128: R6 | BH128: 18 | BI128: 12 | BJ128: 2145.5 | BK128: R5 | BL128: 12 | BQ128: =IF(LEFT(ScheduleSetup!$P$6,4)="Soyb",BG128,BF128) -> R5 | BR128: 50 | CY128: 0.17 | DA128: 0.093 | EW128: 19.465
A129: 2020-09-15 | B129: 36 | F129: 0.836 | G129: 0 | H129: 3.9 | I129: 0.7001122521 | K129: 0 | L129: =IF(Caluations!$J118<0,0,Caluations!$J118) ->  | N129: R5 | O129: =IF(AND($E129="",Caluations!$F118<8),$R129*$F129,0) -> 0 | P129: 2205.925 | Q129: =IF(LEFT(ScheduleSetup!$P$6,4)="Corn",BF129,BG129) -> R5 | AN129: 0 | AO129: 1 | AP129: 0 | AQ129: 0 | AU129: =IF((OR($E128<>"" )), Calculations2!$AV129,"") ->  | AV129: 0.7001122521 | AX129: =IF(AND(Caluations!$F118>5,Caluations!$F118<>FALSE),"",IF($E129="",($I129/$H129)*100,$I129/$H129*100)) ->  | BB129: 0 | BD129: 2205.925 | BE129: R5 | BF129: R5 | BG129: R6 | BH129: 18 | BI129: 11 | BJ129: 2156.5 | BK129: R5 | BL129: 13 | BQ129: =IF(LEFT(ScheduleSetup!$P$6,4)="Soyb",BG129,BF129) -> R5 | BR129: 50 | CZ129: 1.03 | DB129: 0.105 | EX129: 23.84
A130: 2020-09-16 | B130: 36 | F130: 0.814 | G130: 0 | H130: 3.9 | I130: 0.7001122521 | K130: 0 | L130: =IF(Caluations!$J119<0,0,Caluations!$J119) ->  | N130: R5 | O130: =IF(AND($E130="",Caluations!$F119<8),$R130*$F130,0) -> 0 | P130: 2216.925 | Q130: =IF(LEFT(ScheduleSetup!$P$6,4)="Corn",BF130,BG130) -> R5 | AN130: 0 | AO130: 1 | AP130: 0 | AQ130: 0 | AU130: =IF((OR($E129<>"" )), Calculations2!$AV130,"") ->  | AV130: 0.7001122521 | AX130: =IF(AND(Caluations!$F119>5,Caluations!$F119<>FALSE),"",IF($E130="",($I130/$H130)*100,$I130/$H130*100)) ->  | BB130: 0 | BD130: 2216.925 | BE130: R5 | BF130: R5 | BG130: R6 | BH130: 17 | BI130: 11 | BJ130: 2167.5 | BK130: R5 | BL130: 1 | BQ130: =IF(LEFT(ScheduleSetup!$P$6,4)="Soyb",BG130,BF130) -> R5 | BR130: 50 | DA130: 0 | DC130: 0.13 | EY130: 24.01
A131: 2020-09-17 | B131: 36 | F131: 0.792 | G131: 0 | H131: 3.9 | I131: 0.7001122521 | K131: 0 | L131: =IF(Caluations!$J120<0,0,Caluations!$J120) ->  | N131: R5 | O131: =IF(AND($E131="",Caluations!$F120<8),$R131*$F131,0) -> 0 | P131: 2226.925 | Q131: =IF(LEFT(ScheduleSetup!$P$6,4)="Corn",BF131,BG131) -> R5 | AN131: 0 | AO131: 1 | AP131: 0 | AQ131: 0 | AU131: =IF((OR($E130<>"" )), Calculations2!$AV131,"") ->  | AV131: 0.7001122521 | AX131: =IF(AND(Caluations!$F120>5,Caluations!$F120<>FALSE),"",IF($E131="",($I131/$H131)*100,$I131/$H131*100)) ->  | BB131: 0 | BD131: 2226.925 | BE131: R5 | BF131: R5 | BG131: R6 | BH131: 17 | BI131: 10 | BJ131: 2177.5 | BK131: R5 | BL131: 2 | BQ131: =IF(LEFT(ScheduleSetup!$P$6,4)="Soyb",BG131,BF131) -> R5 | BR131: 50 | DB131: 0.23 | DD131: 0.086 | EZ131: 24.505
A132: 2020-09-18 | B132: 36 | F132: 0.77 | G132: 0 | H132: 3.9 | I132: 0.7001122521 | K132: 0 | L132: =IF(Caluations!$J121<0,0,Caluations!$J121) ->  | N132: R5 | O132: =IF(AND($E132="",Caluations!$F121<8),$R132*$F132,0) -> 0 | P132: 2236.925 | Q132: =IF(LEFT(ScheduleSetup!$P$6,4)="Corn",BF132,BG132) -> R5 | AN132: 0 | AO132: 1 | AP132: 0 | AQ132: 0 | AU132: =IF((OR($E131<>"" )), Calculations2!$AV132,"") ->  | AV132: 0.7001122521 | AX132: =IF(AND(Caluations!$F121>5,Caluations!$F121<>FALSE),"",IF($E132="",($I132/$H132)*100,$I132/$H132*100)) ->  | BB132: 0 | BD132: 2236.925 | BE132: R5 | BF132: R5 | BG132: R6 | BH132: 17 | BI132: 10 | BJ132: 2187.5 | BK132: R5 | BL132: 3 | BQ132: =IF(LEFT(ScheduleSetup!$P$6,4)="Soyb",BG132,BF132) -> R5 | BR132: 50 | DC132: 0 | DE132: 0.125 | FA132: 19.52
A133: 2020-09-19 | B133: 36 | F133: 0.748 | G133: 0 | H133: 3.9 | I133: 0.7001122521 | K133: 0 | L133: =IF(Caluations!$J122<0,0,Caluations!$J122) ->  | N133: R5 | O133: =IF(AND($E133="",Caluations!$F122<8),$R133*$F133,0) -> 0 | P133: 2246.925 | Q133: =IF(LEFT(ScheduleSetup!$P$6,4)="Corn",BF133,BG133) -> R5 | AN133: 0 | AO133: 1 | AP133: 0 | AQ133: 0 | AU133: =IF((OR($E132<>"" )), Calculations2!$AV133,"") ->  | AV133: 0.7001122521 | AX133: =IF(AND(Caluations!$F122>5,Caluations!$F122<>FALSE),"",IF($E133="",($I133/$H133)*100,$I133/$H133*100)) ->  | BB133: 0 | BD133: 2246.925 | BE133: R5 | BF133: R5 | BG133: R6 | BH133: 17 | BI133: 10 | BJ133: 2197.5 | BK133: R5 | BL133: 4 | BQ133: =IF(LEFT(ScheduleSetup!$P$6,4)="Soyb",BG133,BF133) -> R5 | BR133: 50 | DD133: 0 | DF133: 0.159 | FB133: 20.36
A134: 2020-09-20 | B134: 36 | F134: 0.726 | G134: 0 | H134: 3.9 | I134: 0.7001122521 | K134: 0 | L134: =IF(Caluations!$J123<0,0,Caluations!$J123) ->  | N134: R5 | O134: =IF(AND($E134="",Caluations!$F123<8),$R134*$F134,0) -> 0 | P134: 2255.925 | Q134: =IF(LEFT(ScheduleSetup!$P$6,4)="Corn",BF134,BG134) -> R5 | AN134: 0 | AO134: 1 | AP134: 0 | AQ134: 0 | AU134: =IF((OR($E133<>"" )), Calculations2!$AV134,"") ->  | AV134: 0.7001122521 | AX134: =IF(AND(Caluations!$F123>5,Caluations!$F123<>FALSE),"",IF($E134="",($I134/$H134)*100,$I134/$H134*100)) ->  | BB134: 0 | BD134: 2255.925 | BE134: R5 | BF134: R5 | BG134: R6 | BH134: 16 | BI134: 9 | BJ134: 2206.5 | BK134: R5 | BL134: 5 | BQ134: =IF(LEFT(ScheduleSetup!$P$6,4)="Soyb",BG134,BF134) -> R5 | BR134: 50 | DE134: 0.04 | DG134: 0.107 | FC134: 23.015
A135: 2020-09-21 | B135: 36 | F135: 0.704 | G135: 0 | H135: 3.9 | I135: 0.7001122521 | K135: 0 | L135: =IF(Caluations!$J124<0,0,Caluations!$J124) ->  | N135: R5 | O135: =IF(AND($E135="",Caluations!$F124<8),$R135*$F135,0) -> 0 | P135: 2264.925 | Q135: =IF(LEFT(ScheduleSetup!$P$6,4)="Corn",BF135,BG135) -> R5 | AN135: 0 | AO135: 1 | AP135: 0 | AQ135: 0 | AU135: =IF((OR($E134<>"" )), Calculations2!$AV135,"") ->  | AV135: 0.7001122521 | AX135: =IF(AND(Caluations!$F124>5,Caluations!$F124<>FALSE),"",IF($E135="",($I135/$H135)*100,$I135/$H135*100)) ->  | BB135: 0 | BD135: 2264.925 | BE135: R5 | BF135: R5 | BG135: R6 | BH135: 16 | BI135: 9 | BJ135: 2215.5 | BK135: R5 | BL135: 6 | BQ135: =IF(LEFT(ScheduleSetup!$P$6,4)="Soyb",BG135,BF135) -> R5 | BR135: 50 | DF135: 0.44 | DH135: 0.147 | FD135: 24.94
A136: 2020-09-22 | B136: 36 | F136: 0.682 | G136: 0 | H136: 3.9 | I136: 0.7001122521 | K136: 0 | L136: =IF(Caluations!$J125<0,0,Caluations!$J125) ->  | N136: R5 | O136: =IF(AND($E136="",Caluations!$F125<8),$R136*$F136,0) -> 0 | P136: 2273.925 | Q136: =IF(LEFT(ScheduleSetup!$P$6,4)="Corn",BF136,BG136) -> R5 | AN136: 0 | AO136: 1 | AP136: 0 | AQ136: 0 | AU136: =IF((OR($E135<>"" )), Calculations2!$AV136,"") ->  | AV136: 0.7001122521 | AX136: =IF(AND(Caluations!$F125>5,Caluations!$F125<>FALSE),"",IF($E136="",($I136/$H136)*100,$I136/$H136*100)) ->  | BB136: 0 | BD136: 2273.925 | BE136: R5 | BF136: R5 | BG136: R7 | BH136: 16 | BI136: 9 | BJ136: 2224.5 | BK136: R5 | BL136: 7 | BQ136: =IF(LEFT(ScheduleSetup!$P$6,4)="Soyb",BG136,BF136) -> R5 | BR136: 50 | DG136: 0 | DI136: 0.113 | FE136: 11.71
A137: 2020-09-23 | B137: 36 | F137: 0.66 | G137: 0 | H137: 3.9 | I137: 0.7001122521 | K137: 0 | L137: =IF(Caluations!$J126<0,0,Caluations!$J126) ->  | N137: R5 | O137: =IF(AND($E137="",Caluations!$F126<8),$R137*$F137,0) -> 0 | P137: 2282.925 | Q137: =IF(LEFT(ScheduleSetup!$P$6,4)="Corn",BF137,BG137) -> R5 | AN137: 0 | AO137: 1 | AP137: 0 | AQ137: 0 | AU137: =IF((OR($E136<>"" )), Calculations2!$AV137,"") ->  | AV137: 0.7001122521 | AX137: =IF(AND(Caluations!$F126>5,Caluations!$F126<>FALSE),"",IF($E137="",($I137/$H137)*100,$I137/$H137*100)) ->  | BB137: 0 | BD137: 2282.925 | BE137: R5 | BF137: R5 | BG137: R7 | BH137: 16 | BI137: 9 | BJ137: 2233.5 | BK137: R5 | BL137: 8 | BQ137: =IF(LEFT(ScheduleSetup!$P$6,4)="Soyb",BG137,BF137) -> R5 | BR137: 50 | DH137: 0 | DJ137: 0.133 | FF137: 13.355
A138: 2020-09-24 | B138: 36 | F138: 0.66 | G138: 0 | H138: 3.9 | I138: 0.7001122521 | K138: 0 | L138: =IF(Caluations!$J127<0,0,Caluations!$J127) ->  | N138: R6 | O138: =IF(AND($E138="",Caluations!$F127<8),$R138*$F138,0) -> 0 | P138: 2290.925 | Q138: =IF(LEFT(ScheduleSetup!$P$6,4)="Corn",BF138,BG138) -> R6 | AN138: 0 | AO138: 1 | AP138: 0 | AQ138: 0 | AU138: =IF((OR($E137<>"" )), Calculations2!$AV138,"") ->  | AV138: 0.7001122521 | AX138: =IF(AND(Caluations!$F127>5,Caluations!$F127<>FALSE),"",IF($E138="",($I138/$H138)*100,$I138/$H138*100)) ->  | BB138: 0 | BD138: 2290.925 | BE138: R5 | BF138: R6 | BG138: R7 | BH138: 15 | BI138: 8 | BJ138: 2241.5 | BK138: R5 | BL138: 9 | BQ138: =IF(LEFT(ScheduleSetup!$P$6,4)="Soyb",BG138,BF138) -> R6 | BR138: 50 | DI138: 0 | DK138: 0.153 | FG138: 14.77
A139: 2020-09-25 | B139: 36 | F139: 0.66 | G139: 0 | H139: 3.9 | I139: 0.7001122521 | K139: 0 | L139: =IF(Caluations!$J128<0,0,Caluations!$J128) ->  | N139: R6 | O139: =IF(AND($E139="",Caluations!$F128<8),$R139*$F139,0) -> 0 | P139: 2298.925 | Q139: =IF(LEFT(ScheduleSetup!$P$6,4)="Corn",BF139,BG139) -> R6 | AN139: 0 | AO139: 1 | AP139: 0 | AQ139: 0 | AU139: =IF((OR($E138<>"" )), Calculations2!$AV139,"") ->  | AV139: 0.7001122521 | AX139: =IF(AND(Caluations!$F128>5,Caluations!$F128<>FALSE),"",IF($E139="",($I139/$H139)*100,$I139/$H139*100)) ->  | BB139: 0 | BD139: 2298.925 | BE139: R5 | BF139: R6 | BG139: R7 | BH139: 15 | BI139: 8 | BJ139: 2249.5 | BK139: R5 | BL139: 10 | BQ139: =IF(LEFT(ScheduleSetup!$P$6,4)="Soyb",BG139,BF139) -> R6 | BR139: 50 | DJ139: 0 | DL139: 0.125 | FH139: 16.94
A140: 2020-09-26 | B140: 36 | F140: 0.66 | G140: 0 | H140: 3.9 | I140: 0.7001122521 | K140: 0 | L140: =IF(Caluations!$J129<0,0,Caluations!$J129) ->  | N140: R6 | O140: =IF(AND($E140="",Caluations!$F129<8),$R140*$F140,0) -> 0 | P140: 2310.925 | Q140: =IF(LEFT(ScheduleSetup!$P$6,4)="Corn",BF140,BG140) -> R6 | AN140: 0 | AO140: 1 | AP140: 0 | AQ140: 0 | AU140: =IF((OR($E139<>"" )), Calculations2!$AV140,"") ->  | AV140: 0.7001122521 | AX140: =IF(AND(Caluations!$F129>5,Caluations!$F129<>FALSE),"",IF($E140="",($I140/$H140)*100,$I140/$H140*100)) ->  | BB140: 0 | BD140: 2310.925 | BE140: R5 | BF140: R6 | BG140: R7 | BH140: 15 | BI140: 12 | BJ140: 2261.5 | BK140: R5 | BL140: 11 | BQ140: =IF(LEFT(ScheduleSetup!$P$6,4)="Soyb",BG140,BF140) -> R6 | BR140: 50 | DK140: 0.83 | DM140: 0.056 | FI140: 16.76
A141: 2020-09-27 | B141: 36 | F141: 0.66 | G141: 0 | H141: 3.9 | I141: 0.7001122521 | K141: 0 | L141: =IF(Caluations!$J130<0,0,Caluations!$J130) ->  | N141: R6 | O141: =IF(AND($E141="",Caluations!$F130<8),$R141*$F141,0) -> 0 | P141: 2321.925 | Q141: =IF(LEFT(ScheduleSetup!$P$6,4)="Corn",BF141,BG141) -> R6 | AN141: 0 | AO141: 1 | AP141: 0 | AQ141: 0 | AU141: =IF((OR($E140<>"" )), Calculations2!$AV141,"") ->  | AV141: 0.7001122521 | AX141: =IF(AND(Caluations!$F130>5,Caluations!$F130<>FALSE),"",IF($E141="",($I141/$H141)*100,$I141/$H141*100)) ->  | BB141: 0 | BD141: 2321.925 | BE141: R5 | BF141: R6 | BG141: R7 | BH141: 15 | BI141: 11 | BJ141: 2272.5 | BK141: R5 | BL141: 12 | BQ141: =IF(LEFT(ScheduleSetup!$P$6,4)="Soyb",BG141,BF141) -> R6 | BR141: 50 | DL141: 0.05 | DN141: 0.031 | FJ141: 3.31
A142: 2020-09-28 | B142: 36 | F142: 0.66 | G142: 0 | H142: 3.9 | I142: 0.7001122521 | K142: 0 | L142: =IF(Caluations!$J131<0,0,Caluations!$J131) ->  | N142: R6 | O142: =IF(AND($E142="",Caluations!$F131<8),$R142*$F142,0) -> 0 | P142: 2332.925 | Q142: =IF(LEFT(ScheduleSetup!$P$6,4)="Corn",BF142,BG142) -> R6 | AN142: 0 | AO142: 1 | AP142: 0 | AQ142: 0 | AU142: =IF((OR($E141<>"" )), Calculations2!$AV142,"") ->  | AV142: 0.7001122521 | AX142: =IF(AND(Caluations!$F131>5,Caluations!$F131<>FALSE),"",IF($E142="",($I142/$H142)*100,$I142/$H142*100)) ->  | BB142: 0 | BD142: 2332.925 | BE142: R5 | BF142: R6 | BG142: R7 | BH142: 14 | BI142: 11 | BJ142: 2283.5 | BK142: R5 | BL142: 13 | BQ142: =IF(LEFT(ScheduleSetup!$P$6,4)="Soyb",BG142,BF142) -> R6 | BR142: 50 | DM142: 0.02 | DO142: 0.049 | FK142: 3.16
A143: 2020-09-29 | B143: 36 | F143: 0.66 | G143: 0 | H143: 3.9 | I143: 0.7001122521 | K143: 0 | L143: =IF(Caluations!$J132<0,0,Caluations!$J132) ->  | N143: R6 | O143: =IF(AND($E143="",Caluations!$F132<8),$R143*$F143,0) -> 0 | P143: 2342.925 | Q143: =IF(LEFT(ScheduleSetup!$P$6,4)="Corn",BF143,BG143) -> R6 | AN143: 0 | AO143: =IF($J142<50,($H142-($H142-$I142))/($H142*0.5),1) -> 1 | AP143: 0 | AQ143: 0 | AU143: =IF((OR($E142<>"" )), Calculations2!$AV143,"") ->  | AV143: 0.7001122521 | AX143: =IF(AND(Caluations!$F132>5,Caluations!$F132<>FALSE),"",IF($E143="",($I143/$H143)*100,$I143/$H143*100)) ->  | BB143: 0 | BD143: 2342.925 | BE143: R6 | BF143: R6 | BG143: R7 | BH143: 14 | BI143: 10 | BJ143: 2293.5 | BK143: R6 | BL143: 14 | BQ143: =IF(LEFT(ScheduleSetup!$P$6,4)="Soyb",BG143,BF143) -> R6 | BR143: 50 | DN143: 0.2 | DP143: 0.071 | FL143: 4.295
A144: 2020-09-30 | B144: 36 | F144: 0.66 | G144: 0 | H144: 3.9 | I144: 0.7001122521 | K144: 0 | L144: =IF(Caluations!$J133<0,0,Caluations!$J133) ->  | N144: R6 | O144: =IF(AND($E144="",Caluations!$F133<8),$R144*$F144,0) -> 0 | P144: 2352.925 | Q144: =IF(LEFT(ScheduleSetup!$P$6,4)="Corn",BF144,BG144) -> R6 | AN144: 0 | AO144: 1 | AP144: 0 | AQ144: 0 | AU144: =IF((OR($E143<>"" )), Calculations2!$AV144,"") ->  | AV144: 0.7001122521 | AX144: =IF(AND(Caluations!$F133>5,Caluations!$F133<>FALSE),"",IF($E144="",($I144/$H144)*100,$I144/$H144*100)) ->  | BB144: 0 | BD144: 2352.925 | BE144: R6 | BF144: R6 | BG144: R7 | BH144: 13 | BI144: 10 | BJ144: 2303.5 | BK144: R6 | BL144: 15 | BQ144: =IF(LEFT(ScheduleSetup!$P$6,4)="Soyb",BG144,BF144) -> R6 | BR144: 50 | DO144: 0 | DQ144: 0.105 | FM144: 6.635
A145: 2020-10-01 | B145: 36 | F145: 0.66 | G145: 0 | H145: 3.9 | I145: 0.7001122521 | K145: 0 | L145: =IF(Caluations!$J134<0,0,Caluations!$J134) ->  | N145: R6 | O145: =IF(AND($E145="",Caluations!$F134<8),$R145*$F145,0) -> 0 | P145: 2362.925 | Q145: =IF(LEFT(ScheduleSetup!$P$6,4)="Corn",BF145,BG145) -> R6 | AN145: 0 | AO145: 1 | AP145: 0 | AQ145: 0 | AU145: =IF((OR($E144<>"" )), Calculations2!$AV145,"") ->  | AV145: 0.7001122521 | AX145: =IF(AND(Caluations!$F134>5,Caluations!$F134<>FALSE),"",IF($E145="",($I145/$H145)*100,$I145/$H145*100)) ->  | BB145: 0 | BD145: 2362.925 | BE145: R6 | BF145: R6 | BG145: R8 | BH145: 13 | BI145: 10 | BJ145: 2313.5 | BK145: R6 | BL145: 16 | BQ145: =IF(LEFT(ScheduleSetup!$P$6,4)="Soyb",BG145,BF145) -> R6 | BR145: 50 | DP145: 0.05 | DR145: 0.046 | FN145: 5.615
A146: 2020-10-02 | B146: 36 | F146: 0.66 | G146: 0 | H146: 3.9 | I146: 0.7001122521 | K146: 0 | L146: =IF(Caluations!$J135<0,0,Caluations!$J135) ->  | N146: R6 | O146: =IF(AND($E146="",Caluations!$F135<8),$R146*$F146,0) -> 0 | P146: 2371.925 | Q146: =IF(LEFT(ScheduleSetup!$P$6,4)="Corn",BF146,BG146) -> R6 | AN146: 0 | AO146: 1 | AP146: 0 | AQ146: 0 | AU146: =IF((OR($E145<>"" )), Calculations2!$AV146,"") ->  | AV146: 0.7001122521 | AX146: =IF(AND(Caluations!$F135>5,Caluations!$F135<>FALSE),"",IF($E146="",($I146/$H146)*100,$I146/$H146*100)) ->  | BB146: 0 | BD146: 2371.925 | BE146: R6 | BF146: R6 | BG146: R8 | BH146: 12 | BI146: 9 | BJ146: 2322.5 | BK146: R6 | BL146: 17 | BQ146: =IF(LEFT(ScheduleSetup!$P$6,4)="Soyb",BG146,BF146) -> R6 | BR146: 50 | DQ146: 0 | DS146: 0.107 | FO146: 8.135
A147: 2020-10-03 | B147: 36 | F147: 0.66 | G147: 0 | H147: 3.9 | I147: 0.7001122521 | K147: 0 | L147: =IF(Caluations!$J136<0,0,Caluations!$J136) ->  | N147: R6 | O147: =IF(AND($E147="",Caluations!$F136<8),$R147*$F147,0) -> 0 | P147: 2380.925 | Q147: =IF(LEFT(ScheduleSetup!$P$6,4)="Corn",BF147,BG147) -> R6 | AN147: 0 | AO147: 1 | AP147: 0 | AQ147: 0 | AU147: =IF((OR($E146<>"" )), Calculations2!$AV147,"") ->  | AV147: 0.7001122521 | AX147: =IF(AND(Caluations!$F136>5,Caluations!$F136<>FALSE),"",IF($E147="",($I147/$H147)*100,$I147/$H147*100)) ->  | BB147: 0 | BD147: 2380.925 | BE147: R6 | BF147: R6 | BG147: R8 | BH147: 12 | BI147: 9 | BJ147: 2331.5 | BK147: =VLOOKUP(BJ147,$AZ$19:$BA$43,2,TRUE) -> R6 | BL147: 1 | BQ147: =IF(LEFT(ScheduleSetup!$P$6,4)="Soyb",BG147,BF147) -> R6 | BR147: 50 | DR147: 0 | DT147: 0.107 | FP147: 8.135
A148: =1+A147 -> 2020-10-04 | B148: 36 | F148: 0.66 | G148: 0 | H148: 3.9 | I148: 0.7001122521 | K148: =IF(IF(OR($J148<103,$E147=""),0,$C148+$D148+$I147-$G148-($H148*1.03))>0, IF(OR($J148<103,$E147=""),0,$C148+$D148+$I147-$G148-($H148*1.03)),0) -> 0 | L148: =IF(Caluations!$J137<0,0,Caluations!$J137) ->  | N148: R6 | O148: =IF(AND($E148="",Caluations!$F137<8),$R148*$F148,0) -> 0 | P148: =+(IF(BD148=0,BJ148,BD148)) -> 2389.925 | Q148: =IF(LEFT(ScheduleSetup!$P$6,4)="Corn",BF148,BG148) -> R6 | AN148: =+$F148*$E147 -> 0 | AO148: 1 | AP148: 0 | AQ148: 0 | AU148: =IF((OR($E147<>"" )), Calculations2!$AV148,"") ->  | AV148: 0.7001122521 | AX148: =IF(AND(Caluations!$F137>5,Caluations!$F137<>FALSE),"",IF($E148="",($I148/$H148)*100,$I148/$H148*100)) ->  | BB148: 0 | BD148: 2389.925 | BE148: =IF( LEN((BC148))=0, BK148,BF148) -> R6 | BF148: =VLOOKUP(BD148,$AZ$19:$BA$43,2,TRUE) -> R6 | BG148: R8 | BH148: 11 | BI148: 9 | BJ148: 2340.5 | BK148: R6 | BL148: 2 | BN148: =+IF((BR148-J148)>0,BR148-J148,0) ->  | BQ148: =IF(LEFT(ScheduleSetup!$P$6,4)="Soyb",BG148,BF148) -> R6 | BR148: =IF($BP$19=50,50,IF($BQ$20="VC"=AND(OR(BQ148="R3",BQ148="R4",BQ148="R5",BQ148="R6")),60,40)) -> 50 | DS148: 0 | DU148: 0.121 | FQ148: 11.495
A149: 2020-10-05 | B149: 36 | F149: 0.66 | G149: 0 | H149: =IF($B149<=6,$B149*$B$12,IF($B149<=12,6*$B$12+($B149-6)*$C$12,IF($B149<=18,6*$B$12+6*$C$12+($B149-12)*$D$12,IF($B149<=24,6*$B$12+6*$C$12+6*$D$12+($B149-18)*$E$12,IF($B149<=30,6*$B$12+6*$C$12+6*$D$12+6*$E$12+($B149-24)*$F$12,IF($B149<=36,6*$B$12+6*$C$12+6*$D$12+6*$E$12+6*$F$12+($B149-30)*$G$12,IF($B149<=42,6*$B$12+6*$C$12+6*$D$12+6*$E$12+6*$F$12+6*$G$12+($B149-36)*$H$12,IF($B149<=48,6*$B$12+6*$C$12+6*$D$12+6*$E$12+6*$F$12+6*$G$12+6*$H$12+(F149-42)*$I$12,"rootdepth>48in")))))))) -> 3.9 | I149: =IF($S149="",$AV149,($S149/100)*$H149) -> 0.7001122521 | J149: =+IF(S149="",(AX149),S149) ->  | K149: 0 | L149: =IF(Caluations!$J138<0,0,Caluations!$J138) ->  | N149: R6 | O149: =IF(AND($E149="",Caluations!$F138<8),$R149*$F149,0) -> 0 | P149: 2398.925 | Q149: =IF(LEFT(ScheduleSetup!$P$6,4)="Corn",BF149,BG149) -> R6 | AN149: 0 | AO149: 1 | AP149: =+AN149*AO149 -> 0 | AQ149: 0 | AR149: =AR148-AQ149 ->  | AU149: =IF((OR($E148<>"" )), Calculations2!$AV149,"") ->  | AV149: 0.7001122521 | AX149: =IF(AND(Caluations!$F138>5,Caluations!$F138<>FALSE),"",IF($E149="",($I149/$H149)*100,$I149/$H149*100)) ->  | BB149: =+T149 -> 0 | BD149: 2398.925 | BE149: R6 | BF149: R6 | BG149: R8 | BH149: 11 | BI149: 9 | BJ149: =+BJ148+BI149 -> 2349.5 | BK149: R6 | BL149: 3 | BQ149: =IF(LEFT(ScheduleSetup!$P$6,4)="Soyb",BG149,BF149) -> R6 | BR149: 50 | DT149: 0 | DV149: 0.123 | FR149: 9.935
A150: 2020-10-06 | B150: 36 | F150: 0.66 | G150: 0 | H150: 3.9 | I150: 0.7001122521 | K150: 0 | L150: =IF(Caluations!$J139<0,0,Caluations!$J139) ->  | N150: R6 | O150: =IF(AND($E150="",Caluations!$F139<8),$R150*$F150,0) -> 0 | P150: 2406.925 | Q150: =IF(LEFT(ScheduleSetup!$P$6,4)="Corn",BF150,BG150) -> R6 | AN150: 0 | AO150: 1 | AP150: 0 | AQ150: =IF(AO150<1,(AQ148-((1.25*(AP150/AN150)))-1)*(-$T$15))*0.008 -> 0 | AU150: =IF((OR($E149<>"" )), Calculations2!$AV150,"") ->  | AV150: 0.7001122521 | AX150: =IF(AND(Caluations!$F139>5,Caluations!$F139<>FALSE),"",IF($E150="",($I150/$H150)*100,$I150/$H150*100)) ->  | BB150: 0 | BD150: 2406.925 | BE150: R6 | BF150: R6 | BG150: R8 | BH150: 10 | BI150: 8 | BJ150: 2357.5 | BK150: R6 | BL150: 4 | BQ150: =IF(LEFT(ScheduleSetup!$P$6,4)="Soyb",BG150,BF150) -> R6 | BR150: 50 | DU150: 0.03 | DW150: 0.106 | FS150: 17.595
A151: 2020-10-07 | B151: 36 | F151: 0.66 | G151: 0 | H151: 3.9 | I151: 0.7001122521 | K151: 0 | L151: =IF(Caluations!$J140<0,0,Caluations!$J140) ->  | N151: R6 | O151: =IF(AND($E151="",Caluations!$F140<8),$R151*$F151,0) -> 0 | P151: 2414.925 | Q151: =IF(LEFT(ScheduleSetup!$P$6,4)="Corn",BF151,BG151) -> R6 | AN151: 0 | AO151: 1 | AP151: 0 | AQ151: 0 | AU151: =IF((OR($E150<>"" )), Calculations2!$AV151,"") ->  | AV151: 0.7001122521 | AX151: =IF(AND(Caluations!$F140>5,Caluations!$F140<>FALSE),"",IF($E151="",($I151/$H151)*100,$I151/$H151*100)) ->  | BB151: 0 | BD151: 2414.925 | BE151: R6 | BF151: R6 | BG151: R8 | BH151: 10 | BI151: 8 | BJ151: 2365.5 | BK151: R6 | BL151: 5 | BQ151: =IF(LEFT(ScheduleSetup!$P$6,4)="Soyb",BG151,BF151) -> R6 | BR151: 50 | DV151: 0.06 | DX151: 0.052 | FT151: 8.8
A152: 2020-10-08 | B152: 36 | F152: 0.66 | G152: 0 | H152: 3.9 | I152: 0.7001122521 | K152: 0 | L152: =IF(Caluations!$J141<0,0,Caluations!$J141) ->  | N152: R6 | O152: =IF(AND($E152="",Caluations!$F141<8),$R152*$F152,0) -> 0 | P152: 2430.925 | Q152: =IF(LEFT(ScheduleSetup!$P$6,4)="Corn",BF152,BG152) -> R6 | AN152: 0 | AO152: 1 | AP152: 0 | AQ152: 0 | AU152: =IF((OR($E151<>"" )), Calculations2!$AV152,"") ->  | AV152: 0.7001122521 | AX152: =IF(AND(Caluations!$F141>5,Caluations!$F141<>FALSE),"",IF($E152="",($I152/$H152)*100,$I152/$H152*100)) ->  | BB152: 0 | BD152: 2430.925 | BE152: R6 | BF152: R6 | BG152: R8 | BH152: 10 | BI152: 16 | BJ152: 2381.5 | BK152: R6 | BL152: 6 | BQ152: =IF(LEFT(ScheduleSetup!$P$6,4)="Soyb",BG152,BF152) -> R6 | BR152: 50 | DW152: 0 | DY152: 0.108 | FU152: 6.76
A153: 2020-10-09 | B153: 36 | F153: 0.66 | G153: 0 | H153: 3.9 | I153: 0.7001122521 | K153: 0 | L153: =IF(Caluations!$J142<0,0,Caluations!$J142) ->  | N153: R6 | O153: =IF(AND($E153="",Caluations!$F142<8),$R153*$F153,0) -> 0 | P153: 2446.925 | Q153: =IF(LEFT(ScheduleSetup!$P$6,4)="Corn",BF153,BG153) -> R6 | AN153: 0 | AO153: 1 | AP153: 0 | AQ153: 0 | AU153: =IF((OR($E152<>"" )), Calculations2!$AV153,"") ->  | AV153: 0.7001122521 | AX153: =IF(AND(Caluations!$F142>5,Caluations!$F142<>FALSE),"",IF($E153="",($I153/$H153)*100,$I153/$H153*100)) ->  | BB153: 0 | BD153: 2446.925 | BE153: R6 | BF153: R6 | BG153: R8 | BH153: 9 | BI153: 16 | BJ153: 2397.5 | BK153: R6 | BL153: 7 | BQ153: =IF(LEFT(ScheduleSetup!$P$6,4)="Soyb",BG153,BF153) -> R6 | BR153: 50
A154: 2020-10-10 | B154: 36 | F154: 0.66 | G154: 0 | H154: 3.9 | I154: 0.7001122521 | K154: 0 | L154: =IF(Caluations!$J143<0,0,Caluations!$J143) ->  | N154: R6 | O154: =IF(AND($E154="",Caluations!$F143<8),$R154*$F154,0) -> 0 | P154: 2462.925 | Q154: =IF(LEFT(ScheduleSetup!$P$6,4)="Corn",BF154,BG154) -> R6 | AN154: 0 | AO154: 1 | AP154: 0 | AQ154: 0 | AU154: =IF((OR($E153<>"" )), Calculations2!$AV154,"") ->  | AV154: 0.7001122521 | AX154: =IF(AND(Caluations!$F143>5,Caluations!$F143<>FALSE),"",IF($E154="",($I154/$H154)*100,$I154/$H154*100)) ->  | BB154: 0 | BD154: 2462.925 | BE154: R6 | BF154: R6 | BG154: R8 | BH154: 9 | BI154: 16 | BJ154: 2413.5 | BK154: R6 | BL154: 8 | BQ154: =IF(LEFT(ScheduleSetup!$P$6,4)="Soyb",BG154,BF154) -> R6 | BR154: 50
A155: 2020-10-11 | B155: 36 | F155: 0.66 | G155: 0 | H155: =IF($B155<=6,$B155*$B$12,IF($B155<=12,6*$B$12+($B155-6)*$C$12,IF($B155<=18,6*$B$12+6*$C$12+($B155-12)*$D$12,IF($B155<=24,6*$B$12+6*$C$12+6*$D$12+($B155-18)*$E$12,IF($B155<=30,6*$B$12+6*$C$12+6*$D$12+6*$E$12+($B155-24)*$F$12,IF($B155<=36,6*$B$12+6*$C$12+6*$D$12+6*$E$12+6*$F$12+($B155-30)*$G$12,IF($B155<=42,6*$B$12+6*$C$12+6*$D$12+6*$E$12+6*$F$12+6*$G$12+($B155-36)*$H$12,IF($B155<=48,6*$B$12+6*$C$12+6*$D$12+6*$E$12+6*$F$12+6*$G$12+6*$H$12+(F155-42)*$I$12,"rootdepth>48in")))))))) -> 3.9 | I155: 0.7001122521 | J155: =+IF(S155="",(AX155),S155) ->  | K155: 0 | L155: =IF(Caluations!$J144<0,0,Caluations!$J144) ->  | N155: R6 | O155: =IF(AND($E155="",Caluations!$F144<8),$R155*$F155,0) -> 0 | P155: =+(IF(BD155=0,BJ155,BD155)) -> 2477.925 | Q155: =IF(LEFT(ScheduleSetup!$P$6,4)="Corn",BF155,BG155) -> R6 | AN155: 0 | AO155: 1 | AP155: =+AN155*AO155 -> 0 | AQ155: =IF(AO155<1,(AQ153-((1.25*(AP155/AN155)))-1)*(-$T$15))*0.008 -> 0 | AR155: =AR154-AQ155 ->  | AU155: =IF((OR($E154<>"" )), Calculations2!$AV155,"") ->  | AV155: =MAX(IF(($I154+$C155+$D155-$G155)+(($H155-$H154)*$B$13/100)>($H155*1.03),($H155*1.03),($I154+$C155+$D155-$G155-O155)+(($H155-$H154)*$B$13/100)),0) -> 0.7001122521 | AX155: =IF(AND(Caluations!$F144>5,Caluations!$F144<>FALSE),"",IF($E156="",($I155/$H155)*100,$I155/$H155*100)) ->  | BB155: =+T155 -> 0 | BD155: =+IF(BC155="",BD154+BI155,BD154+BC155) -> 2477.925 | BE155: =IF( LEN((BC155))=0, BK155,BF155) -> R6 | BF155: =VLOOKUP(BD155,$AZ$19:$BA$43,2,TRUE) -> R6 | BG155: R8 | BH155: 9 | BI155: 15 | BJ155: =+BJ154+BI155 -> 2428.5 | BK155: =VLOOKUP(BJ155,$AZ$19:$BA$43,2,TRUE) -> R6 | BL155: 8 | BQ155: =IF(LEFT(ScheduleSetup!$P$6,4)="Soyb",BG155,BF155) -> R6 | BR155: 50
A156: 2020-10-12 | B156: 36 | F156: 0.66 | G156: 0 | H156: 3.9 | I156: 0.7001122521 | K156: =IF(IF(OR($J156<103,$E156=""),0,$C156+$D156+$I155-$G156-($H156*1.03))>0, IF(OR($J156<103,$E156=""),0,$C156+$D156+$I155-$G156-($H156*1.03)),0) -> 0 | L156: =IF(Caluations!$J145<0,0,Caluations!$J145) ->  | N156: R6 | O156: =IF(AND($E156="",Caluations!$F145<8),$R156*$F156,0) -> 0 | P156: 2492.925 | Q156: =IF(LEFT(ScheduleSetup!$P$6,4)="Corn",BF156,BG156) -> R6 | AN156: =+$F156*$E156 -> 0 | AO156: 1 | AP156: 0 | AQ156: 0 | AU156: =IF((OR($E156<>"" )), Calculations2!$AV156,"") ->  | AV156: 0.7001122521 | AX156: =IF(AND(Caluations!$F145>5,Caluations!$F145<>FALSE),"",IF($E157="",($I156/$H156)*100,$I156/$H156*100)) ->  | BB156: 0 | BD156: 2492.925 | BE156: R6 | BF156: R6 | BG156: R8 | BH156: 9 | BI156: 15 | BJ156: 2443.5 | BK156: R6 | BL156: 8 | BQ156: =IF(LEFT(ScheduleSetup!$P$6,4)="Soyb",BG156,BF156) -> R6 | BR156: 50
A157: 2020-10-13 | B157: 36 | F157: 0.66 | G157: 0 | H157: 3.9 | I157: 0.7001122521 | K157: 0 | L157: =IF(Caluations!$J146<0,0,Caluations!$J146) ->  | N157: R6 | O157: =IF(AND($E157="",Caluations!$F146<8),$R157*$F157,0) -> 0 | P157: 2507.925 | Q157: =IF(LEFT(ScheduleSetup!$P$6,4)="Corn",BF157,BG157) -> R6 | AN157: 0 | AO157: 1 | AP157: 0 | AQ157: 0 | AU157: =IF((OR($E157<>"" )), Calculations2!$AV157,"") ->  | AV157: 0.7001122521 | AX157: =IF(AND(Caluations!$F146>5,Caluations!$F146<>FALSE),"",IF($E202="",($I157/$H157)*100,$I157/$H157*100)) ->  | BB157: 0 | BD157: 2507.925 | BE157: R6 | BF157: R6 | BG157: R8 | BH157: 9 | BI157: 15 | BJ157: 2458.5 | BK157: R6 | BL157: 8 | BQ157: =IF(LEFT(ScheduleSetup!$P$6,4)="Soyb",BG157,BF157) -> R6 | BR157: 50
A158: 2020-10-14 | B158: 36 | F158: 0.66 | G158: 0 | H158: =IF($B158<=6,$B158*$B$12,IF($B158<=12,6*$B$12+($B158-6)*$C$12,IF($B158<=18,6*$B$12+6*$C$12+($B158-12)*$D$12,IF($B158<=24,6*$B$12+6*$C$12+6*$D$12+($B158-18)*$E$12,IF($B158<=30,6*$B$12+6*$C$12+6*$D$12+6*$E$12+($B158-24)*$F$12,IF($B158<=36,6*$B$12+6*$C$12+6*$D$12+6*$E$12+6*$F$12+($B158-30)*$G$12,IF($B158<=42,6*$B$12+6*$C$12+6*$D$12+6*$E$12+6*$F$12+6*$G$12+($B158-36)*$H$12,IF($B158<=48,6*$B$12+6*$C$12+6*$D$12+6*$E$12+6*$F$12+6*$G$12+6*$H$12+(F158-42)*$I$12,"rootdepth>48in")))))))) -> 3.9 | I158: 0.7001122521 | J158: =+IF(S158="",(AX158),S158) ->  | K158: 0 | L158: =IF(Caluations!$J147<0,0,Caluations!$J147) ->  | N158: R6 | O158: =IF(AND($E158="",Caluations!$F147<8),$R158*$F158,0) -> 0 | P158: =+(IF(BD158=0,BJ158,BD158)) -> 2522.925 | Q158: =IF(LEFT(ScheduleSetup!$P$6,4)="Corn",BF158,BG158) -> R6 | AN158: 0 | AO158: 1 | AP158: =+AN158*AO158 -> 0 | AQ158: =IF(AO158<1,(AQ156-((1.25*(AP158/AN158)))-1)*(-$T$15))*0.008 -> 0 | AR158: =AR157-AQ158 ->  | AU158: =IF((OR($E158<>"" )), Calculations2!$AV158,"") ->  | AV158: =MAX(IF(($I157+$C158+$D158-$G158)+(($H158-$H157)*$B$13/100)>($H158*1.03),($H158*1.03),($I157+$C158+$D158-$G158-O158)+(($H158-$H157)*$B$13/100)),0) -> 0.7001122521 | AX158: =IF(AND(Caluations!$F147>5,Caluations!$F147<>FALSE),"",IF($E159="",($I158/$H158)*100,$I158/$H158*100)) ->  | BB158: =+T158 -> 0 | BD158: =+IF(BC158="",BD157+BI158,BD157+BC158) -> 2522.925 | BE158: =IF( LEN((BC158))=0, BK158,BF158) -> R6 | BF158: =VLOOKUP(BD158,$AZ$19:$BA$43,2,TRUE) -> R6 | BG158: R8 | BH158: 9 | BI158: 15 | BJ158: =+BJ157+BI158 -> 2473.5 | BK158: =VLOOKUP(BJ158,$AZ$19:$BA$43,2,TRUE) -> R6 | BL158: 8 | BQ158: =IF(LEFT(ScheduleSetup!$P$6,4)="Soyb",BG158,BF158) -> R6 | BR158: 50
A159: 2020-10-15 | B159: 36 | F159: 0.66 | G159: =$AP159 -> 0 | H159: 3.9 | I159: 0.7001122521 | K159: =IF(IF(OR($J159<103,$E159=""),0,$C159+$D159+$I158-$G159-($H159*1.03))>0, IF(OR($J159<103,$E159=""),0,$C159+$D159+$I158-$G159-($H159*1.03)),0) -> 0 | L159: =IF(Caluations!$J148<0,0,Caluations!$J148) ->  | N159: R6 | O159: =IF(AND($E159="",Caluations!$F148<8),$R159*$F159,0) -> 0 | P159: 2536.925 | Q159: =IF(LEFT(ScheduleSetup!$P$6,4)="Corn",BF159,BG159) -> R6 | AN159: 0 | AO159: 1 | AP159: 0 | AQ159: 0 | AU159: =IF((OR($E159<>"" )), Calculations2!$AV159,"") ->  | AV159: 0.7001122521 | AX159: =IF(AND(Caluations!$F148>5,Caluations!$F148<>FALSE),"",IF($E160="",($I159/$H159)*100,$I159/$H159*100)) ->  | BB159: 0 | BD159: 2536.925 | BE159: R6 | BF159: R6 | BG159: R8 | BH159: 9 | BI159: 14 | BJ159: 2487.5 | BK159: R6 | BL159: 8 | BQ159: =IF(LEFT(ScheduleSetup!$P$6,4)="Soyb",BG159,BF159) -> R6 | BR159: 50
A160: 2020-10-16 | B160: 36 | F160: 0.66 | G160: 0 | H160: 3.9 | I160: 0.7001122521 | K160: 0 | L160: =IF(Caluations!$J149<0,0,Caluations!$J149) ->  | N160: R6 | O160: =IF(AND($E160="",Caluations!$F149<8),$R160*$F160,0) -> 0 | P160: 2550.925 | Q160: =IF(LEFT(ScheduleSetup!$P$6,4)="Corn",BF160,BG160) -> R6 | AN160: 0 | AO160: 1 | AP160: 0 | AQ160: 0 | AU160: =IF((OR($E160<>"" )), Calculations2!$AV160,"") ->  | AV160: 0.7001122521 | AX160: =IF(AND(Caluations!$F149>5,Caluations!$F149<>FALSE),"",IF($E205="",($I160/$H160)*100,$I160/$H160*100)) ->  | BB160: 0 | BD160: 2550.925 | BE160: R6 | BF160: R6 | BG160: R8 | BH160: 9 | BI160: 14 | BJ160: 2501.5 | BK160: R6 | BL160: 8 | BQ160: =IF(LEFT(ScheduleSetup!$P$6,4)="Soyb",BG160,BF160) -> R6 | BR160: 50
A161: 2020-10-17 | B161: 36 | F161: 0.66 | G161: 0 | H161: 3.9 | I161: 0.7001122521 | K161: 0 | L161: =IF(Caluations!$J150<0,0,Caluations!$J150) ->  | N161: R6 | O161: =IF(AND($E161="",Caluations!$F150<8),$R161*$F161,0) -> 0 | P161: 2563.925 | Q161: =IF(LEFT(ScheduleSetup!$P$6,4)="Corn",BF161,BG161) -> R6 | AN161: 0 | AO161: 1 | AP161: 0 | AQ161: 0 | AU161: =IF((OR($E161<>"" )), Calculations2!$AV161,"") ->  | AV161: 0.7001122521 | AX161: =IF(AND(Caluations!$F150>5,Caluations!$F150<>FALSE),"",IF($E162="",($I161/$H161)*100,$I161/$H161*100)) ->  | BB161: 0 | BD161: 2563.925 | BE161: R6 | BF161: R6 | BG161: R8 | BH161: 9 | BI161: 13 | BJ161: 2514.5 | BK161: R6 | BL161: 8 | BQ161: =IF(LEFT(ScheduleSetup!$P$6,4)="Soyb",BG161,BF161) -> R6 | BR161: 50
A162: 2020-10-18 | B162: 36 | F162: 0.66 | G162: 0 | H162: 3.9 | I162: 0.7001122521 | K162: 0 | L162: =IF(Caluations!$J151<0,0,Caluations!$J151) ->  | N162: R6 | O162: =IF(AND($E162="",Caluations!$F151<8),$R162*$F162,0) -> 0 | P162: 2576.925 | Q162: =IF(LEFT(ScheduleSetup!$P$6,4)="Corn",BF162,BG162) -> R6 | AN162: 0 | AO162: 1 | AP162: 0 | AQ162: 0 | AU162: =IF((OR($E162<>"" )), Calculations2!$AV162,"") ->  | AV162: 0.7001122521 | AX162: =IF(AND(Caluations!$F151>5,Caluations!$F151<>FALSE),"",IF($E163="",($I162/$H162)*100,$I162/$H162*100)) ->  | BB162: 0 | BD162: 2576.925 | BE162: R6 | BF162: R6 | BG162: R8 | BH162: 9 | BI162: 13 | BJ162: 2527.5 | BK162: R6 | BL162: 8 | BQ162: =IF(LEFT(ScheduleSetup!$P$6,4)="Soyb",BG162,BF162) -> R6 | BR162: 50
A163: 2020-10-19 | B163: 36 | F163: 0.66 | G163: 0 | H163: 3.9 | I163: 0.7001122521 | K163: 0 | L163: =IF(Caluations!$J152<0,0,Caluations!$J152) ->  | N163: R6 | O163: =IF(AND($E163="",Caluations!$F152<8),$R163*$F163,0) -> 0 | P163: 2588.925 | Q163: =IF(LEFT(ScheduleSetup!$P$6,4)="Corn",BF163,BG163) -> R6 | AN163: 0 | AO163: 1 | AP163: 0 | AQ163: 0 | AU163: =IF((OR($E163<>"" )), Calculations2!$AV163,"") ->  | AV163: 0.7001122521 | AX163: =IF(AND(Caluations!$F152>5,Caluations!$F152<>FALSE),"",IF($E208="",($I163/$H163)*100,$I163/$H163*100)) ->  | BB163: 0 | BD163: 2588.925 | BE163: R6 | BF163: R6 | BG163: R8 | BH163: 9 | BI163: 12 | BJ163: 2539.5 | BK163: R6 | BL163: 8 | BQ163: =IF(LEFT(ScheduleSetup!$P$6,4)="Soyb",BG163,BF163) -> R6 | BR163: 50
A164: 2020-10-20 | B164: 36 | F164: 0.66 | G164: 0 | H164: =IF($B164<=6,$B164*$B$12,IF($B164<=12,6*$B$12+($B164-6)*$C$12,IF($B164<=18,6*$B$12+6*$C$12+($B164-12)*$D$12,IF($B164<=24,6*$B$12+6*$C$12+6*$D$12+($B164-18)*$E$12,IF($B164<=30,6*$B$12+6*$C$12+6*$D$12+6*$E$12+($B164-24)*$F$12,IF($B164<=36,6*$B$12+6*$C$12+6*$D$12+6*$E$12+6*$F$12+($B164-30)*$G$12,IF($B164<=42,6*$B$12+6*$C$12+6*$D$12+6*$E$12+6*$F$12+6*$G$12+($B164-36)*$H$12,IF($B164<=48,6*$B$12+6*$C$12+6*$D$12+6*$E$12+6*$F$12+6*$G$12+6*$H$12+(F164-42)*$I$12,"rootdepth>48in")))))))) -> 3.9 | I164: 0.7001122521 | J164: =+IF(S164="",(AX164),S164) ->  | K164: 0 | L164: =IF(Caluations!$J153<0,0,Caluations!$J153) ->  | N164: R6 | O164: =IF(AND($E164="",Caluations!$F153<8),$R164*$F164,0) -> 0 | P164: =+(IF(BD164=0,BJ164,BD164)) -> 2600.925 | Q164: =IF(LEFT(ScheduleSetup!$P$6,4)="Corn",BF164,BG164) -> R6 | AN164: 0 | AO164: 1 | AP164: =+AN164*AO164 -> 0 | AQ164: =IF(AO164<1,(AQ162-((1.25*(AP164/AN164)))-1)*(-$T$15))*0.008 -> 0 | AR164: =AR163-AQ164 ->  | AU164: =IF((OR($E164<>"" )), Calculations2!$AV164,"") ->  | AV164: =MAX(IF(($I163+$C164+$D164-$G164)+(($H164-$H163)*$B$13/100)>($H164*1.03),($H164*1.03),($I163+$C164+$D164-$G164-O164)+(($H164-$H163)*$B$13/100)),0) -> 0.7001122521 | AX164: =IF(AND(Caluations!$F153>5,Caluations!$F153<>FALSE),"",IF($E209="",($I164/$H164)*100,$I164/$H164*100)) ->  | BB164: =+T164 -> 0 | BD164: =+IF(BC164="",BD163+BI164,BD163+BC164) -> 2600.925 | BE164: =IF( LEN((BC164))=0, BK164,BF164) -> R6 | BF164: =VLOOKUP(BD164,$AZ$19:$BA$43,2,TRUE) -> R6 | BG164: R8 | BH164: 9 | BI164: 12 | BJ164: =+BJ163+BI164 -> 2551.5 | BK164: =VLOOKUP(BJ164,$AZ$19:$BA$43,2,TRUE) -> R6 | BL164: 8 | BQ164: =IF(LEFT(ScheduleSetup!$P$6,4)="Soyb",BG164,BF164) -> R6 | BR164: 50
A165: 2020-10-21 | B165: 36 | F165: 0.66 | G165: 0 | H165: 3.9 | I165: 0.7001122521 | K165: 0 | L165: =IF(Caluations!$J154<0,0,Caluations!$J154) ->  | N165: R6 | O165: =IF(AND($E165="",Caluations!$F154<8),$R165*$F165,0) -> 0 | P165: 2611.925 | Q165: =IF(LEFT(ScheduleSetup!$P$6,4)="Corn",BF165,BG165) -> R6 | AN165: 0 | AO165: 1 | AP165: 0 | AQ165: 0 | AU165: =IF((OR($E165<>"" )), Calculations2!$AV165,"") ->  | AV165: 0.7001122521 | AX165: =IF(AND(Caluations!$F154>5,Caluations!$F154<>FALSE),"",IF($E166="",($I165/$H165)*100,$I165/$H165*100)) ->  | BB165: 0 | BD165: 2611.925 | BE165: R6 | BF165: R6 | BG165: R8 | BH165: 9 | BI165: 11 | BJ165: 2562.5 | BK165: R6 | BL165: 8 | BQ165: =IF(LEFT(ScheduleSetup!$P$6,4)="Soyb",BG165,BF165) -> R6 | BR165: 50
A166: 2020-10-22 | B166: 36 | F166: 0.66 | G166: 0 | H166: 3.9 | I166: 0.7001122521 | K166: 0 | L166: =IF(Caluations!$J155<0,0,Caluations!$J155) ->  | N166: R6 | O166: =IF(AND($E166="",Caluations!$F155<8),$R166*$F166,0) -> 0 | P166: 2622.925 | Q166: =IF(LEFT(ScheduleSetup!$P$6,4)="Corn",BF166,BG166) -> R6 | AN166: 0 | AO166: 1 | AP166: 0 | AQ166: 0 | AU166: =IF((OR($E166<>"" )), Calculations2!$AV166,"") ->  | AV166: 0.7001122521 | AX166: =IF(AND(Caluations!$F155>5,Caluations!$F155<>FALSE),"",IF($E167="",($I166/$H166)*100,$I166/$H166*100)) ->  | BB166: 0 | BD166: 2622.925 | BE166: R6 | BF166: R6 | BG166: R8 | BH166: 9 | BI166: 11 | BJ166: 2573.5 | BK166: R6 | BL166: 8 | BQ166: =IF(LEFT(ScheduleSetup!$P$6,4)="Soyb",BG166,BF166) -> R6 | BR166: 50
A167: 2020-10-23 | B167: 36 | F167: 0.66 | G167: 0 | H167: 3.9 | I167: 0.7001122521 | K167: 0 | L167: =IF(Caluations!$J156<0,0,Caluations!$J156) ->  | N167: R6 | O167: =IF(AND($E167="",Caluations!$F156<8),$R167*$F167,0) -> 0 | P167: 2632.925 | Q167: =IF(LEFT(ScheduleSetup!$P$6,4)="Corn",BF167,BG167) -> R6 | AN167: 0 | AO167: 1 | AP167: 0 | AQ167: 0 | AU167: =IF((OR($E167<>"" )), Calculations2!$AV167,"") ->  | AV167: 0.7001122521 | AX167: =IF(AND(Caluations!$F156>5,Caluations!$F156<>FALSE),"",IF($E212="",($I167/$H167)*100,$I167/$H167*100)) ->  | BB167: 0 | BD167: 2632.925 | BE167: R6 | BF167: R6 | BG167: R8 | BH167: 9 | BI167: 10 | BJ167: 2583.5 | BK167: R6 | BL167: 8 | BQ167: =IF(LEFT(ScheduleSetup!$P$6,4)="Soyb",BG167,BF167) -> R6 | BR167: 50
A168: 2020-10-24 | B168: 36 | F168: 0.66 | G168: 0 | H168: =IF($B168<=6,$B168*$B$12,IF($B168<=12,6*$B$12+($B168-6)*$C$12,IF($B168<=18,6*$B$12+6*$C$12+($B168-12)*$D$12,IF($B168<=24,6*$B$12+6*$C$12+6*$D$12+($B168-18)*$E$12,IF($B168<=30,6*$B$12+6*$C$12+6*$D$12+6*$E$12+($B168-24)*$F$12,IF($B168<=36,6*$B$12+6*$C$12+6*$D$12+6*$E$12+6*$F$12+($B168-30)*$G$12,IF($B168<=42,6*$B$12+6*$C$12+6*$D$12+6*$E$12+6*$F$12+6*$G$12+($B168-36)*$H$12,IF($B168<=48,6*$B$12+6*$C$12+6*$D$12+6*$E$12+6*$F$12+6*$G$12+6*$H$12+(F168-42)*$I$12,"rootdepth>48in")))))))) -> 3.9 | I168: 0.7001122521 | J168: =+IF(S168="",(AX168),S168) ->  | K168: 0 | L168: =IF(Caluations!$J157<0,0,Caluations!$J157) ->  | N168: R6 | O168: =IF(AND($E168="",Caluations!$F157<8),$R168*$F168,0) -> 0 | P168: =+(IF(BD168=0,BJ168,BD168)) -> 2642.925 | Q168: =IF(LEFT(ScheduleSetup!$P$6,4)="Corn",BF168,BG168) -> R6 | AN168: 0 | AO168: 1 | AP168: =+AN168*AO168 -> 0 | AQ168: =IF(AO168<1,(AQ166-((1.25*(AP168/AN168)))-1)*(-$T$15))*0.008 -> 0 | AR168: =AR167-AQ168 ->  | AU168: =IF((OR($E168<>"" )), Calculations2!$AV168,"") ->  | AV168: =MAX(IF(($I167+$C168+$D168-$G168)+(($H168-$H167)*$B$13/100)>($H168*1.03),($H168*1.03),($I167+$C168+$D168-$G168-O168)+(($H168-$H167)*$B$13/100)),0) -> 0.7001122521 | AX168: =IF(AND(Caluations!$F157>5,Caluations!$F157<>FALSE),"",IF($E169="",($I168/$H168)*100,$I168/$H168*100)) ->  | BB168: =+T168 -> 0 | BD168: =+IF(BC168="",BD167+BI168,BD167+BC168) -> 2642.925 | BE168: =IF( LEN((BC168))=0, BK168,BF168) -> R6 | BF168: =VLOOKUP(BD168,$AZ$19:$BA$43,2,TRUE) -> R6 | BG168: R8 | BH168: 9 | BI168: 10 | BJ168: =+BJ167+BI168 -> 2593.5 | BK168: =VLOOKUP(BJ168,$AZ$19:$BA$43,2,TRUE) -> R6 | BL168: 8 | BQ168: =IF(LEFT(ScheduleSetup!$P$6,4)="Soyb",BG168,BF168) -> R6 | BR168: 50
A169: 2020-10-25 | B169: 36 | F169: 0.66 | G169: 0 | H169: 3.9 | I169: 0.7001122521 | K169: 0 | L169: =IF(Caluations!$J158<0,0,Caluations!$J158) ->  | N169: R6 | O169: =IF(AND($E169="",Caluations!$F158<8),$R169*$F169,0) -> 0 | P169: 2652.925 | Q169: =IF(LEFT(ScheduleSetup!$P$6,4)="Corn",BF169,BG169) -> R6 | AN169: 0 | AO169: 1 | AP169: 0 | AQ169: 0 | AU169: =IF((OR($E169<>"" )), Calculations2!$AV169,"") ->  | AV169: =MAX(IF(($I168+$C169+$D169-$G169)+(($H169-$H168)*$B$13/100)>($H169*1.03),($H169*1.03),($I168+$C169+$D169-$G169-O169)+(($H169-$H168)*$B$13/100)),0) -> 0.7001122521 | AX169: =IF(AND(Caluations!$F158>5,Caluations!$F158<>FALSE),"",IF($E214="",($I169/$H169)*100,$I169/$H169*100)) ->  | BB169: 0 | BD169: 2652.925 | BE169: R6 | BF169: R6 | BG169: R8 | BH169: 9 | BI169: 10 | BJ169: 2603.5 | BK169: R6 | BL169: 8 | BQ169: =IF(LEFT(ScheduleSetup!$P$6,4)="Soyb",BG169,BF169) -> R6 | BR169: 50
B170: 36 | F170: 0.66 | G170: 0 | H170: 3.9 | I170: 0.7001122521 | K170: 0 | L170: =IF(Caluations!$J159<0,0,Caluations!$J159) ->  | N170: R6 | O170: =IF(AND($E170="",Caluations!$F159<8),$R170*$F170,0) -> 0 | P170: 2661.925 | Q170: =IF(LEFT(ScheduleSetup!$P$6,4)="Corn",BF170,BG170) -> R6 | AN170: 0 | AO170: 1 | AP170: 0 | AQ170: 0 | AU170: =IF((OR($E170<>"" )), Calculations2!$AV170,"") ->  | AV170: 0.7001122521 | AX170: =IF(AND(Caluations!$F159>5,Caluations!$F159<>FALSE),"",IF($E171="",($I170/$H170)*100,$I170/$H170*100)) ->  | BB170: 0 | BD170: 2661.925 | BE170: R6 | BF170: R6 | BG170: R8 | BH170: 9 | BI170: 9 | BJ170: 2612.5 | BK170: R6 | BL170: 8 | BQ170: =IF(LEFT(ScheduleSetup!$P$6,4)="Soyb",BG170,BF170) -> R6 | BR170: 50
B171: 36 | F171: 0.66 | G171: 0 | H171: 3.9 | I171: 0.7001122521 | K171: 0 | L171: =IF(Caluations!$J160<0,0,Caluations!$J160) ->  | N171: R6 | O171: =IF(AND($E171="",Caluations!$F160<8),$R171*$F171,0) -> 0 | P171: 2670.925 | Q171: =IF(LEFT(ScheduleSetup!$P$6,4)="Corn",BF171,BG171) -> R6 | AN171: 0 | AO171: 1 | AP171: 0 | AQ171: 0 | AU171: =IF((OR($E171<>"" )), Calculations2!$AV171,"") ->  | AV171: 0.7001122521 | AX171: =IF(AND(Caluations!$F160>5,Caluations!$F160<>FALSE),"",IF($E172="",($I171/$H171)*100,$I171/$H171*100)) ->  | BB171: 0 | BD171: 2670.925 | BE171: R6 | BF171: R6 | BG171: R8 | BH171: 9 | BI171: 9 | BJ171: 2621.5 | BK171: R6 | BL171: 8 | BQ171: =IF(LEFT(ScheduleSetup!$P$6,4)="Soyb",BG171,BF171) -> R6 | BR171: 50
B172: 36 | F172: 0.66 | G172: 0 | H172: 3.9 | I172: 0.7001122521 | K172: 0 | L172: =IF(Caluations!$J161<0,0,Caluations!$J161) ->  | N172: R6 | O172: =IF(AND($E172="",Caluations!$F161<8),$R172*$F172,0) -> 0 | P172: 2679.925 | Q172: =IF(LEFT(ScheduleSetup!$P$6,4)="Corn",BF172,BG172) -> R6 | AN172: 0 | AO172: 1 | AP172: 0 | AQ172: 0 | AU172: =IF((OR($E172<>"" )), Calculations2!$AV172,"") ->  | AV172: 0.7001122521 | AX172: =IF(AND(Caluations!$F161>5,Caluations!$F161<>FALSE),"",IF($E217="",($I172/$H172)*100,$I172/$H172*100)) ->  | BB172: 0 | BD172: 2679.925 | BE172: R6 | BF172: R6 | BG172: R8 | BH172: 9 | BI172: 9 | BJ172: 2630.5 | BK172: R6 | BL172: 8 | BQ172: =IF(LEFT(ScheduleSetup!$P$6,4)="Soyb",BG172,BF172) -> R6 | BR172: 50
B173: 36 | F173: 0.66 | G173: 0 | H173: 3.9 | I173: 0.7001122521 | K173: 0 | L173: =IF(Caluations!$J162<0,0,Caluations!$J162) ->  | N173: R6 | O173: =IF(AND($E173="",Caluations!$F162<8),$R173*$F173,0) -> 0 | P173: 2688.925 | Q173: =IF(LEFT(ScheduleSetup!$P$6,4)="Corn",BF173,BG173) -> R6 | AN173: 0 | AO173: 1 | AP173: 0 | AQ173: 0 | AU173: =IF((OR($E173<>"" )), Calculations2!$AV173,"") ->  | AV173: 0.7001122521 | AX173: =IF(AND(Caluations!$F162>5,Caluations!$F162<>FALSE),"",IF($E218="",($I173/$H173)*100,$I173/$H173*100)) ->  | BB173: 0 | BD173: 2688.925 | BE173: R6 | BF173: R6 | BG173: R8 | BH173: 9 | BI173: 9 | BJ173: 2639.5 | BK173: R6 | BL173: 8 | BQ173: =IF(LEFT(ScheduleSetup!$P$6,4)="Soyb",BG173,BF173) -> R6 | BR173: 50
B174: 36 | F174: 0.66 | G174: 0 | H174: 3.9 | I174: 0.7001122521 | K174: 0 | L174: =IF(Caluations!$J163<0,0,Caluations!$J163) ->  | N174: R6 | O174: =IF(AND($E174="",Caluations!$F163<8),$R174*$F174,0) -> 0 | P174: 2696.925 | Q174: =IF(LEFT(ScheduleSetup!$P$6,4)="Corn",BF174,BG174) -> R6 | AN174: 0 | AO174: 1 | AP174: 0 | AQ174: 0 | AU174: =IF((OR($E174<>"" )), Calculations2!$AV174,"") ->  | AV174: 0.7001122521 | AX174: =IF(AND(Caluations!$F163>5,Caluations!$F163<>FALSE),"",IF($E175="",($I174/$H174)*100,$I174/$H174*100)) ->  | BB174: 0 | BD174: 2696.925 | BE174: R6 | BF174: R6 | BG174: R8 | BH174: 9 | BI174: 8 | BJ174: 2647.5 | BK174: R6 | BL174: 8 | BQ174: =IF(LEFT(ScheduleSetup!$P$6,4)="Soyb",BG174,BF174) -> R6 | BR174: 50
B175: 36 | F175: 0.66 | G175: 0 | H175: 3.9 | I175: 0.7001122521 | K175: 0 | L175: =IF(Caluations!$J164<0,0,Caluations!$J164) ->  | N175: R6 | O175: =IF(AND($E175="",Caluations!$F164<8),$R175*$F175,0) -> 0 | P175: 2704.925 | Q175: =IF(LEFT(ScheduleSetup!$P$6,4)="Corn",BF175,BG175) -> R6 | AN175: 0 | AO175: 1 | AP175: 0 | AQ175: 0 | AU175: =IF((OR($E175<>"" )), Calculations2!$AV175,"") ->  | AV175: 0.7001122521 | AX175: =IF(AND(Caluations!$F164>5,Caluations!$F164<>FALSE),"",IF($E176="",($I175/$H175)*100,$I175/$H175*100)) ->  | BB175: 0 | BD175: 2704.925 | BE175: R6 | BF175: R6 | BG175: R8 | BH175: 9 | BI175: 8 | BJ175: 2655.5 | BK175: R6 | BL175: 8 | BQ175: =IF(LEFT(ScheduleSetup!$P$6,4)="Soyb",BG175,BF175) -> R6 | BR175: 50
B176: 36 | F176: 0.66 | G176: 0 | H176: 3.9 | I176: 0.7001122521 | K176: 0 | L176: =IF(Caluations!$J165<0,0,Caluations!$J165) ->  | N176: R6 | O176: =IF(AND($E176="",Caluations!$F165<8),$R176*$F176,0) -> 0 | P176: 2718.925 | Q176: =IF(LEFT(ScheduleSetup!$P$6,4)="Corn",BF176,BG176) -> R6 | AN176: 0 | AO176: 1 | AP176: 0 | AQ176: 0 | AU176: =IF((OR($E176<>"" )), Calculations2!$AV176,"") ->  | AV176: 0.7001122521 | AX176: =IF(AND(Caluations!$F165>5,Caluations!$F165<>FALSE),"",IF($E221="",($I176/$H176)*100,$I176/$H176*100)) ->  | BB176: 0 | BD176: 2718.925 | BE176: R6 | BF176: R6 | BG176: R8 | BH176: 9 | BI176: 14 | BJ176: 2669.5 | BK176: R6 | BL176: 8 | BQ176: =IF(LEFT(ScheduleSetup!$P$6,4)="Soyb",BG176,BF176) -> R6 | BR176: 50
B177: 36 | F177: 0.66 | G177: 0 | H177: =IF($B177<=6,$B177*$B$12,IF($B177<=12,6*$B$12+($B177-6)*$C$12,IF($B177<=18,6*$B$12+6*$C$12+($B177-12)*$D$12,IF($B177<=24,6*$B$12+6*$C$12+6*$D$12+($B177-18)*$E$12,IF($B177<=30,6*$B$12+6*$C$12+6*$D$12+6*$E$12+($B177-24)*$F$12,IF($B177<=36,6*$B$12+6*$C$12+6*$D$12+6*$E$12+6*$F$12+($B177-30)*$G$12,IF($B177<=42,6*$B$12+6*$C$12+6*$D$12+6*$E$12+6*$F$12+6*$G$12+($B177-36)*$H$12,IF($B177<=48,6*$B$12+6*$C$12+6*$D$12+6*$E$12+6*$F$12+6*$G$12+6*$H$12+(F177-42)*$I$12,"rootdepth>48in")))))))) -> 3.9 | I177: 0.7001122521 | J177: =+IF(S177="",(AX177),S177) ->  | K177: 0 | L177: =IF(Caluations!$J166<0,0,Caluations!$J166) ->  | N177: R6 | O177: =IF(AND($E177="",Caluations!$F166<8),$R177*$F177,0) -> 0 | P177: =+(IF(BD177=0,BJ177,BD177)) -> 2731.925 | Q177: =IF(LEFT(ScheduleSetup!$P$6,4)="Corn",BF177,BG177) -> R6 | AN177: 0 | AO177: 1 | AP177: =+AN177*AO177 -> 0 | AQ177: =IF(AO177<1,(AQ175-((1.25*(AP177/AN177)))-1)*(-$T$15))*0.008 -> 0 | AR177: =AR176-AQ177 ->  | AU177: =IF((OR($E177<>"" )), Calculations2!$AV177,"") ->  | AV177: =MAX(IF(($I176+$C177+$D177-$G177)+(($H177-$H176)*$B$13/100)>($H177*1.03),($H177*1.03),($I176+$C177+$D177-$G177-O177)+(($H177-$H176)*$B$13/100)),0) -> 0.7001122521 | AX177: =IF(AND(Caluations!$F166>5,Caluations!$F166<>FALSE),"",IF($E178="",($I177/$H177)*100,$I177/$H177*100)) ->  | BB177: =+T177 -> 0 | BD177: =+IF(BC177="",BD176+BI177,BD176+BC177) -> 2731.925 | BE177: =IF( LEN((BC177))=0, BK177,BF177) -> R6 | BF177: =VLOOKUP(BD177,$AZ$19:$BA$43,2,TRUE) -> R6 | BG177: R8 | BH177: 9 | BI177: 13 | BJ177: =+BJ176+BI177 -> 2682.5 | BK177: =VLOOKUP(BJ177,$AZ$19:$BA$43,2,TRUE) -> R6 | BL177: 8 | BQ177: =IF(LEFT(ScheduleSetup!$P$6,4)="Soyb",BG177,BF177) -> R6 | BR177: 50
B178: 36 | F178: 0.66 | G178: 0 | H178: 3.9 | I178: 0.7001122521 | K178: 0 | L178: =IF(Caluations!$J167<0,0,Caluations!$J167) ->  | N178: R6 | O178: =IF(AND($E178="",Caluations!$F167<8),$R178*$F178,0) -> 0 | P178: 2744.925 | Q178: =IF(LEFT(ScheduleSetup!$P$6,4)="Corn",BF178,BG178) -> R6 | AN178: 0 | AO178: 1 | AP178: 0 | AQ178: 0 | AU178: =IF((OR($E178<>"" )), Calculations2!$AV178,"") ->  | AV178: 0.7001122521 | AX178: =IF(AND(Caluations!$F167>5,Caluations!$F167<>FALSE),"",IF($E223="",($I178/$H178)*100,$I178/$H178*100)) ->  | BB178: 0 | BD178: 2744.925 | BE178: R6 | BF178: R6 | BG178: R8 | BH178: 9 | BI178: 13 | BJ178: 2695.5 | BK178: R6 | BL178: 8 | BQ178: =IF(LEFT(ScheduleSetup!$P$6,4)="Soyb",BG178,BF178) -> R6 | BR178: 50
B179: 36 | F179: 0.66 | G179: 0 | H179: =IF($B179<=6,$B179*$B$12,IF($B179<=12,6*$B$12+($B179-6)*$C$12,IF($B179<=18,6*$B$12+6*$C$12+($B179-12)*$D$12,IF($B179<=24,6*$B$12+6*$C$12+6*$D$12+($B179-18)*$E$12,IF($B179<=30,6*$B$12+6*$C$12+6*$D$12+6*$E$12+($B179-24)*$F$12,IF($B179<=36,6*$B$12+6*$C$12+6*$D$12+6*$E$12+6*$F$12+($B179-30)*$G$12,IF($B179<=42,6*$B$12+6*$C$12+6*$D$12+6*$E$12+6*$F$12+6*$G$12+($B179-36)*$H$12,IF($B179<=48,6*$B$12+6*$C$12+6*$D$12+6*$E$12+6*$F$12+6*$G$12+6*$H$12+(F179-42)*$I$12,"rootdepth>48in")))))))) -> 3.9 | I179: 0.7001122521 | J179: =+IF(S179="",(AX179),S179) ->  | K179: 0 | L179: =IF(Caluations!$J168<0,0,Caluations!$J168) ->  | N179: R6 | O179: =IF(AND($E179="",Caluations!$F168<8),$R179*$F179,0) -> 0 | P179: =+(IF(BD179=0,BJ179,BD179)) -> 2757.925 | Q179: =IF(LEFT(ScheduleSetup!$P$6,4)="Corn",BF179,BG179) -> R6 | AN179: 0 | AO179: 1 | AP179: =+AN179*AO179 -> 0 | AQ179: =IF(AO179<1,(AQ177-((1.25*(AP179/AN179)))-1)*(-$T$15))*0.008 -> 0 | AR179: =AR178-AQ179 ->  | AU179: =IF((OR($E179<>"" )), Calculations2!$AV179,"") ->  | AV179: =MAX(IF(($I178+$C179+$D179-$G179)+(($H179-$H178)*$B$13/100)>($H179*1.03),($H179*1.03),($I178+$C179+$D179-$G179-O179)+(($H179-$H178)*$B$13/100)),0) -> 0.7001122521 | AX179: =IF(AND(Caluations!$F168>5,Caluations!$F168<>FALSE),"",IF($E224="",($I179/$H179)*100,$I179/$H179*100)) ->  | BB179: =+T179 -> 0 | BD179: =+IF(BC179="",BD178+BI179,BD178+BC179) -> 2757.925 | BE179: =IF( LEN((BC179))=0, BK179,BF179) -> R6 | BF179: =VLOOKUP(BD179,$AZ$19:$BA$43,2,TRUE) -> R6 | BG179: R8 | BH179: 9 | BI179: 13 | BJ179: =+BJ178+BI179 -> 2708.5 | BK179: =VLOOKUP(BJ179,$AZ$19:$BA$43,2,TRUE) -> R6 | BL179: 8 | BQ179: =IF(LEFT(ScheduleSetup!$P$6,4)="Soyb",BG179,BF179) -> R6 | BR179: 50
B180: 36 | F180: 0.66 | G180: 0 | H180: 3.9 | I180: 0.7001122521 | K180: 0 | L180: =IF(Caluations!$J169<0,0,Caluations!$J169) ->  | N180: R6 | O180: =IF(AND($E180="",Caluations!$F169<8),$R180*$F180,0) -> 0 | P180: 2771.925 | Q180: =IF(LEFT(ScheduleSetup!$P$6,4)="Corn",BF180,BG180) -> R6 | AN180: 0 | AO180: 1 | AP180: 0 | AQ180: 0 | AU180: =IF((OR($E180<>"" )), Calculations2!$AV180,"") ->  | AV180: 0.7001122521 | AX180: =IF(AND(Caluations!$F169>5,Caluations!$F169<>FALSE),"",IF($E181="",($I180/$H180)*100,$I180/$H180*100)) ->  | BB180: 0 | BD180: 2771.925 | BE180: R6 | BF180: R6 | BG180: R8 | BH180: 9 | BI180: 14 | BJ180: 2722.5 | BK180: R6 | BL180: 8 | BQ180: =IF(LEFT(ScheduleSetup!$P$6,4)="Soyb",BG180,BF180) -> R6 | BR180: 50
B181: 36 | F181: 0.66 | G181: 0 | H181: 3.9 | I181: 0.7001122521 | K181: 0 | L181: =IF(Caluations!$J170<0,0,Caluations!$J170) ->  | N181: R6 | O181: =IF(AND($E181="",Caluations!$F170<8),$R181*$F181,0) -> 0 | P181: 2785.925 | Q181: =IF(LEFT(ScheduleSetup!$P$6,4)="Corn",BF181,BG181) -> R6 | AN181: 0 | AO181: 1 | AP181: 0 | AQ181: 0 | AU181: =IF((OR($E181<>"" )), Calculations2!$AV181,"") ->  | AV181: 0.7001122521 | AX181: =IF(AND(Caluations!$F170>5,Caluations!$F170<>FALSE),"",IF($E226="",($I181/$H181)*100,$I181/$H181*100)) ->  | BB181: 0 | BD181: 2785.925 | BE181: R6 | BF181: R6 | BG181: R8 | BH181: 9 | BI181: 14 | BJ181: 2736.5 | BK181: R6 | BL181: 8 | BQ181: =IF(LEFT(ScheduleSetup!$P$6,4)="Soyb",BG181,BF181) -> R6 | BR181: 50
B182: 36 | F182: 0.66 | G182: 0 | H182: 3.9 | I182: 0.7001122521 | K182: 0 | L182: =IF(Caluations!$J171<0,0,Caluations!$J171) ->  | N182: R6 | O182: =IF(AND($E182="",Caluations!$F171<8),$R182*$F182,0) -> 0 | P182: 2798.925 | Q182: =IF(LEFT(ScheduleSetup!$P$6,4)="Corn",BF182,BG182) -> R6 | AN182: 0 | AO182: 1 | AP182: 0 | AQ182: 0 | AU182: =IF((OR($E182<>"" )), Calculations2!$AV182,"") ->  | AV182: 0.7001122521 | AX182: =IF(AND(Caluations!$F171>5,Caluations!$F171<>FALSE),"",IF($E183="",($I182/$H182)*100,$I182/$H182*100)) ->  | BB182: 0 | BD182: 2798.925 | BE182: R6 | BF182: R6 | BG182: R8 | BH182: 9 | BI182: 13 | BJ182: 2749.5 | BK182: R6 | BL182: 8 | BQ182: =IF(LEFT(ScheduleSetup!$P$6,4)="Soyb",BG182,BF182) -> R6 | BR182: 50
B183: 36 | F183: 0.66 | G183: 0 | H183: 3.9 | I183: 0.7001122521 | K183: 0 | L183: =IF(Caluations!$J172<0,0,Caluations!$J172) ->  | N183: R6 | O183: =IF(AND($E183="",Caluations!$F172<8),$R183*$F183,0) -> 0 | P183: 2811.925 | Q183: =IF(LEFT(ScheduleSetup!$P$6,4)="Corn",BF183,BG183) -> R6 | AN183: 0 | AO183: 1 | AP183: 0 | AQ183: 0 | AU183: =IF((OR($E183<>"" )), Calculations2!$AV183,"") ->  | AV183: 0.7001122521 | AX183: =IF(AND(Caluations!$F172>5,Caluations!$F172<>FALSE),"",IF($E228="",($I183/$H183)*100,$I183/$H183*100)) ->  | BB183: 0 | BD183: 2811.925 | BE183: R6 | BF183: R6 | BG183: R8 | BH183: 9 | BI183: 13 | BJ183: 2762.5 | BK183: R6 | BL183: 8 | BQ183: =IF(LEFT(ScheduleSetup!$P$6,4)="Soyb",BG183,BF183) -> R6 | BR183: 50
B184: 36 | F184: 0.66 | G184: 0 | H184: =IF($B184<=6,$B184*$B$12,IF($B184<=12,6*$B$12+($B184-6)*$C$12,IF($B184<=18,6*$B$12+6*$C$12+($B184-12)*$D$12,IF($B184<=24,6*$B$12+6*$C$12+6*$D$12+($B184-18)*$E$12,IF($B184<=30,6*$B$12+6*$C$12+6*$D$12+6*$E$12+($B184-24)*$F$12,IF($B184<=36,6*$B$12+6*$C$12+6*$D$12+6*$E$12+6*$F$12+($B184-30)*$G$12,IF($B184<=42,6*$B$12+6*$C$12+6*$D$12+6*$E$12+6*$F$12+6*$G$12+($B184-36)*$H$12,IF($B184<=48,6*$B$12+6*$C$12+6*$D$12+6*$E$12+6*$F$12+6*$G$12+6*$H$12+(F184-42)*$I$12,"rootdepth>48in")))))))) -> 3.9 | I184: 0.7001122521 | J184: =+IF(S184="",(AX184),S184) ->  | K184: 0 | L184: =IF(Caluations!$J173<0,0,Caluations!$J173) ->  | N184: R6 | O184: =IF(AND($E184="",Caluations!$F173<8),$R184*$F184,0) -> 0 | P184: =+(IF(BD184=0,BJ184,BD184)) -> 2824.925 | Q184: =IF(LEFT(ScheduleSetup!$P$6,4)="Corn",BF184,BG184) -> R6 | AN184: 0 | AO184: 1 | AP184: =+AN184*AO184 -> 0 | AQ184: =IF(AO184<1,(AQ182-((1.25*(AP184/AN184)))-1)*(-$T$15))*0.008 -> 0 | AR184: =AR183-AQ184 ->  | AU184: =IF((OR($E184<>"" )), Calculations2!$AV184,"") ->  | AV184: =MAX(IF(($I183+$C184+$D184-$G184)+(($H184-$H183)*$B$13/100)>($H184*1.03),($H184*1.03),($I183+$C184+$D184-$G184-O184)+(($H184-$H183)*$B$13/100)),0) -> 0.7001122521 | AX184: =IF(AND(Caluations!$F173>5,Caluations!$F173<>FALSE),"",IF($E229="",($I184/$H184)*100,$I184/$H184*100)) ->  | BB184: =+T184 -> 0 | BD184: =+IF(BC184="",BD183+BI184,BD183+BC184) -> 2824.925 | BE184: =IF( LEN((BC184))=0, BK184,BF184) -> R6 | BF184: =VLOOKUP(BD184,$AZ$19:$BA$43,2,TRUE) -> R6 | BG184: R8 | BH184: 9 | BI184: 13 | BJ184: =+BJ183+BI184 -> 2775.5 | BK184: =VLOOKUP(BJ184,$AZ$19:$BA$43,2,TRUE) -> R6 | BL184: 8 | BQ184: =IF(LEFT(ScheduleSetup!$P$6,4)="Soyb",BG184,BF184) -> R6 | BR184: 50
B185: 36 | F185: 0.66 | G185: 0 | H185: 3.9 | I185: 0.7001122521 | K185: 0 | L185: =IF(Caluations!$J174<0,0,Caluations!$J174) ->  | N185: R6 | O185: =IF(AND($E185="",Caluations!$F174<8),$R185*$F185,0) -> 0 | P185: 2837.925 | Q185: =IF(LEFT(ScheduleSetup!$P$6,4)="Corn",BF185,BG185) -> R6 | AN185: 0 | AO185: 1 | AP185: 0 | AQ185: 0 | AU185: =IF((OR($E185<>"" )), Calculations2!$AV185,"") ->  | AV185: 0.7001122521 | AX185: =IF(AND(Caluations!$F174>5,Caluations!$F174<>FALSE),"",IF($E186="",($I185/$H185)*100,$I185/$H185*100)) ->  | BB185: 0 | BD185: 2837.925 | BE185: R6 | BF185: R6 | BG185: R8 | BH185: 9 | BI185: 13 | BJ185: 2788.5 | BK185: R6 | BL185: 8 | BQ185: =IF(LEFT(ScheduleSetup!$P$6,4)="Soyb",BG185,BF185) -> R6 | BR185: 50
B186: 36 | F186: 0.66 | G186: 0 | H186: 3.9 | I186: 0.7001122521 | K186: 0 | L186: =IF(Caluations!$J175<0,0,Caluations!$J175) ->  | N186: R6 | O186: =IF(AND($E186="",Caluations!$F175<8),$R186*$F186,0) -> 0 | P186: 2850.925 | Q186: =IF(LEFT(ScheduleSetup!$P$6,4)="Corn",BF186,BG186) -> R6 | AN186: 0 | AO186: 1 | AP186: 0 | AQ186: 0 | AU186: =IF((OR($E186<>"" )), Calculations2!$AV186,"") ->  | AV186: 0.7001122521 | AX186: =IF(AND(Caluations!$F175>5,Caluations!$F175<>FALSE),"",IF($E231="",($I186/$H186)*100,$I186/$H186*100)) ->  | BB186: 0 | BD186: 2850.925 | BE186: R6 | BF186: R6 | BG186: R8 | BH186: 9 | BI186: 13 | BJ186: 2801.5 | BK186: R6 | BL186: 8 | BQ186: =IF(LEFT(ScheduleSetup!$P$6,4)="Soyb",BG186,BF186) -> R6 | BR186: 50
B187: 36 | F187: 0.66 | G187: 0 | H187: 3.9 | I187: 0.7001122521 | K187: 0 | L187: =IF(Caluations!$J176<0,0,Caluations!$J176) ->  | N187: R6 | O187: =IF(AND($E187="",Caluations!$F176<8),$R187*$F187,0) -> 0 | P187: 2863.925 | Q187: =IF(LEFT(ScheduleSetup!$P$6,4)="Corn",BF187,BG187) -> R6 | AN187: 0 | AO187: 1 | AP187: 0 | AQ187: 0 | AU187: =IF((OR($E187<>"" )), Calculations2!$AV187,"") ->  | AV187: 0.7001122521 | AX187: =IF(AND(Caluations!$F176>5,Caluations!$F176<>FALSE),"",IF($E232="",($I187/$H187)*100,$I187/$H187*100)) ->  | BB187: 0 | BD187: 2863.925 | BE187: R6 | BF187: R6 | BG187: R8 | BH187: 9 | BI187: 13 | BJ187: 2814.5 | BK187: R6 | BL187: 8 | BQ187: =IF(LEFT(ScheduleSetup!$P$6,4)="Soyb",BG187,BF187) -> R6 | BR187: 50
B188: 36 | F188: 0.66 | G188: 0 | H188: 3.9 | I188: 0.7001122521 | K188: 0 | L188: =IF(Caluations!$J177<0,0,Caluations!$J177) ->  | N188: R6 | O188: =IF(AND($E188="",Caluations!$F177<8),$R188*$F188,0) -> 0 | P188: 2877.925 | Q188: =IF(LEFT(ScheduleSetup!$P$6,4)="Corn",BF188,BG188) -> R6 | AN188: 0 | AO188: 1 | AP188: 0 | AQ188: 0 | AU188: =IF((OR($E188<>"" )), Calculations2!$AV188,"") ->  | AV188: 0.7001122521 | AX188: =IF(AND(Caluations!$F177>5,Caluations!$F177<>FALSE),"",IF($E189="",($I188/$H188)*100,$I188/$H188*100)) ->  | BB188: 0 | BD188: 2877.925 | BE188: R6 | BF188: R6 | BG188: R8 | BH188: 9 | BI188: 14 | BJ188: 2828.5 | BK188: R6 | BL188: 8 | BQ188: =IF(LEFT(ScheduleSetup!$P$6,4)="Soyb",BG188,BF188) -> R6 | BR188: 50
B189: 36 | F189: 0.66 | G189: 0 | H189: 3.9 | I189: 0.7001122521 | K189: 0 | L189: =IF(Caluations!$J178<0,0,Caluations!$J178) ->  | N189: R6 | O189: =IF(AND($E189="",Caluations!$F178<8),$R189*$F189,0) -> 0 | P189: 2891.925 | Q189: =IF(LEFT(ScheduleSetup!$P$6,4)="Corn",BF189,BG189) -> R6 | AN189: 0 | AO189: 1 | AP189: 0 | AQ189: 0 | AU189: =IF((OR($E189<>"" )), Calculations2!$AV189,"") ->  | AV189: 0.7001122521 | AX189: =IF(AND(Caluations!$F178>5,Caluations!$F178<>FALSE),"",IF($E234="",($I189/$H189)*100,$I189/$H189*100)) ->  | BB189: 0 | BD189: 2891.925 | BE189: R6 | BF189: R6 | BG189: R8 | BH189: 9 | BI189: 14 | BJ189: 2842.5 | BK189: R6 | BL189: 8 | BQ189: =IF(LEFT(ScheduleSetup!$P$6,4)="Soyb",BG189,BF189) -> R6 | BR189: 50
B190: 36 | F190: 0.66 | G190: 0 | H190: 3.9 | I190: 0.7001122521 | K190: 0 | L190: =IF(Caluations!$J179<0,0,Caluations!$J179) ->  | N190: R6 | O190: =IF(AND($E190="",Caluations!$F179<8),$R190*$F190,0) -> 0 | P190: 2904.925 | Q190: =IF(LEFT(ScheduleSetup!$P$6,4)="Corn",BF190,BG190) -> R6 | AN190: 0 | AO190: 1 | AP190: 0 | AQ190: 0 | AU190: =IF((OR($E190<>"" )), Calculations2!$AV190,"") ->  | AV190: 0.7001122521 | AX190: =IF(AND(Caluations!$F179>5,Caluations!$F179<>FALSE),"",IF($E191="",($I190/$H190)*100,$I190/$H190*100)) ->  | BB190: 0 | BD190: 2904.925 | BE190: R6 | BF190: R6 | BG190: R8 | BH190: 9 | BI190: 13 | BJ190: 2855.5 | BK190: R6 | BL190: 8 | BQ190: =IF(LEFT(ScheduleSetup!$P$6,4)="Soyb",BG190,BF190) -> R6 | BR190: 50
B191: 36 | F191: 0.66 | G191: 0 | H191: 3.9 | I191: 0.7001122521 | K191: 0 | L191: =IF(Caluations!$J180<0,0,Caluations!$J180) ->  | N191: R6 | O191: =IF(AND($E191="",Caluations!$F180<8),$R191*$F191,0) -> 0 | P191: 2917.925 | Q191: =IF(LEFT(ScheduleSetup!$P$6,4)="Corn",BF191,BG191) -> R6 | AN191: 0 | AO191: 1 | AP191: 0 | AQ191: 0 | AU191: =IF((OR($E191<>"" )), Calculations2!$AV191,"") ->  | AV191: 0.7001122521 | AX191: =IF(AND(Caluations!$F180>5,Caluations!$F180<>FALSE),"",IF($E236="",($I191/$H191)*100,$I191/$H191*100)) ->  | BB191: 0 | BD191: 2917.925 | BE191: R6 | BF191: R6 | BG191: R8 | BH191: 9 | BI191: 13 | BJ191: 2868.5 | BK191: R6 | BL191: 8 | BQ191: =IF(LEFT(ScheduleSetup!$P$6,4)="Soyb",BG191,BF191) -> R6 | BR191: 50
B192: 36 | F192: 0.66 | G192: 0 | H192: =IF($B192<=6,$B192*$B$12,IF($B192<=12,6*$B$12+($B192-6)*$C$12,IF($B192<=18,6*$B$12+6*$C$12+($B192-12)*$D$12,IF($B192<=24,6*$B$12+6*$C$12+6*$D$12+($B192-18)*$E$12,IF($B192<=30,6*$B$12+6*$C$12+6*$D$12+6*$E$12+($B192-24)*$F$12,IF($B192<=36,6*$B$12+6*$C$12+6*$D$12+6*$E$12+6*$F$12+($B192-30)*$G$12,IF($B192<=42,6*$B$12+6*$C$12+6*$D$12+6*$E$12+6*$F$12+6*$G$12+($B192-36)*$H$12,IF($B192<=48,6*$B$12+6*$C$12+6*$D$12+6*$E$12+6*$F$12+6*$G$12+6*$H$12+(F192-42)*$I$12,"rootdepth>48in")))))))) -> 3.9 | I192: 0.7001122521 | J192: =+IF(S192="",(AX192),S192) ->  | K192: 0 | L192: =IF(Caluations!$J181<0,0,Caluations!$J181) ->  | N192: R6 | O192: =IF(AND($E192="",Caluations!$F181<8),$R192*$F192,0) -> 0 | P192: =+(IF(BD192=0,BJ192,BD192)) -> 2930.925 | Q192: =IF(LEFT(ScheduleSetup!$P$6,4)="Corn",BF192,BG192) -> R6 | AN192: 0 | AO192: 1 | AP192: =+AN192*AO192 -> 0 | AQ192: =IF(AO192<1,(AQ190-((1.25*(AP192/AN192)))-1)*(-$T$15))*0.008 -> 0 | AR192: =AR191-AQ192 ->  | AU192: =IF((OR($E192<>"" )), Calculations2!$AV192,"") ->  | AV192: =MAX(IF(($I191+$C192+$D192-$G192)+(($H192-$H191)*$B$13/100)>($H192*1.03),($H192*1.03),($I191+$C192+$D192-$G192-O192)+(($H192-$H191)*$B$13/100)),0) -> 0.7001122521 | AX192: =IF(AND(Caluations!$F181>5,Caluations!$F181<>FALSE),"",IF($E237="",($I192/$H192)*100,$I192/$H192*100)) ->  | BB192: =+T192 -> 0 | BD192: =+IF(BC192="",BD191+BI192,BD191+BC192) -> 2930.925 | BE192: =IF( LEN((BC192))=0, BK192,BF192) -> R6 | BF192: =VLOOKUP(BD192,$AZ$19:$BA$43,2,TRUE) -> R6 | BG192: R8 | BH192: 9 | BI192: 13 | BJ192: =+BJ191+BI192 -> 2881.5 | BK192: =VLOOKUP(BJ192,$AZ$19:$BA$43,2,TRUE) -> R6 | BL192: 8 | BQ192: =IF(LEFT(ScheduleSetup!$P$6,4)="Soyb",BG192,BF192) -> R6 | BR192: 50
B193: 36 | F193: 0.66 | G193: 0 | H193: =IF($B193<=6,$B193*$B$12,IF($B193<=12,6*$B$12+($B193-6)*$C$12,IF($B193<=18,6*$B$12+6*$C$12+($B193-12)*$D$12,IF($B193<=24,6*$B$12+6*$C$12+6*$D$12+($B193-18)*$E$12,IF($B193<=30,6*$B$12+6*$C$12+6*$D$12+6*$E$12+($B193-24)*$F$12,IF($B193<=36,6*$B$12+6*$C$12+6*$D$12+6*$E$12+6*$F$12+($B193-30)*$G$12,IF($B193<=42,6*$B$12+6*$C$12+6*$D$12+6*$E$12+6*$F$12+6*$G$12+($B193-36)*$H$12,IF($B193<=48,6*$B$12+6*$C$12+6*$D$12+6*$E$12+6*$F$12+6*$G$12+6*$H$12+(F193-42)*$I$12,"rootdepth>48in")))))))) -> 3.9 | I193: 0.7001122521 | J193: =+IF(S193="",(AX193),S193) ->  | K193: 0 | L193: =IF(Caluations!$J182<0,0,Caluations!$J182) ->  | N193: R6 | O193: =IF(AND($E193="",Caluations!$F182<8),$R193*$F193,0) -> 0 | P193: =+(IF(BD193=0,BJ193,BD193)) -> 2943.925 | Q193: =IF(LEFT(ScheduleSetup!$P$6,4)="Corn",BF193,BG193) -> R6 | AN193: 0 | AO193: 1 | AP193: =+AN193*AO193 -> 0 | AQ193: =IF(AO193<1,(AQ191-((1.25*(AP193/AN193)))-1)*(-$T$15))*0.008 -> 0 | AR193: =AR192-AQ193 ->  | AU193: =IF((OR($E193<>"" )), Calculations2!$AV193,"") ->  | AV193: =MAX(IF(($I192+$C193+$D193-$G193)+(($H193-$H192)*$B$13/100)>($H193*1.03),($H193*1.03),($I192+$C193+$D193-$G193-O193)+(($H193-$H192)*$B$13/100)),0) -> 0.7001122521 | AX193: =IF(AND(Caluations!$F182>5,Caluations!$F182<>FALSE),"",IF($E238="",($I193/$H193)*100,$I193/$H193*100)) ->  | BB193: =+T193 -> 0 | BD193: =+IF(BC193="",BD192+BI193,BD192+BC193) -> 2943.925 | BE193: =IF( LEN((BC193))=0, BK193,BF193) -> R6 | BF193: =VLOOKUP(BD193,$AZ$19:$BA$43,2,TRUE) -> R6 | BG193: R8 | BH193: 9 | BI193: 13 | BJ193: =+BJ192+BI193 -> 2894.5 | BK193: =VLOOKUP(BJ193,$AZ$19:$BA$43,2,TRUE) -> R6 | BL193: 8 | BQ193: =IF(LEFT(ScheduleSetup!$P$6,4)="Soyb",BG193,BF193) -> R6 | BR193: 50
B194: 36 | F194: 0.66 | G194: 0 | H194: 3.9 | I194: 0.7001122521 | K194: 0 | L194: =IF(Caluations!$J183<0,0,Caluations!$J183) ->  | N194: R6 | O194: =IF(AND($E194="",Caluations!$F183<8),$R194*$F194,0) -> 0 | P194: 2957.925 | Q194: =IF(LEFT(ScheduleSetup!$P$6,4)="Corn",BF194,BG194) -> R6 | AN194: 0 | AO194: 1 | AP194: 0 | AQ194: 0 | AU194: =IF((OR($E194<>"" )), Calculations2!$AV194,"") ->  | AV194: 0.7001122521 | AX194: =IF(AND(Caluations!$F183>5,Caluations!$F183<>FALSE),"",IF($E195="",($I194/$H194)*100,$I194/$H194*100)) ->  | BB194: 0 | BD194: 2957.925 | BE194: R6 | BF194: R6 | BG194: R8 | BH194: 9 | BI194: 14 | BJ194: 2908.5 | BK194: R6 | BL194: 8 | BQ194: =IF(LEFT(ScheduleSetup!$P$6,4)="Soyb",BG194,BF194) -> R6 | BR194: 50
B195: 36 | F195: 0.66 | G195: 0 | H195: 3.9 | I195: 0.7001122521 | K195: 0 | L195: =IF(Caluations!$J184<0,0,Caluations!$J184) ->  | N195: R6 | O195: =IF(AND($E195="",Caluations!$F184<8),$R195*$F195,0) -> 0 | P195: 2971.925 | Q195: =IF(LEFT(ScheduleSetup!$P$6,4)="Corn",BF195,BG195) -> R6 | AN195: 0 | AO195: 1 | AP195: 0 | AQ195: 0 | AU195: =IF((OR($E195<>"" )), Calculations2!$AV195,"") ->  | AV195: 0.7001122521 | AX195: =IF(AND(Caluations!$F184>5,Caluations!$F184<>FALSE),"",IF($E240="",($I195/$H195)*100,$I195/$H195*100)) ->  | BB195: 0 | BD195: 2971.925 | BE195: R6 | BF195: R6 | BG195: R8 | BH195: 9 | BI195: 14 | BJ195: 2922.5 | BK195: R6 | BL195: 8 | BQ195: =IF(LEFT(ScheduleSetup!$P$6,4)="Soyb",BG195,BF195) -> R6 | BR195: 50
B196: 36 | F196: 0.66 | G196: 0 | H196: 3.9 | I196: 0.7001122521 | K196: 0 | L196: =IF(Caluations!$J185<0,0,Caluations!$J185) ->  | N196: R6 | O196: =IF(AND($E196="",Caluations!$F185<8),$R196*$F196,0) -> 0 | P196: 2984.925 | Q196: =IF(LEFT(ScheduleSetup!$P$6,4)="Corn",BF196,BG196) -> R6 | AN196: 0 | AO196: 1 | AP196: 0 | AQ196: 0 | AU196: =IF((OR($E196<>"" )), Calculations2!$AV196,"") ->  | AV196: 0.7001122521 | AX196: =IF(AND(Caluations!$F185>5,Caluations!$F185<>FALSE),"",IF($E197="",($I196/$H196)*100,$I196/$H196*100)) ->  | BB196: 0 | BD196: 2984.925 | BE196: R6 | BF196: R6 | BG196: R8 | BH196: 9 | BI196: 13 | BJ196: 2935.5 | BK196: R6 | BL196: 8 | BQ196: =IF(LEFT(ScheduleSetup!$P$6,4)="Soyb",BG196,BF196) -> R6 | BR196: 50
B197: 36 | F197: 0.66 | G197: 0 | H197: 3.9 | I197: 0.7001122521 | K197: 0 | L197: =IF(Caluations!$J186<0,0,Caluations!$J186) ->  | N197: R6 | O197: =IF(AND($E197="",Caluations!$F186<8),$R197*$F197,0) -> 0 | P197: 2997.925 | Q197: =IF(LEFT(ScheduleSetup!$P$6,4)="Corn",BF197,BG197) -> R6 | AN197: 0 | AO197: 1 | AP197: 0 | AQ197: 0 | AU197: =IF((OR($E197<>"" )), Calculations2!$AV197,"") ->  | AV197: 0.7001122521 | AX197: =IF(AND(Caluations!$F186>5,Caluations!$F186<>FALSE),"",IF($E242="",($I197/$H197)*100,$I197/$H197*100)) ->  | BB197: 0 | BD197: 2997.925 | BE197: R6 | BF197: R6 | BG197: R8 | BH197: 9 | BI197: 13 | BJ197: 2948.5 | BK197: R6 | BL197: 8 | BQ197: =IF(LEFT(ScheduleSetup!$P$6,4)="Soyb",BG197,BF197) -> R6 | BR197: 50
B198: 36 | F198: 0.66 | G198: 0 | H198: 3.9 | I198: 0.7001122521 | K198: 0 | L198: =IF(Caluations!$J187<0,0,Caluations!$J187) ->  | N198: R6 | O198: =IF(AND($E198="",Caluations!$F187<8),$R198*$F198,0) -> 0 | P198: 3010.925 | Q198: =IF(LEFT(ScheduleSetup!$P$6,4)="Corn",BF198,BG198) -> R6 | AN198: 0 | AO198: 1 | AP198: 0 | AQ198: 0 | AU198: =IF((OR($E198<>"" )), Calculations2!$AV198,"") ->  | AV198: 0.7001122521 | AX198: =IF(AND(Caluations!$F187>5,Caluations!$F187<>FALSE),"",IF($E243="",($I198/$H198)*100,$I198/$H198*100)) ->  | BB198: 0 | BD198: 3010.925 | BE198: R6 | BF198: R6 | BG198: R8 | BH198: 9 | BI198: 13 | BJ198: 2961.5 | BK198: R6 | BL198: 8 | BQ198: =IF(LEFT(ScheduleSetup!$P$6,4)="Soyb",BG198,BF198) -> R6 | BR198: 50
B199: 36 | F199: 0.66 | G199: 0 | H199: =IF($B199<=6,$B199*$B$12,IF($B199<=12,6*$B$12+($B199-6)*$C$12,IF($B199<=18,6*$B$12+6*$C$12+($B199-12)*$D$12,IF($B199<=24,6*$B$12+6*$C$12+6*$D$12+($B199-18)*$E$12,IF($B199<=30,6*$B$12+6*$C$12+6*$D$12+6*$E$12+($B199-24)*$F$12,IF($B199<=36,6*$B$12+6*$C$12+6*$D$12+6*$E$12+6*$F$12+($B199-30)*$G$12,IF($B199<=42,6*$B$12+6*$C$12+6*$D$12+6*$E$12+6*$F$12+6*$G$12+($B199-36)*$H$12,IF($B199<=48,6*$B$12+6*$C$12+6*$D$12+6*$E$12+6*$F$12+6*$G$12+6*$H$12+(F199-42)*$I$12,"rootdepth>48in")))))))) -> 3.9 | I199: 0.7001122521 | J199: =+IF(S199="",(AX199),S199) ->  | K199: 0 | L199: =IF(Caluations!$J188<0,0,Caluations!$J188) ->  | N199: R6 | O199: =IF(AND($E199="",Caluations!$F188<8),$R199*$F199,0) -> 0 | P199: =+(IF(BD199=0,BJ199,BD199)) -> 3023.925 | Q199: =IF(LEFT(ScheduleSetup!$P$6,4)="Corn",BF199,BG199) -> R6 | AN199: 0 | AO199: 1 | AP199: =+AN199*AO199 -> 0 | AQ199: =IF(AO199<1,(AQ197-((1.25*(AP199/AN199)))-1)*(-$T$15))*0.008 -> 0 | AR199: =AR198-AQ199 ->  | AU199: =IF((OR($E199<>"" )), Calculations2!$AV199,"") ->  | AV199: =MAX(IF(($I198+$C199+$D199-$G199)+(($H199-$H198)*$B$13/100)>($H199*1.03),($H199*1.03),($I198+$C199+$D199-$G199-O199)+(($H199-$H198)*$B$13/100)),0) -> 0.7001122521 | AX199: =IF(AND(Caluations!$F188>5,Caluations!$F188<>FALSE),"",IF($E244="",($I199/$H199)*100,$I199/$H199*100)) ->  | BB199: =+T199 -> 0 | BD199: =+IF(BC199="",BD198+BI199,BD198+BC199) -> 3023.925 | BE199: =IF( LEN((BC199))=0, BK199,BF199) -> R6 | BF199: =VLOOKUP(BD199,$AZ$19:$BA$43,2,TRUE) -> R6 | BG199: R8 | BH199: 9 | BI199: 13 | BJ199: =+BJ198+BI199 -> 2974.5 | BK199: =VLOOKUP(BJ199,$AZ$19:$BA$43,2,TRUE) -> R6 | BL199: 8 | BQ199: =IF(LEFT(ScheduleSetup!$P$6,4)="Soyb",BG199,BF199) -> R6 | BR199: 50
BI201: 12
BI202: 12
A203: Summary: | C203: Rainfall | D203: Irrigation added (inches) | G203: Estimated Actual ET (inches) | H203: Capacity of root zone (inches) | I203: Soil Water in root zone (inches) | J203: % capacity filled | K203: Drainage (inches) | L203: Additional capacity of root zone (inches) | BI203: 11 | IN203: =+VLOOKUP(IM203,$T$19:$U$40,2) -> 
... 80 more rows

Sheet Connections (hidden)
C1: If Cell A1 is blank, there are no child files linked to it | W1: Parent
C2: If A1 is "Parent" then there are child schedules to be updated
C3: Active File: | D3: MSU Irrigation Scheduler Version 2016.xlsm
Z4: C:\Users\Bruce\Desktop\2016 Crops Meeting Totals | AA4: 2016 Crops Meeting Totals
D5: C:\Users\Bruce\Desktop\ | E5: Please Select the Folder where your Scheduler Files are Located | Z5: C:\Users\Bruce\Desktop\Book1 | AA5: Book1
Z6: C:\Users\Bruce\Desktop\Copy of Copy of Copy of Cost Recovery MSUE Spreadsheet Grain Fumigation-final | AA6: Copy of Copy of Copy of Cost Recovery MSUE Spreadsheet Grain Fumigation-final
Z7: C:\Users\Bruce\Desktop\Copy of Copy of Pre-Trip Travel Authorization for Bruce MacKellar - 2015 AMPIC | AA7: Copy of Copy of Pre-Trip Travel Authorization for Bruce MacKellar - 2015 AMPIC
Z8: C:\Users\Bruce\Desktop\Copy of corn production workshop | AA8: Copy of corn production workshop
Z9: C:\Users\Bruce\Desktop\Copy of MacKellar Travel for July- 2015 - NACAA TRIP | AA9: Copy of MacKellar Travel for July- 2015 - NACAA TRIP
Z10: C:\Users\Bruce\Desktop\Copy of Waldron P Plots with graphs last | AA10: Copy of Waldron P Plots with graphs last
Z11: C:\Users\Bruce\Desktop\JD 4400 for parts | AA11: JD 4400 for parts
Z12: C:\Users\Bruce\Desktop\Moisture | AA12: Moisture
Z13: C:\Users\Bruce\Desktop\Waldron P Plots with graphs wide | AA13: Waldron P Plots with graphs wide
Z14: C:\Users\Bruce\Desktop\Waldron P Plots with graphs | AA14: Waldron P Plots with graphs
Z15: C:\Users\Bruce\Desktop\Waldron P Plots | AA15: Waldron P Plots
Z16: C:\Users\Bruce\Desktop\Waldron P Plots2 | AA16: Waldron P Plots2
Z17: C:\Users\Bruce\Desktop\Weight | AA17: Weight
D18: =LEFT(CELL("filename",A1),LEN(CELL("filename",A1))-(FIND("",CELL("filename",A1),1))-3) -> C:\Users\DONG\Desktop\[MSU Irrigation Scheduler.xlsm]Connect
A171: C:\Users\Bruce\Documents\2012 Kalamazoo County Growers List | B171: Grower List for Kalamzoo County 2012.doc
A173: C:\Users\Bruce\Documents\Abner Phillips Worcester Mocavo_files | B173: apx2xqm.js
A174: C:\Users\Bruce\Documents\Abner Phillips Worcester Mocavo_files | B174: avatar-male.png
A175: C:\Users\Bruce\Documents\Abner Phillips Worcester Mocavo_files | B175: bd.gif
A176: C:\Users\Bruce\Documents\Abner Phillips Worcester Mocavo_files | B176: bmi.js
A177: C:\Users\Bruce\Documents\Abner Phillips Worcester Mocavo_files | B177: bootstrap-alert.js
A178: C:\Users\Bruce\Documents\Abner Phillips Worcester Mocavo_files | B178: bootstrap-button.js
A179: C:\Users\Bruce\Documents\Abner Phillips Worcester Mocavo_files | B179: bootstrap-collapse.js
A180: C:\Users\Bruce\Documents\Abner Phillips Worcester Mocavo_files | B180: bootstrap-dropdown.js
A181: C:\Users\Bruce\Documents\Abner Phillips Worcester Mocavo_files | B181: bootstrap-modal.js
A182: C:\Users\Bruce\Documents\Abner Phillips Worcester Mocavo_files | B182: bootstrap-popover.js
A183: C:\Users\Bruce\Documents\Abner Phillips Worcester Mocavo_files | B183: bootstrap-scrollspy.js
A184: C:\Users\Bruce\Documents\Abner Phillips Worcester Mocavo_files | B184: bootstrap-tab.js
A185: C:\Users\Bruce\Documents\Abner Phillips Worcester Mocavo_files | B185: bootstrap-tooltip.js
A186: C:\Users\Bruce\Documents\Abner Phillips Worcester Mocavo_files | B186: bootstrap.css
A187: C:\Users\Bruce\Documents\Abner Phillips Worcester Mocavo_files | B187: comments.css
A188: C:\Users\Bruce\Documents\Abner Phillips Worcester Mocavo_files | B188: comments.js
A189: C:\Users\Bruce\Documents\Abner Phillips Worcester Mocavo_files | B189: common.css
A190: C:\Users\Bruce\Documents\Abner Phillips Worcester Mocavo_files | B190: common.js
A191: C:\Users\Bruce\Documents\Abner Phillips Worcester Mocavo_files | B191: history.adapter.jquery.js
A192: C:\Users\Bruce\Documents\Abner Phillips Worcester Mocavo_files | B192: iconfont.css
A193: C:\Users\Bruce\Documents\Abner Phillips Worcester Mocavo_files | B193: jquery-1.8.0.min.js
A194: C:\Users\Bruce\Documents\Abner Phillips Worcester Mocavo_files | B194: jquery.autogrow.js
A195: C:\Users\Bruce\Documents\Abner Phillips Worcester Mocavo_files | B195: jquery.cookie.min.js
A196: C:\Users\Bruce\Documents\Abner Phillips Worcester Mocavo_files | B196: js.js
A197: C:\Users\Bruce\Documents\Abner Phillips Worcester Mocavo_files | B197: logo_text.png
A198: C:\Users\Bruce\Documents\Abner Phillips Worcester Mocavo_files | B198: mocavo.js
A199: C:\Users\Bruce\Documents\Abner Phillips Worcester Mocavo_files | B199: mocavo_logo.png
A200: C:\Users\Bruce\Documents\Abner Phillips Worcester Mocavo_files | B200: modernizr.custom.96254.js
A201: C:\Users\Bruce\Documents\Abner Phillips Worcester Mocavo_files | B201: module-profile-well.js
A202: C:\Users\Bruce\Documents\Abner Phillips Worcester Mocavo_files | B202: profile-large-male.png
A203: C:\Users\Bruce\Documents\Abner Phillips Worcester Mocavo_files | B203: retina.js
A204: C:\Users\Bruce\Documents\Abner Phillips Worcester Mocavo_files | B204: search-core.js
A205: C:\Users\Bruce\Documents\Abner Phillips Worcester Mocavo_files | B205: select2.css
A206: C:\Users\Bruce\Documents\Abner Phillips Worcester Mocavo_files | B206: select2.js
A207: C:\Users\Bruce\Documents\Abner Phillips Worcester Mocavo_files | B207: tile.stamen.js
A208: C:\Users\Bruce\Documents\Abner Phillips Worcester Mocavo_files | B208: tree-profile.css
A209: C:\Users\Bruce\Documents\Abner Phillips Worcester Mocavo_files | B209: tree-profile.js
A210: C:\Users\Bruce\Documents\Abner Phillips Worcester Mocavo_files | B210: typekit_loader.js
A211: C:\Users\Bruce\Documents\Abner Phillips Worcester Mocavo_files | B211: underscore-min.js
A213: C:\Users\Bruce\Documents\Andrew Mershon Cornelius Anderson for website_files | B213: 569217469-gview_local_gview_base_mod.js
A215: C:\Users\Bruce\Documents\Annals of Newton LI_files | B215: analytics.js
A216: C:\Users\Bruce\Documents\Annals of Newton LI_files | B216: archive.css
A217: C:\Users\Bruce\Documents\Annals of Newton LI_files | B217: books-small.jpg
A218: C:\Users\Bruce\Documents\Annals of Newton LI_files | B218: glogo2.png
A219: C:\Users\Bruce\Documents\Annals of Newton LI_files | B219: jquery-1.6.1.js
A220: C:\Users\Bruce\Documents\Annals of Newton LI_files | B220: ol.png
A221: C:\Users\Bruce\Documents\Annals of Newton LI_files | B221: search.png
A222: C:\Users\Bruce\Documents\Annals of Newton LI_files | B222: tvnews.png
A224: C:\Users\Bruce\Documents\Cass County Grower List | B224: Berrien County Grower List.doc
A225: C:\Users\Bruce\Documents\Cass County Grower List | B225: Cass County Grower List.doc
A227: C:\Users\Bruce\Documents\Daniel Anderson Revolutionary War Service Pension | B227: s37677.pdf
A229: C:\Users\Bruce\Documents\Descendants of Bartholomew Anderson_files | B229: t.css
A233: C:\Users\Bruce\Documents\Frederick County History of Frederick County_files | B233: goBtn.gif
A234: C:\Users\Bruce\Documents\Frederick County History of Frederick County_files | B234: Print(1).css
A235: C:\Users\Bruce\Documents\Frederick County History of Frederick County_files | B235: Print.css
A236: C:\Users\Bruce\Documents\Frederick County History of Frederick County_files | B236: ScriptBundlejQuery.js
A237: C:\Users\Bruce\Documents\Frederick County History of Frederick County_files | B237: ScriptBundlejQueryPlugin.js
A238: C:\Users\Bruce\Documents\Frederick County History of Frederick County_files | B238: ScriptBundlejQueryUI.js
A239: C:\Users\Bruce\Documents\Frederick County History of Frederick County_files | B239: ScriptBundleMSAjax.js
A240: C:\Users\Bruce\Documents\Frederick County History of Frederick County_files | B240: ScriptBundleVisionFrontend.js
A241: C:\Users\Bruce\Documents\Frederick County History of Frederick County_files | B241: ScriptBundleVisionResource.js
A242: C:\Users\Bruce\Documents\Frederick County History of Frederick County_files | B242: ShowImage(1).png
A243: C:\Users\Bruce\Documents\Frederick County History of Frederick County_files | B243: ShowImage(2).png
A244: C:\Users\Bruce\Documents\Frederick County History of Frederick County_files | B244: ShowImage.gif
A245: C:\Users\Bruce\Documents\Frederick County History of Frederick County_files | B245: ShowImage.jpg
A246: C:\Users\Bruce\Documents\Frederick County History of Frederick County_files | B246: ShowImage.png
A247: C:\Users\Bruce\Documents\Frederick County History of Frederick County_files | B247: spacer.gif
A248: C:\Users\Bruce\Documents\Frederick County History of Frederick County_files | B248: StyleBundleDesignTheme(1).css
A249: C:\Users\Bruce\Documents\Frederick County History of Frederick County_files | B249: StyleBundleDesignTheme.css
A250: C:\Users\Bruce\Documents\Frederick County History of Frederick County_files | B250: StyleBundleFrontendExtra.css
A251: C:\Users\Bruce\Documents\Frederick County History of Frederick County_files | B251: StyleBundleSingleDropDown(1).css
A252: C:\Users\Bruce\Documents\Frederick County History of Frederick County_files | B252: StyleBundleSingleDropDown.css
A253: C:\Users\Bruce\Documents\Frederick County History of Frederick County_files | B253: styles.css
A254: C:\Users\Bruce\Documents\Frederick County History of Frederick County_files | B254: x-small.css
A256: C:\Users\Bruce\Documents\Full text of Virginia militia in the Revolutionary War McAllister's data_files | B256: analytics.js
A257: C:\Users\Bruce\Documents\Full text of Virginia militia in the Revolutionary War McAllister's data_files | B257: archive.css
A258: C:\Users\Bruce\Documents\Full text of Virginia militia in the Revolutionary War McAllister's data_files | B258: books-small.jpg
A259: C:\Users\Bruce\Documents\Full text of Virginia militia in the Revolutionary War McAllister's data_files | B259: glogo2.png
A260: C:\Users\Bruce\Documents\Full text of Virginia militia in the Revolutionary War McAllister's data_files | B260: jquery-1.6.1.js
A261: C:\Users\Bruce\Documents\Full text of Virginia militia in the Revolutionary War McAllister's data_files | B261: ol.png
A262: C:\Users\Bruce\Documents\Full text of Virginia militia in the Revolutionary War McAllister's data_files | B262: search.png
A263: C:\Users\Bruce\Documents\Full text of Virginia militia in the Revolutionary War McAllister's data_files | B263: tvnews.png
A265: C:\Users\Bruce\Documents\George Washington's Professional Surveys_files | B265: autocomplete.css
A266: C:\Users\Bruce\Documents\George Washington's Professional Surveys_files | B266: bmi.js
A267: C:\Users\Bruce\Documents\George Washington's Professional Surveys_files | B267: boxover.js
A268: C:\Users\Bruce\Documents\George Washington's Professional Surveys_files | B268: document-print.png
A269: C:\Users\Bruce\Documents\George Washington's Professional Surveys_files | B269: epoch_styles.css
A270: C:\Users\Bruce\Documents\George Washington's Professional Surveys_files | B270: FGEA.css
A271: C:\Users\Bruce\Documents\George Washington's Professional Surveys_files | B271: GEWN.css
A272: C:\Users\Bruce\Documents\George Washington's Professional Surveys_files | B272: img-logo-trans.png
A273: C:\Users\Bruce\Documents\George Washington's Professional Surveys_files | B273: mtvernon-guest.css
A274: C:\Users\Bruce\Documents\George Washington's Professional Surveys_files | B274: note-functions.js
A275: C:\Users\Bruce\Documents\George Washington's Professional Surveys_files | B275: Production.css
A277: C:\Users\Bruce\Documents\History and Development of the Jersey Settlement, NC_files | B277: bmi.js
A279: C:\Users\Bruce\Documents\History of the 8th Virginia Infantry Regiment_files | B279: 8vasmhdr.jpg
A280: C:\Users\Bruce\Documents\History of the 8th Virginia Infantry Regiment_files | B280: bborder.jpg
A281: C:\Users\Bruce\Documents\History of the 8th Virginia Infantry Regiment_files | B281: grandunion.jpg
A282: C:\Users\Bruce\Documents\History of the 8th Virginia Infantry Regiment_files | B282: muhlenberg1.jpg
A283: C:\Users\Bruce\Documents\History of the 8th Virginia Infantry Regiment_files | B283: muhlenberg2.jpg
A284: C:\Users\Bruce\Documents\History of the 8th Virginia Infantry Regiment_files | B284: muhlenberg3.jpg
A285: C:\Users\Bruce\Documents\History of the 8th Virginia Infantry Regiment_files | B285: muhlenberg4.jpg
A287: C:\Users\Bruce\Documents\Hopewell New Jersey_files | B287: bmi.js
A288: C:\Users\Bruce\Documents\Hopewell New Jersey_files | B288: image001.gif
A289: C:\Users\Bruce\Documents\Hopewell New Jersey_files | B289: image002.jpg
A290: C:\Users\Bruce\Documents\Hopewell New Jersey_files | B290: image003.jpg
A291: C:\Users\Bruce\Documents\Hopewell New Jersey_files | B291: image004.jpg
A292: C:\Users\Bruce\Documents\Hopewell New Jersey_files | B292: image005.jpg
A293: C:\Users\Bruce\Documents\Hopewell New Jersey_files | B293: image006.jpg
A294: C:\Users\Bruce\Documents\Hopewell New Jersey_files | B294: image007.jpg
A296: C:\Users\Bruce\Documents\Karen Worley's Genealogy Database - Person Page 18_files | B296: h.css
A297: C:\Users\Bruce\Documents\Karen Worley's Genealogy Database - Person Page 18_files | B297: home.jpg
A298: C:\Users\Bruce\Documents\Karen Worley's Genealogy Database - Person Page 18_files | B298: line.jpg
A299: C:\Users\Bruce\Documents\Karen Worley's Genealogy Database - Person Page 18_files | B299: logo.jpg
A300: C:\Users\Bruce\Documents\Karen Worley's Genealogy Database - Person Page 18_files | B300: masterindex.jpg
A301: C:\Users\Bruce\Documents\Karen Worley's Genealogy Database - Person Page 18_files | B301: next.jpg
A302: C:\Users\Bruce\Documents\Karen Worley's Genealogy Database - Person Page 18_files | B302: previous.jpg
A303: C:\Users\Bruce\Documents\Karen Worley's Genealogy Database - Person Page 18_files | B303: scripts.js
A304: C:\Users\Bruce\Documents\Karen Worley's Genealogy Database - Person Page 18_files | B304: site.css
A305: C:\Users\Bruce\Documents\Karen Worley's Genealogy Database - Person Page 18_files | B305: surnameindex.jpg
A307: C:\Users\Bruce\Documents\Music | B307: Desperado.doc

Sheet Drought_Stress
BY1: =+Calculations2!N19 -> VE | BZ1: =+Calculations2!A19 -> 2020-05-28 | CA1: =+Calculations2!BN19 -> 0
BY2: =+Calculations2!N20 -> VE | BZ2: =+Calculations2!A20 -> 2020-05-29 | CA2: =+Calculations2!BN20 -> 0
BY3: =+Calculations2!N21 -> VE | BZ3: =+Calculations2!A21 -> 2020-05-30 | CA3: =+Calculations2!BN21 -> 0
BY4: =+Calculations2!N22 -> VE | BZ4: =+Calculations2!A22 -> 2020-05-31 | CA4: =+Calculations2!BN22 -> 0
BY5: =+Calculations2!N23 -> V1 | BZ5: =+Calculations2!A23 -> 2020-06-01 | CA5: =+Calculations2!BN23 -> 0
BY6: =+Calculations2!N24 -> V1 | BZ6: =+Calculations2!A24 -> 2020-06-02 | CA6: =+Calculations2!BN24 -> 0
BY7: =+Calculations2!N25 -> V1 | BZ7: =+Calculations2!A25 -> 2020-06-03 | CA7: =+Calculations2!BN25 -> 0
BY8: =+Calculations2!N26 -> V2 | BZ8: =+Calculations2!A26 -> 2020-06-04 | CA8: =+Calculations2!BN26 -> 0
BY9: =+Calculations2!N27 -> V2 | BZ9: =+Calculations2!A27 -> 2020-06-05 | CA9: =+Calculations2!BN27 -> 0
BY10: =+Calculations2!N28 -> V2 | BZ10: =+Calculations2!A28 -> 2020-06-06 | CA10: =+Calculations2!BN28 -> 0
BY11: =+Calculations2!N29 -> V3 | BZ11: =+Calculations2!A29 -> 2020-06-07 | CA11: =+Calculations2!BN29 -> 1.775544053
BY12: =+Calculations2!N30 -> V3 | BZ12: =+Calculations2!A30 -> 2020-06-08 | CA12: =+Calculations2!BN30 -> 4.033265958
BY13: =+Calculations2!N31 -> V3 | BZ13: =+Calculations2!A31 -> 2020-06-09 | CA13: =+Calculations2!BN31 -> 0
BY14: =+Calculations2!N32 -> V4 | BZ14: =+Calculations2!A32 -> 2020-06-10 | CA14: =+Calculations2!BN32 -> 0
BY15: =+Calculations2!N33 -> V4 | BZ15: =+Calculations2!A33 -> 2020-06-11 | CA15: =+Calculations2!BN33 -> 0
BY16: =+Calculations2!N34 -> V4 | BZ16: =+Calculations2!A34 -> 2020-06-12 | CA16: =+Calculations2!BN34 -> 0
BY17: =+Calculations2!N35 -> V4 | BZ17: =+Calculations2!A35 -> 2020-06-13 | CA17: =+Calculations2!BN35 -> 0
BY18: =+Calculations2!N36 -> V5 | BZ18: =+Calculations2!A36 -> 2020-06-14 | CA18: =+Calculations2!BN36 -> 0
BY19: =+Calculations2!N37 -> V5 | BZ19: =+Calculations2!A37 -> 2020-06-15 | CA19: =+Calculations2!BN37 -> 0
BY20: =+Calculations2!N38 -> V5 | BZ20: =+Calculations2!A38 -> 2020-06-16 | CA20: =+Calculations2!BN38 -> 0
BY21: =+Calculations2!N39 -> V5 | BZ21: =+Calculations2!A39 -> 2020-06-17 | CA21: =+Calculations2!BN39 -> 0
BY22: =+Calculations2!N40 -> V6 | BZ22: =+Calculations2!A40 -> 2020-06-18 | CA22: =+Calculations2!BN40 -> 0
BY23: =+Calculations2!N41 -> V6 | BZ23: =+Calculations2!A41 -> 2020-06-19 | CA23: =+Calculations2!BN41 -> 0
BY24: =+Calculations2!N42 -> V7 | BZ24: =+Calculations2!A42 -> 2020-06-20 | CA24: =+Calculations2!BN42 -> 0
BY25: =+Calculations2!N43 -> V7 | BZ25: =+Calculations2!A43 -> 2020-06-21 | CA25: =+Calculations2!BN43 -> 0
BY26: =+Calculations2!N44 -> V7 | BZ26: =+Calculations2!A44 -> 2020-06-22 | CA26: =+Calculations2!BN44 -> 0
BY27: =+Calculations2!N45 -> V8 | BZ27: =+Calculations2!A45 -> 2020-06-23 | CA27: =+Calculations2!BN45 -> 0
BY28: =+Calculations2!N46 -> V8 | BZ28: =+Calculations2!A46 -> 2020-06-24 | CA28: =+Calculations2!BN46 -> 0
BY29: =+Calculations2!N47 -> V8 | BZ29: =+Calculations2!A47 -> 2020-06-25 | CA29: =+Calculations2!BN47 -> 0
BY30: =+Calculations2!N48 -> V8 | BZ30: =+Calculations2!A48 -> 2020-06-26 | CA30: =+Calculations2!BN48 -> 0
BY31: =+Calculations2!N49 -> V9 | BZ31: =+Calculations2!A49 -> 2020-06-27 | CA31: =+Calculations2!BN49 -> 0
BY32: =+Calculations2!N50 -> V9 | BZ32: =+Calculations2!A50 -> 2020-06-28 | CA32: =+Calculations2!BN50 -> 0
BY33: =+Calculations2!N51 -> V10 | BZ33: =+Calculations2!A51 -> 2020-06-29 | CA33: =+Calculations2!BN51 -> 0
BY34: =+Calculations2!N52 -> V10 | BZ34: =+Calculations2!A52 -> 2020-06-30 | CA34: =+Calculations2!BN52 -> 0
BY35: =+Calculations2!N53 -> V10 | BZ35: =+Calculations2!A53 -> 2020-07-01 | CA35: =+Calculations2!BN53 -> 0
BY36: =+Calculations2!N54 -> V11 | BZ36: =+Calculations2!A54 -> 2020-07-02 | CA36: =+Calculations2!BN54 -> 0
BY37: =+Calculations2!N55 -> V11 | BZ37: =+Calculations2!A55 -> 2020-07-03 | CA37: =+Calculations2!BN55 -> 0
BY38: =+Calculations2!N56 -> V12 | BZ38: =+Calculations2!A56 -> 2020-07-04 | CA38: =+Calculations2!BN56 -> 0
BY39: =+Calculations2!N57 -> V13 | BZ39: =+Calculations2!A57 -> 2020-07-05 | CA39: =+Calculations2!BN57 -> 0
BY40: =+Calculations2!N58 -> V13 | BZ40: =+Calculations2!A58 -> 2020-07-06 | CA40: =+Calculations2!BN58 -> 0
BY41: =+Calculations2!N59 -> V14 | BZ41: =+Calculations2!A59 -> 2020-07-07 | CA41: =+Calculations2!BN59 -> 0
BY42: =+Calculations2!N60 -> V14 | BZ42: =+Calculations2!A60 -> 2020-07-08 | CA42: =+Calculations2!BN60 -> 0
BY43: =+Calculations2!N61 -> V15 | BZ43: =+Calculations2!A61 -> 2020-07-09 | CA43: =+Calculations2!BN61 -> 3.061358974
BY44: =+Calculations2!N62 -> V15 | BZ44: =+Calculations2!A62 -> 2020-07-10 | CA44: =+Calculations2!BN62 -> 0
BY45: =+Calculations2!N63 -> V16 | BZ45: =+Calculations2!A63 -> 2020-07-11 | CA45: =+Calculations2!BN63 -> 0
BY46: =+Calculations2!N64 -> V16 | BZ46: =+Calculations2!A64 -> 2020-07-12 | CA46: =+Calculations2!BN64 -> 0
BY47: =+Calculations2!N65 -> V17 | BZ47: =+Calculations2!A65 -> 2020-07-13 | CA47: =+Calculations2!BN65 -> 0
BY48: =+Calculations2!N66 -> V17 | BZ48: =+Calculations2!A66 -> 2020-07-14 | CA48: =+Calculations2!BN66 -> 1.48625002
BY49: =+Calculations2!N67 -> V18 | BZ49: =+Calculations2!A67 -> 2020-07-15 | CA49: =+Calculations2!BN67 -> 6.32269771
BY50: =+Calculations2!N68 -> V18 | BZ50: =+Calculations2!A68 -> 2020-07-16 | CA50: =+Calculations2!BN68 -> 0
BY51: =+Calculations2!N69 -> V18 | BZ51: =+Calculations2!A69 -> 2020-07-17 | CA51: =+Calculations2!BN69 -> 0
BY52: =+Calculations2!N70 -> R1 | BZ52: =+Calculations2!A70 -> 2020-07-18 | CA52: =+Calculations2!BN70 -> 0
BY53: =+Calculations2!N71 -> R1 | BZ53: =+Calculations2!A71 -> 2020-07-19 | CA53: =+Calculations2!BN71 -> 0
BY54: =+Calculations2!N72 -> R1 | BZ54: =+Calculations2!A72 -> 2020-07-20 | CA54: =+Calculations2!BN72 -> 0
BY55: =+Calculations2!N73 -> R1 | BZ55: =+Calculations2!A73 -> 2020-07-21 | CA55: =+Calculations2!BN73 -> 0
BY56: =+Calculations2!N74 -> R1 | BZ56: =+Calculations2!A74 -> 2020-07-22 | CA56: =+Calculations2!BN74 -> 0
BY57: =+Calculations2!N75 -> R1 | BZ57: =+Calculations2!A75 -> 2020-07-23 | CA57: =+Calculations2!BN75 -> 0
BY58: =+Calculations2!N76 -> R1 | BZ58: =+Calculations2!A76 -> 2020-07-24 | CA58: =+Calculations2!BN76 -> 0
BY59: =+Calculations2!N77 -> R1 | BZ59: =+Calculations2!A77 -> 2020-07-25 | CA59: =+Calculations2!BN77 -> 0
BY60: =+Calculations2!N78 -> R1 | BZ60: =+Calculations2!A78 -> 2020-07-26 | CA60: =+Calculations2!BN78 -> 4.951437218
BY61: =+Calculations2!N79 -> R1 | BZ61: =+Calculations2!A79 -> 2020-07-27 | CA61: =+Calculations2!BN79 -> 9.691932132
BY62: =+Calculations2!N80 -> R1 | BZ62: =+Calculations2!A80 -> 2020-07-28 | CA62: =+Calculations2!BN80 -> 12.04840379
BY63: =+Calculations2!N81 -> R2 | BZ63: =+Calculations2!A81 -> 2020-07-29 | CA63: =+Calculations2!BN81 -> 17.86378841
BY64: =+Calculations2!N82 -> R2 | BZ64: =+Calculations2!A82 -> 2020-07-30 | CA64: =+Calculations2!BN82 -> 23.06378841
BY65: =+Calculations2!N83 -> R2 | BZ65: =+Calculations2!A83 -> 2020-07-31 | CA65: =+Calculations2!BN83 -> 27.83301918
BY66: =+Calculations2!N84 -> R2 | BZ66: =+Calculations2!A84 -> 2020-08-01 | CA66: =+Calculations2!BN84 -> 32.04840379
BY67: =+Calculations2!N85 -> R2 | BZ67: =+Calculations2!A85 -> 2020-08-02 | CA67: =+Calculations2!BN85 -> 32.04840379
BY68: =+Calculations2!N86 -> R2 | BZ68: =+Calculations2!A86 -> 2020-08-03 | CA68: =+Calculations2!BN86 -> 
BY69: =+Calculations2!N87 -> R2 | BZ69: =+Calculations2!A87 -> 2020-08-04 | CA69: =+Calculations2!BN87 -> 
BY70: =+Calculations2!N88 -> R2 | BZ70: =+Calculations2!A88 -> 2020-08-05 | CA70: =+Calculations2!BN88 -> 
BY71: =+Calculations2!N89 -> R2 | BZ71: =+Calculations2!A89 -> 2020-08-06 | CA71: =+Calculations2!BN89 -> 
BY72: =+Calculations2!N90 -> R2 | BZ72: =+Calculations2!A90 -> 2020-08-07 | CA72: =+Calculations2!BN90 -> 
BY73: =+Calculations2!N91 -> R2 | BZ73: =+Calculations2!A91 -> 2020-08-08 | CA73: =+Calculations2!BN91 -> 
BY74: =+Calculations2!N92 -> R3 | BZ74: =+Calculations2!A92 -> 2020-08-09 | CA74: =+Calculations2!BN92 -> 
BY75: =+Calculations2!N93 -> R3 | BZ75: =+Calculations2!A93 -> 2020-08-10 | CA75: =+Calculations2!BN93 -> 
BY76: =+Calculations2!N94 -> R3 | BZ76: =+Calculations2!A94 -> 2020-08-11 | CA76: =+Calculations2!BN94 -> 
BY77: =+Calculations2!N95 -> R3 | BZ77: =+Calculations2!A95 -> 2020-08-12 | CA77: =+Calculations2!BN95 -> 
BY78: =+Calculations2!N96 -> R3 | BZ78: =+Calculations2!A96 -> 2020-08-13 | CA78: =+Calculations2!BN96 -> 
BY79: =+Calculations2!N97 -> R3 | BZ79: =+Calculations2!A97 -> 2020-08-14 | CA79: =+Calculations2!BN97 -> 
BY80: =+Calculations2!N98 -> R3 | BZ80: =+Calculations2!A98 -> 2020-08-15 | CA80: =+Calculations2!BN98 -> 
BY81: =+Calculations2!N99 -> R3 | BZ81: =+Calculations2!A99 -> 2020-08-16 | CA81: =+Calculations2!BN99 -> 
BY82: =+Calculations2!N100 -> R3 | BZ82: =+Calculations2!A100 -> 2020-08-17 | CA82: =+Calculations2!BN100 -> 
BY83: =+Calculations2!N101 -> R3 | BZ83: =+Calculations2!A101 -> 2020-08-18 | CA83: =+Calculations2!BN101 -> 
BY84: =+Calculations2!N102 -> R3 | BZ84: =+Calculations2!A102 -> 2020-08-19 | CA84: =+Calculations2!BN102 -> 
BY85: =+Calculations2!N103 -> R3 | BZ85: =+Calculations2!A103 -> 2020-08-20 | CA85: =+Calculations2!BN103 -> 
BY86: =+Calculations2!N104 -> R4 | BZ86: =+Calculations2!A104 -> 2020-08-21 | CA86: =+Calculations2!BN104 -> 
BY87: =+Calculations2!N105 -> R4 | BZ87: =+Calculations2!A105 -> 2020-08-22 | CA87: =+Calculations2!BN105 -> 
BY88: =+Calculations2!N106 -> R4 | BZ88: =+Calculations2!A106 -> 2020-08-23 | CA88: =+Calculations2!BN106 -> 
BY89: =+Calculations2!N107 -> R4 | BZ89: =+Calculations2!A107 -> 2020-08-24 | CA89: =+Calculations2!BN107 -> 
BY90: =+Calculations2!N108 -> R4 | BZ90: =+Calculations2!A108 -> 2020-08-25 | CA90: =+Calculations2!BN108 -> 
BY91: =+Calculations2!N109 -> R4 | BZ91: =+Calculations2!A109 -> 2020-08-26 | CA91: =+Calculations2!BN109 -> 
BY92: =+Calculations2!N110 -> R4 | BZ92: =+Calculations2!A110 -> 2020-08-27 | CA92: =+Calculations2!BN110 -> 
BY93: =+Calculations2!N111 -> R4 | BZ93: =+Calculations2!A111 -> 2020-08-28 | CA93: =+Calculations2!BN111 -> 
BY94: =+Calculations2!N112 -> R4 | BZ94: =+Calculations2!A112 -> 2020-08-29 | CA94: =+Calculations2!BN112 -> 
BY95: =+Calculations2!N113 -> R4 | BZ95: =+Calculations2!A113 -> 2020-08-30 | CA95: =+Calculations2!BN113 -> 
BY96: =+Calculations2!N114 -> R4 | BZ96: =+Calculations2!A114 -> 2020-08-31 | CA96: =+Calculations2!BN114 -> 
BY97: =+Calculations2!N115 -> R4 | BZ97: =+Calculations2!A115 -> 2020-09-01 | CA97: =+Calculations2!BN115 -> 
BY98: =+Calculations2!N116 -> R4 | BZ98: =+Calculations2!A116 -> 2020-09-02 | CA98: =+Calculations2!BN116 -> 
BY99: =+Calculations2!N117 -> R5 | BZ99: =+Calculations2!A117 -> 2020-09-03 | CA99: =+Calculations2!BN117 -> 
BY100: =+Calculations2!N118 -> R5 | BZ100: =+Calculations2!A118 -> 2020-09-04 | CA100: =+Calculations2!BN118 -> 
BY101: =+Calculations2!N119 -> R5 | BZ101: =+Calculations2!A119 -> 2020-09-05 | CA101: =+Calculations2!BN119 -> 
BY102: =+Calculations2!N120 -> R5 | BZ102: =+Calculations2!A120 -> 2020-09-06 | CA102: =+Calculations2!BN120 -> 
BY103: =+Calculations2!N121 -> R5 | BZ103: =+Calculations2!A121 -> 2020-09-07 | CA103: =+Calculations2!BN121 -> 
BY104: =+Calculations2!N122 -> R5 | BZ104: =+Calculations2!A122 -> 2020-09-08 | CA104: =+Calculations2!BN122 -> 
BY105: =+Calculations2!N123 -> R5 | BZ105: =+Calculations2!A123 -> 2020-09-09 | CA105: =+Calculations2!BN123 -> 
BY106: =+Calculations2!N124 -> R5 | BZ106: =+Calculations2!A124 -> 2020-09-10 | CA106: =+Calculations2!BN124 -> 
BY107: =+Calculations2!N125 -> R5 | BZ107: =+Calculations2!A125 -> 2020-09-11 | CA107: =+Calculations2!BN125 -> 
BY108: =+Calculations2!N126 -> R5 | BZ108: =+Calculations2!A126 -> 2020-09-12 | CA108: =+Calculations2!BN126 -> 
BY109: =+Calculations2!N127 -> R5 | BZ109: =+Calculations2!A127 -> 2020-09-13 | CA109: =+Calculations2!BN127 -> 
BY110: =+Calculations2!N128 -> R5 | BZ110: =+Calculations2!A128 -> 2020-09-14 | CA110: =+Calculations2!BN128 -> 
BY111: =+Calculations2!N129 -> R5 | BZ111: =+Calculations2!A129 -> 2020-09-15 | CA111: =+Calculations2!BN129 -> 
BY112: =+Calculations2!N130 -> R5 | BZ112: =+Calculations2!A130 -> 2020-09-16 | CA112: =+Calculations2!BN130 -> 
BY113: =+Calculations2!N131 -> R5 | BZ113: =+Calculations2!A131 -> 2020-09-17 | CA113: =+Calculations2!BN131 -> 
BY114: =+Calculations2!N132 -> R5 | BZ114: =+Calculations2!A132 -> 2020-09-18 | CA114: =+Calculations2!BN132 -> 
BY115: =+Calculations2!N133 -> R5 | BZ115: =+Calculations2!A133 -> 2020-09-19 | CA115: =+Calculations2!BN133 -> 
BY116: =+Calculations2!N134 -> R5 | BZ116: =+Calculations2!A134 -> 2020-09-20 | CA116: =+Calculations2!BN134 -> 
BY117: =+Calculations2!N135 -> R5 | BZ117: =+Calculations2!A135 -> 2020-09-21 | CA117: =+Calculations2!BN135 -> 
BY118: =+Calculations2!N136 -> R5 | BZ118: =+Calculations2!A136 -> 2020-09-22 | CA118: =+Calculations2!BN136 -> 
BY119: =+Calculations2!N137 -> R5 | BZ119: =+Calculations2!A137 -> 2020-09-23 | CA119: =+Calculations2!BN137 -> 
BY120: =+Calculations2!N138 -> R6 | BZ120: =+Calculations2!A138 -> 2020-09-24 | CA120: =+Calculations2!BN138 -> 
BY121: =+Calculations2!N139 -> R6 | BZ121: =+Calculations2!A139 -> 2020-09-25 | CA121: =+Calculations2!BN139 -> 
BY122: =+Calculations2!N140 -> R6 | BZ122: =+Calculations2!A140 -> 2020-09-26 | CA122: =+Calculations2!BN140 -> 
BY123: =+Calculations2!N141 -> R6 | BZ123: =+Calculations2!A141 -> 2020-09-27 | CA123: =+Calculations2!BN141 -> 
BY124: =+Calculations2!N142 -> R6 | BZ124: =+Calculations2!A142 -> 2020-09-28 | CA124: =+Calculations2!BN142 -> 
BY125: =+Calculations2!N143 -> R6 | BZ125: =+Calculations2!A143 -> 2020-09-29 | CA125: =+Calculations2!BN143 -> 
BY126: =+Calculations2!N144 -> R6 | BZ126: =+Calculations2!A144 -> 2020-09-30 | CA126: =+Calculations2!BN144 -> 
BY127: =+Calculations2!N145 -> R6 | BZ127: =+Calculations2!A145 -> 2020-10-01 | CA127: =+Calculations2!BN145 -> 
BY128: =+Calculations2!N146 -> R6 | BZ128: =+Calculations2!A146 -> 2020-10-02 | CA128: =+Calculations2!BN146 -> 
BY129: =+Calculations2!N147 -> R6 | BZ129: =+Calculations2!A147 -> 2020-10-03 | CA129: =+Calculations2!BN147 -> 
BY130: =+Calculations2!N148 -> R6 | BZ130: =+Calculations2!A148 -> 2020-10-04 | CA130: =+Calculations2!BN148 -> 
BY131: =+Calculations2!N149 -> R6 | BZ131: =+Calculations2!A149 -> 2020-10-05 | CA131: =+Calculations2!BN149 -> 
BY132: =+Calculations2!N150 -> R6 | BZ132: =+Calculations2!A150 -> 2020-10-06 | CA132: =+Calculations2!BN150 -> 
BY133: =+Calculations2!N151 -> R6 | BZ133: =+Calculations2!A151 -> 2020-10-07 | CA133: =+Calculations2!BN151 -> 
BY134: =+Calculations2!N152 -> R6 | BZ134: =+Calculations2!A152 -> 2020-10-08 | CA134: =+Calculations2!BN152 -> 
BY135: =+Calculations2!N153 -> R6 | BZ135: =+Calculations2!A153 -> 2020-10-09 | CA135: =+Calculations2!BN153 -> 
BY136: =+Calculations2!N154 -> R6 | BZ136: =+Calculations2!A154 -> 2020-10-10 | CA136: =+Calculations2!BN154 -> 
BY137: =+Calculations2!N155 -> R6 | BZ137: =+Calculations2!A155 -> 2020-10-11 | CA137: =+Calculations2!BN155 -> 
BY138: =+Calculations2!N156 -> R6 | BZ138: =+Calculations2!A156 -> 2020-10-12 | CA138: =+Calculations2!BN156 -> 
BY139: =+Calculations2!N157 -> R6 | BZ139: =+Calculations2!A157 -> 2020-10-13 | CA139: =+Calculations2!BN157 -> 
BY140: =+Calculations2!N158 -> R6 | BZ140: =+Calculations2!A158 -> 2020-10-14 | CA140: =+Calculations2!BN158 -> 
BY141: =+Calculations2!N159 -> R6 | BZ141: =+Calculations2!A159 -> 2020-10-15 | CA141: =+Calculations2!BN159 -> 
BY142: =+Calculations2!N160 -> R6 | BZ142: =+Calculations2!A160 -> 2020-10-16 | CA142: =+Calculations2!BN160 -> 
BY143: =+Calculations2!N161 -> R6 | BZ143: =+Calculations2!A161 -> 2020-10-17 | CA143: =+Calculations2!BN161 -> 
BY144: =+Calculations2!N162 -> R6 | BZ144: =+Calculations2!A162 -> 2020-10-18 | CA144: =+Calculations2!BN162 -> 
BY145: =+Calculations2!N163 -> R6 | BZ145: =+Calculations2!A163 -> 2020-10-19 | CA145: =+Calculations2!BN163 -> 
BY146: =+Calculations2!N164 -> R6 | BZ146: =+Calculations2!A164 -> 2020-10-20 | CA146: =+Calculations2!BN164 -> 
BY147: =+Calculations2!N165 -> R6 | BZ147: =+Calculations2!A165 -> 2020-10-21 | CA147: =+Calculations2!BN165 -> 
BY148: =+Calculations2!N166 -> R6 | BZ148: =+Calculations2!A166 -> 2020-10-22 | CA148: =+Calculations2!BN166 -> 
BY149: =+Calculations2!N167 -> R6 | BZ149: =+Calculations2!A167 -> 2020-10-23 | CA149: =+Calculations2!BN167 -> 
BY150: =+Calculations2!N168 -> R6 | BZ150: =+Calculations2!A168 -> 2020-10-24 | CA150: =+Calculations2!BN168 -> 
BY151: =+Calculations2!N169 -> R6 | BZ151: =+Calculations2!A169 -> 2020-10-25 | CA151: =+Calculations2!BN169 -> 
BY152: =+Calculations2!N170 -> R6 | BZ152: =+Calculations2!A170 -> 00:00:00 | CA152: =+Calculations2!BN170 -> 
BY153: =+Calculations2!N171 -> R6 | BZ153: =+Calculations2!A171 -> 00:00:00 | CA153: =+Calculations2!BN171 -> 
BY154: =+Calculations2!N172 -> R6 | BZ154: =+Calculations2!A172 -> 00:00:00 | CA154: =+Calculations2!BN172 -> 
BY155: =+Calculations2!N173 -> R6 | BZ155: =+Calculations2!A173 -> 00:00:00 | CA155: =+Calculations2!BN173 -> 
BY156: =+Calculations2!N174 -> R6 | BZ156: =+Calculations2!A174 -> 00:00:00 | CA156: =+Calculations2!BN174 -> 
BY157: =+Calculations2!N175 -> R6 | BZ157: =+Calculations2!A175 -> 00:00:00 | CA157: =+Calculations2!BN175 -> 
BY158: =+Calculations2!N176 -> R6 | BZ158: =+Calculations2!A176 -> 00:00:00 | CA158: =+Calculations2!BN176 -> 
BY159: =+Calculations2!N177 -> R6 | BZ159: =+Calculations2!A177 -> 00:00:00 | CA159: =+Calculations2!BN177 -> 
BY160: =+Calculations2!N178 -> R6 | BZ160: =+Calculations2!A178 -> 00:00:00 | CA160: =+Calculations2!BN178 -> 
BY161: =+Calculations2!N179 -> R6 | BZ161: =+Calculations2!A179 -> 00:00:00 | CA161: =+Calculations2!BN179 -> 
BY162: =+Calculations2!N180 -> R6 | BZ162: =+Calculations2!A180 -> 00:00:00 | CA162: =+Calculations2!BN180 -> 
BY163: =+Calculations2!N181 -> R6 | BZ163: =+Calculations2!A181 -> 00:00:00 | CA163: =+Calculations2!BN181 -> 
BY164: =+Calculations2!N182 -> R6 | BZ164: =+Calculations2!A182 -> 00:00:00 | CA164: =+Calculations2!BN182 -> 
BY165: =+Calculations2!N183 -> R6 | BZ165: =+Calculations2!A183 -> 00:00:00 | CA165: =+Calculations2!BN183 -> 
BY166: =+Calculations2!N184 -> R6 | BZ166: =+Calculations2!A184 -> 00:00:00 | CA166: =+Calculations2!BN184 -> 
BY167: =+Calculations2!N185 -> R6 | BZ167: =+Calculations2!A185 -> 00:00:00 | CA167: =+Calculations2!BN185 -> 
BY168: =+Calculations2!N186 -> R6 | BZ168: =+Calculations2!A186 -> 00:00:00 | CA168: =+Calculations2!BN186 -> 
BY169: =+Calculations2!N187 -> R6 | BZ169: =+Calculations2!A187 -> 00:00:00 | CA169: =+Calculations2!BN187 -> 
BY170: =+Calculations2!N188 -> R6 | BZ170: =+Calculations2!A188 -> 00:00:00 | CA170: =+Calculations2!BN188 -> 
BY171: =+Calculations2!N189 -> R6 | BZ171: =+Calculations2!A189 -> 00:00:00 | CA171: =+Calculations2!BN189 -> 

Sheet Caluations
A2: Used for graphs | F2: Used in Calculations
I4: 0
I5: 0
I6: 0
A7: Cumulative ET | B7: Cumulative Rainfall | C7: Cumulative Irr | D7: Cumulative sum rain + irr | E7: 50%PAW | H7: Projected AW | I7: 0 | J7: Additional capacity of root zone (inches) | O7: Water Holding Capacity of Root Zone | P7: Target Soil Moisture Content | Q7: Soybean 50% PAW | S7: Latter Stage Moisture Lower Limit
A8: =Calculations2!G19 -> 0 | B8: =Calculations2!C19 -> 0.38 | C8: =Calculations2!D19 -> 0 | D8: =B8+C8 -> 0.38 | E8: =IF((OR(Calculations2!N19<>"R3", Calculations2!N19<>"R4", Calculations2!N19<>"R5", Calculations2!N19<>"R6", Calculations2!N19<>"R7")),Calculations2!$L$15/100*Calculations2!H19,Calculations2!$N$15/100*Calculations2!H19) -> 0 | I8: 0 | L8: =IF(Calculations2!N20="R3","Good","Bad") -> Bad | M8: R4 | N8: R5 | O8: =+Calculations2!$H19 -> 0 | P8: =+IF((O8-0.75)<Q8,Q8,O8-0.75) -> 0 | Q8: =IF((OR(Calculations2!N19="R3", Calculations2!N19="R4", Calculations2!N19="R5", Calculations2!N19="R6")),Calculations2!$N$15/100*Calculations2!H19,Calculations2!$L$15/100*Calculations2!H19) -> 0 | R8: =IF((OR(Calculations2!N19="R6", Calculations2!N19="R7",)),$S$8/100*Calculations2!H19,Q8) -> 0 | S8: 40
A9: =A8+Calculations2!G20 -> 0.01166666667 | B9: =B8+Calculations2!C20 -> 0.44 | C9: =C8+Calculations2!D20 -> 0 | D9: 0.44 | E9: =IF((OR(Calculations2!N20<>"R3", Calculations2!N20<>"R4", Calculations2!N20<>"R5", Calculations2!N20<>"R6", Calculations2!N20<>"R7")),Calculations2!$L$15/100*Calculations2!H20,Calculations2!$N$15/100*Calculations2!H20) -> 0.063 | F9: =IF(Calculations2!$E19="",$F8+1) -> FALSE | G9: =IF(AND(Calculations2!$E19="",$F9<8),Calculations2!$O20,"") ->  | H9: =IF(AND(Calculations2!$E19="",$F9<6),Calculations2!$I19-$I7-$I8-$I9,IF(AND(Calculations2!$E20="",Calculations2!$E18<>""),Calculations2!$I20,"")) ->  | I9: =Calculations2!$O20 -> 0 | J9: =IF(AND($F9>5,$F9<>FALSE),"",IF(Calculations2!$E20="",Calculations2!$H20-Calculations2!I20,Calculations2!$H20-Calculations2!$I20)) -> -0.00378 | O9: =+Calculations2!$H20 -> 0.126 | P9: 0.063 | Q9: =IF((OR(Calculations2!N20="R3", Calculations2!N20="R4", Calculations2!N20="R5", Calculations2!N20="R6")),Calculations2!$N$15/100*Calculations2!H20,Calculations2!$L$15/100*Calculations2!H20) -> 0.063 | R9: =IF((OR(Calculations2!N20="R6", Calculations2!N20="R7",)),$S$8/100*Calculations2!H20,Q9) -> 0.063
A10: =A9+Calculations2!G21 -> 0.03458333333 | B10: =B9+Calculations2!C21 -> 0.44 | C10: =C9+Calculations2!D21 -> 0 | D10: 0.44 | E10: =IF((OR(Calculations2!N21<>"R3", Calculations2!N21<>"R4", Calculations2!N21<>"R5", Calculations2!N21<>"R6", Calculations2!N21<>"R7")),Calculations2!$L$15/100*Calculations2!H21,Calculations2!$N$15/100*Calculations2!H21) -> 0.126 | F10: =IF(Calculations2!$E20="",$F9+1) -> FALSE | G10: =IF(AND(Calculations2!$E20="",$F10<8),Calculations2!$O21,"") ->  | H10: =IF(AND(Calculations2!$E20="",$F10<6),Calculations2!$I20-$I8-$I9-$I10,IF(AND(Calculations2!$E21="",Calculations2!$E19<>""),Calculations2!$I21,"")) ->  | I10: =Calculations2!$O21 -> 0 | J10: =IF(AND($F10>5,$F10<>FALSE),"",IF(Calculations2!$E21="",Calculations2!$H21-Calculations2!I21,Calculations2!$H21-Calculations2!$I21)) -> 0.05063666667 | O10: =+Calculations2!$H21 -> 0.252 | P10: 0.126 | Q10: =IF((OR(Calculations2!N21="R3", Calculations2!N21="R4", Calculations2!N21="R5", Calculations2!N21="R6")),Calculations2!$N$15/100*Calculations2!H21,Calculations2!$L$15/100*Calculations2!H21) -> 0.126 | R10: =IF((OR(Calculations2!N21="R6", Calculations2!N21="R7",)),$S$8/100*Calculations2!H21,Q10) -> 0.126
A11: =A10+Calculations2!G22 -> 0.06378333333 | B11: =B10+Calculations2!C22 -> 0.44 | C11: =C10+Calculations2!D22 -> 0 | D11: 0.44 | E11: =IF((OR(Calculations2!N22<>"R3", Calculations2!N22<>"R4", Calculations2!N22<>"R5", Calculations2!N22<>"R6", Calculations2!N22<>"R7")),Calculations2!$L$15/100*Calculations2!H22,Calculations2!$N$15/100*Calculations2!H22) -> 0.189 | F11: =IF(Calculations2!$E21="",$F10+1) -> FALSE | G11: =IF(AND(Calculations2!$E21="",$F11<8),Calculations2!$O22,"") ->  | H11: =IF(AND(Calculations2!$E21="",$F11<6),Calculations2!$I21-0-$I8-$I9,IF(AND(Calculations2!$E22="",Calculations2!$E20<>""),Calculations2!$I22,"")) ->  | I11: =Calculations2!$O22 -> 0 | J11: =IF(AND($F11>5,$F11<>FALSE),"",IF(Calculations2!$E22="",Calculations2!$H22-Calculations2!I22,Calculations2!$H22-Calculations2!$I22)) -> 0.1113366667 | O11: =+Calculations2!$H22 -> 0.378 | P11: 0.189 | Q11: =IF((OR(Calculations2!N22="R3", Calculations2!N22="R4", Calculations2!N22="R5", Calculations2!N22="R6")),Calculations2!$N$15/100*Calculations2!H22,Calculations2!$L$15/100*Calculations2!H22) -> 0.189 | R11: =IF((OR(Calculations2!N22="R6", Calculations2!N22="R7",)),$S$8/100*Calculations2!H22,Q11) -> 0.189
A12: =A11+Calculations2!G23 -> 0.09598333333 | B12: =B11+Calculations2!C23 -> 0.44 | C12: =C11+Calculations2!D23 -> 0 | D12: 0.44 | E12: =IF((OR(Calculations2!N23<>"R3", Calculations2!N23<>"R4", Calculations2!N23<>"R5", Calculations2!N23<>"R6", Calculations2!N23<>"R7")),Calculations2!$L$15/100*Calculations2!H23,Calculations2!$N$15/100*Calculations2!H23) -> 0.23355 | F12: =IF(Calculations2!$E22="",$F11+1) -> FALSE | G12: =IF(AND(Calculations2!$E22="",$F12<8),Calculations2!$O23,"") ->  | H12: =IF(AND(Calculations2!$E22="",$F12<6),Calculations2!$I22-0-$I8-$I9-$I10-$I11-$I12,IF(AND(Calculations2!$E23="",Calculations2!$E21<>""),Calculations2!$I23,"")) ->  | I12: =Calculations2!$O23 -> 0 | J12: =IF(AND($F12>5,$F12<>FALSE),"",IF(Calculations2!$E23="",Calculations2!$H23-Calculations2!I23,Calculations2!$H23-Calculations2!$I23)) -> 0.1658116667 | O12: =+Calculations2!$H23 -> 0.4671 | P12: 0.23355 | Q12: =IF((OR(Calculations2!N23="R3", Calculations2!N23="R4", Calculations2!N23="R5", Calculations2!N23="R6")),Calculations2!$N$15/100*Calculations2!H23,Calculations2!$L$15/100*Calculations2!H23) -> 0.23355 | R12: =IF((OR(Calculations2!N23="R6", Calculations2!N23="R7",)),$S$8/100*Calculations2!H23,Q12) -> 0.23355
A13: =A12+Calculations2!G24 -> 0.1337833333 | B13: =B12+Calculations2!C24 -> 0.44 | C13: =C12+Calculations2!D24 -> 0 | D13: 0.44 | E13: =IF((OR(Calculations2!N24<>"R3", Calculations2!N24<>"R4", Calculations2!N24<>"R5", Calculations2!N24<>"R6", Calculations2!N24<>"R7")),Calculations2!$L$15/100*Calculations2!H24,Calculations2!$N$15/100*Calculations2!H24) -> 0.3310875 | F13: =IF(Calculations2!$E23="",$F12+1) -> FALSE | G13: =IF(AND(Calculations2!$E23="",$F13<8),Calculations2!$O24,"") ->  | H13: =IF(AND(Calculations2!$E23="",$F13<6),Calculations2!$I23-0-$I8-$I9-$I10-$I11-$I12-$I13,IF(AND(Calculations2!$E24="",Calculations2!$E22<>""),Calculations2!$I24,"")) ->  | I13: =Calculations2!$O24 -> 0 | J13: =IF(AND($F13>5,$F13<>FALSE),"",IF(Calculations2!$E24="",Calculations2!$H24-Calculations2!I24,Calculations2!$H24-Calculations2!$I24)) -> 0.2523804167 | O13: =+Calculations2!$H24 -> 0.662175 | P13: 0.3310875 | Q13: =IF((OR(Calculations2!N24="R3", Calculations2!N24="R4", Calculations2!N24="R5", Calculations2!N24="R6")),Calculations2!$N$15/100*Calculations2!H24,Calculations2!$L$15/100*Calculations2!H24) -> 0.3310875 | R13: =IF((OR(Calculations2!N24="R6", Calculations2!N24="R7",)),$S$8/100*Calculations2!H24,Q13) -> 0.3310875
A14: =A13+Calculations2!G25 -> 0.1952833333 | B14: =B13+Calculations2!C25 -> 0.44 | C14: =C13+Calculations2!D25 -> 0 | D14: 0.44 | E14: =IF((OR(Calculations2!N25<>"R3", Calculations2!N25<>"R4", Calculations2!N25<>"R5", Calculations2!N25<>"R6", Calculations2!N25<>"R7")),Calculations2!$L$15/100*Calculations2!H25,Calculations2!$N$15/100*Calculations2!H25) -> 0.428625 | F14: =IF(Calculations2!$E24="",$F13+1) -> FALSE | G14: =IF(AND(Calculations2!$E24="",$F14<8),Calculations2!$O25,"") ->  | H14: =IF(AND(Calculations2!$E24="",$F14<6),Calculations2!$I24-Calculations2!$O19-$I9-$I10-$I11-$I12,IF(AND(Calculations2!$E25="",Calculations2!$E23<>""),Calculations2!$I25,"")) ->  | I14: =Calculations2!$O25 -> 0 | J14: =IF(AND($F14>5,$F14<>FALSE),"",IF(Calculations2!$E25="",Calculations2!$H25-Calculations2!I25,Calculations2!$H25-Calculations2!$I25)) -> 0.3626491667 | O14: =+Calculations2!$H25 -> 0.85725 | P14: =+(O14-0.75) -> 0.10725 | Q14: =IF((OR(Calculations2!N25="R3", Calculations2!N25="R4", Calculations2!N25="R5", Calculations2!N25="R6")),Calculations2!$N$15/100*Calculations2!H25,Calculations2!$L$15/100*Calculations2!H25) -> 0.428625 | R14: =IF((OR(Calculations2!N25="R6", Calculations2!N25="R7",)),$S$8/100*Calculations2!H25,Q14) -> 0.428625
A15: =A14+Calculations2!G26 -> 0.2312833333 | B15: =B14+Calculations2!C26 -> 0.44 | C15: =C14+Calculations2!D26 -> 0 | D15: 0.44 | E15: =IF((OR(Calculations2!N26<>"R3", Calculations2!N26<>"R4", Calculations2!N26<>"R5", Calculations2!N26<>"R6", Calculations2!N26<>"R7")),Calculations2!$L$15/100*Calculations2!H26,Calculations2!$N$15/100*Calculations2!H26) -> 0.4671 | F15: =IF(Calculations2!$E25="",$F14+1) -> FALSE | G15: =IF(AND(Calculations2!$E25="",$F15<8),Calculations2!$O26,"") ->  | H15: =IF(AND(Calculations2!$E25="",$F15<6),Calculations2!$I25-Calculations2!$O20-$I10-$I11-$I12-$I13,IF(AND(Calculations2!$E26="",Calculations2!$E24<>""),Calculations2!$I26,"")) ->  | I15: =Calculations2!$O26 -> 0 | J15: =IF(AND($F15>5,$F15<>FALSE),"",IF(Calculations2!$E26="",Calculations2!$H26-Calculations2!I26,Calculations2!$H26-Calculations2!$I26)) -> 0.4178866667 | O15: =+Calculations2!$H26 -> 0.9342 | P15: 0.1842 | Q15: =IF((OR(Calculations2!N26="R3", Calculations2!N26="R4", Calculations2!N26="R5", Calculations2!N26="R6")),Calculations2!$N$15/100*Calculations2!H26,Calculations2!$L$15/100*Calculations2!H26) -> 0.4671 | R15: =IF((OR(Calculations2!N26="R6", Calculations2!N26="R7",)),$S$8/100*Calculations2!H26,Q15) -> 0.4671
A16: =A15+Calculations2!G27 -> 0.2686833333 | B16: =B15+Calculations2!C27 -> 0.44 | C16: =C15+Calculations2!D27 -> 0 | D16: 0.44 | E16: =IF((OR(Calculations2!N27<>"R3", Calculations2!N27<>"R4", Calculations2!N27<>"R5", Calculations2!N27<>"R6", Calculations2!N27<>"R7")),Calculations2!$L$15/100*Calculations2!H27,Calculations2!$N$15/100*Calculations2!H27) -> 0.5254875 | F16: =IF(Calculations2!$E26="",$F15+1) -> FALSE | G16: =IF(AND(Calculations2!$E26="",$F16<8),Calculations2!$O27,"") ->  | H16: =IF(AND(Calculations2!$E26="",$F16<6),Calculations2!$I26-Calculations2!$O21-$I11-$I12-$I13-$I14,IF(AND(Calculations2!$E27="",Calculations2!$E25<>""),Calculations2!$I27,"")) ->  | I16: =Calculations2!$O27 -> 0 | J16: =IF(AND($F16>5,$F16<>FALSE),"",IF(Calculations2!$E27="",Calculations2!$H27-Calculations2!I27,Calculations2!$H27-Calculations2!$I27)) -> 0.4844804167 | O16: =+Calculations2!$H27 -> 1.050975 | P16: 0.300975 | Q16: =IF((OR(Calculations2!N27="R3", Calculations2!N27="R4", Calculations2!N27="R5", Calculations2!N27="R6")),Calculations2!$N$15/100*Calculations2!H27,Calculations2!$L$15/100*Calculations2!H27) -> 0.5254875 | R16: =IF((OR(Calculations2!N27="R6", Calculations2!N27="R7",)),$S$8/100*Calculations2!H27,Q16) -> 0.5254875
A17: =A16+Calculations2!G28 -> 0.3172833333 | B17: =B16+Calculations2!C28 -> 0.44 | C17: =C16+Calculations2!D28 -> 0 | D17: 0.44 | E17: =IF((OR(Calculations2!N28<>"R3", Calculations2!N28<>"R4", Calculations2!N28<>"R5", Calculations2!N28<>"R6", Calculations2!N28<>"R7")),Calculations2!$L$15/100*Calculations2!H28,Calculations2!$N$15/100*Calculations2!H28) -> 0.583875 | F17: =IF(Calculations2!$E27="",$F16+1) -> FALSE | G17: =IF(AND(Calculations2!$E27="",$F17<8),Calculations2!$O28,"") ->  | H17: =IF(AND(Calculations2!$E27="",$F17<6),Calculations2!$I27-Calculations2!$O22-$I12-$I13-$I14-$I15,IF(AND(Calculations2!$E28="",Calculations2!$E26<>""),Calculations2!$I28,"")) ->  | I17: =Calculations2!$O28 -> 0 | J17: =IF(AND($F17>5,$F17<>FALSE),"",IF(Calculations2!$E28="",Calculations2!$H28-Calculations2!I28,Calculations2!$H28-Calculations2!$I28)) -> 0.5622741667 | O17: =+Calculations2!$H28 -> 1.16775 | P17: 0.41775 | Q17: =IF((OR(Calculations2!N28="R3", Calculations2!N28="R4", Calculations2!N28="R5", Calculations2!N28="R6")),Calculations2!$N$15/100*Calculations2!H28,Calculations2!$L$15/100*Calculations2!H28) -> 0.583875 | R17: =IF((OR(Calculations2!N28="R6", Calculations2!N28="R7",)),$S$8/100*Calculations2!H28,Q17) -> 0.583875
A18: =A17+Calculations2!G29 -> 0.3805833333 | B18: =B17+Calculations2!C29 -> 0.44 | C18: =C17+Calculations2!D29 -> 0 | D18: 0.44 | E18: =IF((OR(Calculations2!N29<>"R3", Calculations2!N29<>"R4", Calculations2!N29<>"R5", Calculations2!N29<>"R6", Calculations2!N29<>"R7")),Calculations2!$L$15/100*Calculations2!H29,Calculations2!$N$15/100*Calculations2!H29) -> 0.623025 | F18: =IF(Calculations2!$E28="",$F17+1) -> FALSE | G18: =IF(AND(Calculations2!$E28="",$F18<8),Calculations2!$O29,"") ->  | H18: =IF(AND(Calculations2!$E28="",$F18<6),Calculations2!$I28-Calculations2!$O23-$I13-$I14-$I15-$I16,IF(AND(Calculations2!$E29="",Calculations2!$E27<>""),Calculations2!$I29,"")) ->  | I18: =Calculations2!$O29 -> 0 | J18: =IF(AND($F18>5,$F18<>FALSE),"",IF(Calculations2!$E29="",Calculations2!$H29-Calculations2!I29,Calculations2!$H29-Calculations2!$I29)) -> 0.6451491667 | O18: =+Calculations2!$H29 -> 1.24605 | P18: 0.49605 | Q18: =IF((OR(Calculations2!N29="R3", Calculations2!N29="R4", Calculations2!N29="R5", Calculations2!N29="R6")),Calculations2!$N$15/100*Calculations2!H29,Calculations2!$L$15/100*Calculations2!H29) -> 0.623025 | R18: =IF((OR(Calculations2!N29="R6", Calculations2!N29="R7",)),$S$8/100*Calculations2!H29,Q18) -> 0.623025
A19: =A18+Calculations2!G30 -> 0.4426192735 | B19: =B18+Calculations2!C30 -> 0.44 | C19: =C18+Calculations2!D30 -> 0 | D19: 0.44 | E19: =IF((OR(Calculations2!N30<>"R3", Calculations2!N30<>"R4", Calculations2!N30<>"R5", Calculations2!N30<>"R6", Calculations2!N30<>"R7")),Calculations2!$L$15/100*Calculations2!H30,Calculations2!$N$15/100*Calculations2!H30) -> 0.6814125 | F19: =IF(Calculations2!$E29="",$F18+1) -> FALSE | G19: =IF(AND(Calculations2!$E29="",$F19<8),Calculations2!$O30,"") ->  | H19: =IF(AND(Calculations2!$E29="",$F19<6),Calculations2!$I29-Calculations2!$O24-$I14-$I15-$I16-$I17,IF(AND(Calculations2!$E30="",Calculations2!$E28<>""),Calculations2!$I30,"")) ->  | I19: =Calculations2!$O30 -> 0 | J19: =IF(AND($F19>5,$F19<>FALSE),"",IF(Calculations2!$E30="",Calculations2!$H30-Calculations2!I30,Calculations2!$H30-Calculations2!$I30)) -> 0.7363788568 | O19: =+Calculations2!$H30 -> 1.362825 | P19: 0.612825 | Q19: =IF((OR(Calculations2!N30="R3", Calculations2!N30="R4", Calculations2!N30="R5", Calculations2!N30="R6")),Calculations2!$N$15/100*Calculations2!H30,Calculations2!$L$15/100*Calculations2!H30) -> 0.6814125 | R19: =IF((OR(Calculations2!N30="R6", Calculations2!N30="R7",)),$S$8/100*Calculations2!H30,Q19) -> 0.6814125
A20: =A19+Calculations2!G31 -> 0.5198341933 | B20: =B19+Calculations2!C31 -> 0.69 | C20: =C19+Calculations2!D31 -> 0 | D20: 0.69 | E20: =IF((OR(Calculations2!N31<>"R3", Calculations2!N31<>"R4", Calculations2!N31<>"R5", Calculations2!N31<>"R6", Calculations2!N31<>"R7")),Calculations2!$L$15/100*Calculations2!H31,Calculations2!$N$15/100*Calculations2!H31) -> 0.7398 | F20: =IF(Calculations2!$E30="",$F19+1) -> FALSE | G20: =IF(AND(Calculations2!$E30="",$F20<8),Calculations2!$O31,"") ->  | H20: =IF(AND(Calculations2!$E30="",$F20<6),Calculations2!$I30-Calculations2!$O25-$I15-$I16-$I17-$I18,IF(AND(Calculations2!$E31="",Calculations2!$E29<>""),Calculations2!$I31,"")) ->  | I20: =Calculations2!$O31 -> 0 | J20: =IF(AND($F20>5,$F20<>FALSE),"",IF(Calculations2!$E31="",Calculations2!$H31-Calculations2!I31,Calculations2!$H31-Calculations2!$I31)) -> 0.5927875266 | O20: =+Calculations2!$H31 -> 1.4796 | P20: 0.7296 | Q20: =IF((OR(Calculations2!N31="R3", Calculations2!N31="R4", Calculations2!N31="R5", Calculations2!N31="R6")),Calculations2!$N$15/100*Calculations2!H31,Calculations2!$L$15/100*Calculations2!H31) -> 0.7398 | R20: =IF((OR(Calculations2!N31="R6", Calculations2!N31="R7",)),$S$8/100*Calculations2!H31,Q20) -> 0.7398
A21: =A20+Calculations2!G32 -> 0.6004941933 | B21: =B20+Calculations2!C32 -> 1.26 | C21: =C20+Calculations2!D32 -> 0 | D21: 1.26 | E21: =IF((OR(Calculations2!N32<>"R3", Calculations2!N32<>"R4", Calculations2!N32<>"R5", Calculations2!N32<>"R6", Calculations2!N32<>"R7")),Calculations2!$L$15/100*Calculations2!H32,Calculations2!$N$15/100*Calculations2!H32) -> 0.77895 | F21: =IF(Calculations2!$E31="",$F20+1) -> FALSE | G21: =IF(AND(Calculations2!$E31="",$F21<8),Calculations2!$O32,"") ->  | H21: =IF(AND(Calculations2!$E31="",$F21<6),Calculations2!$I31-Calculations2!$O26-$I16-$I17-$I18-$I19,IF(AND(Calculations2!$E32="",Calculations2!$E30<>""),Calculations2!$I32,"")) ->  | I21: =Calculations2!$O32 -> 0 | J21: =IF(AND($F21>5,$F21<>FALSE),"",IF(Calculations2!$E32="",Calculations2!$H32-Calculations2!I32,Calculations2!$H32-Calculations2!$I32)) -> 0.1230225266 | O21: =+Calculations2!$H32 -> 1.5579 | P21: 0.8079 | Q21: =IF((OR(Calculations2!N32="R3", Calculations2!N32="R4", Calculations2!N32="R5", Calculations2!N32="R6")),Calculations2!$N$15/100*Calculations2!H32,Calculations2!$L$15/100*Calculations2!H32) -> 0.77895 | R21: =IF((OR(Calculations2!N32="R6", Calculations2!N32="R7",)),$S$8/100*Calculations2!H32,Q21) -> 0.77895
A22: =A21+Calculations2!G33 -> 0.6631675266 | B22: =B21+Calculations2!C33 -> 1.28 | C22: =C21+Calculations2!D33 -> 0 | D22: 1.28 | E22: =IF((OR(Calculations2!N33<>"R3", Calculations2!N33<>"R4", Calculations2!N33<>"R5", Calculations2!N33<>"R6", Calculations2!N33<>"R7")),Calculations2!$L$15/100*Calculations2!H33,Calculations2!$N$15/100*Calculations2!H33) -> 0.8184583333 | F22: =IF(Calculations2!$E32="",$F21+1) -> FALSE | G22: =IF(AND(Calculations2!$E32="",$F22<8),Calculations2!$O33,"") ->  | H22: =IF(AND(Calculations2!$E32="",$F22<6),Calculations2!$I32-Calculations2!$O27-$I17-$I18-$I19-$I20,IF(AND(Calculations2!$E33="",Calculations2!$E31<>""),Calculations2!$I33,"")) ->  | I22: =Calculations2!$O33 -> 0 | J22: =IF(AND($F22>5,$F22<>FALSE),"",IF(Calculations2!$E33="",Calculations2!$H33-Calculations2!I33,Calculations2!$H33-Calculations2!$I33)) -> 0.1854500266 | O22: =+Calculations2!$H33 -> 1.636916667 | P22: 0.8869166667 | Q22: =IF((OR(Calculations2!N33="R3", Calculations2!N33="R4", Calculations2!N33="R5", Calculations2!N33="R6")),Calculations2!$N$15/100*Calculations2!H33,Calculations2!$L$15/100*Calculations2!H33) -> 0.8184583333 | R22: =IF((OR(Calculations2!N33="R6", Calculations2!N33="R7",)),$S$8/100*Calculations2!H33,Q22) -> 0.8184583333
A23: =A22+Calculations2!G34 -> 0.7465641933 | B23: =B22+Calculations2!C34 -> 1.41 | C23: =C22+Calculations2!D34 -> 0 | D23: 1.41 | E23: =IF((OR(Calculations2!N34<>"R3", Calculations2!N34<>"R4", Calculations2!N34<>"R5", Calculations2!N34<>"R6", Calculations2!N34<>"R7")),Calculations2!$L$15/100*Calculations2!H34,Calculations2!$N$15/100*Calculations2!H34) -> 0.8602666667 | F23: =IF(Calculations2!$E33="",$F22+1) -> FALSE | G23: =IF(AND(Calculations2!$E33="",$F23<8),Calculations2!$O34,"") ->  | H23: =IF(AND(Calculations2!$E33="",$F23<6),Calculations2!$I33-Calculations2!$O28-$I18-$I19-$I20-$I21,IF(AND(Calculations2!$E34="",Calculations2!$E32<>""),Calculations2!$I34,"")) ->  | I23: =Calculations2!$O34 -> 0 | J23: =IF(AND($F23>5,$F23<>FALSE),"",IF(Calculations2!$E34="",Calculations2!$H34-Calculations2!I34,Calculations2!$H34-Calculations2!$I34)) -> 0.15975086 | O23: =+Calculations2!$H34 -> 1.720533333 | P23: 0.9705333333 | Q23: =IF((OR(Calculations2!N34="R3", Calculations2!N34="R4", Calculations2!N34="R5", Calculations2!N34="R6")),Calculations2!$N$15/100*Calculations2!H34,Calculations2!$L$15/100*Calculations2!H34) -> 0.8602666667 | R23: =IF((OR(Calculations2!N34="R6", Calculations2!N34="R7",)),$S$8/100*Calculations2!H34,Q23) -> 0.8602666667
A24: =A23+Calculations2!G35 -> 0.8289141933 | B24: =B23+Calculations2!C35 -> 1.45 | C24: =C23+Calculations2!D35 -> 0 | D24: 1.45 | E24: =IF((OR(Calculations2!N35<>"R3", Calculations2!N35<>"R4", Calculations2!N35<>"R5", Calculations2!N35<>"R6", Calculations2!N35<>"R7")),Calculations2!$L$15/100*Calculations2!H35,Calculations2!$N$15/100*Calculations2!H35) -> 0.902075 | F24: =IF(Calculations2!$E34="",$F23+1) -> FALSE | G24: =IF(AND(Calculations2!$E34="",$F24<8),Calculations2!$O35,"") ->  | H24: =IF(AND(Calculations2!$E34="",$F24<6),Calculations2!$I34-Calculations2!$O29-$I19-$I20-$I21-$I22,IF(AND(Calculations2!$E35="",Calculations2!$E33<>""),Calculations2!$I35,"")) ->  | I24: =Calculations2!$O35 -> 0 | J24: =IF(AND($F24>5,$F24<>FALSE),"",IF(Calculations2!$E35="",Calculations2!$H35-Calculations2!I35,Calculations2!$H35-Calculations2!$I35)) -> 0.2230050266 | O24: =+Calculations2!$H35 -> 1.80415 | P24: 1.05415 | Q24: =IF((OR(Calculations2!N35="R3", Calculations2!N35="R4", Calculations2!N35="R5", Calculations2!N35="R6")),Calculations2!$N$15/100*Calculations2!H35,Calculations2!$L$15/100*Calculations2!H35) -> 0.902075 | R24: =IF((OR(Calculations2!N35="R6", Calculations2!N35="R7",)),$S$8/100*Calculations2!H35,Q24) -> 0.902075
A25: =A24+Calculations2!G36 -> 0.9112641933 | B25: =B24+Calculations2!C36 -> 1.45 | C25: =C24+Calculations2!D36 -> 0 | D25: 1.45 | E25: =IF((OR(Calculations2!N36<>"R3", Calculations2!N36<>"R4", Calculations2!N36<>"R5", Calculations2!N36<>"R6", Calculations2!N36<>"R7")),Calculations2!$L$15/100*Calculations2!H36,Calculations2!$N$15/100*Calculations2!H36) -> 0.944125 | F25: =IF(Calculations2!$E35="",$F24+1) -> FALSE | G25: =IF(AND(Calculations2!$E35="",$F25<8),Calculations2!$O36,"") ->  | H25: =IF(AND(Calculations2!$E35="",$F25<6),Calculations2!$I35-Calculations2!$O30-$I20-$I21-$I22-$I23,IF(AND(Calculations2!$E36="",Calculations2!$E34<>""),Calculations2!$I36,"")) ->  | I25: =Calculations2!$O36 -> 0 | J25: =IF(AND($F25>5,$F25<>FALSE),"",IF(Calculations2!$E36="",Calculations2!$H36-Calculations2!I36,Calculations2!$H36-Calculations2!$I36)) -> 0.3263800266 | O25: =+Calculations2!$H36 -> 1.88825 | P25: 1.13825 | Q25: =IF((OR(Calculations2!N36="R3", Calculations2!N36="R4", Calculations2!N36="R5", Calculations2!N36="R6")),Calculations2!$N$15/100*Calculations2!H36,Calculations2!$L$15/100*Calculations2!H36) -> 0.944125 | R25: =IF((OR(Calculations2!N36="R6", Calculations2!N36="R7",)),$S$8/100*Calculations2!H36,Q25) -> 0.944125
A26: =A25+Calculations2!G37 -> 1.003904193 | B26: =B25+Calculations2!C37 -> 1.45 | C26: =C25+Calculations2!D37 -> 0 | D26: 1.45 | E26: =IF((OR(Calculations2!N37<>"R3", Calculations2!N37<>"R4", Calculations2!N37<>"R5", Calculations2!N37<>"R6", Calculations2!N37<>"R7")),Calculations2!$L$15/100*Calculations2!H37,Calculations2!$N$15/100*Calculations2!H37) -> 0.9719166667 | F26: =IF(Calculations2!$E36="",$F25+1) -> FALSE | G26: =IF(AND(Calculations2!$E36="",$F26<8),Calculations2!$O37,"") ->  | H26: =IF(AND(Calculations2!$E36="",$F26<6),Calculations2!$I36-Calculations2!$O31-$I21-$I22-$I23-$I24,IF(AND(Calculations2!$E37="",Calculations2!$E35<>""),Calculations2!$I37,"")) ->  | I26: =Calculations2!$O37 -> 0 | J26: =IF(AND($F26>5,$F26<>FALSE),"",IF(Calculations2!$E37="",Calculations2!$H37-Calculations2!I37,Calculations2!$H37-Calculations2!$I37)) -> 0.43291586 | O26: =+Calculations2!$H37 -> 1.943833333 | P26: 1.193833333 | Q26: =IF((OR(Calculations2!N37="R3", Calculations2!N37="R4", Calculations2!N37="R5", Calculations2!N37="R6")),Calculations2!$N$15/100*Calculations2!H37,Calculations2!$L$15/100*Calculations2!H37) -> 0.9719166667 | R26: =IF((OR(Calculations2!N37="R6", Calculations2!N37="R7",)),$S$8/100*Calculations2!H37,Q26) -> 0.9719166667
A27: =A26+Calculations2!G38 -> 1.099784193 | B27: =B26+Calculations2!C38 -> 1.45 | C27: =C26+Calculations2!D38 -> 0 | D27: 1.45 | E27: =IF((OR(Calculations2!N38<>"R3", Calculations2!N38<>"R4", Calculations2!N38<>"R5", Calculations2!N38<>"R6", Calculations2!N38<>"R7")),Calculations2!$L$15/100*Calculations2!H38,Calculations2!$N$15/100*Calculations2!H38) -> 0.9997083333 | F27: =IF(Calculations2!$E37="",$F26+1) -> FALSE | G27: =IF(AND(Calculations2!$E37="",$F27<8),Calculations2!$O38,"") ->  | H27: =IF(AND(Calculations2!$E37="",$F27<6),Calculations2!$I37-Calculations2!$O32-$I22-$I23-$I24-$I25,IF(AND(Calculations2!$E38="",Calculations2!$E36<>""),Calculations2!$I38,"")) ->  | I27: =Calculations2!$O38 -> 0 | J27: =IF(AND($F27>5,$F27<>FALSE),"",IF(Calculations2!$E38="",Calculations2!$H38-Calculations2!I38,Calculations2!$H38-Calculations2!$I38)) -> 0.5426916933 | O27: =+Calculations2!$H38 -> 1.999416667 | P27: 1.249416667 | Q27: =IF((OR(Calculations2!N38="R3", Calculations2!N38="R4", Calculations2!N38="R5", Calculations2!N38="R6")),Calculations2!$N$15/100*Calculations2!H38,Calculations2!$L$15/100*Calculations2!H38) -> 0.9997083333 | R27: =IF((OR(Calculations2!N38="R6", Calculations2!N38="R7",)),$S$8/100*Calculations2!H38,Q27) -> 0.9997083333
A28: =A27+Calculations2!G39 -> 1.204004193 | B28: =B27+Calculations2!C39 -> 1.45 | C28: =C27+Calculations2!D39 -> 0 | D28: 1.45 | E28: =IF((OR(Calculations2!N39<>"R3", Calculations2!N39<>"R4", Calculations2!N39<>"R5", Calculations2!N39<>"R6", Calculations2!N39<>"R7")),Calculations2!$L$15/100*Calculations2!H39,Calculations2!$N$15/100*Calculations2!H39) -> 1.0275 | F28: =IF(Calculations2!$E38="",$F27+1) -> FALSE | G28: =IF(AND(Calculations2!$E38="",$F28<8),Calculations2!$O39,"") ->  | H28: =IF(AND(Calculations2!$E38="",$F28<6),Calculations2!$I38-Calculations2!$O33-$I23-$I24-$I25-$I26,IF(AND(Calculations2!$E39="",Calculations2!$E37<>""),Calculations2!$I39,"")) ->  | I28: =Calculations2!$O39 -> 0 | J28: =IF(AND($F28>5,$F28<>FALSE),"",IF(Calculations2!$E39="",Calculations2!$H39-Calculations2!I39,Calculations2!$H39-Calculations2!$I39)) -> 0.6608075266 | O28: =+Calculations2!$H39 -> 2.055 | P28: 1.305 | Q28: =IF((OR(Calculations2!N39="R3", Calculations2!N39="R4", Calculations2!N39="R5", Calculations2!N39="R6")),Calculations2!$N$15/100*Calculations2!H39,Calculations2!$L$15/100*Calculations2!H39) -> 1.0275 | R28: =IF((OR(Calculations2!N39="R6", Calculations2!N39="R7",)),$S$8/100*Calculations2!H39,Q28) -> 1.0275
A29: =A28+Calculations2!G40 -> 1.318954193 | B29: =B28+Calculations2!C40 -> 1.45 | C29: =C28+Calculations2!D40 -> 0 | D29: 1.45 | E29: =IF((OR(Calculations2!N40<>"R3", Calculations2!N40<>"R4", Calculations2!N40<>"R5", Calculations2!N40<>"R6", Calculations2!N40<>"R7")),Calculations2!$L$15/100*Calculations2!H40,Calculations2!$N$15/100*Calculations2!H40) -> 1.06955 | F29: =IF(Calculations2!$E39="",$F28+1) -> FALSE | G29: =IF(AND(Calculations2!$E39="",$F29<8),Calculations2!$O40,"") ->  | H29: =IF(AND(Calculations2!$E39="",$F29<6),Calculations2!$I39-Calculations2!$O34-$I24-$I25-$I26-$I27,IF(AND(Calculations2!$E40="",Calculations2!$E38<>""),Calculations2!$I40,"")) ->  | I29: =Calculations2!$O40 -> 0 | J29: =IF(AND($F29>5,$F29<>FALSE),"",IF(Calculations2!$E40="",Calculations2!$H40-Calculations2!I40,Calculations2!$H40-Calculations2!$I40)) -> 0.7967825266 | O29: =+Calculations2!$H40 -> 2.1391 | P29: 1.3891 | Q29: =IF((OR(Calculations2!N40="R3", Calculations2!N40="R4", Calculations2!N40="R5", Calculations2!N40="R6")),Calculations2!$N$15/100*Calculations2!H40,Calculations2!$L$15/100*Calculations2!H40) -> 1.06955 | R29: =IF((OR(Calculations2!N40="R6", Calculations2!N40="R7",)),$S$8/100*Calculations2!H40,Q29) -> 1.06955
A30: =A29+Calculations2!G41 -> 1.430314193 | B30: =B29+Calculations2!C41 -> 1.45 | C30: =C29+Calculations2!D41 -> 0 | D30: 1.45 | E30: =IF((OR(Calculations2!N41<>"R3", Calculations2!N41<>"R4", Calculations2!N41<>"R5", Calculations2!N41<>"R6", Calculations2!N41<>"R7")),Calculations2!$L$15/100*Calculations2!H41,Calculations2!$N$15/100*Calculations2!H41) -> 1.152925 | F30: =IF(Calculations2!$E40="",$F29+1) -> FALSE | G30: =IF(AND(Calculations2!$E40="",$F30<8),Calculations2!$O41,"") ->  | H30: =IF(AND(Calculations2!$E40="",$F30<6),Calculations2!$I40-Calculations2!$O35-$I25-$I26-$I27-$I28,IF(AND(Calculations2!$E41="",Calculations2!$E39<>""),Calculations2!$I41,"")) ->  | I30: =Calculations2!$O41 -> 0 | J30: =IF(AND($F30>5,$F30<>FALSE),"",IF(Calculations2!$E41="",Calculations2!$H41-Calculations2!I41,Calculations2!$H41-Calculations2!$I41)) -> 0.9498300266 | O30: =+Calculations2!$H41 -> 2.30585 | P30: 1.55585 | Q30: =IF((OR(Calculations2!N41="R3", Calculations2!N41="R4", Calculations2!N41="R5", Calculations2!N41="R6")),Calculations2!$N$15/100*Calculations2!H41,Calculations2!$L$15/100*Calculations2!H41) -> 1.152925 | R30: =IF((OR(Calculations2!N41="R6", Calculations2!N41="R7",)),$S$8/100*Calculations2!H41,Q30) -> 1.152925
A31: =A30+Calculations2!G42 -> 1.548074193 | B31: =B30+Calculations2!C42 -> 1.45 | C31: =C30+Calculations2!D42 -> 0 | D31: 1.45 | E31: =IF((OR(Calculations2!N42<>"R3", Calculations2!N42<>"R4", Calculations2!N42<>"R5", Calculations2!N42<>"R6", Calculations2!N42<>"R7")),Calculations2!$L$15/100*Calculations2!H42,Calculations2!$N$15/100*Calculations2!H42) -> 1.1947575 | F31: =IF(Calculations2!$E41="",$F30+1) -> FALSE | G31: =IF(AND(Calculations2!$E41="",$F31<8),Calculations2!$O42,"") ->  | H31: =IF(AND(Calculations2!$E41="",$F31<6),Calculations2!$I41-Calculations2!$O36-$I26-$I27-$I28-$I29,IF(AND(Calculations2!$E42="",Calculations2!$E40<>""),Calculations2!$I42,"")) ->  | I31: =Calculations2!$O42 -> 0 | J31: =IF(AND($F31>5,$F31<>FALSE),"",IF(Calculations2!$E42="",Calculations2!$H42-Calculations2!I42,Calculations2!$H42-Calculations2!$I42)) -> 1.088506277 | O31: =+Calculations2!$H42 -> 2.389515 | P31: 1.639515 | Q31: =IF((OR(Calculations2!N42="R3", Calculations2!N42="R4", Calculations2!N42="R5", Calculations2!N42="R6")),Calculations2!$N$15/100*Calculations2!H42,Calculations2!$L$15/100*Calculations2!H42) -> 1.1947575 | R31: =IF((OR(Calculations2!N42="R6", Calculations2!N42="R7",)),$S$8/100*Calculations2!H42,Q31) -> 1.1947575
A32: =A31+Calculations2!G43 -> 1.681244193 | B32: =B31+Calculations2!C43 -> 2.45 | C32: =C31+Calculations2!D43 -> 0 | D32: 2.45 | E32: =IF((OR(Calculations2!N43<>"R3", Calculations2!N43<>"R4", Calculations2!N43<>"R5", Calculations2!N43<>"R6", Calculations2!N43<>"R7")),Calculations2!$L$15/100*Calculations2!H43,Calculations2!$N$15/100*Calculations2!H43) -> 1.23655375 | F32: =IF(Calculations2!$E42="",$F31+1) -> FALSE | G32: =IF(AND(Calculations2!$E42="",$F32<8),Calculations2!$O43,"") ->  | H32: =IF(AND(Calculations2!$E42="",$F32<6),Calculations2!$I42-Calculations2!$O37-$I27-$I28-$I29-$I30,IF(AND(Calculations2!$E43="",Calculations2!$E41<>""),Calculations2!$I43,"")) ->  | I32: =Calculations2!$O43 -> 0 | J32: =IF(AND($F32>5,$F32<>FALSE),"",IF(Calculations2!$E43="",Calculations2!$H43-Calculations2!I43,Calculations2!$H43-Calculations2!$I43)) -> 0.2425744016 | O32: =+Calculations2!$H43 -> 2.4731075 | P32: 1.7231075 | Q32: =IF((OR(Calculations2!N43="R3", Calculations2!N43="R4", Calculations2!N43="R5", Calculations2!N43="R6")),Calculations2!$N$15/100*Calculations2!H43,Calculations2!$L$15/100*Calculations2!H43) -> 1.23655375 | R32: =IF((OR(Calculations2!N43="R6", Calculations2!N43="R7",)),$S$8/100*Calculations2!H43,Q32) -> 1.23655375
A33: =A32+Calculations2!G44 -> 1.750804193 | B33: =B32+Calculations2!C44 -> 2.68 | C33: =C32+Calculations2!D44 -> 0 | D33: 2.68 | E33: =IF((OR(Calculations2!N44<>"R3", Calculations2!N44<>"R4", Calculations2!N44<>"R5", Calculations2!N44<>"R6", Calculations2!N44<>"R7")),Calculations2!$L$15/100*Calculations2!H44,Calculations2!$N$15/100*Calculations2!H44) -> 1.27835 | F33: =IF(Calculations2!$E43="",$F32+1) -> FALSE | G33: =IF(AND(Calculations2!$E43="",$F33<8),Calculations2!$O44,"") ->  | H33: =IF(AND(Calculations2!$E43="",$F33<6),Calculations2!$I43-Calculations2!$O38-$I28-$I29-$I30-$I31,IF(AND(Calculations2!$E44="",Calculations2!$E42<>""),Calculations2!$I44,"")) ->  | I33: =Calculations2!$O44 -> 0 | J33: =IF(AND($F33>5,$F33<>FALSE),"",IF(Calculations2!$E44="",Calculations2!$H44-Calculations2!I44,Calculations2!$H44-Calculations2!$I44)) -> 0.1030325266 | O33: =+Calculations2!$H44 -> 2.5567 | P33: 1.8067 | Q33: =IF((OR(Calculations2!N44="R3", Calculations2!N44="R4", Calculations2!N44="R5", Calculations2!N44="R6")),Calculations2!$N$15/100*Calculations2!H44,Calculations2!$L$15/100*Calculations2!H44) -> 1.27835 | R33: =IF((OR(Calculations2!N44="R6", Calculations2!N44="R7",)),$S$8/100*Calculations2!H44,Q33) -> 1.27835
A34: =A33+Calculations2!G45 -> 1.866984193 | B34: =B33+Calculations2!C45 -> 3.11 | C34: =C33+Calculations2!D45 -> 0 | D34: 3.11 | E34: =IF((OR(Calculations2!N45<>"R3", Calculations2!N45<>"R4", Calculations2!N45<>"R5", Calculations2!N45<>"R6", Calculations2!N45<>"R7")),Calculations2!$L$15/100*Calculations2!H45,Calculations2!$N$15/100*Calculations2!H45) -> 1.320255 | F34: =IF(Calculations2!$E44="",$F33+1) -> FALSE | G34: =IF(AND(Calculations2!$E44="",$F34<8),Calculations2!$O45,"") ->  | H34: =IF(AND(Calculations2!$E44="",$F34<6),Calculations2!$I44-Calculations2!$O39-$I29-$I30-$I31-$I32,IF(AND(Calculations2!$E45="",Calculations2!$E43<>""),Calculations2!$I45,"")) ->  | I34: =Calculations2!$O45 -> 0 | J34: =IF(AND($F34>5,$F34<>FALSE),"",IF(Calculations2!$E45="",Calculations2!$H45-Calculations2!I45,Calculations2!$H45-Calculations2!$I45)) -> -0.0792153 | O34: =+Calculations2!$H45 -> 2.64051 | P34: 1.89051 | Q34: =IF((OR(Calculations2!N45="R3", Calculations2!N45="R4", Calculations2!N45="R5", Calculations2!N45="R6")),Calculations2!$N$15/100*Calculations2!H45,Calculations2!$L$15/100*Calculations2!H45) -> 1.320255 | R34: =IF((OR(Calculations2!N45="R6", Calculations2!N45="R7",)),$S$8/100*Calculations2!H45,Q34) -> 1.320255
A35: =A34+Calculations2!G46 -> 1.94931086 | B35: =B34+Calculations2!C46 -> 3.11 | C35: =C34+Calculations2!D46 -> 0 | D35: 3.11 | E35: =IF((OR(Calculations2!N46<>"R3", Calculations2!N46<>"R4", Calculations2!N46<>"R5", Calculations2!N46<>"R6", Calculations2!N46<>"R7")),Calculations2!$L$15/100*Calculations2!H46,Calculations2!$N$15/100*Calculations2!H46) -> 1.348095 | F35: =IF(Calculations2!$E45="",$F34+1) -> FALSE | G35: =IF(AND(Calculations2!$E45="",$F35<8),Calculations2!$O46,"") ->  | H35: =IF(AND(Calculations2!$E45="",$F35<6),Calculations2!$I45-Calculations2!$O40-$I30-$I31-$I32-$I33,IF(AND(Calculations2!$E46="",Calculations2!$E44<>""),Calculations2!$I46,"")) ->  | I35: =Calculations2!$O46 -> 0 | J35: =IF(AND($F35>5,$F35<>FALSE),"",IF(Calculations2!$E46="",Calculations2!$H46-Calculations2!I46,Calculations2!$H46-Calculations2!$I46)) -> 0.01703136667 | O35: =+Calculations2!$H46 -> 2.69619 | P35: 1.94619 | Q35: =IF((OR(Calculations2!N46="R3", Calculations2!N46="R4", Calculations2!N46="R5", Calculations2!N46="R6")),Calculations2!$N$15/100*Calculations2!H46,Calculations2!$L$15/100*Calculations2!H46) -> 1.348095 | R35: =IF((OR(Calculations2!N46="R6", Calculations2!N46="R7",)),$S$8/100*Calculations2!H46,Q35) -> 1.348095
A36: =A35+Calculations2!G47 -> 2.08107086 | B36: =B35+Calculations2!C47 -> 3.11 | C36: =C35+Calculations2!D47 -> 0.4 | D36: 3.51 | E36: =IF((OR(Calculations2!N47<>"R3", Calculations2!N47<>"R4", Calculations2!N47<>"R5", Calculations2!N47<>"R6", Calculations2!N47<>"R7")),Calculations2!$L$15/100*Calculations2!H47,Calculations2!$N$15/100*Calculations2!H47) -> 1.375935 | F36: =IF(Calculations2!$E46="",$F35+1) -> FALSE | G36: =IF(AND(Calculations2!$E46="",$F36<8),Calculations2!$O47,"") ->  | H36: =IF(AND(Calculations2!$E46="",$F36<6),Calculations2!$I46-Calculations2!$O41-$I31-$I32-$I33-$I34,IF(AND(Calculations2!$E47="",Calculations2!$E45<>""),Calculations2!$I47,"")) ->  | I36: =Calculations2!$O47 -> 0 | J36: =IF(AND($F36>5,$F36<>FALSE),"",IF(Calculations2!$E47="",Calculations2!$H47-Calculations2!I47,Calculations2!$H47-Calculations2!$I47)) -> -0.0825561 | O36: =+Calculations2!$H47 -> 2.75187 | P36: 2.00187 | Q36: =IF((OR(Calculations2!N47="R3", Calculations2!N47="R4", Calculations2!N47="R5", Calculations2!N47="R6")),Calculations2!$N$15/100*Calculations2!H47,Calculations2!$L$15/100*Calculations2!H47) -> 1.375935 | R36: =IF((OR(Calculations2!N47="R6", Calculations2!N47="R7",)),$S$8/100*Calculations2!H47,Q36) -> 1.375935
A37: =A36+Calculations2!G48 -> 2.22982086 | B37: =B36+Calculations2!C48 -> 3.91 | C37: =C36+Calculations2!D48 -> 0.4 | D37: 4.31 | E37: =IF((OR(Calculations2!N48<>"R3", Calculations2!N48<>"R4", Calculations2!N48<>"R5", Calculations2!N48<>"R6", Calculations2!N48<>"R7")),Calculations2!$L$15/100*Calculations2!H48,Calculations2!$N$15/100*Calculations2!H48) -> 1.403775 | F37: =IF(Calculations2!$E47="",$F36+1) -> FALSE | G37: =IF(AND(Calculations2!$E47="",$F37<8),Calculations2!$O48,"") ->  | H37: =IF(AND(Calculations2!$E47="",$F37<6),Calculations2!$I47-Calculations2!$O42-$I32-$I33-$I34-$I35,IF(AND(Calculations2!$E48="",Calculations2!$E46<>""),Calculations2!$I48,"")) ->  | I37: =Calculations2!$O48 -> 0 | J37: =IF(AND($F37>5,$F37<>FALSE),"",IF(Calculations2!$E48="",Calculations2!$H48-Calculations2!I48,Calculations2!$H48-Calculations2!$I48)) -> -0.0842265 | O37: =+Calculations2!$H48 -> 2.80755 | P37: 2.05755 | Q37: =IF((OR(Calculations2!N48="R3", Calculations2!N48="R4", Calculations2!N48="R5", Calculations2!N48="R6")),Calculations2!$N$15/100*Calculations2!H48,Calculations2!$L$15/100*Calculations2!H48) -> 1.403775 | R37: =IF((OR(Calculations2!N48="R6", Calculations2!N48="R7",)),$S$8/100*Calculations2!H48,Q37) -> 1.403775
A38: =A37+Calculations2!G49 -> 2.30972086 | B38: =B37+Calculations2!C49 -> 4.02 | C38: =C37+Calculations2!D49 -> 0.4 | D38: 4.42 | E38: =IF((OR(Calculations2!N49<>"R3", Calculations2!N49<>"R4", Calculations2!N49<>"R5", Calculations2!N49<>"R6", Calculations2!N49<>"R7")),Calculations2!$L$15/100*Calculations2!H49,Calculations2!$N$15/100*Calculations2!H49) -> 1.445825 | F38: =IF(Calculations2!$E48="",$F37+1) -> FALSE | G38: =IF(AND(Calculations2!$E48="",$F38<8),Calculations2!$O49,"") ->  | H38: =IF(AND(Calculations2!$E48="",$F38<6),Calculations2!$I48-Calculations2!$O43-$I33-$I34-$I35-$I36,IF(AND(Calculations2!$E49="",Calculations2!$E47<>""),Calculations2!$I49,"")) ->  | I38: =Calculations2!$O49 -> 0 | J38: =IF(AND($F38>5,$F38<>FALSE),"",IF(Calculations2!$E49="",Calculations2!$H49-Calculations2!I49,Calculations2!$H49-Calculations2!$I49)) -> -0.0867495 | O38: =+Calculations2!$H49 -> 2.89165 | P38: 2.14165 | Q38: =IF((OR(Calculations2!N49="R3", Calculations2!N49="R4", Calculations2!N49="R5", Calculations2!N49="R6")),Calculations2!$N$15/100*Calculations2!H49,Calculations2!$L$15/100*Calculations2!H49) -> 1.445825 | R38: =IF((OR(Calculations2!N49="R6", Calculations2!N49="R7",)),$S$8/100*Calculations2!H49,Q38) -> 1.445825
A39: =A38+Calculations2!G50 -> 2.45525086 | B39: =B38+Calculations2!C50 -> 4.02 | C39: =C38+Calculations2!D50 -> 0.4 | D39: 4.42 | E39: =IF((OR(Calculations2!N50<>"R3", Calculations2!N50<>"R4", Calculations2!N50<>"R5", Calculations2!N50<>"R6", Calculations2!N50<>"R7")),Calculations2!$L$15/100*Calculations2!H50,Calculations2!$N$15/100*Calculations2!H50) -> 1.5294175 | F39: =IF(Calculations2!$E49="",$F38+1) -> FALSE | G39: =IF(AND(Calculations2!$E49="",$F39<8),Calculations2!$O50,"") ->  | H39: =IF(AND(Calculations2!$E49="",$F39<6),Calculations2!$I49-Calculations2!$O44-$I34-$I35-$I36-$I37,IF(AND(Calculations2!$E50="",Calculations2!$E48<>""),Calculations2!$I50,"")) ->  | I39: =Calculations2!$O50 -> 0 | J39: =IF(AND($F39>5,$F39<>FALSE),"",IF(Calculations2!$E50="",Calculations2!$H50-Calculations2!I50,Calculations2!$H50-Calculations2!$I50)) -> 0.10057675 | O39: =+Calculations2!$H50 -> 3.058835 | P39: 2.308835 | Q39: =IF((OR(Calculations2!N50="R3", Calculations2!N50="R4", Calculations2!N50="R5", Calculations2!N50="R6")),Calculations2!$N$15/100*Calculations2!H50,Calculations2!$L$15/100*Calculations2!H50) -> 1.5294175 | R39: =IF((OR(Calculations2!N50="R6", Calculations2!N50="R7",)),$S$8/100*Calculations2!H50,Q39) -> 1.5294175
